Workbook

Sheet Summary (hidden)
A1: Summary of Measure Assessment Methodology and Data Sources
A3: Measure Properties
A4: Market Sector | B4: Residential
A5: Market Segment | B5: Single Family
A6: Measure | B6: HPWH
A7: Measure Specifications | B7: Installation of a Tier 1 or Tier 2 Northern Climate Specification qualified Heat Pump Water Heater (HPWH). Qualifying products must be listed on the Northern Climate Specification's Qualified Products List (QPL), which is available at http://neea.org/northernclimatespec.
A8: Baseline | B8: Current Practice
A9: Estimation Method | B9: Unit Energy Savings
A10: Category | B10: Proven
A11: Estimation Procedure | B11: Calibrated Engineering
A12: Sunset Date | B12: 2015-04-30
A13: Sunset Factors | B13: RTF to review research plan focused on HVAC interaction factor and measure baseline.
A14: Primary Workbook | B14: =MID(CELL("filename"),SEARCH("[",CELL("filename"))+1, SEARCH("]",CELL("filename"))-SEARCH("[",CELL("filename"))-1) -> HPWH Savings from Setpoint Reduction_12.18.14_v5.xlsm
A15: Linked Workbooks | B15: HPWH_cops_t-controls.xlsx, heat_exchange_functions.xlsx
A16: Number of Measure Applications | B16: =CONCATENATE(COUNTA(LookupTable!A3:A173)," applications by efficiency tier, install location, HVAC type, ducting (yes/no), and heating zone.") -> 57 applications by efficiency tier, install location, HVAC type, ducting (yes/no), and heating zone.
A18: Measure Identifiers
A19: Identifier | B19: Possible Values | E19: Further Explanation and Sources
A20: Efficiency Level | B20: Tier 1; Tier 2 | E20: Tier levels are defined by the NEEA Northern Climate HPWH specification, which is available at http://neea.org/northernclimatespec. Each Northern Climate Specification requires a minimum Energy Factor (EF), minimum sound levels, and a list of other minimum features. For example, Tier 1 units must have a minimum EF of 1.8, while Tier 2 units must have a minimum EF of 2.0.
A21: Water Heater Location | B21: Garage; Basement (Unheated); Interior | E21: Basement (Unheated) is defined as an enclosed space which: a) is adjacent to the thermal boundary of the house, and b) has no positive heat supply under thermostatic control. Those basements not meeting the unheated definition are classified as interior installations.
A22: HVAC Type | B22: Gas furnace no cooling (gfnc); ; gas furnace with cooling (gfac); electric forced air furnace (eFAF); central heat pump or ductless heat pump (HP); zonal electric | E22: HVAC Type applies only to the Interior installation location, as the Garage and Basement locations are not subject to HVAC interaction. Heat pump water heaters extract heat from the space where they are installed. Some of that heat energy is replaced by the heating (or cooling) system.
A23: Exhaust Ducting | B23: Ducted; Not ducted | E23: Currently, this identifier applies only to Tier 2 units installed in Interior spaces. Ducted units have the capability of rejecting exhaust air to the outside of the building.
A24: Climate Zone (Heating) | B24: Heating zones 1, 2, & 3 | E24: Heating zones 1, 2, & 3 are based on the following weightings of SEEM results for 5 cities Zone 1: Portland 20% Seattle 50% Boise 15% Kalispell 0% Spokane 15% Zone 2: Portland 0% Seattle 0% Boise 10% Kalispell 5% Spokane 85% Zone 3: Portland 0% Seattle 0% Boise 0% Kalispell 100% Spokane 0% From: ExistingResidentialManufacturedHome_SEEMRuns_02.xlsm
A26: Constant Parameters
A27: Parameter | B27: Possible Values | E27: Further Explanation and Sources
A28: Climate Zone (Cooling) | B28: Average PNW Cooling Zone | E28: Cooling zones 1, 2, & 3 are based on Council definitions used for 6th Plan: http://www.nwcouncil.org/media/6579/PNWClimateZones_6thPlan.xls. Additional cooling provided by HPWH in the cooling months is small and not considered here. Therefore, we assume a regional average cooling climate.
A29: Water Heater Setpoint | B29: 128 °F | E29: Setpoint determined by using the 95% quantile of outlet water temperatures observed in the field. 2014 NEEA DRAFT Report: Heat Pump Water Heater Model Validation Study. For more on this parameter, click the link at left to view the relevant section on the "Supporting Documentation" page.
A30: Inlet Water Temperature/Source | B30: [See "Supporting Documentation"] | E30: Inlet water temperature varies with climate and is based on observations from field data. HZ1 uses city surface water supply (most typical of Western WA & OR) HZ2 uses city ground water supply HZ3 uses well water supply (most typical of rural water supplies) See report: 2014 NEEA DRAFT Report: Heat Pump Water Heater Model Validation Study, Section 4.2 Outlet Water Temperature and Tank Setpoint
A31: Electric Resistance Water Heater Heat Loss Rate | B31: 1.64 Btu/hrF | E31: See "baseline" worksheet Starting April 16, 2015, tanks ≤ 55gallons will have an EF requirement of ~0.95. That corresponds to 1.64 Btu/hrF
A32: Heat Pump Water Heater Efficiency Curve | B32: [See "Supporting Documentation"] | E32: A calibration was performed to align the SEEM HPWH model water heater energy use output with the water heater energy use from the HPWH field study, on average. In order to align the values, the HPWH performance curves generated in the lab were adjusted. These are the adjusted (calibrated) curves.
A33: People Per Single Family House | B33: ='SavingsData&Analysis'!D46 -> 2.569739953 | E33: Average based on RBSA SF database for houses with electric resistance water heaters less than or equal to 55 gallons. The 2014 NEEA field study (Heat Pump Water Heater Model Validation Study) had a very similar average occupant value of 2.72.
A34: Hot Water Consumption per House, per Day | B34: =CONCATENATE(TEXT('Supporting Documentation'!H107,"0")," gallons") -> 40 gallons | E34: Assumed to be the same in the measure case and the baseline. See report: Heat Pump Water Heater Validation Study Section 3.6.3
A35: Hot Water Draw Profiles | B35: [See "Supporting Documentation"] | E35: Simulations comprise 5 different draw profiles based on 1, 2, 3, 4, and 5+ occupants per house. Results are weighted in proportion to distribution of house sizes in RBSA SF population. Draw profiles are the same in the baseline and measure cases. See report: Heat Pump Water Heater Validation Study Section 4.5 Hot Water Draw Patterns and Appendix F
A36: Garage Air Temperature Profile | B36: [See "Supporting Documentation"] | E36: Calculated at every hour of the year based on outside air temperature. Derived from field measurements. See report: Heat Pump Water Heater Validation Study Section 4.3 Ambient Space Temperatures
A37: Basement Air Temperature Profile | B37: [See "Supporting Documentation"] | E37: Calculated at every hour of the year based on outside air temperature. Derived from field measurements. See report: Heat Pump Water Heater Validation Study Section 4.3 Ambient Space Temperatures
A38: Interior Installation Location Air Temperature Profile | B38: [See "Supporting Documentation"] | E38: For interior, recirculating (non-vented) installations, the simulation gradually cools the ambient air temperature as the heat pump runs. Derived from field measurements. See report: Heat Pump Water Heater Validation Study Section 4.3 Ambient Space Temperatures
A39: House Envelope Characteristics | B39: Ceiling R-38 Wall R-11 Floor R-25 Window U-0.35 | E39: These are only of minor importance. They only apply when assessing the space heating interaction. Need to settle on some values in order to use the Uo-based "Phase 1" calibration adjustment. Judgement suggests a fully retrofit building is reasonable.
A40: House Infiltration | B40: 7 ACH @ 50Pa | E40: Estimate - assumes houses have been air-sealed
A41: Heating/Cooling System Efficiencies | B41: Gas FAF: AFUE 0.90 Heat Pump: HSPF 8.5 Central AC: SEER 13.0 Duct System - Supply Leak: 6% , Return Leak: 3% | E41: Heat Pump HSPF is RTF's assumed current practice baseline. Gas FAF AFUE is an estimate (professional judgment). Duct leakage is estimated - assumes houses have undergone duct sealing.
A42: House Simulation Prototype | B42: 2200 sq ft w/ crawl space | E42: Prototype house floor areas supplied by RTF. House dimensions are irrelevant to water heater operation.
A43: Heating Interaction Factor | B43: 0.65 | E43: The fraction of maximum possible interatction "seen" by the HVAC system. Heat pump water heaters extract heat from the space where they are installed. Some of that heat energy is replaced by the heating (or cooling) system. Some is not. Appllies to both interior (non-ducted) and interor exhaust ducted cases. Mostly professional judgment. See PNNL Lab Homes report. Also see Heat Pump Water Heater Validation Study for general discussion. Subcommittee settled on a weighted average of 65% based on: Data: RBSA shows that of the electric storage tanks in conditioned location "main house" or "basement", 36.8% are in the basement and 63.2% are in the main house. Judgment: Basement HCf range = 25%-75%, so choose 50%; Main House HCf range = 50%-100%, so choose 75%.
A44: Non-Electric Space Heating Fuel Ratios | B44: [See "SEEM Calibration"] | E44: Output for installations with a space heating interaction need to account for the presence of non-electric fuel used to generate that heat (both wood and gas sources) August 2014 RTF Meeting http://rtf.nwcouncil.org/meetings/2014/08/PhaseII_BadBills_RTF_12AUG2014_v2.pptx
A45: Current Practice Market Baseline Tank Sizes | B45: Tank Size | C45: RBSA Observed | D45: Forecast | E45: Based on RBSA SF database for houses with electric resistance water heaters. And updated to a forecast to account for the Federal Standard "work-around" fraction. See "SavingsData&Analysis" sheet for distribution
B46: >= 55 gallon | C46: ='SavingsData&Analysis'!C6 -> 0.883 | D46: ='SavingsData&Analysis'!C12 -> 0.91225
B47: > 55 gallon | C47: ='SavingsData&Analysis'!D6 -> 0.117 | D47: ='SavingsData&Analysis'!C13 -> 0.08775
A48: Federal Standard "work around fraction" | B48: 0.25 | E48: Some people are expected to "work around" the increased Federal Standard and by a smaller tank or two small tanks. This estimate is a professional judgement.
A50: Energy Savings Estimation Method, Parameters and Data Sources
A51: Measure Identifiers | B51: Savings Component | C51: Analysis approach | D51: Primary Parameter / Adjustment Factor | E51: Baseline | F51: Baseline Possible Values | G51: Efficient Case Possible Values | H51: Baseline Further Explanation and Sources | I51: Efficient Case Further Explanation and Sources
A52: All | B52: DHW | C52: SEEM's hourly water heater simulation model is used to estimate water heater energy use for the baseline and efficient-case. Underlying inputs to the model include: , Inlet Water Temperature, Electric Resistance Water Heater Heat Loss Rate, and HPWH Efficiency Curves. User inputs to the model include: Water Heater Setpoint, Hot Water Draw Profile, Water Heater Performance Level, Exhaust Air Flow Rate, Inlet Water Source, Water Heater Location, Heating Interaction Factor, and Water Heater Tank Size. | D52: Water Heater Performance Level | E52: Current Practice | F52: One baseline consisting of: Electric Resistance Tank with EF 0.95 (weighted at 91%) HPWH Tier 1 (see right) (weighted at 9%) | G52: Two Efficient Case Values: Tier 1: GE Geospring (weighted at 87%); AO Smith Voltex 60 (weighted at 5%); and AO Smith Voltex 80 (weighted at 8%) Tier 2: AirGenerate ATI (weighted at 100%) | H52: Federal standard (starting April 16, 2015) requires tanks ≤ 55gallons to have an EF of ~0.95 and tanks > 55 gallons to have an EF of ~2.0. See "Baseline" worksheet. See the Current Practice Market Baseline Tank Sizes for determination of the weightings of the two baselines. HPWH Tier 1 Tank Weightings are used to estimate the average tank that meets the federal standard for the >55 gallon cases. | I52: Tier 1 and Tier 2 are defined as part of the measure identifiers. Tier 1 tank weightings based on NEEA and BPA dataset of recent program installations. Tier 2 tank weightings based on that being the only Tier 2 tank available (While it's no longer available, its efficiency will serve as an adequate placeholder should a new Tier 2 model become available prior to the sunset date).
A53: Interior Installations - No Venting | B53: Space Heating | C53: The SEEM water heater simulation model directly feeds its internal gains and losses outputs into the SEEM space heating simulation model. The SEEM space heating simulation model is run using the House Simulation Prototype with the House Envelope Characteristics, House Infiltration, and Heating/Cooling System Efficiencies for both the baseline and efficient-cases. The SEEM Phase I and Phase II calibration factors are applied to the outputs.
A55: Interior Installations - Venting (Ducted) | D55: Exhaust Air Flow Rate | F55: 0 cfm | G55: 200 cfm | H55: Baseline tank does not have exhaust ducting. | I55: NEEA Northern Climate Specification requires that installations with exhaust ducting achieve exhaust airflow of no more than 250 cfm. This analysis assumes a value of 200 cfm.
A57: Measure Incremental Costs and Benefits
A58: Measure Identifiers | B58: Cost or Benefit | C58: Analysis Approach | D58: Baseline | E58: Data Sources | F58: Source Type | G58: Year of the Dollars | H58: Uncertainty Estimate
A59: All | B59: Capital Cost - HPWH | C59: Based on NEEA and BPA data from current HPWH programs. HPWH equipment cost is the average reported across each make/model. | D59: Current Practice | E59: NEEA and BPA HPWH Program cost tracking (see sheet in workbook). Baseline tank costs obtain via web search | F59: Program Tracking Data | G59: 2014 | H59: Uncertainty is medium. HPWH costs are for a technology new to the market that is still finding it's price point. Costs expected to change in the future. Baseline equipment cost is for a baseline that doesn't exist yet - standard will go in to effect April 16, 2015. Consequently, market may be adjusting prices after that time.
A60: All | B60: Installation Cost - HPWH | C60: Based on NEEA and BPA data from current HPWH programs and DOE Technical Support Document for the 2015 standards improvement. Neither source provides a complete picture so both are used to construct incremental installation costs estimates. | D60: Current Practice | E60: NEEA and BPA HPWH Program cost tracking (see sheet in workbook). Department of Energy (DOE) Technical Support Document (TSD) for Water Heater Standards. November 2009 http://www.regulations.gov/#!documentDetail;D=EERE-2006-STD-0129-0170 | F60: Program Tracking Data | G60: Mix of 2008 and 2014 dollars. Both are clearly provided and indicated in "costs" sheet. | H60: Uncertainty is low. There are over 1200 installations in the program datasets. Further, installing a water heater is routine. Additionally, DOE TSD estimates reasonably agree with observed field data prices suggesting this is a reasonably well understood problem.
A61: Interior Installations | B61: Operational Cost - Supplemental Fuel | C61: "Phase II" simulation calibration suggests that both wood and gas supplement electric heating in houses. When the HPWH, install inside the house, increases the heating load, some load is met with supplemental fuel. The cost of gas is set in ProCost. The equivalent cost of wood is provided as a Non-energy cost to ProCost. | D61: Current Practice | E61: Retail cost of electricity from: US Energy Information Administration (EIA), http://www.eia.gov/electricity/monthly/epm_table_grapher.cfm?t=epmt_5_6_a. | F61: DOE / Other Standard Setting Process | G61: 2014 | H61: Uncertainty is high. Wood costs are notoriously difficult to determine.
A63: Measure Lifetime
A64: Measure Identifiers | C64: Analysis Approach | D64: Baseline | E64: Data Sources | H64: Uncertainty Estimate
A65: All | C65: Reference the DOE TSD - values in that document were determined via "expert opinion". | D65: Current Practice | E65: DOE Technical Support Document for Water Heater Standards. Appendix 8-C Lifetime Distributions. November 2009. http://www.regulations.gov/#!documentDetail;D=EERE-2006-STD-0129-0170 | H65: Medium

Sheet SummaryRUL (hidden)

Sheet Checklist (hidden)
H1: Measure Assessment Checklist
H2: Sponsor
H3: Market Sector | I3: =Summary!B4 -> Residential
H4: Market Segment | I4: =Summary!B5 -> Single Family
H5: Measure | I5: =Summary!B6 -> HPWH
H6: Estimation Method | I6: =Summary!B9 -> Unit Energy Savings
H7: Category | I7: =Summary!B10 -> Proven
H8: Estimation Procedure | I8: =Summary!B11 -> Calibrated Engineering
H9: Filter List? | I9: Yes
E12: Applicability
A13: ShowMethod | B13: ShowCategory | C13: ShowProcedure | D13: Show | E13: Method | F13: Category | G13: Procedure | H13: Guideline | I13: Condition | J13: Section | K13: Response | L13: Notes | M13: Example / Instructions
A14: =IF(AND(E14<>"all",E14=CheckListMethod),TRUE,IF(E14="All",TRUE,FALSE)) -> TRUE | B14: =IF(AND(F14<>"all",F14=CheckListCategory),TRUE,IF(F14="All",TRUE,FALSE)) -> TRUE | C14: =IF(AND(G14<>"all",G14=CheckListProcedure),TRUE,IF(G14="All",TRUE,FALSE)) -> TRUE | D14: =IF(OR(CheckListFilter="No",AND(A14,B14,C14)),TRUE,FALSE) -> TRUE | E14: All | F14: All | G14: All | H14: Roadmap | I14: Is measure Specifications Complete
A15: TRUE | B15: TRUE | C15: TRUE | D15: TRUE | E15: All | F15: All | G15: All | H15: Roadmap | J15: 3.1. Measure Identifiers
A16: TRUE | B16: TRUE | C16: TRUE | D16: TRUE | E16: All | F16: All | G16: All | H16: Roadmap | J16: 3.2. Savings Baseline
A17: TRUE | B17: TRUE | C17: TRUE | D17: TRUE | E17: All | F17: All | G17: All | H17: Roadmap | J17: 3.3. Implementation Standards
A18: TRUE | B18: TRUE | C18: TRUE | D18: TRUE | E18: All | F18: All | G18: All | H18: Roadmap | J18: 3.4. Product Standards
A19: TRUE | B19: TRUE | C19: TRUE | D19: TRUE | E19: Unit Energy Savings | F19: All | G19: All | H19: Roadmap | J19: 3.5. Sunset Date
A20: =IF(AND(E20<>"all",E20=CheckListMethod),TRUE,IF(E20="All",TRUE,FALSE)) -> FALSE | B20: =IF(AND(F20<>"all",F20=CheckListCategory),TRUE,IF(F20="All",TRUE,FALSE)) -> TRUE | C20: =IF(AND(G20<>"all",G20=CheckListProcedure),TRUE,IF(G20="All",TRUE,FALSE)) -> TRUE | D20: =IF(OR(CheckListFilter="No",AND(A20,B20,C20)),TRUE,FALSE) -> FALSE | E20: Standard Protocol | F20: All | G20: All | H20: Roadmap | J20: 3.5. Sunset Date
A21: FALSE | B21: TRUE | C21: TRUE | D21: FALSE | E21: Program Impact Evaluation | F21: All | G21: All | H21: Roadmap | J21: 3.5. Sunset Date
A22: TRUE | B22: TRUE | C22: TRUE | D22: TRUE | E22: All | F22: All | G22: All | H22: Savings | I22: Is research planning complete (NA if measure category not Provisional)
A23: TRUE | B23: FALSE | C23: TRUE | D23: FALSE | E23: Unit Energy Savings | F23: Provisional | G23: All | H23: Savings | J23: 2.6.2. Research on Planning and Provisional Measures
A24: FALSE | B24: FALSE | C24: TRUE | D24: FALSE | E24: Standard Protocol | F24: Provisional | G24: All | H24: Savings | J24: 3.6.2. Research on Provisional Measures
A25: FALSE | B25: FALSE | C25: TRUE | D25: FALSE | E25: Program Impact Evaluation | F25: Provisional | G25: All | H25: Savings | J25: 5.6. Peer Review of Evaluation Research Designs
A26: TRUE | B26: TRUE | C26: TRUE | D26: TRUE | E26: All | F26: All | G26: All | H26: Savings | I26: Is Calibrated Engineering procedure complete (NA for other procedures)
A27: TRUE | B27: TRUE | C27: TRUE | D27: TRUE | E27: Unit Energy Savings | F27: All | G27: Calibrated Engineering | H27: Savings | J27: 2.3.3.1. Input Parameters
A28: TRUE | B28: TRUE | C28: TRUE | D28: TRUE | E28: Unit Energy Savings | F28: All | G28: Calibrated Engineering | H28: Savings | J28: 2.3.3.2. Model Calibration
A29: TRUE | B29: TRUE | C29: TRUE | D29: TRUE | E29: Unit Energy Savings | F29: All | G29: Calibrated Engineering | H29: Savings | J29: 2.3.3.3. UES Components
A30: TRUE | B30: TRUE | C30: TRUE | D30: TRUE | E30: Unit Energy Savings | F30: All | G30: Calibrated Engineering | H30: Savings | J30: 2.3.3.4. Interactions between Measures
A31: TRUE | B31: TRUE | C31: TRUE | D31: TRUE | E31: Unit Energy Savings | F31: All | G31: Calibrated Engineering | H31: Savings | J31: 2.3.3.5. Heating/Cooling Interactions
A32: TRUE | B32: TRUE | C32: TRUE | D32: TRUE | E32: All | F32: All | G32: All | H32: Savings | I32: Is savings estimation quality standard satisfied
A33: TRUE | B33: TRUE | C33: FALSE | D33: FALSE | E33: Unit Energy Savings | F33: Proven | G33: Statistical | H33: Savings | J33: 2.4.1. Statistical findings reliable
A34: TRUE | B34: TRUE | C34: FALSE | D34: FALSE | E34: Unit Energy Savings | F34: Proven | G34: Meta-Statistical | H34: Savings | J34: 2.4.1. Statistical findings reliable
A35: TRUE | B35: TRUE | C35: TRUE | D35: TRUE | E35: Unit Energy Savings | F35: Proven | G35: Calibrated Engineering | H35: Savings | J35: 2.4.1. Reliable baseline and efficient-case data available
A36: TRUE | B36: TRUE | C36: TRUE | D36: TRUE | E36: Unit Energy Savings | F36: Proven | G36: Calibrated Engineering | H36: Savings | J36: 2.4.1. Sound analyses
A37: TRUE | B37: TRUE | C37: TRUE | D37: TRUE | E37: Unit Energy Savings | F37: Proven | G37: Calibrated Engineering | H37: Savings | J37: 2.4.1. Models calibrated to baseline and efficient-case
A38: TRUE | B38: FALSE | C38: FALSE | D38: FALSE | E38: Unit Energy Savings | F38: Provisional | G38: Statistical | H38: Savings | J38: 2.4.2. Statistical findings reliable
A39: TRUE | B39: FALSE | C39: FALSE | D39: FALSE | E39: Unit Energy Savings | F39: Provisional | G39: Meta-Statistical | H39: Savings | J39: 2.4.2. Statistical findings reliable
A40: TRUE | B40: FALSE | C40: FALSE | D40: FALSE | E40: Unit Energy Savings | F40: Provisional | G40: Statistical | H40: Savings | J40: 2.4.2. Programs commit to collecting data
A41: TRUE | B41: FALSE | C41: FALSE | D41: FALSE | E41: Unit Energy Savings | F41: Provisional | G41: Meta-Statistical | H41: Savings | J41: 2.4.2. Programs commit to collecting data
A42: =IF(AND(E42<>"all",E42=CheckListMethod),TRUE,IF(E42="All",TRUE,FALSE)) -> TRUE | B42: =IF(AND(F42<>"all",F42=CheckListCategory),TRUE,IF(F42="All",TRUE,FALSE)) -> FALSE | C42: =IF(AND(G42<>"all",G42=CheckListProcedure),TRUE,IF(G42="All",TRUE,FALSE)) -> TRUE | D42: =IF(OR(CheckListFilter="No",AND(A42,B42,C42)),TRUE,FALSE) -> FALSE | E42: Unit Energy Savings | F42: Provisional | G42: Calibrated Engineering | H42: Savings | J42: 2.4.2. Reliable baseline data available
A43: TRUE | B43: FALSE | C43: TRUE | D43: FALSE | E43: Unit Energy Savings | F43: Provisional | G43: Calibrated Engineering | H43: Savings | J43: 2.4.2. Sound analyses
A44: TRUE | B44: FALSE | C44: TRUE | D44: FALSE | E44: Unit Energy Savings | F44: Provisional | G44: Calibrated Engineering | H44: Savings | J44: 2.4.2. Models calibrated to baseline
A45: TRUE | B45: FALSE | C45: TRUE | D45: FALSE | E45: Unit Energy Savings | F45: Provisional | G45: Calibrated Engineering | H45: Savings | J45: 2.4.2. Data collection plan developed
A46: TRUE | B46: FALSE | C46: TRUE | D46: FALSE | E46: Unit Energy Savings | F46: Provisional | G46: Calibrated Engineering | H46: Savings | J46: 2.4.2. Programs commit to collecting data
A47: TRUE | B47: FALSE | C47: TRUE | D47: FALSE | E47: Unit Energy Savings | F47: Planning | G47: All | H47: Savings | J47: 2.4.3. Data collection plan developed
A48: TRUE | B48: FALSE | C48: TRUE | D48: FALSE | E48: Unit Energy Savings | F48: Planning | G48: All | H48: Savings | J48: 2.4.3. Sufficient usefulness and applicability in the region
A49: TRUE | B49: FALSE | C49: TRUE | D49: FALSE | E49: Unit Energy Savings | F49: Planning | G49: All | H49: Savings | J49: 2.4.3. Sound analyses
A50: TRUE | B50: FALSE | C50: TRUE | D50: FALSE | E50: Unit Energy Savings | F50: Small Saver | G50: All | H50: Savings | J50: 2.4.4. Applicable in the region
A51: TRUE | B51: FALSE | C51: TRUE | D51: FALSE | E51: Unit Energy Savings | F51: Small Saver | G51: All | H51: Savings | J51: 2.4.4. Sound analyses
A52: FALSE | B52: FALSE | C52: TRUE | D52: FALSE | E52: Standard Protocol | F52: Provisional | G52: All | H52: Savings | J52: 3.4.1 Best practice data collection defined
A53: FALSE | B53: FALSE | C53: TRUE | D53: FALSE | E53: Standard Protocol | F53: Provisional | G53: All | H53: Savings | J53: 3.4.1 Best practice saving estimation method developed
A54: FALSE | B54: FALSE | C54: TRUE | D54: FALSE | E54: Standard Protocol | F54: Provisional | G54: All | H54: Savings | J54: 3.4.1 Plan for collecting best practice data developed
A55: FALSE | B55: FALSE | C55: TRUE | D55: FALSE | E55: Standard Protocol | F55: Provisional | G55: All | H55: Savings | J55: 3.4.1 Simplified savings estimation method defined
A56: FALSE | B56: TRUE | C56: TRUE | D56: FALSE | E56: Standard Protocol | F56: Proven | G56: All | H56: Savings | J56: 3.4.2 Best practice data collected
A57: FALSE | B57: TRUE | C57: TRUE | D57: FALSE | E57: Standard Protocol | F57: Proven | G57: All | H57: Savings | J57: 3.4.2 Reliability of simplified method proven
A58: FALSE | B58: FALSE | C58: TRUE | D58: FALSE | E58: Standard Protocol | F58: Small Saver | G58: All | H58: Savings | J58: 3.4.3 Applicable in the region
A59: FALSE | B59: FALSE | C59: TRUE | D59: FALSE | E59: Standard Protocol | F59: Provisional | G59: All | H59: Savings | J59: 3.4.3 Sound analyses
A60: FALSE | B60: TRUE | C60: TRUE | D60: FALSE | E60: Custom | F60: All | G60: All | H60: Savings | J60: 4.4 Saving rely on best practical and reliable model
A61: FALSE | B61: TRUE | C61: TRUE | D61: FALSE | E61: Program Impact Evaluation | F61: All | G61: All | H61: Savings | J61: 5. Evaluation conforms to RTF Savings Guidelines
A62: TRUE | B62: TRUE | C62: TRUE | D62: TRUE | E62: All | F62: All | G62: All | H62: Savings | I62: Is savings documentation/reporting standard satisfied
A63: TRUE | B63: TRUE | C63: TRUE | D63: TRUE | E63: Unit Energy Savings | F63: All | G63: All | H63: Savings | J63: 2.5 Measure Assessment Workbook
A64: FALSE | B64: TRUE | C64: TRUE | D64: FALSE | E64: Standard Protocol | F64: All | G64: All | H64: Savings | J64: 3.5 Measure Assessment Workbook
A65: FALSE | B65: TRUE | C65: TRUE | D65: FALSE | E65: Standard Protocol | F65: All | G65: All | H65: Savings | J65: 3.5.1 Description of data collection and analysis
A66: FALSE | B66: TRUE | C66: TRUE | D66: FALSE | E66: Standard Protocol | F66: All | G66: All | H66: Savings | J66: 3.5.2 Transparent and accessible calculator
A67: FALSE | B67: FALSE | C67: TRUE | D67: FALSE | E67: Custom | F67: Provisional | G67: All | H67: Savings | J67: 4.5.2 Site-specific savings report
A68: FALSE | B68: FALSE | C68: TRUE | D68: FALSE | E68: Program Impact Evaluation | F68: Provisional | G68: All | H68: Savings | J68: 5.5.1 Methodological Transparency
A69: FALSE | B69: FALSE | C69: TRUE | D69: FALSE | E69: Program Impact Evaluation | F69: Provisional | G69: All | H69: Savings | J69: 5.5.2 Comparability
A70: FALSE | B70: FALSE | C70: TRUE | D70: FALSE | E70: Program Impact Evaluation | F70: Provisional | G70: All | H70: Savings | J70: 5.5.3 Access
A71: TRUE | B71: TRUE | C71: TRUE | D71: TRUE | E71: All | F71: All | G71: All | H71: Cost | I71: Is analysis of costs and benefits complete
A72: TRUE | B72: TRUE | C72: TRUE | D72: TRUE | E72: All | F72: All | G72: All | H72: Cost | J72: 2.3 Best available data sources collected
A73: TRUE | B73: TRUE | C73: TRUE | D73: TRUE | E73: All | F73: All | G73: All | H73: Cost | J73: 2.4 Costs and benefits estimated
A74: =IF(AND(E74<>"all",E74=CheckListMethod),TRUE,IF(E74="All",TRUE,FALSE)) -> TRUE | B74: =IF(AND(F74<>"all",F74=CheckListCategory),TRUE,IF(F74="All",TRUE,FALSE)) -> TRUE | C74: =IF(AND(G74<>"all",G74=CheckListProcedure),TRUE,IF(G74="All",TRUE,FALSE)) -> TRUE | D74: =IF(OR(CheckListFilter="No",AND(A74,B74,C74)),TRUE,FALSE) -> TRUE | E74: All | F74: All | G74: All | H74: Cost | J74: 3. Analysis and references documented
A75: TRUE | B75: TRUE | C75: TRUE | D75: TRUE | E75: All | F75: All | G75: All | H75: Lifetime | I75: Is analysis of lifetime complete
A76: TRUE | B76: TRUE | C76: TRUE | D76: TRUE | E76: All | F76: All | G76: All | H76: Lifetime | J76: 2.2 Best available data sources collected
A77: TRUE | B77: TRUE | C77: TRUE | D77: TRUE | E77: All | F77: All | G77: All | H77: Lifetime | J77: 2.3.1 Factors Affecting Lifetime identifed
A78: TRUE | B78: TRUE | C78: TRUE | D78: TRUE | E78: All | F78: All | G78: All | H78: Lifetime | J78: 3. Analysis and references documented
A79: TRUE | B79: TRUE | C79: TRUE | D79: TRUE | E79: All | F79: All | G79: All | H79: Roadmap | I79: Is analysis of cost-effectiveness complete
A80: TRUE | B80: TRUE | C80: TRUE | D80: TRUE | E80: Unit Energy Savings | F80: All | G80: All | H80: ProCost | J80: ProCost runs
A81: FALSE | B81: TRUE | C81: TRUE | D81: FALSE | E81: Standard Protocol | F81: All | G81: All | H81: ProCost | J81: ProCost runs
A82: FALSE | B82: TRUE | C82: TRUE | D82: FALSE | E82: Custom | F82: All | G82: All | H82: Roadmap | J82: Utility cost-effectiveness modeling
A83: FALSE | B83: TRUE | C83: TRUE | D83: FALSE | E83: Program Impact Evaluation | F83: All | G83: All | H83: Roadmap | J83: Utility cost-effectiveness modeling

Sheet MeasureTable (hidden)
A1: 2 | B1: =A1+1 -> 3 | C1: =B1+1 -> 4 | E1: =C1+1 -> 5 | F1: =E1+1 -> 6 | G1: =F1+1 -> 7 | H1: 8 | I1: 9 | J1: 10 | K1: 11 | L1: 12 | M1: 13 | N1: 14 | O1: 15 | P1: 16 | Q1: 17 | V1: =Q1+1 -> 18 | W1: =V1+1 -> 19 | AD1: 66 | AE1: 68 | AF1: 76 | AG1: 78 | AH1: 79 | AI1: 75 | AJ1: 74 | AK1: 70 | AL1: 80 | AM1: 81 | AR1: =W1+1 -> 20 | AS1: =AR1+1 -> 21 | AT1: =AS1+1 -> 22 | AU1: =AT1+1 -> 23 | AV1: =AU1+1 -> 24 | AW1: =AV1+1 -> 25
R2: 6 | S2: 7 | T2: 8 | U2: 3 | X2: 4 | Y2: 12 | Z2: 11 | AA2: 13 | AB2: 10 | AC2: 14 | AD2: 12 | AE2: 12 | AF2: 12 | AG2: 12 | AH2: 12 | AI2: 12 | AJ2: 12 | AK2: 71 | AL2: 12 | AM2: 12 | AO2: 82 | AP2: 83 | AQ2: 89
AK3: 12
Q4: # decimals to round to | R4: 2 | S4: 2 | T4: 2 | U4: 0 | X4: 0 | Y4: 0 | Z4: 3 | AA4: 3 | AB4: 3 | AC4: 3 | AD4: 3 | AE4: 3 | AF4: 3 | AG4: 3 | AH4: 3 | AI4: 3 | AJ4: 3 | AK4: 3 | AL4: 3 | AM4: 3 | AN4: 3 | AO4: 1 | AP4: 1 | AQ4: 1
A5: ID_Sector | B5: ID_Cat | C5: ID_SubCat | D5: ProcostMeasureName | E5: Name | F5: ID_Unit | G5: ID_BldgType | H5: ID_Vintage | I5: ID_other1 | J5: ID_other2 | K5: Delivery Mechanism or Program | L5: ID_Mechanism | M5: Application | N5: ID_Application | O5: Lost Opportunity | P5: Location | Q5: ID_ClimateZone | R5: Incremental Capital Cost ($/unit) | S5: Incremental O&M Costs and Schedule ($/unit) | T5: Present Value of Periodic Capital Replacement Cost ($/unit) | U5: Measure Life (years) | V5: Basis of Savings | W5: ID_Basis | X5: Annual Savings @ Site (kWh/yr) | Y5: Annual Savings @ Busbar (kwh/yr) | Z5: Bulk Transmission System Coincident Factor | AA5: System Coincident Peak Reduction (KW) | AB5: Local Distribution System Load Factor | AC5: Local Distribution System Peak Load Reduction (kW) | AD5: Present Value Electric Energy Savings ($/kWh) | AE5: Present Value of Local Transmission & Distribution System Benefit | AF5: Present Value Incremental Capital Cost ($/kWh) | AG5: Present Value O & M Cost ($/kWh) | AH5: Present Value of Periodic Capital Replacement Cost ($/kWh) | AI5: Present Value of Region Act's 10% Conservation Credit ($/kWh) | AJ5: Present Value Non-Electric System Benefits ($/kWh) | AK5: Present Value Environmental Externalities Benefit ($/kWh) | AL5: Present Value Total Societal Benefits ($/kWh) | AM5: Present Value Regional Costs ($/kWh) | AN5: Net Present Value of Regional Costs & Benefits ($/kWh) | AO5: Regional Benefit / Cost Ratio | AP5: Levelized Cost | AQ5: Carbon OffSet | AR5: End-user Benefits | AS5: Societal Benefits | AT5: Related Programs/Activities | AU5: Comments | AV5: Credit / Reimbursement ($/unit) | AW5: RefNo | AX5: Cost Effective?
A6: Measure and Program Data | Y6: Power System Benefits and Costs | AF6: Total Societal Costs and Benefits | AT6: Program Data
A7: Sector | B7: Category | C7: Subcategory | D7: ProCost Full Measure Name | E7: Technology, Measure or Practice | F7: Unit Type | G7: Building Type | H7: Vintage | I7: Other 1 | J7: Other 2 | K7: Delivery Mechanism or Program | L7: ID_Mechanism | M7: Application | N7: ID_Application | O7: Lost Opportunity? | P7: Location | Q7: ID_ClimateZone | R7: Incremental Capital Cost ($/unit) | S7: Incremental O&M Costs ($/unit) | T7: Present Value of Periodic Capital Replacement Cost ($/unit) | U7: Measure Life (years) | V7: Basis of Savings | W7: ID_Basis | X7: Annual Savings @ Site (kwh/yr) | Y7: Annual Savings @ Generator Busbar (kwh/yr) | Z7: Power System Transmission System Coincident Factor | AA7: Power System Coincident Peak Reduction (KW) | AB7: Distribution System Diversified Load Factor | AC7: Distribution System Peak Load Reduction (kW) | AD7: Present Value Electric Energy Savings ($/kWh) | AE7: Present Value of Transmission & Distribution System Benefits ($/kWh) | AF7: Present Value Incremental Capital Cost ($/kWh) | AG7: Present Value O & M Cost ($/kWh) | AH7: Present Value of Periodic Capital Replacement Cost ($/kWh) | AI7: Present Value of Region Act's 10% Conservation Credit ($/kWh) | AJ7: Present Value Non-Electric System Benefits ($/kWh) | AK7: Present Value Carbon Dioxide Reduction Benefits ($/kWh) | AL7: Present Value Total Societal Benefits ($/kWh) | AM7: Present Value Total Societal Costs ($/kWh) | AN7: Net Present Value Societal Cost & Benefits ($/kWh) | AO7: Total Societal Benefit / Cost Ratio (TRC B/C Ratio) | AP7: Levelized Cost (mills/kWh) | AQ7: C02 Reduction (tons over expected measure life) | AR7: End-user Benefits | AS7: Societal Benefits | AT7: Related Programs/Activities | AU7: Comments | AV7: Credit / Reimbursement ($/unit) | AW7: Reference Number | AX7: Cost-Effective
A8: =VLOOKUP($D8,LookupTable,A$1,0) -> Residential | B8: =VLOOKUP($D8,LookupTable,B$1,0) -> Water Heating | C8: =VLOOKUP($D8,LookupTable,C$1,0) -> Efficient Tanks | D8: =LookupTable!A3 -> Tier1_garage_HZ1 | E8: =VLOOKUP($D8,LookupTable,E$1,0) -> Heat Pump Water Heater | F8: 0 | G8: Single Family | H8: New and Existing Construction | I8: Complies with Tier1 of NEEA's Northern Climate HPWH Specification | J8: 0 | K8: Manufacturer, Dealer or Consumer Rebate and Direct Installations. | M8: Unit installed in an unheated buffer location. | N8: 0 | O8: Yes | P8: HZ1 | Q8: 0 | R8: =ROUND(VLOOKUP($D8,INDIRECT(OutputRange),R$2,0),R$4) -> 654.55 | S8: 0 | T8: 0 | U8: 13 | V8: =VLOOKUP($D8,LookupTable,V$1,0) -> UES | W8: 0 | X8: =ROUND(VLOOKUP($D8,INDIRECT(OutputRange),X$2,0),X$4) -> 1016 | Y8: 1108 | Z8: 0.317 | AA8: 0.14 | AB8: 0.286 | AC8: 0.442 | AD8: =ROUND(VLOOKUP($D8,INDIRECT(OutputRange),AD$1,0)/VLOOKUP($D8,INDIRECT(OutputRange),AD$2,0),AD$4) -> 0.553 | AE8: 0.095 | AF8: 0.632 | AG8: 0 | AH8: 0 | AI8: 0.109 | AJ8: 0 | AK8: =ROUND((VLOOKUP($D8,INDIRECT(OutputRange),AK$1,0)+VLOOKUP($D8,INDIRECT(OutputRange),AK$2,0))/VLOOKUP($D8,INDIRECT(OutputRange),AK$3,0),AK$4) -> 0 | AL8: =ROUND(VLOOKUP($D8,INDIRECT(OutputRange),AL$1,0)/VLOOKUP($D8,INDIRECT(OutputRange),AL$2,0),AL$4) -> 1.204 | AM8: 0.75 | AN8: =AL8-AM8 -> 0.454 | AO8: =ROUND(ROUND(VLOOKUP($D8,INDIRECT(OutputRange),AO$2,0),1),AO$4) -> 1.6 | AP8: 9.5 | AQ8: 0.4 | AR8: =VLOOKUP($D8,LookupTable,AR$1,0) -> Tier1_garage_HZ1ResidentialWater HeatingEfficient TanksHeat Pump Water HeaterSingle FamilyNew and Existing ConstructionComplies with Tier1 of NEEA's Northern Climate HPWH SpecificationManufacturer, Dealer or Consumer Rebate and Direct Installations. Unit installed in an unheated buffer location.YesHZ1UES | AS8: 0 | AT8: =VLOOKUP($D8,LookupTable,AT$1,0) -> 0 | AU8: 0 | AV8: =IF($AO8>=1,(VLOOKUP($D8,LookupTable,AV$1,0)),0) -> 0 | AW8: =VLOOKUP($D8,LookupTable,AW$1,0) -> 0 | AX8: =IF(AO8>=1,"Yes","No") -> Yes
A9: Residential | B9: Water Heating | C9: Efficient Tanks | D9: =LookupTable!A4 -> Tier1_garage_HZ2 | E9: Heat Pump Water Heater | F9: 0 | G9: Single Family | H9: New and Existing Construction | I9: Complies with Tier1 of NEEA's Northern Climate HPWH Specification | J9: 0 | K9: Manufacturer, Dealer or Consumer Rebate and Direct Installations. | M9: Unit installed in an unheated buffer location. | N9: 0 | O9: Yes | P9: HZ2 | Q9: 0 | R9: 654.55 | S9: 0 | T9: 0 | U9: 13 | V9: UES | W9: 0 | X9: 847 | Y9: 923 | Z9: 0.317 | AA9: 0.117 | AB9: 0.286 | AC9: 0.369 | AD9: 0.553 | AE9: 0.095 | AF9: 0.759 | AG9: 0 | AH9: 0 | AI9: 0.109 | AJ9: 0 | AK9: 0 | AL9: 1.204 | AM9: 0.9 | AN9: =AL9-AM9 -> 0.304 | AO9: 1.3 | AP9: 24 | AQ9: 0.3 | AR9: Tier1_garage_HZ2ResidentialWater HeatingEfficient TanksHeat Pump Water HeaterSingle FamilyNew and Existing ConstructionComplies with Tier1 of NEEA's Northern Climate HPWH SpecificationManufacturer, Dealer or Consumer Rebate and Direct Installations. Unit installed in an unheated buffer location.YesHZ2UES | AS9: FALSE | AT9: 0 | AU9: 0 | AV9: 0 | AW9: 0 | AX9: =IF(AO9>=1,"Yes","No") -> Yes
A10: Residential | B10: Water Heating | C10: Efficient Tanks | D10: =LookupTable!A5 -> Tier1_garage_HZ3 | E10: Heat Pump Water Heater | F10: 0 | G10: Single Family | H10: New and Existing Construction | I10: Complies with Tier1 of NEEA's Northern Climate HPWH Specification | J10: 0 | K10: Manufacturer, Dealer or Consumer Rebate and Direct Installations. | M10: Unit installed in an unheated buffer location. | N10: 0 | O10: Yes | P10: HZ3 | Q10: 0 | R10: 654.55 | S10: 0 | T10: 0 | U10: 13 | V10: UES | W10: 0 | X10: 708 | Y10: 772 | Z10: 0.317 | AA10: 0.098 | AB10: 0.286 | AC10: 0.308 | AD10: 0.553 | AE10: 0.095 | AF10: 0.907 | AG10: 0 | AH10: 0 | AI10: 0.109 | AJ10: 0 | AK10: 0 | AL10: 1.204 | AM10: 1.077 | AN10: 0.127 | AO10: 1.1 | AP10: 41 | AQ10: 0.3 | AR10: Tier1_garage_HZ3ResidentialWater HeatingEfficient TanksHeat Pump Water HeaterSingle FamilyNew and Existing ConstructionComplies with Tier1 of NEEA's Northern Climate HPWH SpecificationManufacturer, Dealer or Consumer Rebate and Direct Installations. Unit installed in an unheated buffer location.YesHZ3UES | AS10: FALSE | AT10: 0 | AU10: 0 | AV10: 0 | AW10: 0 | AX10: Yes
A11: Residential | B11: Water Heating | C11: Efficient Tanks | D11: =LookupTable!A6 -> Tier1_basmnt_HZ1 | E11: Heat Pump Water Heater | F11: 0 | G11: Single Family | H11: New and Existing Construction | I11: Complies with Tier1 of NEEA's Northern Climate HPWH Specification | J11: 0 | K11: Manufacturer, Dealer or Consumer Rebate and Direct Installations. | M11: Unit installed in an unheated buffer location. | N11: 0 | O11: Yes | P11: HZ1 | Q11: 0 | R11: 654.55 | S11: 0 | T11: 0 | U11: 13 | V11: UES | W11: 0 | X11: 1116 | Y11: 1217 | Z11: 0.317 | AA11: 0.154 | AB11: 0.286 | AC11: 0.486 | AD11: 0.553 | AE11: 0.095 | AF11: 0.575 | AG11: 0 | AH11: 0 | AI11: 0.109 | AJ11: 0 | AK11: 0 | AL11: 1.204 | AM11: 0.683 | AN11: 0.521 | AO11: 1.8 | AP11: 3.1 | AQ11: 0.5 | AR11: Tier1_basmnt_HZ1ResidentialWater HeatingEfficient TanksHeat Pump Water HeaterSingle FamilyNew and Existing ConstructionComplies with Tier1 of NEEA's Northern Climate HPWH SpecificationManufacturer, Dealer or Consumer Rebate and Direct Installations. Unit installed in an unheated buffer location.YesHZ1UES | AS11: FALSE | AT11: 0 | AU11: 0 | AV11: 0 | AW11: 0 | AX11: Yes
A12: Residential | B12: Water Heating | C12: Efficient Tanks | D12: =LookupTable!A7 -> Tier1_basmnt_HZ2 | E12: Heat Pump Water Heater | F12: 0 | G12: Single Family | H12: New and Existing Construction | I12: Complies with Tier1 of NEEA's Northern Climate HPWH Specification | J12: 0 | K12: Manufacturer, Dealer or Consumer Rebate and Direct Installations. | M12: Unit installed in an unheated buffer location. | N12: 0 | O12: Yes | P12: HZ2 | Q12: 0 | R12: 654.55 | S12: 0 | T12: 0 | U12: 13 | V12: UES | W12: 0 | X12: 1155 | Y12: 1259 | Z12: 0.317 | AA12: 0.159 | AB12: 0.286 | AC12: 0.503 | AD12: 0.553 | AE12: 0.095 | AF12: 0.556 | AG12: 0 | AH12: 0 | AI12: 0.109 | AJ12: 0 | AK12: 0 | AL12: 1.204 | AM12: 0.66 | AN12: 0.544 | AO12: 1.8 | AP12: 0.9 | AQ12: 0.5 | AR12: Tier1_basmnt_HZ2ResidentialWater HeatingEfficient TanksHeat Pump Water HeaterSingle FamilyNew and Existing ConstructionComplies with Tier1 of NEEA's Northern Climate HPWH SpecificationManufacturer, Dealer or Consumer Rebate and Direct Installations. Unit installed in an unheated buffer location.YesHZ2UES | AS12: FALSE | AT12: 0 | AU12: 0 | AV12: 0 | AW12: 0 | AX12: Yes
A13: Residential | B13: Water Heating | C13: Efficient Tanks | D13: =LookupTable!A8 -> Tier1_basmnt_HZ3 | E13: Heat Pump Water Heater | F13: 0 | G13: Single Family | H13: New and Existing Construction | I13: Complies with Tier1 of NEEA's Northern Climate HPWH Specification | J13: 0 | K13: Manufacturer, Dealer or Consumer Rebate and Direct Installations. | M13: Unit installed in an unheated buffer location. | N13: 0 | O13: Yes | P13: HZ3 | Q13: 0 | R13: 654.55 | S13: 0 | T13: 0 | U13: 13 | V13: UES | W13: 0 | X13: 1161 | Y13: 1266 | Z13: 0.317 | AA13: 0.16 | AB13: 0.286 | AC13: 0.505 | AD13: 0.553 | AE13: 0.095 | AF13: 0.554 | AG13: 0 | AH13: 0 | AI13: 0.109 | AJ13: 0 | AK13: 0 | AL13: 1.204 | AM13: 0.657 | AN13: 0.547 | AO13: 1.8 | AP13: 0.6 | AQ13: 0.5 | AR13: Tier1_basmnt_HZ3ResidentialWater HeatingEfficient TanksHeat Pump Water HeaterSingle FamilyNew and Existing ConstructionComplies with Tier1 of NEEA's Northern Climate HPWH SpecificationManufacturer, Dealer or Consumer Rebate and Direct Installations. Unit installed in an unheated buffer location.YesHZ3UES | AS13: FALSE | AT13: 0 | AU13: 0 | AV13: 0 | AW13: 0 | AX13: Yes
A14: Residential | B14: Water Heating | C14: Efficient Tanks | D14: =LookupTable!A9 -> Tier1_indor2_HZ1_gfnc | E14: Heat Pump Water Heater | F14: 0 | G14: Single Family | H14: New and Existing Construction | I14: Complies with Tier1 of NEEA's Northern Climate HPWH Specification | J14: 0 | K14: Manufacturer, Dealer or Consumer Rebate and Direct Installations. | M14: Unit installed inside conditioned space. Primary house space heating system fueled by gas. | N14: 0 | O14: Yes | P14: HZ1 | Q14: 0 | R14: 654.55 | S14: 0 | T14: 0 | U14: 13 | V14: UES | W14: 0 | X14: 1231 | Y14: 1342 | Z14: 0.316 | AA14: 0.168 | AB14: 0.287 | AC14: 0.533 | AD14: 0.553 | AE14: 0.095 | AF14: 0.522 | AG14: 0 | AH14: 0 | AI14: 0.109 | AJ14: -0.117 | AK14: 0 | AL14: 0.986 | AM14: 0.619 | AN14: 0.367 | AO14: 1.4 | AP14: 17.9 | AQ14: 0.4 | AR14: Tier1_indor2_HZ1_gfncResidentialWater HeatingEfficient TanksHeat Pump Water HeaterSingle FamilyNew and Existing ConstructionComplies with Tier1 of NEEA's Northern Climate HPWH SpecificationManufacturer, Dealer or Consumer Rebate and Direct Installations. Unit installed inside conditioned space. Primary house space heating system fueled by gas.YesHZ1UES | AS14: FALSE | AT14: 0 | AU14: 0 | AV14: 0 | AW14: 0 | AX14: Yes
A15: Residential | B15: Water Heating | C15: Efficient Tanks | D15: =LookupTable!A10 -> Tier1_indor2_HZ1_gfac | E15: Heat Pump Water Heater | F15: 0 | G15: Single Family | H15: New and Existing Construction | I15: Complies with Tier1 of NEEA's Northern Climate HPWH Specification | J15: 0 | K15: Manufacturer, Dealer or Consumer Rebate and Direct Installations. | M15: Unit installed inside conditioned space. Primary house space heating system fueled by gas. | N15: 0 | O15: Yes | P15: HZ1 | Q15: 0 | R15: 654.55 | S15: 0 | T15: 0 | U15: 13 | V15: UES | W15: 0 | X15: 1246 | Y15: 1359 | Z15: 0.309 | AA15: 0.166 | AB15: 0.284 | AC15: 0.548 | AD15: 0.552 | AE15: 0.096 | AF15: 0.515 | AG15: 0 | AH15: 0 | AI15: 0.109 | AJ15: -0.117 | AK15: 0 | AL15: 0.988 | AM15: 0.612 | AN15: 0.376 | AO15: 1.5 | AP15: 16.9 | AQ15: 0.4 | AR15: Tier1_indor2_HZ1_gfacResidentialWater HeatingEfficient TanksHeat Pump Water HeaterSingle FamilyNew and Existing ConstructionComplies with Tier1 of NEEA's Northern Climate HPWH SpecificationManufacturer, Dealer or Consumer Rebate and Direct Installations. Unit installed inside conditioned space. Primary house space heating system fueled by gas.YesHZ1UES | AS15: FALSE | AT15: 0 | AU15: 0 | AV15: 0 | AW15: 0 | AX15: Yes
A16: Residential | B16: Water Heating | C16: Efficient Tanks | D16: =LookupTable!A11 -> Tier1_indor2_HZ1_efaf | E16: Heat Pump Water Heater | F16: 0 | G16: Single Family | H16: New and Existing Construction | I16: Complies with Tier1 of NEEA's Northern Climate HPWH Specification | J16: 0 | K16: Manufacturer, Dealer or Consumer Rebate and Direct Installations. | M16: Unit installed inside conditioned space. Electric FAF primary space heating system. | N16: 0 | O16: Yes | P16: HZ1 | Q16: 0 | R16: 654.55 | S16: 0 | T16: 0 | U16: 13 | V16: UES | W16: 0 | X16: 892 | Y16: 973 | Z16: 0.295 | AA16: 0.087 | AB16: 0.322 | AC16: 0.316 | AD16: 0.548 | AE16: 0.077 | AF16: 0.72 | AG16: 0 | AH16: 0 | AI16: 0.107 | AJ16: -0.114 | AK16: 0 | AL16: 1.059 | AM16: 0.854 | AN16: 0.205 | AO16: 1.2 | AP16: 33.1 | AQ16: 0.4 | AR16: Tier1_indor2_HZ1_efafResidentialWater HeatingEfficient TanksHeat Pump Water HeaterSingle FamilyNew and Existing ConstructionComplies with Tier1 of NEEA's Northern Climate HPWH SpecificationManufacturer, Dealer or Consumer Rebate and Direct Installations. Unit installed inside conditioned space. Electric FAF primary space heating system.YesHZ1UES | AS16: FALSE | AT16: 0 | AU16: 0 | AV16: 0 | AW16: 0 | AX16: Yes
A17: Residential | B17: Water Heating | C17: Efficient Tanks | D17: =LookupTable!A12 -> Tier1_indor2_HZ1_hp85 | E17: Heat Pump Water Heater | F17: 0 | G17: Single Family | H17: New and Existing Construction | I17: Complies with Tier1 of NEEA's Northern Climate HPWH Specification | J17: 0 | K17: Manufacturer, Dealer or Consumer Rebate and Direct Installations. | M17: Unit installed inside conditioned space. Heat Pump or Ductless Heat Pump primary space heating system. | N17: 0 | O17: Yes | P17: HZ1 | Q17: 0 | R17: 654.55 | S17: 0 | T17: 0 | U17: 13 | V17: UES | W17: 0 | X17: 1089 | Y17: 1187 | Z17: 0.302 | AA17: 0.122 | AB17: 0.303 | AC17: 0.422 | AD17: 0.55 | AE17: 0.085 | AF17: 0.59 | AG17: 0 | AH17: 0 | AI17: 0.108 | AJ17: -0.046 | AK17: 0 | AL17: 1.141 | AM17: 0.7 | AN17: =AL17-AM17 -> 0.441 | AO17: 1.6 | AP17: 10.5 | AQ17: 0.4 | AR17: Tier1_indor2_HZ1_hp85ResidentialWater HeatingEfficient TanksHeat Pump Water HeaterSingle FamilyNew and Existing ConstructionComplies with Tier1 of NEEA's Northern Climate HPWH SpecificationManufacturer, Dealer or Consumer Rebate and Direct Installations. Unit installed inside conditioned space. Heat Pump primary space heating system.YesHZ1UES | AS17: FALSE | AT17: 0 | AU17: 0 | AV17: 0 | AW17: 0 | AX17: =IF(AO17>=1,"Yes","No") -> Yes
A18: Residential | B18: Water Heating | C18: Efficient Tanks | D18: =LookupTable!A13 -> Tier1_indor2_HZ1_zonl | E18: Heat Pump Water Heater | F18: 0 | G18: Single Family | H18: New and Existing Construction | I18: Complies with Tier1 of NEEA's Northern Climate HPWH Specification | J18: 0 | K18: Manufacturer, Dealer or Consumer Rebate and Direct Installations. | M18: Unit installed inside conditioned space. Zonal electric primary space heating system. | N18: 0 | O18: Yes | P18: HZ1 | Q18: 0 | R18: 654.55 | S18: 0 | T18: 0 | U18: 13 | V18: UES | W18: 0 | X18: 930 | Y18: 1014 | Z18: 0.265 | AA18: 0.094 | AB18: 0.302 | AC18: 0.377 | AD18: 0.551 | AE18: 0.089 | AF18: 0.691 | AG18: 0 | AH18: 0 | AI18: 0.109 | AJ18: -0.098 | AK18: 0 | AL18: 1.092 | AM18: 0.82 | AN18: 0.272 | AO18: 1.3 | AP18: 26.9 | AQ18: 0.4 | AR18: Tier1_indor2_HZ1_zonlResidentialWater HeatingEfficient TanksHeat Pump Water HeaterSingle FamilyNew and Existing ConstructionComplies with Tier1 of NEEA's Northern Climate HPWH SpecificationManufacturer, Dealer or Consumer Rebate and Direct Installations. Unit installed inside conditioned space. Zonal electric primary space heating system.YesHZ1UES | AS18: FALSE | AT18: 0 | AU18: 0 | AV18: 0 | AW18: 0 | AX18: Yes
A19: Residential | B19: Water Heating | C19: Efficient Tanks | D19: =LookupTable!A14 -> Tier1_indor2_HZ2_gfnc | E19: Heat Pump Water Heater | F19: 0 | G19: Single Family | H19: New and Existing Construction | I19: Complies with Tier1 of NEEA's Northern Climate HPWH Specification | J19: 0 | K19: Manufacturer, Dealer or Consumer Rebate and Direct Installations. | M19: Unit installed inside conditioned space. Primary house space heating system fueled by gas. | N19: 0 | O19: Yes | P19: HZ2 | Q19: 0 | R19: 654.55 | S19: 0 | T19: 0 | U19: 13 | V19: UES | W19: 0 | X19: 1297 | Y19: 1415 | Z19: 0.316 | AA19: 0.178 | AB19: 0.287 | AC19: 0.562 | AD19: 0.553 | AE19: 0.095 | AF19: 0.495 | AG19: 0 | AH19: 0 | AI19: 0.109 | AJ19: -0.102 | AK19: 0 | AL19: 1.016 | AM19: 0.588 | AN19: 0.428 | AO19: 1.6 | AP19: 11.9 | AQ19: 0.4 | AR19: Tier1_indor2_HZ2_gfncResidentialWater HeatingEfficient TanksHeat Pump Water HeaterSingle FamilyNew and Existing ConstructionComplies with Tier1 of NEEA's Northern Climate HPWH SpecificationManufacturer, Dealer or Consumer Rebate and Direct Installations. Unit installed inside conditioned space. Primary house space heating system fueled by gas.YesHZ2UES | AS19: FALSE | AT19: 0 | AU19: 0 | AV19: 0 | AW19: 0 | AX19: Yes
A20: Residential | B20: Water Heating | C20: Efficient Tanks | D20: =LookupTable!A15 -> Tier1_indor2_HZ2_gfac | E20: Heat Pump Water Heater | F20: 0 | G20: Single Family | H20: New and Existing Construction | I20: Complies with Tier1 of NEEA's Northern Climate HPWH Specification | J20: 0 | K20: Manufacturer, Dealer or Consumer Rebate and Direct Installations. | M20: Unit installed inside conditioned space. Primary house space heating system fueled by gas. | N20: 0 | O20: Yes | P20: HZ2 | Q20: 0 | R20: 654.55 | S20: 0 | T20: 0 | U20: 13 | V20: UES | W20: 0 | X20: 1310 | Y20: 1429 | Z20: 0.308 | AA20: 0.175 | AB20: 0.284 | AC20: 0.577 | AD20: 0.552 | AE20: 0.096 | AF20: 0.49 | AG20: 0 | AH20: 0 | AI20: 0.109 | AJ20: -0.102 | AK20: 0 | AL20: 1.017 | AM20: 0.582 | AN20: 0.435 | AO20: 1.6 | AP20: 11.2 | AQ20: 0.4 | AR20: Tier1_indor2_HZ2_gfacResidentialWater HeatingEfficient TanksHeat Pump Water HeaterSingle FamilyNew and Existing ConstructionComplies with Tier1 of NEEA's Northern Climate HPWH SpecificationManufacturer, Dealer or Consumer Rebate and Direct Installations. Unit installed inside conditioned space. Primary house space heating system fueled by gas.YesHZ2UES | AS20: FALSE | AT20: 0 | AU20: 0 | AV20: 0 | AW20: 0 | AX20: Yes
A21: Residential | B21: Water Heating | C21: Efficient Tanks | D21: =LookupTable!A16 -> Tier1_indor2_HZ2_efaf | E21: Heat Pump Water Heater | F21: 0 | G21: Single Family | H21: New and Existing Construction | I21: Complies with Tier1 of NEEA's Northern Climate HPWH Specification | J21: 0 | K21: Manufacturer, Dealer or Consumer Rebate and Direct Installations. | M21: Unit installed inside conditioned space. Electric FAF primary space heating system. | N21: 0 | O21: Yes | P21: HZ2 | Q21: 0 | R21: 654.55 | S21: 0 | T21: 0 | U21: 13 | V21: UES | W21: 0 | X21: 982 | Y21: 1071 | Z21: 0.298 | AA21: 0.102 | AB21: 0.317 | AC21: 0.36 | AD21: 0.547 | AE21: 0.08 | AF21: 0.654 | AG21: 0 | AH21: 0 | AI21: 0.107 | AJ21: -0.095 | AK21: 0 | AL21: 1.084 | AM21: 0.776 | AN21: 0.308 | AO21: 1.4 | AP21: 23 | AQ21: 0.4 | AR21: Tier1_indor2_HZ2_efafResidentialWater HeatingEfficient TanksHeat Pump Water HeaterSingle FamilyNew and Existing ConstructionComplies with Tier1 of NEEA's Northern Climate HPWH SpecificationManufacturer, Dealer or Consumer Rebate and Direct Installations. Unit installed inside conditioned space. Electric FAF primary space heating system.YesHZ2UES | AS21: FALSE | AT21: 0 | AU21: 0 | AV21: 0 | AW21: 0 | AX21: Yes
A22: Residential | B22: Water Heating | C22: Efficient Tanks | D22: =LookupTable!A17 -> Tier1_indor2_HZ2_hp85 | E22: Heat Pump Water Heater | F22: 0 | G22: Single Family | H22: New and Existing Construction | I22: Complies with Tier1 of NEEA's Northern Climate HPWH Specification | J22: 0 | K22: Manufacturer, Dealer or Consumer Rebate and Direct Installations. | M22: Unit installed inside conditioned space. Heat Pump or Ductless Heat Pump primary space heating system. | N22: 0 | O22: Yes | P22: HZ2 | Q22: 0 | R22: 654.55 | S22: 0 | T22: 0 | U22: 13 | V22: UES | W22: 0 | X22: 1114 | Y22: 1214 | Z22: 0.3 | AA22: 0.119 | AB22: 0.307 | AC22: 0.42 | AD22: 0.552 | AE22: 0.083 | AF22: 0.577 | AG22: 0 | AH22: 0 | AI22: 0.108 | AJ22: -0.054 | AK22: 0 | AL22: 1.134 | AM22: 0.685 | AN22: 0.449 | AO22: 1.6 | AP22: 9.9 | AQ22: 0.4 | AR22: Tier1_indor2_HZ2_hp85ResidentialWater HeatingEfficient TanksHeat Pump Water HeaterSingle FamilyNew and Existing ConstructionComplies with Tier1 of NEEA's Northern Climate HPWH SpecificationManufacturer, Dealer or Consumer Rebate and Direct Installations. Unit installed inside conditioned space. Heat Pump primary space heating system.YesHZ2UES | AS22: FALSE | AT22: 0 | AU22: 0 | AV22: 0 | AW22: 0 | AX22: Yes
A23: Residential | B23: Water Heating | C23: Efficient Tanks | D23: =LookupTable!A18 -> Tier1_indor2_HZ2_zonl | E23: Heat Pump Water Heater | F23: 0 | G23: Single Family | H23: New and Existing Construction | I23: Complies with Tier1 of NEEA's Northern Climate HPWH Specification | J23: 0 | K23: Manufacturer, Dealer or Consumer Rebate and Direct Installations. | M23: Unit installed inside conditioned space. Zonal electric primary space heating system. | N23: 0 | O23: Yes | P23: HZ2 | Q23: 0 | R23: 654.55 | S23: 0 | T23: 0 | U23: 13 | V23: UES | W23: 0 | X23: 1018 | Y23: 1110 | Z23: 0.273 | AA23: 0.109 | AB23: 0.3 | AC23: 0.418 | AD23: 0.55 | AE23: 0.09 | AF23: 0.631 | AG23: 0 | AH23: 0 | AI23: 0.109 | AJ23: -0.082 | AK23: 0 | AL23: 1.112 | AM23: 0.749 | AN23: 0.363 | AO23: 1.4 | AP23: 18 | AQ23: 0.4 | AR23: Tier1_indor2_HZ2_zonlResidentialWater HeatingEfficient TanksHeat Pump Water HeaterSingle FamilyNew and Existing ConstructionComplies with Tier1 of NEEA's Northern Climate HPWH SpecificationManufacturer, Dealer or Consumer Rebate and Direct Installations. Unit installed inside conditioned space. Zonal electric primary space heating system.YesHZ2UES | AS23: FALSE | AT23: 0 | AU23: 0 | AV23: 0 | AW23: 0 | AX23: Yes
A24: =VLOOKUP($D24,LookupTable,A$1,0) -> Residential | B24: Water Heating | C24: Efficient Tanks | D24: =LookupTable!A19 -> Tier1_indor2_HZ3_gfnc | E24: =VLOOKUP($D24,LookupTable,E$1,0) -> Heat Pump Water Heater | F24: 0 | G24: Single Family | H24: New and Existing Construction | I24: Complies with Tier1 of NEEA's Northern Climate HPWH Specification | J24: 0 | K24: Manufacturer, Dealer or Consumer Rebate and Direct Installations. | M24: Unit installed inside conditioned space. Primary house space heating system fueled by gas. | N24: 0 | O24: Yes | P24: HZ3 | Q24: 0 | R24: =ROUND(VLOOKUP($D24,INDIRECT(OutputRange),R$2,0),R$4) -> 654.55 | S24: 0 | T24: 0 | U24: 13 | V24: =VLOOKUP($D24,LookupTable,V$1,0) -> UES | W24: 0 | X24: =ROUND(VLOOKUP($D24,INDIRECT(OutputRange),X$2,0),X$4) -> 1328 | Y24: 1449 | Z24: 0.316 | AA24: 0.182 | AB24: 0.287 | AC24: 0.576 | AD24: =ROUND(VLOOKUP($D24,INDIRECT(OutputRange),AD$1,0)/VLOOKUP($D24,INDIRECT(OutputRange),AD$2,0),AD$4) -> 0.553 | AE24: 0.095 | AF24: 0.484 | AG24: 0 | AH24: 0 | AI24: 0.109 | AJ24: -0.092 | AK24: 0 | AL24: =ROUND(VLOOKUP($D24,INDIRECT(OutputRange),AL$1,0)/VLOOKUP($D24,INDIRECT(OutputRange),AL$2,0),AL$4) -> 1.036 | AM24: 0.574 | AN24: 0.462 | AO24: =ROUND(ROUND(VLOOKUP($D24,INDIRECT(OutputRange),AO$2,0),1),AO$4) -> 1.6 | AP24: 8.8 | AQ24: 0.4 | AR24: =VLOOKUP($D24,LookupTable,AR$1,0) -> Tier1_indor2_HZ3_gfncResidentialWater HeatingEfficient TanksHeat Pump Water HeaterSingle FamilyNew and Existing ConstructionComplies with Tier1 of NEEA's Northern Climate HPWH SpecificationManufacturer, Dealer or Consumer Rebate and Direct Installations. Unit installed inside conditioned space. Primary house space heating system fueled by gas.YesHZ3UES | AS24: FALSE | AT24: 0 | AU24: 0 | AV24: 0 | AW24: 0 | AX24: Yes
A25: Residential | B25: Water Heating | C25: Efficient Tanks | D25: =LookupTable!A20 -> Tier1_indor2_HZ3_gfac | E25: Heat Pump Water Heater | F25: 0 | G25: Single Family | H25: New and Existing Construction | I25: Complies with Tier1 of NEEA's Northern Climate HPWH Specification | J25: 0 | K25: Manufacturer, Dealer or Consumer Rebate and Direct Installations. | M25: Unit installed inside conditioned space. Primary house space heating system fueled by gas. | N25: 0 | O25: Yes | P25: HZ3 | Q25: 0 | R25: 654.55 | S25: 0 | T25: 0 | U25: 13 | V25: UES | W25: 0 | X25: 1349 | Y25: 1472 | Z25: 0.308 | AA25: 0.18 | AB25: 0.284 | AC25: 0.595 | AD25: 0.552 | AE25: 0.097 | AF25: 0.476 | AG25: 0 | AH25: 0 | AI25: 0.109 | AJ25: -0.092 | AK25: 0 | AL25: 1.037 | AM25: 0.565 | AN25: 0.472 | AO25: 1.6 | AP25: 7.7 | AQ25: 0.4 | AR25: Tier1_indor2_HZ3_gfacResidentialWater HeatingEfficient TanksHeat Pump Water HeaterSingle FamilyNew and Existing ConstructionComplies with Tier1 of NEEA's Northern Climate HPWH SpecificationManufacturer, Dealer or Consumer Rebate and Direct Installations. Unit installed inside conditioned space. Primary house space heating system fueled by gas.YesHZ3UES | AS25: FALSE | AT25: 0 | AU25: 0 | AV25: 0 | AW25: 0 | AX25: Yes
A26: Residential | B26: Water Heating | C26: Efficient Tanks | D26: =LookupTable!A21 -> Tier1_indor2_HZ3_efaf | E26: Heat Pump Water Heater | F26: 0 | G26: Single Family | H26: New and Existing Construction | I26: Complies with Tier1 of NEEA's Northern Climate HPWH Specification | J26: 0 | K26: Manufacturer, Dealer or Consumer Rebate and Direct Installations. | M26: Unit installed inside conditioned space. Electric FAF primary space heating system. | N26: 0 | O26: Yes | P26: HZ3 | Q26: 0 | R26: 654.55 | S26: 0 | T26: 0 | U26: 13 | V26: UES | W26: 0 | X26: 1040 | Y26: 1134 | Z26: 0.301 | AA26: 0.113 | AB26: 0.313 | AC26: 0.39 | AD26: 0.546 | AE26: 0.082 | AF26: 0.618 | AG26: 0 | AH26: 0 | AI26: 0.107 | AJ26: -0.082 | AK26: 0 | AL26: 1.098 | AM26: 0.733 | AN26: 0.365 | AO26: 1.4 | AP26: 17.4 | AQ26: 0.4 | AR26: Tier1_indor2_HZ3_efafResidentialWater HeatingEfficient TanksHeat Pump Water HeaterSingle FamilyNew and Existing ConstructionComplies with Tier1 of NEEA's Northern Climate HPWH SpecificationManufacturer, Dealer or Consumer Rebate and Direct Installations. Unit installed inside conditioned space. Electric FAF primary space heating system.YesHZ3UES | AS26: FALSE | AT26: 0 | AU26: 0 | AV26: 0 | AW26: 0 | AX26: Yes
A27: Residential | B27: Water Heating | C27: Efficient Tanks | D27: =LookupTable!A22 -> Tier1_indor2_HZ3_hp85 | E27: Heat Pump Water Heater | F27: 0 | G27: Single Family | H27: New and Existing Construction | I27: Complies with Tier1 of NEEA's Northern Climate HPWH Specification | J27: 0 | K27: Manufacturer, Dealer or Consumer Rebate and Direct Installations. | M27: Unit installed inside conditioned space. Heat Pump or Ductless Heat Pump primary space heating system. | N27: 0 | O27: Yes | P27: HZ3 | Q27: 0 | R27: 654.55 | S27: 0 | T27: 0 | U27: 13 | V27: UES | W27: 0 | X27: 1143 | Y27: 1247 | Z27: 0.3 | AA27: 0.122 | AB27: 0.307 | AC27: 0.431 | AD27: 0.55 | AE27: 0.083 | AF27: 0.562 | AG27: 0 | AH27: 0 | AI27: 0.108 | AJ27: -0.054 | AK27: 0 | AL27: 1.132 | AM27: 0.667 | AN27: 0.465 | AO27: 1.6 | AP27: 8.2 | AQ27: 0.5 | AR27: Tier1_indor2_HZ3_hp85ResidentialWater HeatingEfficient TanksHeat Pump Water HeaterSingle FamilyNew and Existing ConstructionComplies with Tier1 of NEEA's Northern Climate HPWH SpecificationManufacturer, Dealer or Consumer Rebate and Direct Installations. Unit installed inside conditioned space. Heat Pump primary space heating system.YesHZ3UES | AS27: FALSE | AT27: 0 | AU27: 0 | AV27: 0 | AW27: 0 | AX27: Yes
A28: Residential | B28: Water Heating | C28: Efficient Tanks | D28: =LookupTable!A23 -> Tier1_indor2_HZ3_zonl | E28: Heat Pump Water Heater | F28: 0 | G28: Single Family | H28: New and Existing Construction | I28: Complies with Tier1 of NEEA's Northern Climate HPWH Specification | J28: 0 | K28: Manufacturer, Dealer or Consumer Rebate and Direct Installations. | M28: Unit installed inside conditioned space. Zonal electric primary space heating system. | N28: 0 | O28: Yes | P28: HZ3 | Q28: 0 | R28: 654.55 | S28: 0 | T28: 0 | U28: 13 | V28: UES | W28: 0 | X28: 1074 | Y28: 1171 | Z28: 0.279 | AA28: 0.119 | AB28: 0.298 | AC28: 0.444 | AD28: 0.55 | AE28: 0.091 | AF28: 0.598 | AG28: 0 | AH28: 0 | AI28: 0.109 | AJ28: -0.071 | AK28: 0 | AL28: 1.123 | AM28: 0.71 | AN28: 0.413 | AO28: 1.5 | AP28: 13.1 | AQ28: 0.4 | AR28: Tier1_indor2_HZ3_zonlResidentialWater HeatingEfficient TanksHeat Pump Water HeaterSingle FamilyNew and Existing ConstructionComplies with Tier1 of NEEA's Northern Climate HPWH SpecificationManufacturer, Dealer or Consumer Rebate and Direct Installations. Unit installed inside conditioned space. Zonal electric primary space heating system.YesHZ3UES | AS28: FALSE | AT28: 0 | AU28: 0 | AV28: 0 | AW28: 0 | AX28: Yes
A29: Residential | B29: Water Heating | C29: Efficient Tanks | D29: =LookupTable!A24 -> Tier2_garage_HZ1 | E29: Heat Pump Water Heater | F29: 0 | G29: Single Family | H29: New and Existing Construction | I29: Complies with Tier2 of NEEA's Northern Climate HPWH Specification | J29: 0 | K29: Manufacturer, Dealer or Consumer Rebate and Direct Installations. | M29: Unit installed in an unheated buffer location. | N29: 0 | O29: Yes | P29: HZ1 | Q29: 0 | R29: 1723.66 | S29: 0 | T29: 0 | U29: 13 | V29: UES | W29: 0 | X29: 1220 | Y29: 1330 | Z29: 0.317 | AA29: 0.168 | AB29: 0.286 | AC29: 0.531 | AD29: 0.553 | AE29: 0.095 | AF29: 1.387 | AG29: 0 | AH29: 0 | AI29: 0.109 | AJ29: 0 | AK29: 0 | AL29: 1.204 | AM29: 1.646 | AN29: -0.442 | AO29: 0.7 | AP29: 95.9 | AQ29: 0.5 | AR29: Tier2_garage_HZ1ResidentialWater HeatingEfficient TanksHeat Pump Water HeaterSingle FamilyNew and Existing ConstructionComplies with Tier2 of NEEA's Northern Climate HPWH SpecificationManufacturer, Dealer or Consumer Rebate and Direct Installations. Unit installed in an unheated buffer location.YesHZ1UES | AS29: FALSE | AT29: 0 | AU29: 0 | AV29: 0 | AW29: 0 | AX29: No
A30: Residential | B30: Water Heating | C30: Efficient Tanks | D30: =LookupTable!A25 -> Tier2_garage_HZ2 | E30: Heat Pump Water Heater | F30: 0 | G30: Single Family | H30: New and Existing Construction | I30: Complies with Tier2 of NEEA's Northern Climate HPWH Specification | J30: 0 | K30: Manufacturer, Dealer or Consumer Rebate and Direct Installations. | M30: Unit installed in an unheated buffer location. | N30: 0 | O30: Yes | P30: HZ2 | Q30: 0 | R30: 1723.66 | S30: 0 | T30: 0 | U30: 13 | V30: UES | W30: 0 | X30: 1252 | Y30: 1366 | Z30: 0.317 | AA30: 0.173 | AB30: 0.286 | AC30: 0.545 | AD30: 0.553 | AE30: 0.095 | AF30: 1.351 | AG30: 0 | AH30: 0 | AI30: 0.109 | AJ30: 0 | AK30: 0 | AL30: 1.204 | AM30: 1.603 | AN30: -0.399 | AO30: 0.8 | AP30: 91.7 | AQ30: 0.5 | AR30: Tier2_garage_HZ2ResidentialWater HeatingEfficient TanksHeat Pump Water HeaterSingle FamilyNew and Existing ConstructionComplies with Tier2 of NEEA's Northern Climate HPWH SpecificationManufacturer, Dealer or Consumer Rebate and Direct Installations. Unit installed in an unheated buffer location.YesHZ2UES | AS30: FALSE | AT30: 0 | AU30: 0 | AV30: 0 | AW30: 0 | AX30: No
A31: Residential | B31: Water Heating | C31: Efficient Tanks | D31: =LookupTable!A26 -> Tier2_garage_HZ3 | E31: Heat Pump Water Heater | F31: 0 | G31: Single Family | H31: New and Existing Construction | I31: Complies with Tier2 of NEEA's Northern Climate HPWH Specification | J31: 0 | K31: Manufacturer, Dealer or Consumer Rebate and Direct Installations. | M31: Unit installed in an unheated buffer location. | N31: 0 | O31: Yes | P31: HZ3 | Q31: 0 | R31: 1723.66 | S31: 0 | T31: 0 | U31: 13 | V31: UES | W31: 0 | X31: 1287 | Y31: 1404 | Z31: 0.317 | AA31: 0.178 | AB31: 0.286 | AC31: 0.56 | AD31: 0.553 | AE31: 0.095 | AF31: 1.314 | AG31: 0 | AH31: 0 | AI31: 0.109 | AJ31: 0 | AK31: 0 | AL31: 1.204 | AM31: 1.56 | AN31: -0.356 | AO31: 0.8 | AP31: 87.5 | AQ31: 0.5 | AR31: Tier2_garage_HZ3ResidentialWater HeatingEfficient TanksHeat Pump Water HeaterSingle FamilyNew and Existing ConstructionComplies with Tier2 of NEEA's Northern Climate HPWH SpecificationManufacturer, Dealer or Consumer Rebate and Direct Installations. Unit installed in an unheated buffer location.YesHZ3UES | AS31: FALSE | AT31: 0 | AU31: 0 | AV31: 0 | AW31: 0 | AX31: No
A32: Residential | B32: Water Heating | C32: Efficient Tanks | D32: =LookupTable!A27 -> Tier2_basmnt_HZ1 | E32: Heat Pump Water Heater | F32: 0 | G32: Single Family | H32: New and Existing Construction | I32: Complies with Tier2 of NEEA's Northern Climate HPWH Specification | J32: 0 | K32: Manufacturer, Dealer or Consumer Rebate and Direct Installations. | M32: Unit installed in an unheated buffer location. | N32: 0 | O32: Yes | P32: HZ1 | Q32: 0 | R32: 1723.66 | S32: 0 | T32: 0 | U32: 13 | V32: UES | W32: 0 | X32: 1223 | Y32: 1334 | Z32: 0.317 | AA32: 0.169 | AB32: 0.286 | AC32: 0.532 | AD32: 0.553 | AE32: 0.095 | AF32: 1.383 | AG32: 0 | AH32: 0 | AI32: 0.109 | AJ32: 0 | AK32: 0 | AL32: 1.204 | AM32: 1.641 | AN32: -0.437 | AO32: 0.7 | AP32: 95.4 | AQ32: 0.5 | AR32: Tier2_basmnt_HZ1ResidentialWater HeatingEfficient TanksHeat Pump Water HeaterSingle FamilyNew and Existing ConstructionComplies with Tier2 of NEEA's Northern Climate HPWH SpecificationManufacturer, Dealer or Consumer Rebate and Direct Installations. Unit installed in an unheated buffer location.YesHZ1UES | AS32: FALSE | AT32: 0 | AU32: 0 | AV32: 0 | AW32: 0 | AX32: No
A33: Residential | B33: Water Heating | C33: Efficient Tanks | D33: =LookupTable!A28 -> Tier2_basmnt_HZ2 | E33: Heat Pump Water Heater | F33: 0 | G33: Single Family | H33: New and Existing Construction | I33: Complies with Tier2 of NEEA's Northern Climate HPWH Specification | J33: 0 | K33: Manufacturer, Dealer or Consumer Rebate and Direct Installations. | M33: Unit installed in an unheated buffer location. | N33: 0 | O33: Yes | P33: HZ2 | Q33: 0 | R33: 1723.66 | S33: 0 | T33: 0 | U33: 13 | V33: UES | W33: 0 | X33: 1267 | Y33: 1381 | Z33: 0.317 | AA33: 0.175 | AB33: 0.286 | AC33: 0.551 | AD33: 0.553 | AE33: 0.095 | AF33: 1.336 | AG33: 0 | AH33: 0 | AI33: 0.109 | AJ33: 0 | AK33: 0 | AL33: 1.204 | AM33: 1.585 | AN33: -0.381 | AO33: 0.8 | AP33: 90 | AQ33: 0.5 | AR33: Tier2_basmnt_HZ2ResidentialWater HeatingEfficient TanksHeat Pump Water HeaterSingle FamilyNew and Existing ConstructionComplies with Tier2 of NEEA's Northern Climate HPWH SpecificationManufacturer, Dealer or Consumer Rebate and Direct Installations. Unit installed in an unheated buffer location.YesHZ2UES | AS33: FALSE | AT33: 0 | AU33: 0 | AV33: 0 | AW33: 0 | AX33: No
A34: Residential | B34: Water Heating | C34: Efficient Tanks | D34: =LookupTable!A29 -> Tier2_basmnt_HZ3 | E34: Heat Pump Water Heater | F34: 0 | G34: Single Family | H34: New and Existing Construction | I34: Complies with Tier2 of NEEA's Northern Climate HPWH Specification | J34: 0 | K34: Manufacturer, Dealer or Consumer Rebate and Direct Installations. | M34: Unit installed in an unheated buffer location. | N34: 0 | O34: Yes | P34: HZ3 | Q34: 0 | R34: 1723.66 | S34: 0 | T34: 0 | U34: 13 | V34: UES | W34: 0 | X34: 1314 | Y34: 1433 | Z34: 0.317 | AA34: 0.181 | AB34: 0.286 | AC34: 0.572 | AD34: 0.553 | AE34: 0.095 | AF34: 1.287 | AG34: 0 | AH34: 0 | AI34: 0.109 | AJ34: 0 | AK34: 0 | AL34: 1.204 | AM34: 1.528 | AN34: -0.324 | AO34: 0.8 | AP34: 84.4 | AQ34: 0.5 | AR34: Tier2_basmnt_HZ3ResidentialWater HeatingEfficient TanksHeat Pump Water HeaterSingle FamilyNew and Existing ConstructionComplies with Tier2 of NEEA's Northern Climate HPWH SpecificationManufacturer, Dealer or Consumer Rebate and Direct Installations. Unit installed in an unheated buffer location.YesHZ3UES | AS34: FALSE | AT34: 0 | AU34: 0 | AV34: 0 | AW34: 0 | AX34: No
A35: Residential | B35: Water Heating | C35: Efficient Tanks | D35: =LookupTable!A30 -> Tier2_indor2_HZ1_gfnc | E35: Heat Pump Water Heater | F35: 0 | G35: Single Family | H35: New and Existing Construction | I35: Complies with Tier2 of NEEA's Northern Climate HPWH Specification | J35: 0 | K35: Manufacturer, Dealer or Consumer Rebate and Direct Installations. | M35: Unit installed inside conditioned space. Primary house space heating system fueled by gas. | N35: 0 | O35: Yes | P35: HZ1 | Q35: 0 | R35: 1723.66 | S35: 0 | T35: 0 | U35: 13 | V35: UES | W35: 0 | X35: 1309 | Y35: 1427 | Z35: 0.316 | AA35: 0.179 | AB35: 0.287 | AC35: 0.566 | AD35: 0.553 | AE35: 0.095 | AF35: 1.293 | AG35: 0 | AH35: 0 | AI35: 0.109 | AJ35: -0.13 | AK35: 0 | AL35: 0.964 | AM35: 1.534 | AN35: -0.57 | AO35: 0.7 | AP35: 108.2 | AQ35: 0.4 | AR35: Tier2_indor2_HZ1_gfncResidentialWater HeatingEfficient TanksHeat Pump Water HeaterSingle FamilyNew and Existing ConstructionComplies with Tier2 of NEEA's Northern Climate HPWH SpecificationManufacturer, Dealer or Consumer Rebate and Direct Installations. Unit installed inside conditioned space. Primary house space heating system fueled by gas.YesHZ1UES | AS35: FALSE | AT35: 0 | AU35: 0 | AV35: 0 | AW35: 0 | AX35: No
A36: Residential | B36: Water Heating | C36: Efficient Tanks | D36: =LookupTable!A31 -> Tier2_indor2_HZ1_gfac | E36: Heat Pump Water Heater | F36: 0 | G36: Single Family | H36: New and Existing Construction | I36: Complies with Tier2 of NEEA's Northern Climate HPWH Specification | J36: 0 | K36: Manufacturer, Dealer or Consumer Rebate and Direct Installations. | M36: Unit installed inside conditioned space. Primary house space heating system fueled by gas. | N36: 0 | O36: Yes | P36: HZ1 | Q36: 0 | R36: 1723.66 | S36: 0 | T36: 0 | U36: 13 | V36: UES | W36: 0 | X36: 1323 | Y36: 1443 | Z36: 0.31 | AA36: 0.177 | AB36: 0.285 | AC36: 0.58 | AD36: 0.552 | AE36: 0.096 | AF36: 1.278 | AG36: 0 | AH36: 0 | AI36: 0.109 | AJ36: -0.13 | AK36: 0 | AL36: 0.965 | AM36: 1.517 | AN36: -0.552 | AO36: 0.7 | AP36: 106.4 | AQ36: 0.4 | AR36: Tier2_indor2_HZ1_gfacResidentialWater HeatingEfficient TanksHeat Pump Water HeaterSingle FamilyNew and Existing ConstructionComplies with Tier2 of NEEA's Northern Climate HPWH SpecificationManufacturer, Dealer or Consumer Rebate and Direct Installations. Unit installed inside conditioned space. Primary house space heating system fueled by gas.YesHZ1UES | AS36: FALSE | AT36: 0 | AU36: 0 | AV36: 0 | AW36: 0 | AX36: No
A37: Residential | B37: Water Heating | C37: Efficient Tanks | D37: =LookupTable!A32 -> Tier2_indor2_HZ1_efaf | E37: Heat Pump Water Heater | F37: 0 | G37: Single Family | H37: New and Existing Construction | I37: Complies with Tier2 of NEEA's Northern Climate HPWH Specification | J37: 0 | K37: Manufacturer, Dealer or Consumer Rebate and Direct Installations. | M37: Unit installed inside conditioned space. Electric FAF primary space heating system. | N37: 0 | O37: Yes | P37: HZ1 | Q37: 0 | R37: 1723.66 | S37: 0 | T37: 0 | U37: 13 | V37: UES | W37: 0 | X37: 911 | Y37: 994 | Z37: 0.291 | AA37: 0.084 | AB37: 0.328 | AC37: 0.312 | AD37: 0.547 | AE37: 0.075 | AF37: 1.856 | AG37: 0 | AH37: 0 | AI37: 0.107 | AJ37: -0.131 | AK37: 0 | AL37: 1.037 | AM37: 2.203 | AN37: -1.166 | AO37: 0.5 | AP37: 165 | AQ37: 0.4 | AR37: Tier2_indor2_HZ1_efafResidentialWater HeatingEfficient TanksHeat Pump Water HeaterSingle FamilyNew and Existing ConstructionComplies with Tier2 of NEEA's Northern Climate HPWH SpecificationManufacturer, Dealer or Consumer Rebate and Direct Installations. Unit installed inside conditioned space. Electric FAF primary space heating system.YesHZ1UES | AS37: FALSE | AT37: 0 | AU37: 0 | AV37: 0 | AW37: 0 | AX37: No
A38: Residential | B38: Water Heating | C38: Efficient Tanks | D38: =LookupTable!A33 -> Tier2_indor2_HZ1_hp85 | E38: Heat Pump Water Heater | F38: 0 | G38: Single Family | H38: New and Existing Construction | I38: Complies with Tier2 of NEEA's Northern Climate HPWH Specification | J38: 0 | K38: Manufacturer, Dealer or Consumer Rebate and Direct Installations. | M38: Unit installed inside conditioned space. Heat Pump or Ductless Heat Pump primary space heating system. | N38: 0 | O38: Yes | P38: HZ1 | Q38: 0 | R38: 1723.66 | S38: 0 | T38: 0 | U38: 13 | V38: UES | W38: 0 | X38: 1134 | Y38: 1237 | Z38: 0.303 | AA38: 0.124 | AB38: 0.307 | AC38: 0.428 | AD38: 0.55 | AE38: 0.083 | AF38: 1.492 | AG38: 0 | AH38: 0 | AI38: 0.108 | AJ38: -0.053 | AK38: 0 | AL38: 1.132 | AM38: 1.771 | AN38: -0.639 | AO38: 0.7 | AP38: 114.6 | AQ38: 0.5 | AR38: Tier2_indor2_HZ1_hp85ResidentialWater HeatingEfficient TanksHeat Pump Water HeaterSingle FamilyNew and Existing ConstructionComplies with Tier2 of NEEA's Northern Climate HPWH SpecificationManufacturer, Dealer or Consumer Rebate and Direct Installations. Unit installed inside conditioned space. Heat Pump primary space heating system.YesHZ1UES | AS38: FALSE | AT38: 0 | AU38: 0 | AV38: 0 | AW38: 0 | AX38: No
A39: Residential | B39: Water Heating | C39: Efficient Tanks | D39: =LookupTable!A34 -> Tier2_indor2_HZ1_zonl | E39: Heat Pump Water Heater | F39: 0 | G39: Single Family | H39: New and Existing Construction | I39: Complies with Tier2 of NEEA's Northern Climate HPWH Specification | J39: 0 | K39: Manufacturer, Dealer or Consumer Rebate and Direct Installations. | M39: Unit installed inside conditioned space. Zonal electric primary space heating system. | N39: 0 | O39: Yes | P39: HZ1 | Q39: 0 | R39: 1723.66 | S39: 0 | T39: 0 | U39: 13 | V39: UES | W39: 0 | X39: 956 | Y39: 1042 | Z39: 0.258 | AA39: 0.092 | AB39: 0.304 | AC39: 0.384 | AD39: 0.551 | AE39: 0.088 | AF39: 1.77 | AG39: 0 | AH39: 0 | AI39: 0.108 | AJ39: -0.112 | AK39: 0 | AL39: 1.076 | AM39: 2.1 | AN39: -1.024 | AO39: 0.5 | AP39: 151.7 | AQ39: 0.4 | AR39: Tier2_indor2_HZ1_zonlResidentialWater HeatingEfficient TanksHeat Pump Water HeaterSingle FamilyNew and Existing ConstructionComplies with Tier2 of NEEA's Northern Climate HPWH SpecificationManufacturer, Dealer or Consumer Rebate and Direct Installations. Unit installed inside conditioned space. Zonal electric primary space heating system.YesHZ1UES | AS39: FALSE | AT39: 0 | AU39: 0 | AV39: 0 | AW39: 0 | AX39: No
A40: Residential | B40: Water Heating | C40: Efficient Tanks | D40: =LookupTable!A35 -> Tier2_indor2_HZ2_gfnc | E40: Heat Pump Water Heater | F40: 0 | G40: Single Family | H40: New and Existing Construction | I40: Complies with Tier2 of NEEA's Northern Climate HPWH Specification | J40: 0 | K40: Manufacturer, Dealer or Consumer Rebate and Direct Installations. | M40: Unit installed inside conditioned space. Primary house space heating system fueled by gas. | N40: 0 | O40: Yes | P40: HZ2 | Q40: 0 | R40: 1723.66 | S40: 0 | T40: 0 | U40: 13 | V40: UES | W40: 0 | X40: 1376 | Y40: 1500 | Z40: 0.316 | AA40: 0.188 | AB40: 0.287 | AC40: 0.596 | AD40: 0.553 | AE40: 0.095 | AF40: 1.229 | AG40: 0 | AH40: 0 | AI40: 0.109 | AJ40: -0.113 | AK40: 0 | AL40: 0.996 | AM40: 1.459 | AN40: -0.463 | AO40: 0.7 | AP40: 97.8 | AQ40: 0.4 | AR40: Tier2_indor2_HZ2_gfncResidentialWater HeatingEfficient TanksHeat Pump Water HeaterSingle FamilyNew and Existing ConstructionComplies with Tier2 of NEEA's Northern Climate HPWH SpecificationManufacturer, Dealer or Consumer Rebate and Direct Installations. Unit installed inside conditioned space. Primary house space heating system fueled by gas.YesHZ2UES | AS40: FALSE | AT40: 0 | AU40: 0 | AV40: 0 | AW40: 0 | AX40: No
A41: Residential | B41: Water Heating | C41: Efficient Tanks | D41: =LookupTable!A36 -> Tier2_indor2_HZ2_gfac | E41: Heat Pump Water Heater | F41: 0 | G41: Single Family | H41: New and Existing Construction | I41: Complies with Tier2 of NEEA's Northern Climate HPWH Specification | J41: =VLOOKUP($D41,LookupTable,J$1,0) -> 0 | K41: Manufacturer, Dealer or Consumer Rebate and Direct Installations. | M41: Unit installed inside conditioned space. Primary house space heating system fueled by gas. | N41: 0 | O41: Yes | P41: HZ2 | Q41: 0 | R41: 1723.66 | S41: 0 | T41: 0 | U41: 13 | V41: UES | W41: 0 | X41: 1393 | Y41: 1519 | Z41: 0.31 | AA41: 0.187 | AB41: 0.285 | AC41: 0.612 | AD41: 0.552 | AE41: 0.096 | AF41: 1.214 | AG41: 0 | AH41: 0 | AI41: 0.109 | AJ41: -0.113 | AK41: 0 | AL41: 0.997 | AM41: 1.441 | AN41: -0.444 | AO41: 0.7 | AP41: 96 | AQ41: 0.4 | AR41: Tier2_indor2_HZ2_gfacResidentialWater HeatingEfficient TanksHeat Pump Water HeaterSingle FamilyNew and Existing ConstructionComplies with Tier2 of NEEA's Northern Climate HPWH SpecificationManufacturer, Dealer or Consumer Rebate and Direct Installations. Unit installed inside conditioned space. Primary house space heating system fueled by gas.YesHZ2UES | AS41: FALSE | AT41: 0 | AU41: 0 | AV41: 0 | AW41: 0 | AX41: No
A42: Residential | B42: Water Heating | C42: Efficient Tanks | D42: =LookupTable!A37 -> Tier2_indor2_HZ2_efaf | E42: Heat Pump Water Heater | F42: 0 | G42: Single Family | H42: New and Existing Construction | I42: Complies with Tier2 of NEEA's Northern Climate HPWH Specification | J42: 0 | K42: Manufacturer, Dealer or Consumer Rebate and Direct Installations. | M42: Unit installed inside conditioned space. Electric FAF primary space heating system. | N42: 0 | O42: Yes | P42: HZ2 | Q42: 0 | R42: 1723.66 | S42: 0 | T42: 0 | U42: 13 | V42: UES | W42: 0 | X42: 1006 | Y42: 1097 | Z42: 0.295 | AA42: 0.099 | AB42: 0.321 | AC42: 0.358 | AD42: 0.546 | AE42: 0.078 | AF42: 1.682 | AG42: 0 | AH42: 0 | AI42: 0.107 | AJ42: -0.109 | AK42: 0 | AL42: 1.066 | AM42: 1.996 | AN42: -0.93 | AO42: 0.6 | AP42: 142.2 | AQ42: 0.4 | AR42: Tier2_indor2_HZ2_efafResidentialWater HeatingEfficient TanksHeat Pump Water HeaterSingle FamilyNew and Existing ConstructionComplies with Tier2 of NEEA's Northern Climate HPWH SpecificationManufacturer, Dealer or Consumer Rebate and Direct Installations. Unit installed inside conditioned space. Electric FAF primary space heating system.YesHZ2UES | AS42: FALSE | AT42: 0 | AU42: 0 | AV42: 0 | AW42: 0 | AX42: No
A43: Residential | B43: Water Heating | C43: Efficient Tanks | D43: =LookupTable!A38 -> Tier2_indor2_HZ2_hp85 | E43: Heat Pump Water Heater | F43: 0 | G43: Single Family | H43: New and Existing Construction | I43: Complies with Tier2 of NEEA's Northern Climate HPWH Specification | J43: 0 | K43: Manufacturer, Dealer or Consumer Rebate and Direct Installations. | M43: Unit installed inside conditioned space. Heat Pump or Ductless Heat Pump primary space heating system. | N43: 0 | O43: Yes | P43: HZ2 | Q43: 0 | R43: 1723.66 | S43: 0 | T43: 0 | U43: 13 | V43: UES | W43: 0 | X43: 1156 | Y43: 1261 | Z43: 0.301 | AA43: 0.12 | AB43: 0.311 | AC43: 0.423 | AD43: 0.552 | AE43: 0.08 | AF43: 1.463 | AG43: 0 | AH43: 0 | AI43: 0.108 | AJ43: -0.062 | AK43: 0 | AL43: 1.122 | AM43: 1.736 | AN43: -0.614 | AO43: 0.7 | AP43: 112.3 | AQ43: 0.5 | AR43: Tier2_indor2_HZ2_hp85ResidentialWater HeatingEfficient TanksHeat Pump Water HeaterSingle FamilyNew and Existing ConstructionComplies with Tier2 of NEEA's Northern Climate HPWH SpecificationManufacturer, Dealer or Consumer Rebate and Direct Installations. Unit installed inside conditioned space. Heat Pump primary space heating system.YesHZ2UES | AS43: FALSE | AT43: 0 | AU43: 0 | AV43: 0 | AW43: 0 | AX43: No
A44: Residential | B44: Water Heating | C44: Efficient Tanks | D44: =LookupTable!A39 -> Tier2_indor2_HZ2_zonl | E44: Heat Pump Water Heater | F44: 0 | G44: Single Family | H44: New and Existing Construction | I44: Complies with Tier2 of NEEA's Northern Climate HPWH Specification | J44: 0 | K44: Manufacturer, Dealer or Consumer Rebate and Direct Installations. | M44: Unit installed inside conditioned space. Zonal electric primary space heating system. | N44: 0 | O44: Yes | P44: HZ2 | Q44: 0 | R44: 1723.66 | S44: 0 | T44: 0 | U44: 13 | V44: UES | W44: 0 | X44: 1049 | Y44: 1144 | Z44: 0.267 | AA44: 0.108 | AB44: 0.302 | AC44: 0.426 | AD44: 0.549 | AE44: 0.089 | AF44: 1.613 | AG44: 0 | AH44: 0 | AI44: 0.108 | AJ44: -0.093 | AK44: 0 | AL44: 1.099 | AM44: 1.915 | AN44: -0.816 | AO44: 0.6 | AP44: 131.5 | AQ44: 0.4 | AR44: Tier2_indor2_HZ2_zonlResidentialWater HeatingEfficient TanksHeat Pump Water HeaterSingle FamilyNew and Existing ConstructionComplies with Tier2 of NEEA's Northern Climate HPWH SpecificationManufacturer, Dealer or Consumer Rebate and Direct Installations. Unit installed inside conditioned space. Zonal electric primary space heating system.YesHZ2UES | AS44: FALSE | AT44: 0 | AU44: 0 | AV44: 0 | AW44: 0 | AX44: No
A45: Residential | B45: Water Heating | C45: Efficient Tanks | D45: =LookupTable!A40 -> Tier2_indor2_HZ3_gfnc | E45: Heat Pump Water Heater | F45: 0 | G45: Single Family | H45: New and Existing Construction | I45: Complies with Tier2 of NEEA's Northern Climate HPWH Specification | J45: 0 | K45: Manufacturer, Dealer or Consumer Rebate and Direct Installations. | M45: Unit installed inside conditioned space. Primary house space heating system fueled by gas. | N45: 0 | O45: Yes | P45: HZ3 | Q45: 0 | R45: 1723.66 | S45: 0 | T45: 0 | U45: 13 | V45: UES | W45: 0 | X45: 1436 | Y45: 1566 | Z45: 0.316 | AA45: 0.197 | AB45: 0.287 | AC45: 0.622 | AD45: 0.553 | AE45: 0.095 | AF45: 1.178 | AG45: 0 | AH45: 0 | AI45: 0.109 | AJ45: -0.1 | AK45: 0 | AL45: 1.02 | AM45: 1.398 | AN45: -0.378 | AO45: 0.8 | AP45: 89.7 | AQ45: 0.5 | AR45: Tier2_indor2_HZ3_gfncResidentialWater HeatingEfficient TanksHeat Pump Water HeaterSingle FamilyNew and Existing ConstructionComplies with Tier2 of NEEA's Northern Climate HPWH SpecificationManufacturer, Dealer or Consumer Rebate and Direct Installations. Unit installed inside conditioned space. Primary house space heating system fueled by gas.YesHZ3UES | AS45: FALSE | AT45: 0 | AU45: 0 | AV45: 0 | AW45: 0 | AX45: No
A46: Residential | B46: Water Heating | C46: Efficient Tanks | D46: =LookupTable!A41 -> Tier2_indor2_HZ3_gfac | E46: Heat Pump Water Heater | F46: 0 | G46: Single Family | H46: New and Existing Construction | I46: Complies with Tier2 of NEEA's Northern Climate HPWH Specification | J46: 0 | K46: Manufacturer, Dealer or Consumer Rebate and Direct Installations. | M46: Unit installed inside conditioned space. Primary house space heating system fueled by gas. | N46: 0 | O46: Yes | P46: HZ3 | Q46: 0 | R46: 1723.66 | S46: 0 | T46: 0 | U46: 13 | V46: UES | W46: 0 | X46: 1460 | Y46: 1592 | Z46: 0.309 | AA46: 0.195 | AB46: 0.284 | AC46: 0.642 | AD46: 0.552 | AE46: 0.096 | AF46: 1.159 | AG46: 0 | AH46: 0 | AI46: 0.109 | AJ46: -0.1 | AK46: 0 | AL46: 1.021 | AM46: 1.375 | AN46: -0.354 | AO46: 0.8 | AP46: 87.3 | AQ46: 0.5 | AR46: Tier2_indor2_HZ3_gfacResidentialWater HeatingEfficient TanksHeat Pump Water HeaterSingle FamilyNew and Existing ConstructionComplies with Tier2 of NEEA's Northern Climate HPWH SpecificationManufacturer, Dealer or Consumer Rebate and Direct Installations. Unit installed inside conditioned space. Primary house space heating system fueled by gas.YesHZ3UES | AS46: FALSE | AT46: 0 | AU46: 0 | AV46: 0 | AW46: 0 | AX46: No
A47: Residential | B47: Water Heating | C47: Efficient Tanks | D47: =LookupTable!A42 -> Tier2_indor2_HZ3_efaf | E47: Heat Pump Water Heater | F47: 0 | G47: Single Family | H47: New and Existing Construction | I47: Complies with Tier2 of NEEA's Northern Climate HPWH Specification | J47: 0 | K47: Manufacturer, Dealer or Consumer Rebate and Direct Installations. | M47: Unit installed inside conditioned space. Electric FAF primary space heating system. | N47: 0 | O47: Yes | P47: HZ3 | Q47: 0 | R47: 1723.66 | S47: 0 | T47: 0 | U47: 13 | V47: UES | W47: 0 | X47: 1096 | Y47: 1195 | Z47: 0.299 | AA47: 0.115 | AB47: 0.316 | AC47: 0.404 | AD47: 0.545 | AE47: 0.081 | AF47: 1.544 | AG47: 0 | AH47: 0 | AI47: 0.107 | AJ47: -0.092 | AK47: 0 | AL47: 1.086 | AM47: 1.833 | AN47: -0.747 | AO47: 0.6 | AP47: 124.5 | AQ47: 0.4 | AR47: Tier2_indor2_HZ3_efafResidentialWater HeatingEfficient TanksHeat Pump Water HeaterSingle FamilyNew and Existing ConstructionComplies with Tier2 of NEEA's Northern Climate HPWH SpecificationManufacturer, Dealer or Consumer Rebate and Direct Installations. Unit installed inside conditioned space. Electric FAF primary space heating system.YesHZ3UES | AS47: FALSE | AT47: 0 | AU47: 0 | AV47: 0 | AW47: 0 | AX47: No
A48: Residential | B48: Water Heating | C48: Efficient Tanks | D48: =LookupTable!A43 -> Tier2_indor2_HZ3_hp85 | E48: Heat Pump Water Heater | F48: 0 | G48: Single Family | H48: New and Existing Construction | I48: Complies with Tier2 of NEEA's Northern Climate HPWH Specification | J48: 0 | K48: Manufacturer, Dealer or Consumer Rebate and Direct Installations. | M48: Unit installed inside conditioned space. Heat Pump or Ductless Heat Pump primary space heating system. | N48: 0 | O48: Yes | P48: HZ3 | Q48: 0 | R48: 1723.66 | S48: 0 | T48: 0 | U48: 13 | V48: UES | W48: 0 | X48: 1208 | Y48: 1318 | Z48: 0.3 | AA48: 0.124 | AB48: 0.311 | AC48: 0.442 | AD48: 0.55 | AE48: 0.08 | AF48: 1.4 | AG48: 0 | AH48: 0 | AI48: 0.108 | AJ48: -0.063 | AK48: 0 | AL48: 1.12 | AM48: 1.662 | AN48: -0.542 | AO48: 0.7 | AP48: 105.1 | AQ48: 0.5 | AR48: Tier2_indor2_HZ3_hp85ResidentialWater HeatingEfficient TanksHeat Pump Water HeaterSingle FamilyNew and Existing ConstructionComplies with Tier2 of NEEA's Northern Climate HPWH SpecificationManufacturer, Dealer or Consumer Rebate and Direct Installations. Unit installed inside conditioned space. Heat Pump primary space heating system.YesHZ3UES | AS48: FALSE | AT48: 0 | AU48: 0 | AV48: 0 | AW48: 0 | AX48: No
A49: Residential | B49: Water Heating | C49: Efficient Tanks | D49: =LookupTable!A44 -> Tier2_indor2_HZ3_zonl | E49: Heat Pump Water Heater | F49: 0 | G49: Single Family | H49: New and Existing Construction | I49: Complies with Tier2 of NEEA's Northern Climate HPWH Specification | J49: 0 | K49: Manufacturer, Dealer or Consumer Rebate and Direct Installations. | M49: Unit installed inside conditioned space. Zonal electric primary space heating system. | N49: 0 | O49: Yes | P49: HZ3 | Q49: 0 | R49: 1723.66 | S49: 0 | T49: 0 | U49: 13 | V49: UES | W49: 0 | X49: 1136 | Y49: 1239 | Z49: 0.275 | AA49: 0.123 | AB49: 0.299 | AC49: 0.467 | AD49: 0.549 | AE49: 0.09 | AF49: 1.489 | AG49: 0 | AH49: 0 | AI49: 0.109 | AJ49: -0.079 | AK49: 0 | AL49: 1.114 | AM49: 1.767 | AN49: -0.653 | AO49: 0.6 | AP49: 115.9 | AQ49: 0.5 | AR49: Tier2_indor2_HZ3_zonlResidentialWater HeatingEfficient TanksHeat Pump Water HeaterSingle FamilyNew and Existing ConstructionComplies with Tier2 of NEEA's Northern Climate HPWH SpecificationManufacturer, Dealer or Consumer Rebate and Direct Installations. Unit installed inside conditioned space. Zonal electric primary space heating system.YesHZ3UES | AS49: FALSE | AT49: 0 | AU49: 0 | AV49: 0 | AW49: 0 | AX49: No
A50: Residential | B50: Water Heating | C50: Efficient Tanks | D50: =LookupTable!A45 -> Tier2_ducted_HZ1_gfnc | E50: Heat Pump Water Heater | F50: 0 | G50: Single Family | H50: New and Existing Construction | I50: Complies with Tier2 of NEEA's Northern Climate HPWH Specification | J50: 0 | K50: Manufacturer, Dealer or Consumer Rebate and Direct Installations. | M50: Unit installed inside conditioned space with HPWH exhaust ducted outside. Primary house space heating system fueled by gas. | N50: 0 | O50: Yes | P50: HZ1 | Q50: 0 | R50: 1897.95 | S50: 0 | T50: 0 | U50: 13 | V50: UES | W50: 0 | X50: 1218 | Y50: 1329 | Z50: 0.316 | AA50: 0.166 | AB50: 0.287 | AC50: 0.527 | AD50: 0.553 | AE50: 0.095 | AF50: 1.529 | AG50: 0 | AH50: 0 | AI50: 0.109 | AJ50: -0.147 | AK50: 0 | AL50: 0.931 | AM50: 1.815 | AN50: -0.884 | AO50: 0.6 | AP50: 138.4 | AQ50: 0.3 | AR50: Tier2_ducted_HZ1_gfncResidentialWater HeatingEfficient TanksHeat Pump Water HeaterSingle FamilyNew and Existing ConstructionComplies with Tier2 of NEEA's Northern Climate HPWH SpecificationManufacturer, Dealer or Consumer Rebate and Direct Installations. Unit installed inside conditioned space with HPWH exhaust ducted outside. Primary house space heating system fueled by gas.YesHZ1UES | AS50: FALSE | AT50: 0 | AU50: 0 | AV50: 0 | AW50: 0 | AX50: No
A51: Residential | B51: Water Heating | C51: Efficient Tanks | D51: =LookupTable!A46 -> Tier2_ducted_HZ1_gfac | E51: Heat Pump Water Heater | F51: 0 | G51: Single Family | H51: New and Existing Construction | I51: Complies with Tier2 of NEEA's Northern Climate HPWH Specification | J51: 0 | K51: Manufacturer, Dealer or Consumer Rebate and Direct Installations. | M51: Unit installed inside conditioned space with HPWH exhaust ducted outside. Primary house space heating system fueled by gas. | N51: 0 | O51: Yes | P51: HZ1 | Q51: 0 | R51: 1897.95 | S51: 0 | T51: 0 | U51: 13 | V51: UES | W51: 0 | X51: 1209 | Y51: 1318 | Z51: 0.316 | AA51: 0.165 | AB51: 0.287 | AC51: 0.523 | AD51: 0.553 | AE51: 0.095 | AF51: 1.541 | AG51: 0 | AH51: 0 | AI51: 0.109 | AJ51: -0.147 | AK51: 0 | AL51: 0.933 | AM51: 1.829 | AN51: -0.896 | AO51: 0.6 | AP51: 139.6 | AQ51: 0.3 | AR51: Tier2_ducted_HZ1_gfacResidentialWater HeatingEfficient TanksHeat Pump Water HeaterSingle FamilyNew and Existing ConstructionComplies with Tier2 of NEEA's Northern Climate HPWH SpecificationManufacturer, Dealer or Consumer Rebate and Direct Installations. Unit installed inside conditioned space with HPWH exhaust ducted outside. Primary house space heating system fueled by gas.YesHZ1UES | AS51: FALSE | AT51: 0 | AU51: 0 | AV51: 0 | AW51: 0 | AX51: No
A52: Residential | B52: Water Heating | C52: Efficient Tanks | D52: =LookupTable!A47 -> Tier2_ducted_HZ1_efaf | E52: Heat Pump Water Heater | F52: 0 | G52: Single Family | H52: New and Existing Construction | I52: Complies with Tier2 of NEEA's Northern Climate HPWH Specification | J52: 0 | K52: Manufacturer, Dealer or Consumer Rebate and Direct Installations. | M52: Unit installed inside conditioned space with HPWH exhaust ducted outside. Electric FAF primary space heating system. | N52: 0 | O52: Yes | P52: HZ1 | Q52: 0 | R52: 1897.95 | S52: 0 | T52: 0 | U52: 13 | V52: UES | W52: 0 | X52: 798 | Y52: 871 | Z52: 0.286 | AA52: 0.066 | AB52: 0.336 | AC52: 0.257 | AD52: 0.546 | AE52: 0.071 | AF52: 2.333 | AG52: 0 | AH52: 0 | AI52: 0.106 | AJ52: -0.158 | AK52: 0 | AL52: 1.002 | AM52: 2.769 | AN52: -1.767 | AO52: 0.4 | AP52: 222.8 | AQ52: 0.3 | AR52: Tier2_ducted_HZ1_efafResidentialWater HeatingEfficient TanksHeat Pump Water HeaterSingle FamilyNew and Existing ConstructionComplies with Tier2 of NEEA's Northern Climate HPWH SpecificationManufacturer, Dealer or Consumer Rebate and Direct Installations. Unit installed inside conditioned space with HPWH exhaust ducted outside. Electric FAF primary space heating system.YesHZ1UES | AS52: FALSE | AT52: 0 | AU52: 0 | AV52: 0 | AW52: 0 | AX52: No
A53: Residential | B53: Water Heating | C53: Efficient Tanks | D53: =LookupTable!A48 -> Tier2_ducted_HZ1_hp85 | E53: Heat Pump Water Heater | F53: 0 | G53: Single Family | H53: New and Existing Construction | I53: Complies with Tier2 of NEEA's Northern Climate HPWH Specification | J53: 0 | K53: Manufacturer, Dealer or Consumer Rebate and Direct Installations. | M53: Unit installed inside conditioned space with HPWH exhaust ducted outside. Heat Pump or Ductless Heat Pump primary space heating system. | N53: 0 | O53: Yes | P53: HZ1 | Q53: 0 | R53: 1897.95 | S53: 0 | T53: 0 | U53: 13 | V53: UES | W53: 0 | X53: 1047 | Y53: 1141 | Z53: 0.31 | AA53: 0.119 | AB53: 0.308 | AC53: 0.392 | AD53: 0.551 | AE53: 0.082 | AF53: 1.78 | AG53: 0 | AH53: 0 | AI53: 0.108 | AJ53: -0.05 | AK53: 0 | AL53: 1.135 | AM53: 2.112 | AN53: -0.977 | AO53: 0.5 | AP53: 147.2 | AQ53: 0.4 | AR53: Tier2_ducted_HZ1_hp85ResidentialWater HeatingEfficient TanksHeat Pump Water HeaterSingle FamilyNew and Existing ConstructionComplies with Tier2 of NEEA's Northern Climate HPWH SpecificationManufacturer, Dealer or Consumer Rebate and Direct Installations. Unit installed inside conditioned space with HPWH exhaust ducted outside. Heat Pump primary space heating system.YesHZ1UES | AS53: FALSE | AT53: 0 | AU53: 0 | AV53: 0 | AW53: 0 | AX53: No
A54: Residential | B54: Water Heating | C54: Efficient Tanks | D54: =LookupTable!A49 -> Tier2_ducted_HZ1_zonl | E54: Heat Pump Water Heater | F54: 0 | G54: Single Family | H54: New and Existing Construction | I54: Complies with Tier2 of NEEA's Northern Climate HPWH Specification | J54: 0 | K54: Manufacturer, Dealer or Consumer Rebate and Direct Installations. | M54: Unit installed inside conditioned space with HPWH exhaust ducted outside. Zonal electric primary space heating system. | N54: 0 | O54: Yes | P54: HZ1 | Q54: 0 | R54: 1897.95 | S54: 0 | T54: 0 | U54: 13 | V54: UES | W54: 0 | X54: 786 | Y54: 857 | Z54: 0.23 | AA54: 0.06 | AB54: 0.313 | AC54: 0.303 | AD54: 0.549 | AE54: 0.084 | AF54: 2.369 | AG54: 0 | AH54: 0 | AI54: 0.108 | AJ54: -0.165 | AK54: 0 | AL54: 1.014 | AM54: 2.812 | AN54: -1.798 | AO54: 0.4 | AP54: 226.1 | AQ54: 0.3 | AR54: Tier2_ducted_HZ1_zonlResidentialWater HeatingEfficient TanksHeat Pump Water HeaterSingle FamilyNew and Existing ConstructionComplies with Tier2 of NEEA's Northern Climate HPWH SpecificationManufacturer, Dealer or Consumer Rebate and Direct Installations. Unit installed inside conditioned space with HPWH exhaust ducted outside. Zonal electric primary space heating system.YesHZ1UES | AS54: FALSE | AT54: 0 | AU54: 0 | AV54: 0 | AW54: 0 | AX54: No
A55: Residential | B55: Water Heating | C55: Efficient Tanks | D55: =LookupTable!A50 -> Tier2_ducted_HZ2_gfnc | E55: Heat Pump Water Heater | F55: 0 | G55: Single Family | H55: New and Existing Construction | I55: Complies with Tier2 of NEEA's Northern Climate HPWH Specification | J55: 0 | K55: Manufacturer, Dealer or Consumer Rebate and Direct Installations. | M55: Unit installed inside conditioned space with HPWH exhaust ducted outside. Primary house space heating system fueled by gas. | N55: 0 | O55: Yes | P55: HZ2 | Q55: 0 | R55: 1897.95 | S55: 0 | T55: 0 | U55: 13 | V55: UES | W55: 0 | X55: 1281 | Y55: 1397 | Z55: 0.316 | AA55: 0.175 | AB55: 0.287 | AC55: 0.554 | AD55: 0.553 | AE55: 0.095 | AF55: 1.454 | AG55: 0 | AH55: 0 | AI55: 0.109 | AJ55: -0.144 | AK55: 0 | AL55: 0.939 | AM55: 1.726 | AN55: -0.787 | AO55: 0.6 | AP55: 129 | AQ55: 0.4 | AR55: Tier2_ducted_HZ2_gfncResidentialWater HeatingEfficient TanksHeat Pump Water HeaterSingle FamilyNew and Existing ConstructionComplies with Tier2 of NEEA's Northern Climate HPWH SpecificationManufacturer, Dealer or Consumer Rebate and Direct Installations. Unit installed inside conditioned space with HPWH exhaust ducted outside. Primary house space heating system fueled by gas.YesHZ2UES | AS55: FALSE | AT55: 0 | AU55: 0 | AV55: 0 | AW55: 0 | AX55: No
A56: Residential | B56: Water Heating | C56: Efficient Tanks | D56: =LookupTable!A51 -> Tier2_ducted_HZ2_gfac | E56: Heat Pump Water Heater | F56: 0 | G56: Single Family | H56: New and Existing Construction | I56: Complies with Tier2 of NEEA's Northern Climate HPWH Specification | J56: 0 | K56: Manufacturer, Dealer or Consumer Rebate and Direct Installations. | M56: Unit installed inside conditioned space with HPWH exhaust ducted outside. Primary house space heating system fueled by gas. | N56: 0 | O56: Yes | P56: HZ2 | Q56: 0 | R56: 1897.95 | S56: 0 | T56: 0 | U56: 13 | V56: UES | W56: 0 | X56: 1269 | Y56: 1384 | Z56: 0.316 | AA56: 0.173 | AB56: 0.287 | AC56: 0.549 | AD56: 0.553 | AE56: 0.095 | AF56: 1.468 | AG56: 0 | AH56: 0 | AI56: 0.109 | AJ56: -0.144 | AK56: 0 | AL56: 0.939 | AM56: 1.742 | AN56: -0.803 | AO56: 0.6 | AP56: 130.6 | AQ56: 0.4 | AR56: Tier2_ducted_HZ2_gfacResidentialWater HeatingEfficient TanksHeat Pump Water HeaterSingle FamilyNew and Existing ConstructionComplies with Tier2 of NEEA's Northern Climate HPWH SpecificationManufacturer, Dealer or Consumer Rebate and Direct Installations. Unit installed inside conditioned space with HPWH exhaust ducted outside. Primary house space heating system fueled by gas.YesHZ2UES | AS56: FALSE | AT56: 0 | AU56: 0 | AV56: 0 | AW56: 0 | AX56: No
A57: Residential | B57: Water Heating | C57: Efficient Tanks | D57: =LookupTable!A52 -> Tier2_ducted_HZ2_efaf | E57: Heat Pump Water Heater | F57: 0 | G57: Single Family | H57: New and Existing Construction | I57: Complies with Tier2 of NEEA's Northern Climate HPWH Specification | J57: 0 | K57: Manufacturer, Dealer or Consumer Rebate and Direct Installations. | M57: Unit installed inside conditioned space with HPWH exhaust ducted outside. Electric FAF primary space heating system. | N57: 0 | O57: Yes | P57: HZ2 | Q57: 0 | R57: 1897.95 | S57: 0 | T57: 0 | U57: 13 | V57: UES | W57: 0 | X57: 842 | Y57: 918 | Z57: 0.286 | AA57: 0.07 | AB57: 0.336 | AC57: 0.272 | AD57: 0.543 | AE57: 0.071 | AF57: 2.212 | AG57: 0 | AH57: 0 | AI57: 0.106 | AJ57: -0.154 | AK57: 0 | AL57: 1.009 | AM57: 2.625 | AN57: -1.616 | AO57: 0.4 | AP57: 208 | AQ57: 0.3 | AR57: Tier2_ducted_HZ2_efafResidentialWater HeatingEfficient TanksHeat Pump Water HeaterSingle FamilyNew and Existing ConstructionComplies with Tier2 of NEEA's Northern Climate HPWH SpecificationManufacturer, Dealer or Consumer Rebate and Direct Installations. Unit installed inside conditioned space with HPWH exhaust ducted outside. Electric FAF primary space heating system.YesHZ2UES | AS57: FALSE | AT57: 0 | AU57: 0 | AV57: 0 | AW57: 0 | AX57: No
A58: Residential | B58: Water Heating | C58: Efficient Tanks | D58: =LookupTable!A53 -> Tier2_ducted_HZ2_hp85 | E58: Heat Pump Water Heater | F58: 0 | G58: Single Family | H58: New and Existing Construction | I58: Complies with Tier2 of NEEA's Northern Climate HPWH Specification | J58: 0 | K58: Manufacturer, Dealer or Consumer Rebate and Direct Installations. | M58: Unit installed inside conditioned space with HPWH exhaust ducted outside. Heat Pump or Ductless Heat Pump primary space heating system. | N58: 0 | O58: Yes | P58: HZ2 | Q58: 0 | R58: 1897.95 | S58: 0 | T58: 0 | U58: 13 | V58: UES | W58: 0 | X58: 1045 | Y58: 1139 | Z58: 0.308 | AA58: 0.11 | AB58: 0.316 | AC58: 0.369 | AD58: 0.552 | AE58: 0.077 | AF58: 1.783 | AG58: 0 | AH58: 0 | AI58: 0.108 | AJ58: -0.066 | AK58: 0 | AL58: 1.116 | AM58: 2.116 | AN58: -1 | AO58: 0.5 | AP58: 149.5 | AQ58: 0.4 | AR58: Tier2_ducted_HZ2_hp85ResidentialWater HeatingEfficient TanksHeat Pump Water HeaterSingle FamilyNew and Existing ConstructionComplies with Tier2 of NEEA's Northern Climate HPWH SpecificationManufacturer, Dealer or Consumer Rebate and Direct Installations. Unit installed inside conditioned space with HPWH exhaust ducted outside. Heat Pump primary space heating system.YesHZ2UES | AS58: FALSE | AT58: 0 | AU58: 0 | AV58: 0 | AW58: 0 | AX58: No
A59: Residential | B59: Water Heating | C59: Efficient Tanks | D59: =LookupTable!A54 -> Tier2_ducted_HZ2_zonl | E59: Heat Pump Water Heater | F59: 0 | G59: Single Family | H59: New and Existing Construction | I59: Complies with Tier2 of NEEA's Northern Climate HPWH Specification | J59: 0 | K59: Manufacturer, Dealer or Consumer Rebate and Direct Installations. | M59: Unit installed inside conditioned space with HPWH exhaust ducted outside. Zonal electric primary space heating system. | N59: 0 | O59: Yes | P59: HZ2 | Q59: 0 | R59: 1897.95 | S59: 0 | T59: 0 | U59: 13 | V59: UES | W59: 0 | X59: 806 | Y59: 879 | Z59: 0.224 | AA59: 0.058 | AB59: 0.315 | AC59: 0.308 | AD59: 0.546 | AE59: 0.084 | AF59: 2.31 | AG59: 0 | AH59: 0 | AI59: 0.108 | AJ59: -0.174 | AK59: 0 | AL59: 1.007 | AM59: 2.742 | AN59: -1.735 | AO59: 0.4 | AP59: 219.8 | AQ59: 0.3 | AR59: Tier2_ducted_HZ2_zonlResidentialWater HeatingEfficient TanksHeat Pump Water HeaterSingle FamilyNew and Existing ConstructionComplies with Tier2 of NEEA's Northern Climate HPWH SpecificationManufacturer, Dealer or Consumer Rebate and Direct Installations. Unit installed inside conditioned space with HPWH exhaust ducted outside. Zonal electric primary space heating system.YesHZ2UES | AS59: FALSE | AT59: 0 | AU59: 0 | AV59: 0 | AW59: 0 | AX59: No
A60: Residential | B60: Water Heating | C60: Efficient Tanks | D60: =LookupTable!A55 -> Tier2_ducted_HZ3_gfnc | E60: Heat Pump Water Heater | F60: 0 | G60: Single Family | H60: New and Existing Construction | I60: Complies with Tier2 of NEEA's Northern Climate HPWH Specification | J60: 0 | K60: Manufacturer, Dealer or Consumer Rebate and Direct Installations. | M60: Unit installed inside conditioned space with HPWH exhaust ducted outside. Primary house space heating system fueled by gas. | N60: 0 | O60: Yes | P60: HZ3 | Q60: 0 | R60: 1897.95 | S60: 0 | T60: 0 | U60: 13 | V60: UES | W60: 0 | X60: 1337 | Y60: 1458 | Z60: 0.316 | AA60: 0.183 | AB60: 0.287 | AC60: 0.578 | AD60: 0.553 | AE60: 0.095 | AF60: 1.393 | AG60: =ROUND(VLOOKUP($D60,INDIRECT(OutputRange),AG$1,0)/VLOOKUP($D60,INDIRECT(OutputRange),AG$2,0),AG$4) -> 0 | AH60: 0 | AI60: 0.109 | AJ60: -0.138 | AK60: 0 | AL60: 0.951 | AM60: 1.653 | AN60: -0.702 | AO60: 0.6 | AP60: 120.9 | AQ60: 0.4 | AR60: Tier2_ducted_HZ3_gfncResidentialWater HeatingEfficient TanksHeat Pump Water HeaterSingle FamilyNew and Existing ConstructionComplies with Tier2 of NEEA's Northern Climate HPWH SpecificationManufacturer, Dealer or Consumer Rebate and Direct Installations. Unit installed inside conditioned space with HPWH exhaust ducted outside. Primary house space heating system fueled by gas.YesHZ3UES | AS60: FALSE | AT60: 0 | AU60: 0 | AV60: 0 | AW60: 0 | AX60: No
A61: Residential | B61: Water Heating | C61: Efficient Tanks | D61: =LookupTable!A56 -> Tier2_ducted_HZ3_gfac | E61: Heat Pump Water Heater | F61: 0 | G61: Single Family | H61: New and Existing Construction | I61: Complies with Tier2 of NEEA's Northern Climate HPWH Specification | J61: 0 | K61: Manufacturer, Dealer or Consumer Rebate and Direct Installations. | M61: Unit installed inside conditioned space with HPWH exhaust ducted outside. Primary house space heating system fueled by gas. | N61: 0 | O61: Yes | P61: HZ3 | Q61: 0 | R61: 1897.95 | S61: 0 | T61: 0 | U61: 13 | V61: UES | W61: 0 | X61: 1329 | Y61: 1449 | Z61: 0.316 | AA61: 0.181 | AB61: 0.287 | AC61: 0.575 | AD61: 0.553 | AE61: 0.095 | AF61: 1.402 | AG61: 0 | AH61: 0 | AI61: 0.109 | AJ61: -0.138 | AK61: 0 | AL61: 0.95 | AM61: 1.664 | AN61: -0.714 | AO61: 0.6 | AP61: 122 | AQ61: 0.4 | AR61: Tier2_ducted_HZ3_gfacResidentialWater HeatingEfficient TanksHeat Pump Water HeaterSingle FamilyNew and Existing ConstructionComplies with Tier2 of NEEA's Northern Climate HPWH SpecificationManufacturer, Dealer or Consumer Rebate and Direct Installations. Unit installed inside conditioned space with HPWH exhaust ducted outside. Primary house space heating system fueled by gas.YesHZ3UES | AS61: FALSE | AT61: 0 | AU61: 0 | AV61: 0 | AW61: 0 | AX61: No
A62: Residential | B62: Water Heating | C62: Efficient Tanks | D62: =LookupTable!A57 -> Tier2_ducted_HZ3_efaf | E62: Heat Pump Water Heater | F62: 0 | G62: Single Family | H62: New and Existing Construction | I62: Complies with Tier2 of NEEA's Northern Climate HPWH Specification | J62: 0 | K62: Manufacturer, Dealer or Consumer Rebate and Direct Installations. | M62: Unit installed inside conditioned space with HPWH exhaust ducted outside. Electric FAF primary space heating system. | N62: 0 | O62: Yes | P62: HZ3 | Q62: 0 | R62: 1897.95 | S62: 0 | T62: 0 | U62: 13 | V62: UES | W62: 0 | X62: 900 | Y62: 982 | Z62: 0.288 | AA62: 0.078 | AB62: 0.332 | AC62: 0.298 | AD62: 0.541 | AE62: 0.072 | AF62: 2.069 | AG62: 0 | AH62: 0 | AI62: 0.106 | AJ62: -0.144 | AK62: 0 | AL62: 1.019 | AM62: 2.455 | AN62: -1.436 | AO62: 0.4 | AP62: 190.4 | AQ62: 0.4 | AR62: Tier2_ducted_HZ3_efafResidentialWater HeatingEfficient TanksHeat Pump Water HeaterSingle FamilyNew and Existing ConstructionComplies with Tier2 of NEEA's Northern Climate HPWH SpecificationManufacturer, Dealer or Consumer Rebate and Direct Installations. Unit installed inside conditioned space with HPWH exhaust ducted outside. Electric FAF primary space heating system.YesHZ3UES | AS62: FALSE | AT62: 0 | AU62: 0 | AV62: 0 | AW62: 0 | AX62: No
A63: Residential | B63: Water Heating | C63: Efficient Tanks | D63: =LookupTable!A58 -> Tier2_ducted_HZ3_hp85 | E63: Heat Pump Water Heater | F63: 0 | G63: Single Family | H63: New and Existing Construction | I63: Complies with Tier2 of NEEA's Northern Climate HPWH Specification | J63: 0 | K63: Manufacturer, Dealer or Consumer Rebate and Direct Installations. | M63: Unit installed inside conditioned space with HPWH exhaust ducted outside. Heat Pump or Ductless Heat Pump primary space heating system. | N63: 0 | O63: Yes | P63: HZ3 | Q63: 0 | R63: 1897.95 | S63: 0 | T63: 0 | U63: 13 | V63: UES | W63: 0 | X63: 1059 | Y63: 1154 | Z63: 0.306 | AA63: 0.105 | AB63: 0.321 | AC63: 0.359 | AD63: 0.55 | AE63: 0.074 | AF63: 1.759 | AG63: 0 | AH63: 0 | AI63: 0.107 | AJ63: -0.078 | AK63: 0 | AL63: 1.099 | AM63: 2.088 | AN63: -0.989 | AO63: 0.5 | AP63: 148.3 | AQ63: 0.4 | AR63: Tier2_ducted_HZ3_hp85ResidentialWater HeatingEfficient TanksHeat Pump Water HeaterSingle FamilyNew and Existing ConstructionComplies with Tier2 of NEEA's Northern Climate HPWH SpecificationManufacturer, Dealer or Consumer Rebate and Direct Installations. Unit installed inside conditioned space with HPWH exhaust ducted outside. Heat Pump primary space heating system.YesHZ3UES | AS63: FALSE | AT63: 0 | AU63: 0 | AV63: 0 | AW63: 0 | AX63: No
A64: Residential | B64: Water Heating | C64: Efficient Tanks | D64: =LookupTable!A59 -> Tier2_ducted_HZ3_zonl | E64: Heat Pump Water Heater | F64: 0 | G64: Single Family | H64: New and Existing Construction | I64: Complies with Tier2 of NEEA's Northern Climate HPWH Specification | J64: 0 | K64: Manufacturer, Dealer or Consumer Rebate and Direct Installations. | M64: =VLOOKUP($D64,LookupTable,M$1,0) -> Unit installed inside conditioned space with HPWH exhaust ducted outside. Zonal electric primary space heating system. | N64: 0 | O64: Yes | P64: HZ3 | Q64: 0 | R64: 1897.95 | S64: 0 | T64: 0 | U64: 13 | V64: UES | W64: 0 | X64: 849 | Y64: 926 | Z64: 0.226 | AA64: 0.063 | AB64: 0.315 | AC64: 0.325 | AD64: 0.545 | AE64: 0.084 | AF64: 2.194 | AG64: 0 | AH64: 0 | AI64: 0.108 | AJ64: -0.17 | AK64: 0 | AL64: 1.01 | AM64: 2.604 | AN64: -1.594 | AO64: 0.4 | AP64: 206.1 | AQ64: 0.3 | AR64: Tier2_ducted_HZ3_zonlResidentialWater HeatingEfficient TanksHeat Pump Water HeaterSingle FamilyNew and Existing ConstructionComplies with Tier2 of NEEA's Northern Climate HPWH SpecificationManufacturer, Dealer or Consumer Rebate and Direct Installations. Unit installed inside conditioned space with HPWH exhaust ducted outside. Zonal electric primary space heating system.YesHZ3UES | AS64: FALSE | AT64: 0 | AU64: 0 | AV64: 0 | AW64: 0 | AX64: No

Sheet ProData (hidden)
B1: ProCost Version 2.3 | E1: Northwest Power and Conservation Council | K1: Build 257f
B3: Marginal Cost & Conservation Load Shape Parameters | K3: =Measure_InputOutput!B1 -> 
B4: Marginal Costs and Savings Shape File | F4: C:\Users\Christian\Google Drive\Christian\RTF\ProCost & Other RTF Tools\ProCost\MC_AND_LOADSHAPE work\w_Network PC Loadshapes\MC_AND_LOADSHAPE_6P.xls
B5: Marginal Elec Avoided Cost Input Worksheet | F5: 6P MidC Final (with carbon)
B6: Elec Savings Shape Input Worksheet | F6: Conservation Load Shapes
B7: Marginal Gas Avoided Cost Input Worksheet | F7: 6P_Gas_Final
B8: Gas Savings Shape Input Worksheet | F8: Conservation Load Shapes
B9: Marginal Elec CO2 per kWh Input Worksheet | F9: 6P CO2 lbs per kWh HCap
B10: Marginal Gas CO2 per therm Input Worksheet | F10: CO2 lbs per therm
B11: Marginal Avoided Cost CO2 Input Worksheet | F11: Zero Dollars per ton CO2
B12: Line Loss Shape Input Worksheet | F12: LineLossShapes
B15: Run Parameters | G15: Program Parameters | J15: Program
B16: Run Type | D16: TRUE | E16: FALSE | G16: Program Life (yrs) | J16: 15
B17: Negative B/C Ratios | D17: TRUE | E17: FALSE | G17: Program Start Date | J17: ='ProCost 6th Plan Inputs'!J5 -> 2010
B18: Admin Cost @ Category Level | D18: FALSE | E18: TRUE | G18: Present Value Time Zero | J18: ='ProCost 6th Plan Inputs'!J6 -> 2010
B19: Repeat Periodic Replacement | D19: FALSE | E19: TRUE | G19: Input Cost Reference Year | J19: ='ProCost 6th Plan Inputs'!J7 -> 2006
G20: Real Discount Rate | J20: ='ProCost 6th Plan Inputs'!J8 -> 0.05
G21: Capital Real Escalation Rate | J21: ='ProCost 6th Plan Inputs'!J9 -> 0
G22: Admin Cost (As % of Initial Capital Cost) | J22: ='ProCost 6th Plan Inputs'!J10 -> 0.2
G23: Regional Act Conservation Credit (%) | J23: ='ProCost 6th Plan Inputs'!J11 -> 0.1
B24: TRUE | C24: FALSE | G24: Report Annual Carbon Saved for Year | J24: ='ProCost 6th Plan Inputs'!J12 -> 2020
B25: Tabs | C25: Run Tabs
B26: Summary | C26: FALSE
B27: SummaryRUL | C27: FALSE
B28: Checklist | C28: FALSE | E28: Sponsor Parameters | O28: Select Sector | Q28: Row
B29: MeasureTable | C29: FALSE | H29: Customer | I29: Wholesale Elec | J29: Retail Elec | K29: Nat Gas | O29: Residential | Q29: =VLOOKUP(O29,$O$30:$P$34,2,FALSE) -> 4
B30: Measure_InputOutput | C30: TRUE | E30: Real After-Tax Cost of Capital | H30: =INDEX(SECTOR_INPUTS,$Q$29,2) -> 0.039 | I30: =INDEX(SECTOR_INPUTS,$Q$29,3) -> 0.044 | J30: =INDEX(SECTOR_INPUTS,$Q$29,4) -> 0.049 | K30: =INDEX(SECTOR_INPUTS,$Q$29,5) -> 0.05 | O30: Residential | P30: 4
B31: LookupTable | C31: FALSE | E31: Financial Life (years) | H31: =INDEX(SECTOR_INPUTS,$Q$29+1,2) -> 15 | I31: =INDEX(SECTOR_INPUTS,$Q$29+1,3) -> 1 | J31: =INDEX(SECTOR_INPUTS,$Q$29+1,4) -> 1 | K31: =INDEX(SECTOR_INPUTS,$Q$29+1,5) -> 1 | O31: Commercial | P31: 14
B32: ValidationLists | C32: FALSE | H32: Customer | I32: Wholesale Elec | J32: Retail Elec | K32: Nat Gas | O32: Industrial | P32: 24
B33: Supporting Documentation | C33: FALSE | E33: Sponsor Share of Initial Capital Cost | H33: =INDEX(SECTOR_INPUTS,$Q$29+2,2) -> 0.35 | I33: =INDEX(SECTOR_INPUTS,$Q$29+2,3) -> 0.2 | J33: =INDEX(SECTOR_INPUTS,$Q$29+2,4) -> 0.45 | K33: =INDEX(SECTOR_INPUTS,$Q$29+2,5) -> 0 | O33: Agriculture | P33: 34
B34: Presentation | C34: FALSE | E34: Sponsor Share of Annual O&M | H34: =INDEX(SECTOR_INPUTS,$Q$29+3,2) -> 1 | I34: =INDEX(SECTOR_INPUTS,$Q$29+3,3) -> 0 | J34: =INDEX(SECTOR_INPUTS,$Q$29+3,4) -> 0 | K34: =INDEX(SECTOR_INPUTS,$Q$29+3,5) -> 0 | O34: Melded | P34: 44
B35: finallookup | C35: FALSE | E35: Sponsor Share of Periodic Replacement Cost | H35: =INDEX(SECTOR_INPUTS,$Q$29+4,2) -> 1 | I35: =INDEX(SECTOR_INPUTS,$Q$29+4,3) -> 0 | J35: =INDEX(SECTOR_INPUTS,$Q$29+4,4) -> 0 | K35: =INDEX(SECTOR_INPUTS,$Q$29+4,5) -> 0
B36: SavingsData&Analysis | C36: FALSE | E36: Sponsor Share of Admin Cost | I36: =INDEX(SECTOR_INPUTS,$Q$29+5,3) -> 0.5 | J36: =INDEX(SECTOR_INPUTS,$Q$29+5,4) -> 0.5 | K36: =INDEX(SECTOR_INPUTS,$Q$29+5,5) -> 0
B37: costs | C37: FALSE | E37: Last Year of non-Customer O&M & Period Repl | I37: =INDEX(SECTOR_INPUTS,$Q$29+6,3) -> 20 | J37: =INDEX(SECTOR_INPUTS,$Q$29+4,3) -> 0 | K37: =INDEX(SECTOR_INPUTS,$Q$29+4,3) -> 0
B38: costdataset | C38: FALSE
B39: outputprocessing | C39: FALSE
B40: baseline | C40: FALSE | E40: Utility System Parameters | I40: Electric | J40: Gas | O40: Select Measure Type Mode
B41: lbls | C41: FALSE | E41: Bulk System T&D Loss Factor by Time Segment | I41: ='ProCost 6th Plan Inputs'!J15 -> WECCTrans | J41: ='ProCost 6th Plan Inputs'!K15 -> Flat1.0 | O41: Retrofit | Q41: =VLOOKUP(O41,O42:P43,2,FALSE) -> 21
B42: inp | C42: FALSE | E42: Bulk System T&D Credit ($/kw-yr)($/dailytherm-yr) | I42: ='ProCost 6th Plan Inputs'!J16 -> 0 | J42: ='ProCost 6th Plan Inputs'!K16 -> 0 | O42: Lost-Opportunity | P42: 20
B43: SEEM Calibration | C43: FALSE | E43: Local System Dist Loss Factor by Time Segment | I43: ='ProCost 6th Plan Inputs'!J17 -> Flat5.0 | J43: ='ProCost 6th Plan Inputs'!K17 -> NoLoss | O43: Retrofit | P43: 21
B44: SEEM | C44: FALSE | E44: Local System Dist Credit ($/kw-yr)($/dailytherm-yr) | I44: ='ProCost 6th Plan Inputs'!J18 -> 23 | J44: ='ProCost 6th Plan Inputs'!K18 -> 0 | P44: 19
B45: SEEMinput | C45: FALSE | E45: Risk-Mitigation Credit (mills/kWh)(mills/therm) | I45: =INDEX(SECTOR_INPUTS,$Q$41,10) -> 43 | J45: 0
B46: SEEMoutput | C46: FALSE
B47: setpointschedule_heat | C47: FALSE
B48: setpointschedule_cool | C48: FALSE
B49: Qgains_schedule | C49: FALSE
B50: Wgains_schedule | C50: FALSE
B51: fanschedule | C51: FALSE
B52: draw_schedule | C52: FALSE
B53: Reference | C53: FALSE
B54: About | C54: FALSE
B55: ProCost 6th Plan Inputs | C55: FALSE

Sheet Measure_InputOutput (hidden)
A1: Data Set Name | B1: =IF(AND('ProCost 6th Plan Inputs'!B66=TRUE,'ProCost 6th Plan Inputs'!C66=TRUE,'ProCost 6th Plan Inputs'!D66=TRUE,'ProCost 6th Plan Inputs'!E66=TRUE,'ProCost 6th Plan Inputs'!F66=TRUE,'ProCost 6th Plan Inputs'!B69=TRUE,'ProCost 6th Plan Inputs'!C69=TRUE,'ProCost 6th Plan Inputs'!D69=TRUE,'ProCost 6th Plan Inputs'!E69=TRUE,'ProCost 6th Plan Inputs'!F69=TRUE,'ProCost 6th Plan Inputs'!B72=TRUE,'ProCost 6th Plan Inputs'!C72=TRUE,'ProCost 6th Plan Inputs'!D72=TRUE,'ProCost 6th Plan Inputs'!E72=TRUE,'ProCost 6th Plan Inputs'!F72=TRUE,'ProCost 6th Plan Inputs'!G66=TRUE,'ProCost 6th Plan Inputs'!G69=TRUE,'ProCost 6th Plan Inputs'!G72=TRUE),"","ERROR - Inputs have changed re-run ProCost") ->  | C1: =IF(AND('ProCost 6th Plan Inputs'!B66=TRUE,'ProCost 6th Plan Inputs'!B69=TRUE,'ProCost 6th Plan Inputs'!B72=TRUE),"","Re-run ProCost") ->  | D1: =IF(AND('ProCost 6th Plan Inputs'!C66=TRUE,'ProCost 6th Plan Inputs'!C69=TRUE,'ProCost 6th Plan Inputs'!C72=TRUE),"","Re-run ProCost") ->  | E1: =IF(AND('ProCost 6th Plan Inputs'!D66=TRUE,'ProCost 6th Plan Inputs'!D69=TRUE,'ProCost 6th Plan Inputs'!D72=TRUE),"","Re-run ProCost") ->  | F1: =IF(AND('ProCost 6th Plan Inputs'!E66=TRUE,'ProCost 6th Plan Inputs'!E69=TRUE,'ProCost 6th Plan Inputs'!E72=TRUE),"","Re-run ProCost") ->  | G1: =IF(AND('ProCost 6th Plan Inputs'!F66=TRUE,'ProCost 6th Plan Inputs'!F69=TRUE,'ProCost 6th Plan Inputs'!F72=TRUE),"","Re-run ProCost") ->  | O1: =IF(AND('ProCost 6th Plan Inputs'!G66=TRUE,'ProCost 6th Plan Inputs'!G69=TRUE,'ProCost 6th Plan Inputs'!G72=TRUE),"","Re-run ProCost") -> 
A2: Measure Index Name
A3: Costs must be denominated in the same year as 'Input Cost Reference Year' = | C3: 2006
A5: 1 | B5: 2 | C5: 3 | D5: 4 | E5: 5 | F5: 6 | G5: 7 | H5: 8 | I5: 9 | J5: 10 | K5: 11 | L5: 12 | M5: 13 | N5: 14 | O5: 15 | P5: 16 | Q5: 17 | R5: 18 | S5: 19 | T5: 20 | U5: 21 | V5: 22 | W5: 23 | X5: 24 | Y5: 25 | Z5: 26 | AA5: 27 | AB5: 28 | AC5: 29 | AD5: 30 | AE5: 31 | AF5: 32 | AG5: 33 | AH5: 34 | AI5: 35 | AJ5: 36 | AK5: 37 | AL5: 38 | AM5: 39 | AN5: 40 | AO5: 41 | AP5: 42 | AQ5: 43 | AR5: 44 | AS5: 45 | AT5: 46 | AU5: 47 | AV5: 48 | AW5: 49 | AX5: 50 | AY5: 51 | AZ5: 52 | BA5: 53 | BB5: 54 | BC5: 55 | BD5: 56 | BE5: 57 | BF5: 58 | BG5: 59 | BH5: 60 | BI5: 61 | BJ5: 62 | BK5: 63 | BL5: 64 | BM5: 65 | BN5: 66 | BO5: 67 | BP5: 68 | BQ5: 69 | BR5: 70 | BS5: 71 | BT5: 72 | BU5: 73 | BV5: 74 | BW5: 75 | BX5: 76 | BY5: 77 | BZ5: 78 | CA5: 79 | CB5: 80 | CC5: 81 | CD5: 82 | CE5: 83 | CF5: 84 | CG5: 85 | CH5: 86 | CI5: 87 | CJ5: 88 | CK5: 89 | CL5: 90 | CM5: 91 | CN5: 92 | CO5: 93 | CP5: 94 | CQ5: 95 | CR5: 96 | CS5: 97 | CT5: 98 | CU5: 99 | CV5: 100 | CW5: 101 | CX5: 102 | CY5: 103 | CZ5: 104 | DA5: 105
A6: Input Data | I6: Periodic Replacement Costs and Savings and Replacement Period | O6: Gas Inputs
A7: Category Name | B7: Measure Name | C7: Savings (kwh/yr) | D7: Life (yrs) | E7: Capital Cost | F7: Annual O&M | G7: Shape Pointer | H7: Non-E Val ($/yr) | I7: Cost 1 ($) | J7: Period 1 | K7: Cost 2 ($) | L7: Period 2 | M7: Cost 3 ($) | N7: Period 3 | O7: Savings (therms/yr) | P7: Shape Pointer
A8: =INDEX(tbloutfnl,CEILING((ROW(A8)-ROW($A$8)+1)/3,1),1) -> Tier1_garage_HZ1 | B8: =finallookup!B7 -> DHWkwh | C8: =VLOOKUP($A8,tbloutfnl,MATCH($B8,finallookup!$A$7:$G$7,0),0) -> 243.648385 | D8: =costs!$C$229 -> 13 | E8: =IF(B8="DHWkwh",VLOOKUP($A8,tbloutfnl,7,0),0) -> 0 | F8: 0 | G8: =VLOOKUP(MID($A8,14,LEN($A8)-13)&"_"&$B8,finallookup!$AA$8:$AB$26,2,0) ->  | H8: =VLOOKUP($A8,tbloutfnl,8,0) -> 0 | O8: =IF(B8="Heatkwh",VLOOKUP($A8,tbloutfnl,4,0),0) -> 0 | P8: =IF(O8<>0,VLOOKUP(MID($A8,14,LEN($A8)-13)&"_"&$B8,finallookup!$AA$8:$AB$26,2,0),"") -> 
A9: Tier1_garage_HZ1 | B9: =finallookup!C7 -> Heatkwh | C9: =VLOOKUP($A9,tbloutfnl,MATCH($B9,finallookup!$A$7:$G$7,0),0) -> 0 | D9: =D8 -> 13 | E9: 0 | F9: 0 | G9: =VLOOKUP(MID($A9,14,LEN($A9)-13)&"_"&$B9,finallookup!$AA$8:$AB$26,2,0) ->  | H9: 0 | O9: 0 | P9: =IF(O9<>0,VLOOKUP(MID($A9,14,LEN($A9)-13)&"_"&$B9,finallookup!$AA$8:$AB$26,2,0),"") -> 
A10: Tier1_garage_HZ1 | B10: =finallookup!F7 -> Coolkwh | C10: =VLOOKUP($A10,tbloutfnl,MATCH($B10,finallookup!$A$7:$G$7,0),0) -> 0 | D10: =D9 -> 13 | E10: 0 | F10: 0 | G10: =VLOOKUP(MID($A10,14,LEN($A10)-13)&"_"&$B10,finallookup!$AA$8:$AB$26,2,0) ->  | H10: 0 | O10: 0 | P10: =IF(O10<>0,VLOOKUP(MID($A10,14,LEN($A10)-13)&"_"&$B10,finallookup!$AA$8:$AB$26,2,0),"") -> 
A11: Tier1_garage_HZ2 | B11: =B8 -> DHWkwh | C11: =VLOOKUP($A11,tbloutfnl,MATCH($B11,finallookup!$A$7:$G$7,0),0) -> 262.4806825 | D11: 13 | E11: 0 | F11: 0 | G11: =VLOOKUP(MID($A11,14,LEN($A11)-13)&"_"&$B11,finallookup!$AA$8:$AB$26,2,0) ->  | H11: 0 | O11: 0 | P11: =IF(O11<>0,VLOOKUP(MID($A11,14,LEN($A11)-13)&"_"&$B11,finallookup!$AA$8:$AB$26,2,0),"") -> 
A12: Tier1_garage_HZ2 | B12: =B9 -> Heatkwh | C12: =VLOOKUP($A12,tbloutfnl,MATCH($B12,finallookup!$A$7:$G$7,0),0) -> 0 | D12: 13 | E12: 0 | F12: 0 | G12: =VLOOKUP(MID($A12,14,LEN($A12)-13)&"_"&$B12,finallookup!$AA$8:$AB$26,2,0) ->  | H12: 0 | O12: 0 | P12: =IF(O12<>0,VLOOKUP(MID($A12,14,LEN($A12)-13)&"_"&$B12,finallookup!$AA$8:$AB$26,2,0),"") -> 
A13: Tier1_garage_HZ2 | B13: Coolkwh | C13: =VLOOKUP($A13,tbloutfnl,MATCH($B13,finallookup!$A$7:$G$7,0),0) -> 0 | D13: 13 | E13: 0 | F13: 0 | G13: =VLOOKUP(MID($A13,14,LEN($A13)-13)&"_"&$B13,finallookup!$AA$8:$AB$26,2,0) ->  | H13: 0 | O13: 0 | P13: =IF(O13<>0,VLOOKUP(MID($A13,14,LEN($A13)-13)&"_"&$B13,finallookup!$AA$8:$AB$26,2,0),"") -> 
A14: Tier1_garage_HZ3 | B14: DHWkwh | C14: =VLOOKUP($A14,tbloutfnl,MATCH($B14,finallookup!$A$7:$G$7,0),0) -> 275.5369721 | D14: 13 | E14: 0 | F14: 0 | G14: =VLOOKUP(MID($A14,14,LEN($A14)-13)&"_"&$B14,finallookup!$AA$8:$AB$26,2,0) ->  | H14: 0 | O14: 0 | P14: =IF(O14<>0,VLOOKUP(MID($A14,14,LEN($A14)-13)&"_"&$B14,finallookup!$AA$8:$AB$26,2,0),"") -> 
A15: Tier1_garage_HZ3 | B15: Heatkwh | C15: =VLOOKUP($A15,tbloutfnl,MATCH($B15,finallookup!$A$7:$G$7,0),0) -> 0 | D15: 13 | E15: 0 | F15: 0 | G15: =VLOOKUP(MID($A15,14,LEN($A15)-13)&"_"&$B15,finallookup!$AA$8:$AB$26,2,0) ->  | H15: 0 | O15: 0 | P15: =IF(O15<>0,VLOOKUP(MID($A15,14,LEN($A15)-13)&"_"&$B15,finallookup!$AA$8:$AB$26,2,0),"") -> 
A16: Tier1_garage_HZ3 | B16: Coolkwh | C16: =VLOOKUP($A16,tbloutfnl,MATCH($B16,finallookup!$A$7:$G$7,0),0) -> 0 | D16: 13 | E16: 0 | F16: 0 | G16: =VLOOKUP(MID($A16,14,LEN($A16)-13)&"_"&$B16,finallookup!$AA$8:$AB$26,2,0) ->  | H16: 0 | O16: 0 | P16: =IF(O16<>0,VLOOKUP(MID($A16,14,LEN($A16)-13)&"_"&$B16,finallookup!$AA$8:$AB$26,2,0),"") -> 
A17: Tier1_basmnt_HZ1 | B17: DHWkwh | C17: =VLOOKUP($A17,tbloutfnl,MATCH($B17,finallookup!$A$7:$G$7,0),0) -> 238.5984648 | D17: 13 | E17: 0 | F17: 0 | G17: =VLOOKUP(MID($A17,14,LEN($A17)-13)&"_"&$B17,finallookup!$AA$8:$AB$26,2,0) ->  | H17: 0 | O17: 0 | P17: =IF(O17<>0,VLOOKUP(MID($A17,14,LEN($A17)-13)&"_"&$B17,finallookup!$AA$8:$AB$26,2,0),"") -> 
A18: Tier1_basmnt_HZ1 | B18: Heatkwh | C18: =VLOOKUP($A18,tbloutfnl,MATCH($B18,finallookup!$A$7:$G$7,0),0) -> 0 | D18: 13 | E18: 0 | F18: 0 | G18: =VLOOKUP(MID($A18,14,LEN($A18)-13)&"_"&$B18,finallookup!$AA$8:$AB$26,2,0) ->  | H18: 0 | O18: 0 | P18: =IF(O18<>0,VLOOKUP(MID($A18,14,LEN($A18)-13)&"_"&$B18,finallookup!$AA$8:$AB$26,2,0),"") -> 
A19: Tier1_basmnt_HZ1 | B19: Coolkwh | C19: =VLOOKUP($A19,tbloutfnl,MATCH($B19,finallookup!$A$7:$G$7,0),0) -> 0 | D19: 13 | E19: 0 | F19: 0 | G19: =VLOOKUP(MID($A19,14,LEN($A19)-13)&"_"&$B19,finallookup!$AA$8:$AB$26,2,0) ->  | H19: 0 | O19: 0 | P19: =IF(O19<>0,VLOOKUP(MID($A19,14,LEN($A19)-13)&"_"&$B19,finallookup!$AA$8:$AB$26,2,0),"") -> 
A20: Tier1_basmnt_HZ2 | B20: DHWkwh | C20: =VLOOKUP($A20,tbloutfnl,MATCH($B20,finallookup!$A$7:$G$7,0),0) -> 245.0955849 | D20: 13 | E20: 0 | F20: 0 | G20: =VLOOKUP(MID($A20,14,LEN($A20)-13)&"_"&$B20,finallookup!$AA$8:$AB$26,2,0) ->  | H20: 0 | O20: 0 | P20: =IF(O20<>0,VLOOKUP(MID($A20,14,LEN($A20)-13)&"_"&$B20,finallookup!$AA$8:$AB$26,2,0),"") -> 
A21: Tier1_basmnt_HZ2 | B21: Heatkwh | C21: =VLOOKUP($A21,tbloutfnl,MATCH($B21,finallookup!$A$7:$G$7,0),0) -> 0 | D21: 13 | E21: 0 | F21: 0 | G21: =VLOOKUP(MID($A21,14,LEN($A21)-13)&"_"&$B21,finallookup!$AA$8:$AB$26,2,0) ->  | H21: 0 | O21: 0 | P21: =IF(O21<>0,VLOOKUP(MID($A21,14,LEN($A21)-13)&"_"&$B21,finallookup!$AA$8:$AB$26,2,0),"") -> 
A22: Tier1_basmnt_HZ2 | B22: Coolkwh | C22: =VLOOKUP($A22,tbloutfnl,MATCH($B22,finallookup!$A$7:$G$7,0),0) -> 0 | D22: 13 | E22: 0 | F22: 0 | G22: =VLOOKUP(MID($A22,14,LEN($A22)-13)&"_"&$B22,finallookup!$AA$8:$AB$26,2,0) ->  | H22: 0 | O22: 0 | P22: =IF(O22<>0,VLOOKUP(MID($A22,14,LEN($A22)-13)&"_"&$B22,finallookup!$AA$8:$AB$26,2,0),"") -> 
A23: Tier1_basmnt_HZ3 | B23: DHWkwh | C23: =VLOOKUP($A23,tbloutfnl,MATCH($B23,finallookup!$A$7:$G$7,0),0) -> 249.2300485 | D23: 13 | E23: 0 | F23: 0 | G23: =VLOOKUP(MID($A23,14,LEN($A23)-13)&"_"&$B23,finallookup!$AA$8:$AB$26,2,0) ->  | H23: 0 | O23: 0 | P23: =IF(O23<>0,VLOOKUP(MID($A23,14,LEN($A23)-13)&"_"&$B23,finallookup!$AA$8:$AB$26,2,0),"") -> 
A24: Tier1_basmnt_HZ3 | B24: Heatkwh | C24: =VLOOKUP($A24,tbloutfnl,MATCH($B24,finallookup!$A$7:$G$7,0),0) -> 0 | D24: 13 | E24: 0 | F24: 0 | G24: =VLOOKUP(MID($A24,14,LEN($A24)-13)&"_"&$B24,finallookup!$AA$8:$AB$26,2,0) ->  | H24: 0 | O24: 0 | P24: =IF(O24<>0,VLOOKUP(MID($A24,14,LEN($A24)-13)&"_"&$B24,finallookup!$AA$8:$AB$26,2,0),"") -> 
A25: Tier1_basmnt_HZ3 | B25: Coolkwh | C25: =VLOOKUP($A25,tbloutfnl,MATCH($B25,finallookup!$A$7:$G$7,0),0) -> 0 | D25: 13 | E25: 0 | F25: 0 | G25: =VLOOKUP(MID($A25,14,LEN($A25)-13)&"_"&$B25,finallookup!$AA$8:$AB$26,2,0) ->  | H25: 0 | O25: 0 | P25: =IF(O25<>0,VLOOKUP(MID($A25,14,LEN($A25)-13)&"_"&$B25,finallookup!$AA$8:$AB$26,2,0),"") -> 
A26: Tier1_indor2_HZ1_gfnc | B26: DHWkwh | C26: =VLOOKUP($A26,tbloutfnl,MATCH($B26,finallookup!$A$7:$G$7,0),0) -> 229.7649986 | D26: 13 | E26: 0 | F26: 0 | G26: =VLOOKUP(MID($A26,14,LEN($A26)-13)&"_"&$B26,finallookup!$AA$8:$AB$26,2,0) ->  | H26: 0 | O26: 0 | P26: =IF(O26<>0,VLOOKUP(MID($A26,14,LEN($A26)-13)&"_"&$B26,finallookup!$AA$8:$AB$26,2,0),"") -> 
A27: Tier1_indor2_HZ1_gfnc | B27: Heatkwh | C27: =VLOOKUP($A27,tbloutfnl,MATCH($B27,finallookup!$A$7:$G$7,0),0) -> 0.1483761188 | D27: 13 | E27: 0 | F27: 0 | G27: =VLOOKUP(MID($A27,14,LEN($A27)-13)&"_"&$B27,finallookup!$AA$8:$AB$26,2,0) ->  | H27: 0 | O27: 0.2315207166 | P27: =IF(O27<>0,VLOOKUP(MID($A27,14,LEN($A27)-13)&"_"&$B27,finallookup!$AA$8:$AB$26,2,0),"") -> 
A28: Tier1_indor2_HZ1_gfnc | B28: Coolkwh | C28: =VLOOKUP($A28,tbloutfnl,MATCH($B28,finallookup!$A$7:$G$7,0),0) -> 0 | D28: 13 | E28: 0 | F28: 0 | G28: =VLOOKUP(MID($A28,14,LEN($A28)-13)&"_"&$B28,finallookup!$AA$8:$AB$26,2,0) ->  | H28: 0 | O28: 0 | P28: =IF(O28<>0,VLOOKUP(MID($A28,14,LEN($A28)-13)&"_"&$B28,finallookup!$AA$8:$AB$26,2,0),"") -> 
A29: Tier1_indor2_HZ1_gfac | B29: DHWkwh | C29: =VLOOKUP($A29,tbloutfnl,MATCH($B29,finallookup!$A$7:$G$7,0),0) -> 234.6514662 | D29: 13 | E29: 0 | F29: 0 | G29: =VLOOKUP(MID($A29,14,LEN($A29)-13)&"_"&$B29,finallookup!$AA$8:$AB$26,2,0) ->  | H29: 0 | O29: 0 | P29: =IF(O29<>0,VLOOKUP(MID($A29,14,LEN($A29)-13)&"_"&$B29,finallookup!$AA$8:$AB$26,2,0),"") -> 
A30: Tier1_indor2_HZ1_gfac | B30: Heatkwh | C30: =VLOOKUP($A30,tbloutfnl,MATCH($B30,finallookup!$A$7:$G$7,0),0) -> 0.1569544354 | D30: 13 | E30: 0 | F30: 0 | G30: =VLOOKUP(MID($A30,14,LEN($A30)-13)&"_"&$B30,finallookup!$AA$8:$AB$26,2,0) ->  | H30: 0 | O30: 0.2139630643 | P30: =IF(O30<>0,VLOOKUP(MID($A30,14,LEN($A30)-13)&"_"&$B30,finallookup!$AA$8:$AB$26,2,0),"") -> 
A31: Tier1_indor2_HZ1_gfac | B31: Coolkwh | C31: =VLOOKUP($A31,tbloutfnl,MATCH($B31,finallookup!$A$7:$G$7,0),0) -> -1.337139983 | D31: 13 | E31: 0 | F31: 0 | G31: =VLOOKUP(MID($A31,14,LEN($A31)-13)&"_"&$B31,finallookup!$AA$8:$AB$26,2,0) ->  | H31: 0 | O31: 0 | P31: =IF(O31<>0,VLOOKUP(MID($A31,14,LEN($A31)-13)&"_"&$B31,finallookup!$AA$8:$AB$26,2,0),"") -> 
A32: Tier1_indor2_HZ1_efaf | B32: DHWkwh | C32: =VLOOKUP($A32,tbloutfnl,MATCH($B32,finallookup!$A$7:$G$7,0),0) -> 229.7649986 | D32: 13 | E32: 0 | F32: 0 | G32: =VLOOKUP(MID($A32,14,LEN($A32)-13)&"_"&$B32,finallookup!$AA$8:$AB$26,2,0) ->  | H32: 0 | O32: 0 | P32: =IF(O32<>0,VLOOKUP(MID($A32,14,LEN($A32)-13)&"_"&$B32,finallookup!$AA$8:$AB$26,2,0),"") -> 
A33: Tier1_indor2_HZ1_efaf | B33: Heatkwh | C33: =VLOOKUP($A33,tbloutfnl,MATCH($B33,finallookup!$A$7:$G$7,0),0) -> 4.122128382 | D33: 13 | E33: 0 | F33: 0 | G33: =VLOOKUP(MID($A33,14,LEN($A33)-13)&"_"&$B33,finallookup!$AA$8:$AB$26,2,0) ->  | H33: 0 | O33: 0.009814338513 | P33: =IF(O33<>0,VLOOKUP(MID($A33,14,LEN($A33)-13)&"_"&$B33,finallookup!$AA$8:$AB$26,2,0),"") -> 
A34: Tier1_indor2_HZ1_efaf | B34: Coolkwh | C34: =VLOOKUP($A34,tbloutfnl,MATCH($B34,finallookup!$A$7:$G$7,0),0) -> 0 | D34: 13 | E34: 0 | F34: 0 | G34: =VLOOKUP(MID($A34,14,LEN($A34)-13)&"_"&$B34,finallookup!$AA$8:$AB$26,2,0) ->  | H34: 0 | O34: 0 | P34: =IF(O34<>0,VLOOKUP(MID($A34,14,LEN($A34)-13)&"_"&$B34,finallookup!$AA$8:$AB$26,2,0),"") -> 
A35: Tier1_indor2_HZ1_hp85 | B35: DHWkwh | C35: =VLOOKUP($A35,tbloutfnl,MATCH($B35,finallookup!$A$7:$G$7,0),0) -> 234.652829 | D35: 13 | E35: 0 | F35: 0 | G35: =VLOOKUP(MID($A35,14,LEN($A35)-13)&"_"&$B35,finallookup!$AA$8:$AB$26,2,0) ->  | H35: 0 | O35: 0 | P35: =IF(O35<>0,VLOOKUP(MID($A35,14,LEN($A35)-13)&"_"&$B35,finallookup!$AA$8:$AB$26,2,0),"") -> 
A36: Tier1_indor2_HZ1_hp85 | B36: Heatkwh | C36: =VLOOKUP($A36,tbloutfnl,MATCH($B36,finallookup!$A$7:$G$7,0),0) -> 0.3648774335 | D36: 13 | E36: 0 | F36: 0 | G36: =VLOOKUP(MID($A36,14,LEN($A36)-13)&"_"&$B36,finallookup!$AA$8:$AB$26,2,0) ->  | H36: 0 | O36: 0.0008687334106 | P36: =IF(O36<>0,VLOOKUP(MID($A36,14,LEN($A36)-13)&"_"&$B36,finallookup!$AA$8:$AB$26,2,0),"") -> 
A37: Tier1_indor2_HZ1_hp85 | B37: Coolkwh | C37: =VLOOKUP($A37,tbloutfnl,MATCH($B37,finallookup!$A$7:$G$7,0),0) -> -1.344072543 | D37: 13 | E37: 0 | F37: 0 | G37: =VLOOKUP(MID($A37,14,LEN($A37)-13)&"_"&$B37,finallookup!$AA$8:$AB$26,2,0) ->  | H37: 0 | O37: 0 | P37: =IF(O37<>0,VLOOKUP(MID($A37,14,LEN($A37)-13)&"_"&$B37,finallookup!$AA$8:$AB$26,2,0),"") -> 
A38: Tier1_indor2_HZ1_zonl | B38: DHWkwh | C38: =VLOOKUP($A38,tbloutfnl,MATCH($B38,finallookup!$A$7:$G$7,0),0) -> 229.7625004 | D38: 13 | E38: 0 | F38: 0 | G38: =VLOOKUP(MID($A38,14,LEN($A38)-13)&"_"&$B38,finallookup!$AA$8:$AB$26,2,0) ->  | H38: 0 | O38: 0 | P38: =IF(O38<>0,VLOOKUP(MID($A38,14,LEN($A38)-13)&"_"&$B38,finallookup!$AA$8:$AB$26,2,0),"") -> 
A39: Tier1_indor2_HZ1_zonl | B39: Heatkwh | C39: =VLOOKUP($A39,tbloutfnl,MATCH($B39,finallookup!$A$7:$G$7,0),0) -> 3.732312687 | D39: 13 | E39: 0 | F39: 0 | G39: =VLOOKUP(MID($A39,14,LEN($A39)-13)&"_"&$B39,finallookup!$AA$8:$AB$26,2,0) ->  | H39: 0 | O39: 0.008886229821 | P39: =IF(O39<>0,VLOOKUP(MID($A39,14,LEN($A39)-13)&"_"&$B39,finallookup!$AA$8:$AB$26,2,0),"") -> 
A40: Tier1_indor2_HZ1_zonl | B40: Coolkwh | C40: =VLOOKUP($A40,tbloutfnl,MATCH($B40,finallookup!$A$7:$G$7,0),0) -> 0 | D40: 13 | E40: 0 | F40: 0 | G40: =VLOOKUP(MID($A40,14,LEN($A40)-13)&"_"&$B40,finallookup!$AA$8:$AB$26,2,0) ->  | H40: 0 | O40: 0 | P40: =IF(O40<>0,VLOOKUP(MID($A40,14,LEN($A40)-13)&"_"&$B40,finallookup!$AA$8:$AB$26,2,0),"") -> 
A41: Tier1_indor2_HZ2_gfnc | B41: DHWkwh | C41: =VLOOKUP($A41,tbloutfnl,MATCH($B41,finallookup!$A$7:$G$7,0),0) -> 224.7360158 | D41: 13 | E41: 0 | F41: 0 | G41: =VLOOKUP(MID($A41,14,LEN($A41)-13)&"_"&$B41,finallookup!$AA$8:$AB$26,2,0) ->  | H41: 0 | O41: 0 | P41: =IF(O41<>0,VLOOKUP(MID($A41,14,LEN($A41)-13)&"_"&$B41,finallookup!$AA$8:$AB$26,2,0),"") -> 
A42: Tier1_indor2_HZ2_gfnc | B42: Heatkwh | C42: =VLOOKUP($A42,tbloutfnl,MATCH($B42,finallookup!$A$7:$G$7,0),0) -> 0.1903683873 | D42: 13 | E42: 0 | F42: 0 | G42: =VLOOKUP(MID($A42,14,LEN($A42)-13)&"_"&$B42,finallookup!$AA$8:$AB$26,2,0) ->  | H42: 0 | O42: 0.2592421708 | P42: =IF(O42<>0,VLOOKUP(MID($A42,14,LEN($A42)-13)&"_"&$B42,finallookup!$AA$8:$AB$26,2,0),"") -> 
A43: Tier1_indor2_HZ2_gfnc | B43: Coolkwh | C43: =VLOOKUP($A43,tbloutfnl,MATCH($B43,finallookup!$A$7:$G$7,0),0) -> 0 | D43: 13 | E43: 0 | F43: 0 | G43: =VLOOKUP(MID($A43,14,LEN($A43)-13)&"_"&$B43,finallookup!$AA$8:$AB$26,2,0) ->  | H43: 0 | O43: 0 | P43: =IF(O43<>0,VLOOKUP(MID($A43,14,LEN($A43)-13)&"_"&$B43,finallookup!$AA$8:$AB$26,2,0),"") -> 
A44: Tier1_indor2_HZ2_gfac | B44: DHWkwh | C44: =VLOOKUP($A44,tbloutfnl,MATCH($B44,finallookup!$A$7:$G$7,0),0) -> 233.8371797 | D44: 13 | E44: 0 | F44: 0 | G44: =VLOOKUP(MID($A44,14,LEN($A44)-13)&"_"&$B44,finallookup!$AA$8:$AB$26,2,0) ->  | H44: 0 | O44: 0 | P44: =IF(O44<>0,VLOOKUP(MID($A44,14,LEN($A44)-13)&"_"&$B44,finallookup!$AA$8:$AB$26,2,0),"") -> 
A45: Tier1_indor2_HZ2_gfac | B45: Heatkwh | C45: =VLOOKUP($A45,tbloutfnl,MATCH($B45,finallookup!$A$7:$G$7,0),0) -> 0.1890889816 | D45: 13 | E45: 0 | F45: 0 | G45: =VLOOKUP(MID($A45,14,LEN($A45)-13)&"_"&$B45,finallookup!$AA$8:$AB$26,2,0) ->  | H45: 0 | O45: 0.2456785404 | P45: =IF(O45<>0,VLOOKUP(MID($A45,14,LEN($A45)-13)&"_"&$B45,finallookup!$AA$8:$AB$26,2,0),"") -> 
A46: Tier1_indor2_HZ2_gfac | B46: Coolkwh | C46: =VLOOKUP($A46,tbloutfnl,MATCH($B46,finallookup!$A$7:$G$7,0),0) -> -0.7622183365 | D46: 13 | E46: 0 | F46: 0 | G46: =VLOOKUP(MID($A46,14,LEN($A46)-13)&"_"&$B46,finallookup!$AA$8:$AB$26,2,0) ->  | H46: 0 | O46: 0 | P46: =IF(O46<>0,VLOOKUP(MID($A46,14,LEN($A46)-13)&"_"&$B46,finallookup!$AA$8:$AB$26,2,0),"") -> 
A47: Tier1_indor2_HZ2_efaf | B47: DHWkwh | C47: =VLOOKUP($A47,tbloutfnl,MATCH($B47,finallookup!$A$7:$G$7,0),0) -> 224.7360158 | D47: 13 | E47: 0 | F47: 0 | G47: =VLOOKUP(MID($A47,14,LEN($A47)-13)&"_"&$B47,finallookup!$AA$8:$AB$26,2,0) ->  | H47: 0 | O47: 0 | P47: =IF(O47<>0,VLOOKUP(MID($A47,14,LEN($A47)-13)&"_"&$B47,finallookup!$AA$8:$AB$26,2,0),"") -> 
A48: Tier1_indor2_HZ2_efaf | B48: Heatkwh | C48: =VLOOKUP($A48,tbloutfnl,MATCH($B48,finallookup!$A$7:$G$7,0),0) -> 4.817257704 | D48: 13 | E48: 0 | F48: 0 | G48: =VLOOKUP(MID($A48,14,LEN($A48)-13)&"_"&$B48,finallookup!$AA$8:$AB$26,2,0) ->  | H48: 0 | O48: 0.003614282963 | P48: =IF(O48<>0,VLOOKUP(MID($A48,14,LEN($A48)-13)&"_"&$B48,finallookup!$AA$8:$AB$26,2,0),"") -> 
A49: Tier1_indor2_HZ2_efaf | B49: Coolkwh | C49: =VLOOKUP($A49,tbloutfnl,MATCH($B49,finallookup!$A$7:$G$7,0),0) -> 0 | D49: 13 | E49: 0 | F49: 0 | G49: =VLOOKUP(MID($A49,14,LEN($A49)-13)&"_"&$B49,finallookup!$AA$8:$AB$26,2,0) ->  | H49: 0 | O49: 0 | P49: =IF(O49<>0,VLOOKUP(MID($A49,14,LEN($A49)-13)&"_"&$B49,finallookup!$AA$8:$AB$26,2,0),"") -> 
A50: Tier1_indor2_HZ2_hp85 | B50: DHWkwh | C50: =VLOOKUP($A50,tbloutfnl,MATCH($B50,finallookup!$A$7:$G$7,0),0) -> 233.8359823 | D50: 13 | E50: 0 | F50: 0 | G50: =VLOOKUP(MID($A50,14,LEN($A50)-13)&"_"&$B50,finallookup!$AA$8:$AB$26,2,0) ->  | H50: 0 | O50: 0 | P50: =IF(O50<>0,VLOOKUP(MID($A50,14,LEN($A50)-13)&"_"&$B50,finallookup!$AA$8:$AB$26,2,0),"") -> 
A51: Tier1_indor2_HZ2_hp85 | B51: Heatkwh | C51: =VLOOKUP($A51,tbloutfnl,MATCH($B51,finallookup!$A$7:$G$7,0),0) -> 3.108565586 | D51: 13 | E51: 0 | F51: 0 | G51: =VLOOKUP(MID($A51,14,LEN($A51)-13)&"_"&$B51,finallookup!$AA$8:$AB$26,2,0) ->  | H51: 0 | O51: 0.002332288685 | P51: =IF(O51<>0,VLOOKUP(MID($A51,14,LEN($A51)-13)&"_"&$B51,finallookup!$AA$8:$AB$26,2,0),"") -> 
A52: Tier1_indor2_HZ2_hp85 | B52: Coolkwh | C52: =VLOOKUP($A52,tbloutfnl,MATCH($B52,finallookup!$A$7:$G$7,0),0) -> -0.7665811199 | D52: 13 | E52: 0 | F52: 0 | G52: =VLOOKUP(MID($A52,14,LEN($A52)-13)&"_"&$B52,finallookup!$AA$8:$AB$26,2,0) ->  | H52: 0 | O52: 0 | P52: =IF(O52<>0,VLOOKUP(MID($A52,14,LEN($A52)-13)&"_"&$B52,finallookup!$AA$8:$AB$26,2,0),"") -> 
A53: Tier1_indor2_HZ2_zonl | B53: DHWkwh | C53: =VLOOKUP($A53,tbloutfnl,MATCH($B53,finallookup!$A$7:$G$7,0),0) -> 224.9787024 | D53: 13 | E53: 0 | F53: 0 | G53: =VLOOKUP(MID($A53,14,LEN($A53)-13)&"_"&$B53,finallookup!$AA$8:$AB$26,2,0) ->  | H53: 0 | O53: 0 | P53: =IF(O53<>0,VLOOKUP(MID($A53,14,LEN($A53)-13)&"_"&$B53,finallookup!$AA$8:$AB$26,2,0),"") -> 
A54: Tier1_indor2_HZ2_zonl | B54: Heatkwh | C54: =VLOOKUP($A54,tbloutfnl,MATCH($B54,finallookup!$A$7:$G$7,0),0) -> 4.235657097 | D54: 13 | E54: 0 | F54: 0 | G54: =VLOOKUP(MID($A54,14,LEN($A54)-13)&"_"&$B54,finallookup!$AA$8:$AB$26,2,0) ->  | H54: 0 | O54: 0.003177920764 | P54: =IF(O54<>0,VLOOKUP(MID($A54,14,LEN($A54)-13)&"_"&$B54,finallookup!$AA$8:$AB$26,2,0),"") -> 
A55: Tier1_indor2_HZ2_zonl | B55: Coolkwh | C55: =VLOOKUP($A55,tbloutfnl,MATCH($B55,finallookup!$A$7:$G$7,0),0) -> 0 | D55: 13 | E55: 0 | F55: 0 | G55: =VLOOKUP(MID($A55,14,LEN($A55)-13)&"_"&$B55,finallookup!$AA$8:$AB$26,2,0) ->  | H55: 0 | O55: 0 | P55: =IF(O55<>0,VLOOKUP(MID($A55,14,LEN($A55)-13)&"_"&$B55,finallookup!$AA$8:$AB$26,2,0),"") -> 
A56: Tier1_indor2_HZ3_gfnc | B56: DHWkwh | C56: =VLOOKUP($A56,tbloutfnl,MATCH($B56,finallookup!$A$7:$G$7,0),0) -> 247.0115463 | D56: 13 | E56: 0 | F56: 0 | G56: =VLOOKUP(MID($A56,14,LEN($A56)-13)&"_"&$B56,finallookup!$AA$8:$AB$26,2,0) ->  | H56: 0 | O56: 0 | P56: =IF(O56<>0,VLOOKUP(MID($A56,14,LEN($A56)-13)&"_"&$B56,finallookup!$AA$8:$AB$26,2,0),"") -> 
A57: Tier1_indor2_HZ3_gfnc | B57: Heatkwh | C57: =VLOOKUP($A57,tbloutfnl,MATCH($B57,finallookup!$A$7:$G$7,0),0) -> 0.01748204126 | D57: 13 | E57: 0 | F57: 0 | G57: =VLOOKUP(MID($A57,14,LEN($A57)-13)&"_"&$B57,finallookup!$AA$8:$AB$26,2,0) ->  | H57: 0 | O57: 0.02134834602 | P57: =IF(O57<>0,VLOOKUP(MID($A57,14,LEN($A57)-13)&"_"&$B57,finallookup!$AA$8:$AB$26,2,0),"") -> 
A58: Tier1_indor2_HZ3_gfnc | B58: Coolkwh | C58: =VLOOKUP($A58,tbloutfnl,MATCH($B58,finallookup!$A$7:$G$7,0),0) -> 0 | D58: 13 | E58: 0 | F58: 0 | G58: =VLOOKUP(MID($A58,14,LEN($A58)-13)&"_"&$B58,finallookup!$AA$8:$AB$26,2,0) ->  | H58: 0 | O58: 0 | P58: =IF(O58<>0,VLOOKUP(MID($A58,14,LEN($A58)-13)&"_"&$B58,finallookup!$AA$8:$AB$26,2,0),"") -> 
A59: Tier1_indor2_HZ3_gfac | B59: DHWkwh | C59: =VLOOKUP($A59,tbloutfnl,MATCH($B59,finallookup!$A$7:$G$7,0),0) -> 253.0663011 | D59: 13 | E59: 0 | F59: 0 | G59: =VLOOKUP(MID($A59,14,LEN($A59)-13)&"_"&$B59,finallookup!$AA$8:$AB$26,2,0) ->  | H59: 0 | O59: 0 | P59: =IF(O59<>0,VLOOKUP(MID($A59,14,LEN($A59)-13)&"_"&$B59,finallookup!$AA$8:$AB$26,2,0),"") -> 
A60: Tier1_indor2_HZ3_gfac | B60: Heatkwh | C60: =VLOOKUP($A60,tbloutfnl,MATCH($B60,finallookup!$A$7:$G$7,0),0) -> -0.03838550674 | D60: 13 | E60: 0 | F60: 0 | G60: =VLOOKUP(MID($A60,14,LEN($A60)-13)&"_"&$B60,finallookup!$AA$8:$AB$26,2,0) ->  | H60: 0 | O60: -0.05262770466 | P60: =IF(O60<>0,VLOOKUP(MID($A60,14,LEN($A60)-13)&"_"&$B60,finallookup!$AA$8:$AB$26,2,0),"") -> 
A61: Tier1_indor2_HZ3_gfac | B61: Coolkwh | C61: =VLOOKUP($A61,tbloutfnl,MATCH($B61,finallookup!$A$7:$G$7,0),0) -> -0.7085891812 | D61: 13 | E61: 0 | F61: 0 | G61: =VLOOKUP(MID($A61,14,LEN($A61)-13)&"_"&$B61,finallookup!$AA$8:$AB$26,2,0) ->  | H61: 0 | O61: 0 | P61: =IF(O61<>0,VLOOKUP(MID($A61,14,LEN($A61)-13)&"_"&$B61,finallookup!$AA$8:$AB$26,2,0),"") -> 
A62: Tier1_indor2_HZ3_efaf | B62: DHWkwh | C62: =VLOOKUP($A62,tbloutfnl,MATCH($B62,finallookup!$A$7:$G$7,0),0) -> 247.0115463 | D62: 13 | E62: 0 | F62: 0 | G62: =VLOOKUP(MID($A62,14,LEN($A62)-13)&"_"&$B62,finallookup!$AA$8:$AB$26,2,0) ->  | H62: 0 | O62: 0 | P62: =IF(O62<>0,VLOOKUP(MID($A62,14,LEN($A62)-13)&"_"&$B62,finallookup!$AA$8:$AB$26,2,0),"") -> 
A63: Tier1_indor2_HZ3_efaf | B63: Heatkwh | C63: =VLOOKUP($A63,tbloutfnl,MATCH($B63,finallookup!$A$7:$G$7,0),0) -> 0.3973413138 | D63: 13 | E63: 0 | F63: 0 | G63: =VLOOKUP(MID($A63,14,LEN($A63)-13)&"_"&$B63,finallookup!$AA$8:$AB$26,2,0) ->  | H63: 0 | O63: 0.0002981164864 | P63: =IF(O63<>0,VLOOKUP(MID($A63,14,LEN($A63)-13)&"_"&$B63,finallookup!$AA$8:$AB$26,2,0),"") -> 
A64: Tier1_indor2_HZ3_efaf | B64: Coolkwh | C64: =VLOOKUP($A64,tbloutfnl,MATCH($B64,finallookup!$A$7:$G$7,0),0) -> 0 | D64: 13 | E64: 0 | F64: 0 | G64: =VLOOKUP(MID($A64,14,LEN($A64)-13)&"_"&$B64,finallookup!$AA$8:$AB$26,2,0) ->  | H64: 0 | O64: 0 | P64: =IF(O64<>0,VLOOKUP(MID($A64,14,LEN($A64)-13)&"_"&$B64,finallookup!$AA$8:$AB$26,2,0),"") -> 
A65: Tier1_indor2_HZ3_hp85 | B65: DHWkwh | C65: =VLOOKUP($A65,tbloutfnl,MATCH($B65,finallookup!$A$7:$G$7,0),0) -> 252.9987948 | D65: 13 | E65: 0 | F65: 0 | G65: =VLOOKUP(MID($A65,14,LEN($A65)-13)&"_"&$B65,finallookup!$AA$8:$AB$26,2,0) ->  | H65: 0 | O65: 0 | P65: =IF(O65<>0,VLOOKUP(MID($A65,14,LEN($A65)-13)&"_"&$B65,finallookup!$AA$8:$AB$26,2,0),"") -> 
A66: Tier1_indor2_HZ3_hp85 | B66: Heatkwh | C66: =VLOOKUP($A66,tbloutfnl,MATCH($B66,finallookup!$A$7:$G$7,0),0) -> -0.6713495008 | D66: 13 | E66: 0 | F66: 0 | G66: =VLOOKUP(MID($A66,14,LEN($A66)-13)&"_"&$B66,finallookup!$AA$8:$AB$26,2,0) ->  | H66: 0 | O66: -0.0005036988287 | P66: =IF(O66<>0,VLOOKUP(MID($A66,14,LEN($A66)-13)&"_"&$B66,finallookup!$AA$8:$AB$26,2,0),"") -> 
A67: Tier1_indor2_HZ3_hp85 | B67: Coolkwh | C67: =VLOOKUP($A67,tbloutfnl,MATCH($B67,finallookup!$A$7:$G$7,0),0) -> -0.7115067762 | D67: 13 | E67: 0 | F67: 0 | G67: =VLOOKUP(MID($A67,14,LEN($A67)-13)&"_"&$B67,finallookup!$AA$8:$AB$26,2,0) ->  | H67: 0 | O67: 0 | P67: =IF(O67<>0,VLOOKUP(MID($A67,14,LEN($A67)-13)&"_"&$B67,finallookup!$AA$8:$AB$26,2,0),"") -> 
A68: Tier1_indor2_HZ3_zonl | B68: DHWkwh | C68: =VLOOKUP($A68,tbloutfnl,MATCH($B68,finallookup!$A$7:$G$7,0),0) -> 247.0575593 | D68: 13 | E68: 0 | F68: 0 | G68: =VLOOKUP(MID($A68,14,LEN($A68)-13)&"_"&$B68,finallookup!$AA$8:$AB$26,2,0) ->  | H68: 0 | O68: 0 | P68: =IF(O68<>0,VLOOKUP(MID($A68,14,LEN($A68)-13)&"_"&$B68,finallookup!$AA$8:$AB$26,2,0),"") -> 
A69: Tier1_indor2_HZ3_zonl | B69: Heatkwh | C69: =VLOOKUP($A69,tbloutfnl,MATCH($B69,finallookup!$A$7:$G$7,0),0) -> 0.3141166787 | D69: 13 | E69: 0 | F69: 0 | G69: =VLOOKUP(MID($A69,14,LEN($A69)-13)&"_"&$B69,finallookup!$AA$8:$AB$26,2,0) ->  | H69: 0 | O69: 0.0002356748653 | P69: =IF(O69<>0,VLOOKUP(MID($A69,14,LEN($A69)-13)&"_"&$B69,finallookup!$AA$8:$AB$26,2,0),"") -> 
A70: Tier1_indor2_HZ3_zonl | B70: Coolkwh | C70: =VLOOKUP($A70,tbloutfnl,MATCH($B70,finallookup!$A$7:$G$7,0),0) -> 0 | D70: 13 | E70: 0 | F70: 0 | G70: =VLOOKUP(MID($A70,14,LEN($A70)-13)&"_"&$B70,finallookup!$AA$8:$AB$26,2,0) ->  | H70: 0 | O70: 0 | P70: =IF(O70<>0,VLOOKUP(MID($A70,14,LEN($A70)-13)&"_"&$B70,finallookup!$AA$8:$AB$26,2,0),"") -> 
A71: 0 | B71: DHWkwh | C71: =VLOOKUP($A71,tbloutfnl,MATCH($B71,finallookup!$A$7:$G$7,0),0) ->  | D71: 13 | F71: 0 | G71: =VLOOKUP(MID($A71,14,LEN($A71)-13)&"_"&$B71,finallookup!$AA$8:$AB$26,2,0) ->  | O71: 0 | P71: =IF(O71<>0,VLOOKUP(MID($A71,14,LEN($A71)-13)&"_"&$B71,finallookup!$AA$8:$AB$26,2,0),"") -> 
A72: =INDEX(tbloutfnl,CEILING((ROW(A72)-ROW($A$8)+1)/3,1),1) -> 0 | B72: Heatkwh | C72: =VLOOKUP($A72,tbloutfnl,MATCH($B72,finallookup!$A$7:$G$7,0),0) ->  | D72: 13 | E72: =IF(B72="DHWkwh",VLOOKUP($A72,tbloutfnl,7,0),0) -> 0 | F72: 0 | G72: =VLOOKUP(MID($A72,14,LEN($A72)-13)&"_"&$B72,finallookup!$AA$8:$AB$26,2,0) ->  | H72: =VLOOKUP($A72,tbloutfnl,8,0) ->  | O72: =IF(B72="Heatkwh",VLOOKUP($A72,tbloutfnl,4,0),0) ->  | P72: =IF(O72<>0,VLOOKUP(MID($A72,14,LEN($A72)-13)&"_"&$B72,finallookup!$AA$8:$AB$26,2,0),"") -> 
A73: 0 | B73: Coolkwh | C73: =VLOOKUP($A73,tbloutfnl,MATCH($B73,finallookup!$A$7:$G$7,0),0) ->  | D73: 13 | E73: 0 | F73: 0 | G73: =VLOOKUP(MID($A73,14,LEN($A73)-13)&"_"&$B73,finallookup!$AA$8:$AB$26,2,0) ->  | O73: 0 | P73: =IF(O73<>0,VLOOKUP(MID($A73,14,LEN($A73)-13)&"_"&$B73,finallookup!$AA$8:$AB$26,2,0),"") -> 
A74: 0 | B74: DHWkwh | C74: =VLOOKUP($A74,tbloutfnl,MATCH($B74,finallookup!$A$7:$G$7,0),0) ->  | D74: =D73 -> 13 | F74: 0 | G74: =VLOOKUP(MID($A74,14,LEN($A74)-13)&"_"&$B74,finallookup!$AA$8:$AB$26,2,0) ->  | O74: 0 | P74: =IF(O74<>0,VLOOKUP(MID($A74,14,LEN($A74)-13)&"_"&$B74,finallookup!$AA$8:$AB$26,2,0),"") -> 
A75: 0 | B75: Heatkwh | C75: =VLOOKUP($A75,tbloutfnl,MATCH($B75,finallookup!$A$7:$G$7,0),0) ->  | D75: 13 | E75: 0 | F75: 0 | G75: =VLOOKUP(MID($A75,14,LEN($A75)-13)&"_"&$B75,finallookup!$AA$8:$AB$26,2,0) ->  | P75: =IF(O75<>0,VLOOKUP(MID($A75,14,LEN($A75)-13)&"_"&$B75,finallookup!$AA$8:$AB$26,2,0),"") -> 
A76: 0 | B76: =B73 -> Coolkwh | C76: =VLOOKUP($A76,tbloutfnl,MATCH($B76,finallookup!$A$7:$G$7,0),0) ->  | D76: 13 | E76: 0 | F76: 0 | G76: =VLOOKUP(MID($A76,14,LEN($A76)-13)&"_"&$B76,finallookup!$AA$8:$AB$26,2,0) ->  | O76: 0 | P76: =IF(O76<>0,VLOOKUP(MID($A76,14,LEN($A76)-13)&"_"&$B76,finallookup!$AA$8:$AB$26,2,0),"") -> 
A77: 0 | B77: DHWkwh | C77: =VLOOKUP($A77,tbloutfnl,MATCH($B77,finallookup!$A$7:$G$7,0),0) ->  | D77: 13 | F77: 0 | G77: =VLOOKUP(MID($A77,14,LEN($A77)-13)&"_"&$B77,finallookup!$AA$8:$AB$26,2,0) ->  | O77: 0 | P77: =IF(O77<>0,VLOOKUP(MID($A77,14,LEN($A77)-13)&"_"&$B77,finallookup!$AA$8:$AB$26,2,0),"") -> 
A78: 0 | B78: Heatkwh | C78: =VLOOKUP($A78,tbloutfnl,MATCH($B78,finallookup!$A$7:$G$7,0),0) ->  | D78: 13 | E78: 0 | F78: 0 | G78: =VLOOKUP(MID($A78,14,LEN($A78)-13)&"_"&$B78,finallookup!$AA$8:$AB$26,2,0) ->  | P78: =IF(O78<>0,VLOOKUP(MID($A78,14,LEN($A78)-13)&"_"&$B78,finallookup!$AA$8:$AB$26,2,0),"") -> 
A79: 0 | B79: Coolkwh | C79: =VLOOKUP($A79,tbloutfnl,MATCH($B79,finallookup!$A$7:$G$7,0),0) ->  | D79: 13 | E79: 0 | F79: 0 | G79: =VLOOKUP(MID($A79,14,LEN($A79)-13)&"_"&$B79,finallookup!$AA$8:$AB$26,2,0) ->  | O79: 0 | P79: =IF(O79<>0,VLOOKUP(MID($A79,14,LEN($A79)-13)&"_"&$B79,finallookup!$AA$8:$AB$26,2,0),"") -> 
A80: 0 | B80: DHWkwh | C80: =VLOOKUP($A80,tbloutfnl,MATCH($B80,finallookup!$A$7:$G$7,0),0) ->  | D80: 13 | F80: 0 | G80: =VLOOKUP(MID($A80,14,LEN($A80)-13)&"_"&$B80,finallookup!$AA$8:$AB$26,2,0) ->  | O80: 0 | P80: =IF(O80<>0,VLOOKUP(MID($A80,14,LEN($A80)-13)&"_"&$B80,finallookup!$AA$8:$AB$26,2,0),"") -> 
A81: 0 | B81: Heatkwh | C81: =VLOOKUP($A81,tbloutfnl,MATCH($B81,finallookup!$A$7:$G$7,0),0) ->  | D81: 13 | E81: 0 | F81: 0 | G81: =VLOOKUP(MID($A81,14,LEN($A81)-13)&"_"&$B81,finallookup!$AA$8:$AB$26,2,0) ->  | P81: =IF(O81<>0,VLOOKUP(MID($A81,14,LEN($A81)-13)&"_"&$B81,finallookup!$AA$8:$AB$26,2,0),"") -> 
A82: 0 | B82: Coolkwh | C82: =VLOOKUP($A82,tbloutfnl,MATCH($B82,finallookup!$A$7:$G$7,0),0) ->  | D82: 13 | E82: 0 | F82: 0 | G82: =VLOOKUP(MID($A82,14,LEN($A82)-13)&"_"&$B82,finallookup!$AA$8:$AB$26,2,0) ->  | O82: 0 | P82: =IF(O82<>0,VLOOKUP(MID($A82,14,LEN($A82)-13)&"_"&$B82,finallookup!$AA$8:$AB$26,2,0),"") -> 
A83: 0 | B83: DHWkwh | C83: =VLOOKUP($A83,tbloutfnl,MATCH($B83,finallookup!$A$7:$G$7,0),0) ->  | D83: 13 | F83: 0 | G83: =VLOOKUP(MID($A83,14,LEN($A83)-13)&"_"&$B83,finallookup!$AA$8:$AB$26,2,0) ->  | O83: 0 | P83: =IF(O83<>0,VLOOKUP(MID($A83,14,LEN($A83)-13)&"_"&$B83,finallookup!$AA$8:$AB$26,2,0),"") -> 
A84: 0 | B84: Heatkwh | C84: =VLOOKUP($A84,tbloutfnl,MATCH($B84,finallookup!$A$7:$G$7,0),0) ->  | D84: 13 | E84: 0 | F84: 0 | G84: =VLOOKUP(MID($A84,14,LEN($A84)-13)&"_"&$B84,finallookup!$AA$8:$AB$26,2,0) ->  | P84: =IF(O84<>0,VLOOKUP(MID($A84,14,LEN($A84)-13)&"_"&$B84,finallookup!$AA$8:$AB$26,2,0),"") -> 
A85: 0 | B85: Coolkwh | C85: =VLOOKUP($A85,tbloutfnl,MATCH($B85,finallookup!$A$7:$G$7,0),0) ->  | D85: 13 | E85: 0 | F85: 0 | G85: =VLOOKUP(MID($A85,14,LEN($A85)-13)&"_"&$B85,finallookup!$AA$8:$AB$26,2,0) ->  | O85: 0 | P85: =IF(O85<>0,VLOOKUP(MID($A85,14,LEN($A85)-13)&"_"&$B85,finallookup!$AA$8:$AB$26,2,0),"") -> 
A86: 0 | B86: DHWkwh | C86: =VLOOKUP($A86,tbloutfnl,MATCH($B86,finallookup!$A$7:$G$7,0),0) ->  | D86: 13 | F86: 0 | G86: =VLOOKUP(MID($A86,14,LEN($A86)-13)&"_"&$B86,finallookup!$AA$8:$AB$26,2,0) ->  | O86: 0 | P86: =IF(O86<>0,VLOOKUP(MID($A86,14,LEN($A86)-13)&"_"&$B86,finallookup!$AA$8:$AB$26,2,0),"") -> 
A87: 0 | B87: Heatkwh | C87: =VLOOKUP($A87,tbloutfnl,MATCH($B87,finallookup!$A$7:$G$7,0),0) ->  | D87: 13 | E87: 0 | F87: 0 | G87: =VLOOKUP(MID($A87,14,LEN($A87)-13)&"_"&$B87,finallookup!$AA$8:$AB$26,2,0) ->  | P87: =IF(O87<>0,VLOOKUP(MID($A87,14,LEN($A87)-13)&"_"&$B87,finallookup!$AA$8:$AB$26,2,0),"") -> 
A88: 0 | B88: Coolkwh | C88: =VLOOKUP($A88,tbloutfnl,MATCH($B88,finallookup!$A$7:$G$7,0),0) ->  | D88: 13 | E88: 0 | F88: 0 | G88: =VLOOKUP(MID($A88,14,LEN($A88)-13)&"_"&$B88,finallookup!$AA$8:$AB$26,2,0) ->  | O88: 0 | P88: =IF(O88<>0,VLOOKUP(MID($A88,14,LEN($A88)-13)&"_"&$B88,finallookup!$AA$8:$AB$26,2,0),"") -> 
A89: 0 | B89: DHWkwh | C89: =VLOOKUP($A89,tbloutfnl,MATCH($B89,finallookup!$A$7:$G$7,0),0) ->  | D89: 13 | F89: 0 | G89: =VLOOKUP(MID($A89,14,LEN($A89)-13)&"_"&$B89,finallookup!$AA$8:$AB$26,2,0) ->  | O89: 0 | P89: =IF(O89<>0,VLOOKUP(MID($A89,14,LEN($A89)-13)&"_"&$B89,finallookup!$AA$8:$AB$26,2,0),"") -> 
A90: 0 | B90: Heatkwh | C90: =VLOOKUP($A90,tbloutfnl,MATCH($B90,finallookup!$A$7:$G$7,0),0) ->  | D90: 13 | E90: 0 | F90: 0 | G90: =VLOOKUP(MID($A90,14,LEN($A90)-13)&"_"&$B90,finallookup!$AA$8:$AB$26,2,0) ->  | P90: =IF(O90<>0,VLOOKUP(MID($A90,14,LEN($A90)-13)&"_"&$B90,finallookup!$AA$8:$AB$26,2,0),"") -> 
A91: 0 | B91: Coolkwh | C91: =VLOOKUP($A91,tbloutfnl,MATCH($B91,finallookup!$A$7:$G$7,0),0) ->  | D91: 13 | E91: 0 | F91: 0 | G91: =VLOOKUP(MID($A91,14,LEN($A91)-13)&"_"&$B91,finallookup!$AA$8:$AB$26,2,0) ->  | O91: 0 | P91: =IF(O91<>0,VLOOKUP(MID($A91,14,LEN($A91)-13)&"_"&$B91,finallookup!$AA$8:$AB$26,2,0),"") -> 
A92: 0 | B92: DHWkwh | C92: =VLOOKUP($A92,tbloutfnl,MATCH($B92,finallookup!$A$7:$G$7,0),0) ->  | D92: 13 | F92: 0 | G92: =VLOOKUP(MID($A92,14,LEN($A92)-13)&"_"&$B92,finallookup!$AA$8:$AB$26,2,0) ->  | O92: 0 | P92: =IF(O92<>0,VLOOKUP(MID($A92,14,LEN($A92)-13)&"_"&$B92,finallookup!$AA$8:$AB$26,2,0),"") -> 
A93: 0 | B93: Heatkwh | C93: =VLOOKUP($A93,tbloutfnl,MATCH($B93,finallookup!$A$7:$G$7,0),0) ->  | D93: 13 | E93: 0 | F93: 0 | G93: =VLOOKUP(MID($A93,14,LEN($A93)-13)&"_"&$B93,finallookup!$AA$8:$AB$26,2,0) ->  | P93: =IF(O93<>0,VLOOKUP(MID($A93,14,LEN($A93)-13)&"_"&$B93,finallookup!$AA$8:$AB$26,2,0),"") -> 
A94: 0 | B94: Coolkwh | C94: =VLOOKUP($A94,tbloutfnl,MATCH($B94,finallookup!$A$7:$G$7,0),0) ->  | D94: 13 | E94: 0 | F94: 0 | G94: =VLOOKUP(MID($A94,14,LEN($A94)-13)&"_"&$B94,finallookup!$AA$8:$AB$26,2,0) ->  | O94: 0 | P94: =IF(O94<>0,VLOOKUP(MID($A94,14,LEN($A94)-13)&"_"&$B94,finallookup!$AA$8:$AB$26,2,0),"") -> 
A95: 0 | B95: DHWkwh | C95: =VLOOKUP($A95,tbloutfnl,MATCH($B95,finallookup!$A$7:$G$7,0),0) ->  | D95: 13 | F95: 0 | G95: =VLOOKUP(MID($A95,14,LEN($A95)-13)&"_"&$B95,finallookup!$AA$8:$AB$26,2,0) ->  | O95: 0 | P95: =IF(O95<>0,VLOOKUP(MID($A95,14,LEN($A95)-13)&"_"&$B95,finallookup!$AA$8:$AB$26,2,0),"") -> 
A96: 0 | B96: Heatkwh | C96: =VLOOKUP($A96,tbloutfnl,MATCH($B96,finallookup!$A$7:$G$7,0),0) ->  | D96: 13 | E96: 0 | F96: 0 | G96: =VLOOKUP(MID($A96,14,LEN($A96)-13)&"_"&$B96,finallookup!$AA$8:$AB$26,2,0) ->  | P96: =IF(O96<>0,VLOOKUP(MID($A96,14,LEN($A96)-13)&"_"&$B96,finallookup!$AA$8:$AB$26,2,0),"") -> 
A97: 0 | B97: Coolkwh | C97: =VLOOKUP($A97,tbloutfnl,MATCH($B97,finallookup!$A$7:$G$7,0),0) ->  | D97: 13 | E97: 0 | F97: 0 | G97: =VLOOKUP(MID($A97,14,LEN($A97)-13)&"_"&$B97,finallookup!$AA$8:$AB$26,2,0) ->  | O97: 0 | P97: =IF(O97<>0,VLOOKUP(MID($A97,14,LEN($A97)-13)&"_"&$B97,finallookup!$AA$8:$AB$26,2,0),"") -> 
A98: 0 | B98: DHWkwh | C98: =VLOOKUP($A98,tbloutfnl,MATCH($B98,finallookup!$A$7:$G$7,0),0) ->  | D98: 13 | F98: 0 | G98: =VLOOKUP(MID($A98,14,LEN($A98)-13)&"_"&$B98,finallookup!$AA$8:$AB$26,2,0) ->  | O98: 0 | P98: =IF(O98<>0,VLOOKUP(MID($A98,14,LEN($A98)-13)&"_"&$B98,finallookup!$AA$8:$AB$26,2,0),"") -> 
A99: 0 | B99: Heatkwh | C99: =VLOOKUP($A99,tbloutfnl,MATCH($B99,finallookup!$A$7:$G$7,0),0) ->  | D99: 13 | E99: 0 | F99: 0 | G99: =VLOOKUP(MID($A99,14,LEN($A99)-13)&"_"&$B99,finallookup!$AA$8:$AB$26,2,0) ->  | P99: =IF(O99<>0,VLOOKUP(MID($A99,14,LEN($A99)-13)&"_"&$B99,finallookup!$AA$8:$AB$26,2,0),"") -> 
A100: 0 | B100: Coolkwh | C100: =VLOOKUP($A100,tbloutfnl,MATCH($B100,finallookup!$A$7:$G$7,0),0) ->  | D100: 13 | E100: 0 | F100: 0 | G100: =VLOOKUP(MID($A100,14,LEN($A100)-13)&"_"&$B100,finallookup!$AA$8:$AB$26,2,0) ->  | O100: 0 | P100: =IF(O100<>0,VLOOKUP(MID($A100,14,LEN($A100)-13)&"_"&$B100,finallookup!$AA$8:$AB$26,2,0),"") -> 
A101: 0 | B101: DHWkwh | C101: =VLOOKUP($A101,tbloutfnl,MATCH($B101,finallookup!$A$7:$G$7,0),0) ->  | D101: 13 | F101: 0 | G101: =VLOOKUP(MID($A101,14,LEN($A101)-13)&"_"&$B101,finallookup!$AA$8:$AB$26,2,0) ->  | O101: 0 | P101: =IF(O101<>0,VLOOKUP(MID($A101,14,LEN($A101)-13)&"_"&$B101,finallookup!$AA$8:$AB$26,2,0),"") -> 
A102: 0 | B102: Heatkwh | C102: =VLOOKUP($A102,tbloutfnl,MATCH($B102,finallookup!$A$7:$G$7,0),0) ->  | D102: 13 | E102: 0 | F102: 0 | G102: =VLOOKUP(MID($A102,14,LEN($A102)-13)&"_"&$B102,finallookup!$AA$8:$AB$26,2,0) ->  | P102: =IF(O102<>0,VLOOKUP(MID($A102,14,LEN($A102)-13)&"_"&$B102,finallookup!$AA$8:$AB$26,2,0),"") -> 
A103: 0 | B103: Coolkwh | C103: =VLOOKUP($A103,tbloutfnl,MATCH($B103,finallookup!$A$7:$G$7,0),0) ->  | D103: 13 | E103: 0 | F103: 0 | G103: =VLOOKUP(MID($A103,14,LEN($A103)-13)&"_"&$B103,finallookup!$AA$8:$AB$26,2,0) ->  | O103: 0 | P103: =IF(O103<>0,VLOOKUP(MID($A103,14,LEN($A103)-13)&"_"&$B103,finallookup!$AA$8:$AB$26,2,0),"") -> 
A104: 0 | B104: DHWkwh | C104: =VLOOKUP($A104,tbloutfnl,MATCH($B104,finallookup!$A$7:$G$7,0),0) ->  | D104: 13 | F104: 0 | G104: =VLOOKUP(MID($A104,14,LEN($A104)-13)&"_"&$B104,finallookup!$AA$8:$AB$26,2,0) ->  | O104: 0 | P104: =IF(O104<>0,VLOOKUP(MID($A104,14,LEN($A104)-13)&"_"&$B104,finallookup!$AA$8:$AB$26,2,0),"") -> 
A105: 0 | B105: Heatkwh | C105: =VLOOKUP($A105,tbloutfnl,MATCH($B105,finallookup!$A$7:$G$7,0),0) ->  | D105: 13 | E105: 0 | F105: 0 | G105: =VLOOKUP(MID($A105,14,LEN($A105)-13)&"_"&$B105,finallookup!$AA$8:$AB$26,2,0) ->  | P105: =IF(O105<>0,VLOOKUP(MID($A105,14,LEN($A105)-13)&"_"&$B105,finallookup!$AA$8:$AB$26,2,0),"") -> 
A106: 0 | B106: Coolkwh | C106: =VLOOKUP($A106,tbloutfnl,MATCH($B106,finallookup!$A$7:$G$7,0),0) ->  | D106: 13 | E106: 0 | F106: 0 | G106: =VLOOKUP(MID($A106,14,LEN($A106)-13)&"_"&$B106,finallookup!$AA$8:$AB$26,2,0) ->  | O106: 0 | P106: =IF(O106<>0,VLOOKUP(MID($A106,14,LEN($A106)-13)&"_"&$B106,finallookup!$AA$8:$AB$26,2,0),"") -> 
A107: 0 | B107: DHWkwh | C107: =VLOOKUP($A107,tbloutfnl,MATCH($B107,finallookup!$A$7:$G$7,0),0) ->  | D107: 13 | F107: 0 | G107: =VLOOKUP(MID($A107,14,LEN($A107)-13)&"_"&$B107,finallookup!$AA$8:$AB$26,2,0) ->  | O107: 0 | P107: =IF(O107<>0,VLOOKUP(MID($A107,14,LEN($A107)-13)&"_"&$B107,finallookup!$AA$8:$AB$26,2,0),"") -> 
A108: 0 | B108: Heatkwh | C108: =VLOOKUP($A108,tbloutfnl,MATCH($B108,finallookup!$A$7:$G$7,0),0) ->  | D108: 13 | E108: 0 | F108: 0 | G108: =VLOOKUP(MID($A108,14,LEN($A108)-13)&"_"&$B108,finallookup!$AA$8:$AB$26,2,0) ->  | P108: =IF(O108<>0,VLOOKUP(MID($A108,14,LEN($A108)-13)&"_"&$B108,finallookup!$AA$8:$AB$26,2,0),"") -> 
A109: 0 | B109: Coolkwh | C109: =VLOOKUP($A109,tbloutfnl,MATCH($B109,finallookup!$A$7:$G$7,0),0) ->  | D109: 13 | E109: 0 | F109: 0 | G109: =VLOOKUP(MID($A109,14,LEN($A109)-13)&"_"&$B109,finallookup!$AA$8:$AB$26,2,0) ->  | O109: 0 | P109: =IF(O109<>0,VLOOKUP(MID($A109,14,LEN($A109)-13)&"_"&$B109,finallookup!$AA$8:$AB$26,2,0),"") -> 
A110: 0 | B110: DHWkwh | C110: =VLOOKUP($A110,tbloutfnl,MATCH($B110,finallookup!$A$7:$G$7,0),0) ->  | D110: 13 | F110: 0 | G110: =VLOOKUP(MID($A110,14,LEN($A110)-13)&"_"&$B110,finallookup!$AA$8:$AB$26,2,0) ->  | O110: 0 | P110: =IF(O110<>0,VLOOKUP(MID($A110,14,LEN($A110)-13)&"_"&$B110,finallookup!$AA$8:$AB$26,2,0),"") -> 
A111: 0 | B111: Heatkwh | C111: =VLOOKUP($A111,tbloutfnl,MATCH($B111,finallookup!$A$7:$G$7,0),0) ->  | D111: 13 | E111: 0 | F111: 0 | G111: =VLOOKUP(MID($A111,14,LEN($A111)-13)&"_"&$B111,finallookup!$AA$8:$AB$26,2,0) ->  | P111: =IF(O111<>0,VLOOKUP(MID($A111,14,LEN($A111)-13)&"_"&$B111,finallookup!$AA$8:$AB$26,2,0),"") -> 
A112: 0 | B112: Coolkwh | C112: =VLOOKUP($A112,tbloutfnl,MATCH($B112,finallookup!$A$7:$G$7,0),0) ->  | D112: 13 | E112: 0 | F112: 0 | G112: =VLOOKUP(MID($A112,14,LEN($A112)-13)&"_"&$B112,finallookup!$AA$8:$AB$26,2,0) ->  | O112: 0 | P112: =IF(O112<>0,VLOOKUP(MID($A112,14,LEN($A112)-13)&"_"&$B112,finallookup!$AA$8:$AB$26,2,0),"") -> 
A113: 0 | B113: DHWkwh | C113: =VLOOKUP($A113,tbloutfnl,MATCH($B113,finallookup!$A$7:$G$7,0),0) ->  | D113: 13 | F113: 0 | G113: =VLOOKUP(MID($A113,14,LEN($A113)-13)&"_"&$B113,finallookup!$AA$8:$AB$26,2,0) ->  | O113: 0 | P113: =IF(O113<>0,VLOOKUP(MID($A113,14,LEN($A113)-13)&"_"&$B113,finallookup!$AA$8:$AB$26,2,0),"") -> 
A114: 0 | B114: Heatkwh | C114: =VLOOKUP($A114,tbloutfnl,MATCH($B114,finallookup!$A$7:$G$7,0),0) ->  | D114: 13 | E114: 0 | F114: 0 | G114: =VLOOKUP(MID($A114,14,LEN($A114)-13)&"_"&$B114,finallookup!$AA$8:$AB$26,2,0) ->  | P114: =IF(O114<>0,VLOOKUP(MID($A114,14,LEN($A114)-13)&"_"&$B114,finallookup!$AA$8:$AB$26,2,0),"") -> 
A115: 0 | B115: Coolkwh | C115: =VLOOKUP($A115,tbloutfnl,MATCH($B115,finallookup!$A$7:$G$7,0),0) ->  | D115: 13 | E115: 0 | F115: 0 | G115: =VLOOKUP(MID($A115,14,LEN($A115)-13)&"_"&$B115,finallookup!$AA$8:$AB$26,2,0) ->  | O115: 0 | P115: =IF(O115<>0,VLOOKUP(MID($A115,14,LEN($A115)-13)&"_"&$B115,finallookup!$AA$8:$AB$26,2,0),"") -> 
A116: 0 | B116: DHWkwh | C116: =VLOOKUP($A116,tbloutfnl,MATCH($B116,finallookup!$A$7:$G$7,0),0) ->  | D116: 13 | F116: 0 | G116: =VLOOKUP(MID($A116,14,LEN($A116)-13)&"_"&$B116,finallookup!$AA$8:$AB$26,2,0) ->  | O116: 0 | P116: =IF(O116<>0,VLOOKUP(MID($A116,14,LEN($A116)-13)&"_"&$B116,finallookup!$AA$8:$AB$26,2,0),"") -> 
A117: 0 | B117: Heatkwh | C117: =VLOOKUP($A117,tbloutfnl,MATCH($B117,finallookup!$A$7:$G$7,0),0) ->  | D117: 13 | E117: 0 | F117: 0 | G117: =VLOOKUP(MID($A117,14,LEN($A117)-13)&"_"&$B117,finallookup!$AA$8:$AB$26,2,0) ->  | P117: =IF(O117<>0,VLOOKUP(MID($A117,14,LEN($A117)-13)&"_"&$B117,finallookup!$AA$8:$AB$26,2,0),"") -> 
A118: 0 | B118: Coolkwh | C118: =VLOOKUP($A118,tbloutfnl,MATCH($B118,finallookup!$A$7:$G$7,0),0) ->  | D118: 13 | E118: 0 | F118: 0 | G118: =VLOOKUP(MID($A118,14,LEN($A118)-13)&"_"&$B118,finallookup!$AA$8:$AB$26,2,0) ->  | O118: 0 | P118: =IF(O118<>0,VLOOKUP(MID($A118,14,LEN($A118)-13)&"_"&$B118,finallookup!$AA$8:$AB$26,2,0),"") -> 
A119: 0 | B119: DHWkwh | C119: =VLOOKUP($A119,tbloutfnl,MATCH($B119,finallookup!$A$7:$G$7,0),0) ->  | D119: 13 | F119: 0 | G119: =VLOOKUP(MID($A119,14,LEN($A119)-13)&"_"&$B119,finallookup!$AA$8:$AB$26,2,0) ->  | O119: 0 | P119: =IF(O119<>0,VLOOKUP(MID($A119,14,LEN($A119)-13)&"_"&$B119,finallookup!$AA$8:$AB$26,2,0),"") -> 
A120: 0 | B120: Heatkwh | C120: =VLOOKUP($A120,tbloutfnl,MATCH($B120,finallookup!$A$7:$G$7,0),0) ->  | D120: 13 | E120: 0 | F120: 0 | G120: =VLOOKUP(MID($A120,14,LEN($A120)-13)&"_"&$B120,finallookup!$AA$8:$AB$26,2,0) ->  | P120: =IF(O120<>0,VLOOKUP(MID($A120,14,LEN($A120)-13)&"_"&$B120,finallookup!$AA$8:$AB$26,2,0),"") -> 
A121: 0 | B121: Coolkwh | C121: =VLOOKUP($A121,tbloutfnl,MATCH($B121,finallookup!$A$7:$G$7,0),0) ->  | D121: 13 | E121: 0 | F121: 0 | G121: =VLOOKUP(MID($A121,14,LEN($A121)-13)&"_"&$B121,finallookup!$AA$8:$AB$26,2,0) ->  | O121: 0 | P121: =IF(O121<>0,VLOOKUP(MID($A121,14,LEN($A121)-13)&"_"&$B121,finallookup!$AA$8:$AB$26,2,0),"") -> 
A122: 0 | B122: DHWkwh | C122: =VLOOKUP($A122,tbloutfnl,MATCH($B122,finallookup!$A$7:$G$7,0),0) ->  | D122: 13 | F122: 0 | G122: =VLOOKUP(MID($A122,14,LEN($A122)-13)&"_"&$B122,finallookup!$AA$8:$AB$26,2,0) ->  | O122: 0 | P122: =IF(O122<>0,VLOOKUP(MID($A122,14,LEN($A122)-13)&"_"&$B122,finallookup!$AA$8:$AB$26,2,0),"") -> 
A123: 0 | B123: Heatkwh | C123: =VLOOKUP($A123,tbloutfnl,MATCH($B123,finallookup!$A$7:$G$7,0),0) ->  | D123: 13 | E123: 0 | F123: 0 | G123: =VLOOKUP(MID($A123,14,LEN($A123)-13)&"_"&$B123,finallookup!$AA$8:$AB$26,2,0) ->  | P123: =IF(O123<>0,VLOOKUP(MID($A123,14,LEN($A123)-13)&"_"&$B123,finallookup!$AA$8:$AB$26,2,0),"") -> 
A124: 0 | B124: Coolkwh | C124: =VLOOKUP($A124,tbloutfnl,MATCH($B124,finallookup!$A$7:$G$7,0),0) ->  | D124: 13 | E124: 0 | F124: 0 | G124: =VLOOKUP(MID($A124,14,LEN($A124)-13)&"_"&$B124,finallookup!$AA$8:$AB$26,2,0) ->  | O124: 0 | P124: =IF(O124<>0,VLOOKUP(MID($A124,14,LEN($A124)-13)&"_"&$B124,finallookup!$AA$8:$AB$26,2,0),"") -> 
A125: 0 | B125: DHWkwh | C125: =VLOOKUP($A125,tbloutfnl,MATCH($B125,finallookup!$A$7:$G$7,0),0) ->  | D125: 13 | F125: 0 | G125: =VLOOKUP(MID($A125,14,LEN($A125)-13)&"_"&$B125,finallookup!$AA$8:$AB$26,2,0) ->  | O125: 0 | P125: =IF(O125<>0,VLOOKUP(MID($A125,14,LEN($A125)-13)&"_"&$B125,finallookup!$AA$8:$AB$26,2,0),"") -> 
A126: 0 | B126: Heatkwh | C126: =VLOOKUP($A126,tbloutfnl,MATCH($B126,finallookup!$A$7:$G$7,0),0) ->  | D126: 13 | E126: 0 | F126: 0 | G126: =VLOOKUP(MID($A126,14,LEN($A126)-13)&"_"&$B126,finallookup!$AA$8:$AB$26,2,0) ->  | P126: =IF(O126<>0,VLOOKUP(MID($A126,14,LEN($A126)-13)&"_"&$B126,finallookup!$AA$8:$AB$26,2,0),"") -> 
A127: 0 | B127: Coolkwh | C127: =VLOOKUP($A127,tbloutfnl,MATCH($B127,finallookup!$A$7:$G$7,0),0) ->  | D127: 13 | E127: 0 | F127: 0 | G127: =VLOOKUP(MID($A127,14,LEN($A127)-13)&"_"&$B127,finallookup!$AA$8:$AB$26,2,0) ->  | O127: 0 | P127: =IF(O127<>0,VLOOKUP(MID($A127,14,LEN($A127)-13)&"_"&$B127,finallookup!$AA$8:$AB$26,2,0),"") -> 
A128: 0 | B128: DHWkwh | C128: =VLOOKUP($A128,tbloutfnl,MATCH($B128,finallookup!$A$7:$G$7,0),0) ->  | D128: 13 | F128: 0 | G128: =VLOOKUP(MID($A128,14,LEN($A128)-13)&"_"&$B128,finallookup!$AA$8:$AB$26,2,0) ->  | O128: 0 | P128: =IF(O128<>0,VLOOKUP(MID($A128,14,LEN($A128)-13)&"_"&$B128,finallookup!$AA$8:$AB$26,2,0),"") -> 
A129: 0 | B129: Heatkwh | C129: =VLOOKUP($A129,tbloutfnl,MATCH($B129,finallookup!$A$7:$G$7,0),0) ->  | D129: 13 | E129: 0 | F129: 0 | G129: =VLOOKUP(MID($A129,14,LEN($A129)-13)&"_"&$B129,finallookup!$AA$8:$AB$26,2,0) ->  | P129: =IF(O129<>0,VLOOKUP(MID($A129,14,LEN($A129)-13)&"_"&$B129,finallookup!$AA$8:$AB$26,2,0),"") -> 
A130: 0 | B130: Coolkwh | C130: =VLOOKUP($A130,tbloutfnl,MATCH($B130,finallookup!$A$7:$G$7,0),0) ->  | D130: 13 | E130: 0 | F130: 0 | G130: =VLOOKUP(MID($A130,14,LEN($A130)-13)&"_"&$B130,finallookup!$AA$8:$AB$26,2,0) ->  | O130: 0 | P130: =IF(O130<>0,VLOOKUP(MID($A130,14,LEN($A130)-13)&"_"&$B130,finallookup!$AA$8:$AB$26,2,0),"") -> 
A131: 0 | B131: DHWkwh | C131: =VLOOKUP($A131,tbloutfnl,MATCH($B131,finallookup!$A$7:$G$7,0),0) ->  | D131: 13 | F131: 0 | G131: =VLOOKUP(MID($A131,14,LEN($A131)-13)&"_"&$B131,finallookup!$AA$8:$AB$26,2,0) ->  | O131: 0 | P131: =IF(O131<>0,VLOOKUP(MID($A131,14,LEN($A131)-13)&"_"&$B131,finallookup!$AA$8:$AB$26,2,0),"") -> 
A132: 0 | B132: Heatkwh | C132: =VLOOKUP($A132,tbloutfnl,MATCH($B132,finallookup!$A$7:$G$7,0),0) ->  | D132: 13 | E132: 0 | F132: 0 | G132: =VLOOKUP(MID($A132,14,LEN($A132)-13)&"_"&$B132,finallookup!$AA$8:$AB$26,2,0) ->  | P132: =IF(O132<>0,VLOOKUP(MID($A132,14,LEN($A132)-13)&"_"&$B132,finallookup!$AA$8:$AB$26,2,0),"") -> 
A133: 0 | B133: Coolkwh | C133: =VLOOKUP($A133,tbloutfnl,MATCH($B133,finallookup!$A$7:$G$7,0),0) ->  | D133: 13 | E133: 0 | F133: 0 | G133: =VLOOKUP(MID($A133,14,LEN($A133)-13)&"_"&$B133,finallookup!$AA$8:$AB$26,2,0) ->  | O133: 0 | P133: =IF(O133<>0,VLOOKUP(MID($A133,14,LEN($A133)-13)&"_"&$B133,finallookup!$AA$8:$AB$26,2,0),"") -> 
A134: 0 | B134: DHWkwh | C134: =VLOOKUP($A134,tbloutfnl,MATCH($B134,finallookup!$A$7:$G$7,0),0) ->  | D134: 13 | F134: 0 | G134: =VLOOKUP(MID($A134,14,LEN($A134)-13)&"_"&$B134,finallookup!$AA$8:$AB$26,2,0) ->  | O134: 0 | P134: =IF(O134<>0,VLOOKUP(MID($A134,14,LEN($A134)-13)&"_"&$B134,finallookup!$AA$8:$AB$26,2,0),"") -> 
A135: 0 | B135: Heatkwh | C135: =VLOOKUP($A135,tbloutfnl,MATCH($B135,finallookup!$A$7:$G$7,0),0) ->  | D135: 13 | E135: 0 | F135: 0 | G135: =VLOOKUP(MID($A135,14,LEN($A135)-13)&"_"&$B135,finallookup!$AA$8:$AB$26,2,0) ->  | P135: =IF(O135<>0,VLOOKUP(MID($A135,14,LEN($A135)-13)&"_"&$B135,finallookup!$AA$8:$AB$26,2,0),"") -> 
A136: =INDEX(tbloutfnl,CEILING((ROW(A136)-ROW($A$8)+1)/3,1),1) -> 0 | B136: Coolkwh | C136: =VLOOKUP($A136,tbloutfnl,MATCH($B136,finallookup!$A$7:$G$7,0),0) ->  | D136: 13 | E136: =IF(B136="DHWkwh",VLOOKUP($A136,tbloutfnl,7,0),0) -> 0 | F136: 0 | G136: =VLOOKUP(MID($A136,14,LEN($A136)-13)&"_"&$B136,finallookup!$AA$8:$AB$26,2,0) ->  | H136: =VLOOKUP($A136,tbloutfnl,8,0) ->  | O136: =IF(B136="Heatkwh",VLOOKUP($A136,tbloutfnl,4,0),0) -> 0 | P136: =IF(O136<>0,VLOOKUP(MID($A136,14,LEN($A136)-13)&"_"&$B136,finallookup!$AA$8:$AB$26,2,0),"") -> 
A137: 0 | B137: DHWkwh | C137: =VLOOKUP($A137,tbloutfnl,MATCH($B137,finallookup!$A$7:$G$7,0),0) ->  | D137: 13 | F137: 0 | G137: =VLOOKUP(MID($A137,14,LEN($A137)-13)&"_"&$B137,finallookup!$AA$8:$AB$26,2,0) ->  | O137: 0 | P137: =IF(O137<>0,VLOOKUP(MID($A137,14,LEN($A137)-13)&"_"&$B137,finallookup!$AA$8:$AB$26,2,0),"") -> 
A138: 0 | B138: Heatkwh | C138: =VLOOKUP($A138,tbloutfnl,MATCH($B138,finallookup!$A$7:$G$7,0),0) ->  | D138: =D137 -> 13 | E138: 0 | F138: 0 | G138: =VLOOKUP(MID($A138,14,LEN($A138)-13)&"_"&$B138,finallookup!$AA$8:$AB$26,2,0) ->  | P138: =IF(O138<>0,VLOOKUP(MID($A138,14,LEN($A138)-13)&"_"&$B138,finallookup!$AA$8:$AB$26,2,0),"") -> 
A139: 0 | B139: Coolkwh | C139: =VLOOKUP($A139,tbloutfnl,MATCH($B139,finallookup!$A$7:$G$7,0),0) ->  | D139: 13 | E139: 0 | F139: 0 | G139: =VLOOKUP(MID($A139,14,LEN($A139)-13)&"_"&$B139,finallookup!$AA$8:$AB$26,2,0) ->  | O139: 0 | P139: =IF(O139<>0,VLOOKUP(MID($A139,14,LEN($A139)-13)&"_"&$B139,finallookup!$AA$8:$AB$26,2,0),"") -> 
A140: 0 | B140: =B137 -> DHWkwh | C140: =VLOOKUP($A140,tbloutfnl,MATCH($B140,finallookup!$A$7:$G$7,0),0) ->  | D140: 13 | F140: 0 | G140: =VLOOKUP(MID($A140,14,LEN($A140)-13)&"_"&$B140,finallookup!$AA$8:$AB$26,2,0) ->  | O140: 0 | P140: =IF(O140<>0,VLOOKUP(MID($A140,14,LEN($A140)-13)&"_"&$B140,finallookup!$AA$8:$AB$26,2,0),"") -> 
A141: 0 | B141: Heatkwh | C141: =VLOOKUP($A141,tbloutfnl,MATCH($B141,finallookup!$A$7:$G$7,0),0) ->  | D141: 13 | E141: 0 | F141: 0 | G141: =VLOOKUP(MID($A141,14,LEN($A141)-13)&"_"&$B141,finallookup!$AA$8:$AB$26,2,0) ->  | P141: =IF(O141<>0,VLOOKUP(MID($A141,14,LEN($A141)-13)&"_"&$B141,finallookup!$AA$8:$AB$26,2,0),"") -> 
A142: 0 | B142: Coolkwh | C142: =VLOOKUP($A142,tbloutfnl,MATCH($B142,finallookup!$A$7:$G$7,0),0) ->  | D142: 13 | E142: 0 | F142: 0 | G142: =VLOOKUP(MID($A142,14,LEN($A142)-13)&"_"&$B142,finallookup!$AA$8:$AB$26,2,0) ->  | O142: 0 | P142: =IF(O142<>0,VLOOKUP(MID($A142,14,LEN($A142)-13)&"_"&$B142,finallookup!$AA$8:$AB$26,2,0),"") -> 
A143: 0 | B143: DHWkwh | C143: =VLOOKUP($A143,tbloutfnl,MATCH($B143,finallookup!$A$7:$G$7,0),0) ->  | D143: 13 | F143: 0 | G143: =VLOOKUP(MID($A143,14,LEN($A143)-13)&"_"&$B143,finallookup!$AA$8:$AB$26,2,0) ->  | O143: 0 | P143: =IF(O143<>0,VLOOKUP(MID($A143,14,LEN($A143)-13)&"_"&$B143,finallookup!$AA$8:$AB$26,2,0),"") -> 
A144: 0 | B144: Heatkwh | C144: =VLOOKUP($A144,tbloutfnl,MATCH($B144,finallookup!$A$7:$G$7,0),0) ->  | D144: 13 | E144: 0 | F144: 0 | G144: =VLOOKUP(MID($A144,14,LEN($A144)-13)&"_"&$B144,finallookup!$AA$8:$AB$26,2,0) ->  | P144: =IF(O144<>0,VLOOKUP(MID($A144,14,LEN($A144)-13)&"_"&$B144,finallookup!$AA$8:$AB$26,2,0),"") -> 
A145: 0 | B145: Coolkwh | C145: =VLOOKUP($A145,tbloutfnl,MATCH($B145,finallookup!$A$7:$G$7,0),0) ->  | D145: 13 | E145: 0 | F145: 0 | G145: =VLOOKUP(MID($A145,14,LEN($A145)-13)&"_"&$B145,finallookup!$AA$8:$AB$26,2,0) ->  | O145: 0 | P145: =IF(O145<>0,VLOOKUP(MID($A145,14,LEN($A145)-13)&"_"&$B145,finallookup!$AA$8:$AB$26,2,0),"") -> 
A146: 0 | B146: DHWkwh | C146: =VLOOKUP($A146,tbloutfnl,MATCH($B146,finallookup!$A$7:$G$7,0),0) ->  | D146: 13 | F146: 0 | G146: =VLOOKUP(MID($A146,14,LEN($A146)-13)&"_"&$B146,finallookup!$AA$8:$AB$26,2,0) ->  | O146: 0 | P146: =IF(O146<>0,VLOOKUP(MID($A146,14,LEN($A146)-13)&"_"&$B146,finallookup!$AA$8:$AB$26,2,0),"") -> 
A147: 0 | B147: Heatkwh | C147: =VLOOKUP($A147,tbloutfnl,MATCH($B147,finallookup!$A$7:$G$7,0),0) ->  | D147: 13 | E147: 0 | F147: 0 | G147: =VLOOKUP(MID($A147,14,LEN($A147)-13)&"_"&$B147,finallookup!$AA$8:$AB$26,2,0) ->  | P147: =IF(O147<>0,VLOOKUP(MID($A147,14,LEN($A147)-13)&"_"&$B147,finallookup!$AA$8:$AB$26,2,0),"") -> 
A148: 0 | B148: Coolkwh | C148: =VLOOKUP($A148,tbloutfnl,MATCH($B148,finallookup!$A$7:$G$7,0),0) ->  | D148: 13 | E148: 0 | F148: 0 | G148: =VLOOKUP(MID($A148,14,LEN($A148)-13)&"_"&$B148,finallookup!$AA$8:$AB$26,2,0) ->  | O148: 0 | P148: =IF(O148<>0,VLOOKUP(MID($A148,14,LEN($A148)-13)&"_"&$B148,finallookup!$AA$8:$AB$26,2,0),"") -> 
A149: 0 | B149: DHWkwh | C149: =VLOOKUP($A149,tbloutfnl,MATCH($B149,finallookup!$A$7:$G$7,0),0) ->  | D149: 13 | F149: 0 | G149: =VLOOKUP(MID($A149,14,LEN($A149)-13)&"_"&$B149,finallookup!$AA$8:$AB$26,2,0) ->  | O149: 0 | P149: =IF(O149<>0,VLOOKUP(MID($A149,14,LEN($A149)-13)&"_"&$B149,finallookup!$AA$8:$AB$26,2,0),"") -> 
A150: 0 | B150: Heatkwh | C150: =VLOOKUP($A150,tbloutfnl,MATCH($B150,finallookup!$A$7:$G$7,0),0) ->  | D150: 13 | E150: 0 | F150: 0 | G150: =VLOOKUP(MID($A150,14,LEN($A150)-13)&"_"&$B150,finallookup!$AA$8:$AB$26,2,0) ->  | P150: =IF(O150<>0,VLOOKUP(MID($A150,14,LEN($A150)-13)&"_"&$B150,finallookup!$AA$8:$AB$26,2,0),"") -> 
A151: 0 | B151: Coolkwh | C151: =VLOOKUP($A151,tbloutfnl,MATCH($B151,finallookup!$A$7:$G$7,0),0) ->  | D151: 13 | E151: 0 | F151: 0 | G151: =VLOOKUP(MID($A151,14,LEN($A151)-13)&"_"&$B151,finallookup!$AA$8:$AB$26,2,0) ->  | O151: 0 | P151: =IF(O151<>0,VLOOKUP(MID($A151,14,LEN($A151)-13)&"_"&$B151,finallookup!$AA$8:$AB$26,2,0),"") -> 
A152: 0 | B152: DHWkwh | C152: =VLOOKUP($A152,tbloutfnl,MATCH($B152,finallookup!$A$7:$G$7,0),0) ->  | D152: 13 | F152: 0 | G152: =VLOOKUP(MID($A152,14,LEN($A152)-13)&"_"&$B152,finallookup!$AA$8:$AB$26,2,0) ->  | O152: 0 | P152: =IF(O152<>0,VLOOKUP(MID($A152,14,LEN($A152)-13)&"_"&$B152,finallookup!$AA$8:$AB$26,2,0),"") -> 
A153: 0 | B153: Heatkwh | C153: =VLOOKUP($A153,tbloutfnl,MATCH($B153,finallookup!$A$7:$G$7,0),0) ->  | D153: 13 | E153: 0 | F153: 0 | G153: =VLOOKUP(MID($A153,14,LEN($A153)-13)&"_"&$B153,finallookup!$AA$8:$AB$26,2,0) ->  | P153: =IF(O153<>0,VLOOKUP(MID($A153,14,LEN($A153)-13)&"_"&$B153,finallookup!$AA$8:$AB$26,2,0),"") -> 
A154: 0 | B154: Coolkwh | C154: =VLOOKUP($A154,tbloutfnl,MATCH($B154,finallookup!$A$7:$G$7,0),0) ->  | D154: 13 | E154: 0 | F154: 0 | G154: =VLOOKUP(MID($A154,14,LEN($A154)-13)&"_"&$B154,finallookup!$AA$8:$AB$26,2,0) ->  | O154: 0 | P154: =IF(O154<>0,VLOOKUP(MID($A154,14,LEN($A154)-13)&"_"&$B154,finallookup!$AA$8:$AB$26,2,0),"") -> 
A155: 0 | B155: DHWkwh | C155: =VLOOKUP($A155,tbloutfnl,MATCH($B155,finallookup!$A$7:$G$7,0),0) ->  | D155: 13 | F155: 0 | G155: =VLOOKUP(MID($A155,14,LEN($A155)-13)&"_"&$B155,finallookup!$AA$8:$AB$26,2,0) ->  | O155: 0 | P155: =IF(O155<>0,VLOOKUP(MID($A155,14,LEN($A155)-13)&"_"&$B155,finallookup!$AA$8:$AB$26,2,0),"") -> 
A156: 0 | B156: Heatkwh | C156: =VLOOKUP($A156,tbloutfnl,MATCH($B156,finallookup!$A$7:$G$7,0),0) ->  | D156: 13 | E156: 0 | F156: 0 | G156: =VLOOKUP(MID($A156,14,LEN($A156)-13)&"_"&$B156,finallookup!$AA$8:$AB$26,2,0) ->  | P156: =IF(O156<>0,VLOOKUP(MID($A156,14,LEN($A156)-13)&"_"&$B156,finallookup!$AA$8:$AB$26,2,0),"") -> 
A157: 0 | B157: Coolkwh | C157: =VLOOKUP($A157,tbloutfnl,MATCH($B157,finallookup!$A$7:$G$7,0),0) ->  | D157: 13 | E157: 0 | F157: 0 | G157: =VLOOKUP(MID($A157,14,LEN($A157)-13)&"_"&$B157,finallookup!$AA$8:$AB$26,2,0) ->  | O157: 0 | P157: =IF(O157<>0,VLOOKUP(MID($A157,14,LEN($A157)-13)&"_"&$B157,finallookup!$AA$8:$AB$26,2,0),"") -> 
A158: 0 | B158: DHWkwh | C158: =VLOOKUP($A158,tbloutfnl,MATCH($B158,finallookup!$A$7:$G$7,0),0) ->  | D158: 13 | F158: 0 | G158: =VLOOKUP(MID($A158,14,LEN($A158)-13)&"_"&$B158,finallookup!$AA$8:$AB$26,2,0) ->  | O158: 0 | P158: =IF(O158<>0,VLOOKUP(MID($A158,14,LEN($A158)-13)&"_"&$B158,finallookup!$AA$8:$AB$26,2,0),"") -> 
A159: 0 | B159: Heatkwh | C159: =VLOOKUP($A159,tbloutfnl,MATCH($B159,finallookup!$A$7:$G$7,0),0) ->  | D159: 13 | E159: 0 | F159: 0 | G159: =VLOOKUP(MID($A159,14,LEN($A159)-13)&"_"&$B159,finallookup!$AA$8:$AB$26,2,0) ->  | P159: =IF(O159<>0,VLOOKUP(MID($A159,14,LEN($A159)-13)&"_"&$B159,finallookup!$AA$8:$AB$26,2,0),"") -> 
A160: 0 | B160: Coolkwh | C160: =VLOOKUP($A160,tbloutfnl,MATCH($B160,finallookup!$A$7:$G$7,0),0) ->  | D160: 13 | E160: 0 | F160: 0 | G160: =VLOOKUP(MID($A160,14,LEN($A160)-13)&"_"&$B160,finallookup!$AA$8:$AB$26,2,0) ->  | O160: 0 | P160: =IF(O160<>0,VLOOKUP(MID($A160,14,LEN($A160)-13)&"_"&$B160,finallookup!$AA$8:$AB$26,2,0),"") -> 
A161: 0 | B161: DHWkwh | C161: =VLOOKUP($A161,tbloutfnl,MATCH($B161,finallookup!$A$7:$G$7,0),0) ->  | D161: 13 | F161: 0 | G161: =VLOOKUP(MID($A161,14,LEN($A161)-13)&"_"&$B161,finallookup!$AA$8:$AB$26,2,0) ->  | O161: 0 | P161: =IF(O161<>0,VLOOKUP(MID($A161,14,LEN($A161)-13)&"_"&$B161,finallookup!$AA$8:$AB$26,2,0),"") -> 
A162: 0 | B162: Heatkwh | C162: =VLOOKUP($A162,tbloutfnl,MATCH($B162,finallookup!$A$7:$G$7,0),0) ->  | D162: 13 | E162: 0 | F162: 0 | G162: =VLOOKUP(MID($A162,14,LEN($A162)-13)&"_"&$B162,finallookup!$AA$8:$AB$26,2,0) ->  | P162: =IF(O162<>0,VLOOKUP(MID($A162,14,LEN($A162)-13)&"_"&$B162,finallookup!$AA$8:$AB$26,2,0),"") -> 
A163: 0 | B163: Coolkwh | C163: =VLOOKUP($A163,tbloutfnl,MATCH($B163,finallookup!$A$7:$G$7,0),0) ->  | D163: 13 | E163: 0 | F163: 0 | G163: =VLOOKUP(MID($A163,14,LEN($A163)-13)&"_"&$B163,finallookup!$AA$8:$AB$26,2,0) ->  | O163: 0 | P163: =IF(O163<>0,VLOOKUP(MID($A163,14,LEN($A163)-13)&"_"&$B163,finallookup!$AA$8:$AB$26,2,0),"") -> 
A164: 0 | B164: DHWkwh | C164: =VLOOKUP($A164,tbloutfnl,MATCH($B164,finallookup!$A$7:$G$7,0),0) ->  | D164: 13 | F164: 0 | G164: =VLOOKUP(MID($A164,14,LEN($A164)-13)&"_"&$B164,finallookup!$AA$8:$AB$26,2,0) ->  | O164: 0 | P164: =IF(O164<>0,VLOOKUP(MID($A164,14,LEN($A164)-13)&"_"&$B164,finallookup!$AA$8:$AB$26,2,0),"") -> 
A165: 0 | B165: Heatkwh | C165: =VLOOKUP($A165,tbloutfnl,MATCH($B165,finallookup!$A$7:$G$7,0),0) ->  | D165: 13 | E165: 0 | F165: 0 | G165: =VLOOKUP(MID($A165,14,LEN($A165)-13)&"_"&$B165,finallookup!$AA$8:$AB$26,2,0) ->  | P165: =IF(O165<>0,VLOOKUP(MID($A165,14,LEN($A165)-13)&"_"&$B165,finallookup!$AA$8:$AB$26,2,0),"") -> 
A166: 0 | B166: Coolkwh | C166: =VLOOKUP($A166,tbloutfnl,MATCH($B166,finallookup!$A$7:$G$7,0),0) ->  | D166: 13 | E166: 0 | F166: 0 | G166: =VLOOKUP(MID($A166,14,LEN($A166)-13)&"_"&$B166,finallookup!$AA$8:$AB$26,2,0) ->  | O166: 0 | P166: =IF(O166<>0,VLOOKUP(MID($A166,14,LEN($A166)-13)&"_"&$B166,finallookup!$AA$8:$AB$26,2,0),"") -> 
A167: 0 | B167: DHWkwh | C167: =VLOOKUP($A167,tbloutfnl,MATCH($B167,finallookup!$A$7:$G$7,0),0) ->  | D167: 13 | F167: 0 | G167: =VLOOKUP(MID($A167,14,LEN($A167)-13)&"_"&$B167,finallookup!$AA$8:$AB$26,2,0) ->  | O167: 0 | P167: =IF(O167<>0,VLOOKUP(MID($A167,14,LEN($A167)-13)&"_"&$B167,finallookup!$AA$8:$AB$26,2,0),"") -> 
A168: 0 | B168: Heatkwh | C168: =VLOOKUP($A168,tbloutfnl,MATCH($B168,finallookup!$A$7:$G$7,0),0) ->  | D168: 13 | E168: 0 | F168: 0 | G168: =VLOOKUP(MID($A168,14,LEN($A168)-13)&"_"&$B168,finallookup!$AA$8:$AB$26,2,0) ->  | P168: =IF(O168<>0,VLOOKUP(MID($A168,14,LEN($A168)-13)&"_"&$B168,finallookup!$AA$8:$AB$26,2,0),"") -> 
A169: 0 | B169: Coolkwh | C169: =VLOOKUP($A169,tbloutfnl,MATCH($B169,finallookup!$A$7:$G$7,0),0) ->  | D169: 13 | E169: 0 | F169: 0 | G169: =VLOOKUP(MID($A169,14,LEN($A169)-13)&"_"&$B169,finallookup!$AA$8:$AB$26,2,0) ->  | O169: 0 | P169: =IF(O169<>0,VLOOKUP(MID($A169,14,LEN($A169)-13)&"_"&$B169,finallookup!$AA$8:$AB$26,2,0),"") -> 
A170: 0 | B170: DHWkwh | C170: =VLOOKUP($A170,tbloutfnl,MATCH($B170,finallookup!$A$7:$G$7,0),0) ->  | D170: 13 | F170: 0 | G170: =VLOOKUP(MID($A170,14,LEN($A170)-13)&"_"&$B170,finallookup!$AA$8:$AB$26,2,0) ->  | O170: 0 | P170: =IF(O170<>0,VLOOKUP(MID($A170,14,LEN($A170)-13)&"_"&$B170,finallookup!$AA$8:$AB$26,2,0),"") -> 
A171: 0 | B171: Heatkwh | C171: =VLOOKUP($A171,tbloutfnl,MATCH($B171,finallookup!$A$7:$G$7,0),0) ->  | D171: 13 | E171: 0 | F171: 0 | G171: =VLOOKUP(MID($A171,14,LEN($A171)-13)&"_"&$B171,finallookup!$AA$8:$AB$26,2,0) ->  | P171: =IF(O171<>0,VLOOKUP(MID($A171,14,LEN($A171)-13)&"_"&$B171,finallookup!$AA$8:$AB$26,2,0),"") -> 
A172: 0 | B172: Coolkwh | C172: =VLOOKUP($A172,tbloutfnl,MATCH($B172,finallookup!$A$7:$G$7,0),0) ->  | D172: 13 | E172: 0 | F172: 0 | G172: =VLOOKUP(MID($A172,14,LEN($A172)-13)&"_"&$B172,finallookup!$AA$8:$AB$26,2,0) ->  | O172: 0 | P172: =IF(O172<>0,VLOOKUP(MID($A172,14,LEN($A172)-13)&"_"&$B172,finallookup!$AA$8:$AB$26,2,0),"") -> 
A173: 0 | B173: DHWkwh | C173: =VLOOKUP($A173,tbloutfnl,MATCH($B173,finallookup!$A$7:$G$7,0),0) ->  | D173: 13 | F173: 0 | G173: =VLOOKUP(MID($A173,14,LEN($A173)-13)&"_"&$B173,finallookup!$AA$8:$AB$26,2,0) ->  | O173: 0 | P173: =IF(O173<>0,VLOOKUP(MID($A173,14,LEN($A173)-13)&"_"&$B173,finallookup!$AA$8:$AB$26,2,0),"") -> 
A174: 0 | B174: Heatkwh | C174: =VLOOKUP($A174,tbloutfnl,MATCH($B174,finallookup!$A$7:$G$7,0),0) ->  | D174: 13 | E174: 0 | F174: 0 | G174: =VLOOKUP(MID($A174,14,LEN($A174)-13)&"_"&$B174,finallookup!$AA$8:$AB$26,2,0) ->  | P174: =IF(O174<>0,VLOOKUP(MID($A174,14,LEN($A174)-13)&"_"&$B174,finallookup!$AA$8:$AB$26,2,0),"") -> 
A175: 0 | B175: Coolkwh | C175: =VLOOKUP($A175,tbloutfnl,MATCH($B175,finallookup!$A$7:$G$7,0),0) ->  | D175: 13 | E175: 0 | F175: 0 | G175: =VLOOKUP(MID($A175,14,LEN($A175)-13)&"_"&$B175,finallookup!$AA$8:$AB$26,2,0) ->  | O175: 0 | P175: =IF(O175<>0,VLOOKUP(MID($A175,14,LEN($A175)-13)&"_"&$B175,finallookup!$AA$8:$AB$26,2,0),"") -> 
A176: 0 | B176: DHWkwh | C176: =VLOOKUP($A176,tbloutfnl,MATCH($B176,finallookup!$A$7:$G$7,0),0) ->  | D176: 13 | F176: 0 | G176: =VLOOKUP(MID($A176,14,LEN($A176)-13)&"_"&$B176,finallookup!$AA$8:$AB$26,2,0) ->  | O176: 0 | P176: =IF(O176<>0,VLOOKUP(MID($A176,14,LEN($A176)-13)&"_"&$B176,finallookup!$AA$8:$AB$26,2,0),"") -> 
A177: 0 | B177: Heatkwh | C177: =VLOOKUP($A177,tbloutfnl,MATCH($B177,finallookup!$A$7:$G$7,0),0) ->  | D177: 13 | E177: 0 | F177: 0 | G177: =VLOOKUP(MID($A177,14,LEN($A177)-13)&"_"&$B177,finallookup!$AA$8:$AB$26,2,0) ->  | P177: =IF(O177<>0,VLOOKUP(MID($A177,14,LEN($A177)-13)&"_"&$B177,finallookup!$AA$8:$AB$26,2,0),"") -> 
A178: 0 | B178: Coolkwh | C178: =VLOOKUP($A178,tbloutfnl,MATCH($B178,finallookup!$A$7:$G$7,0),0) ->  | D178: 13 | E178: 0 | F178: 0 | G178: =VLOOKUP(MID($A178,14,LEN($A178)-13)&"_"&$B178,finallookup!$AA$8:$AB$26,2,0) ->  | O178: 0 | P178: =IF(O178<>0,VLOOKUP(MID($A178,14,LEN($A178)-13)&"_"&$B178,finallookup!$AA$8:$AB$26,2,0),"") -> 
A179: 0 | B179: DHWkwh | C179: =VLOOKUP($A179,tbloutfnl,MATCH($B179,finallookup!$A$7:$G$7,0),0) ->  | D179: 13 | F179: 0 | G179: =VLOOKUP(MID($A179,14,LEN($A179)-13)&"_"&$B179,finallookup!$AA$8:$AB$26,2,0) ->  | O179: 0 | P179: =IF(O179<>0,VLOOKUP(MID($A179,14,LEN($A179)-13)&"_"&$B179,finallookup!$AA$8:$AB$26,2,0),"") -> 
A180: 0 | B180: Heatkwh | C180: =VLOOKUP($A180,tbloutfnl,MATCH($B180,finallookup!$A$7:$G$7,0),0) ->  | D180: 13 | E180: 0 | F180: 0 | G180: =VLOOKUP(MID($A180,14,LEN($A180)-13)&"_"&$B180,finallookup!$AA$8:$AB$26,2,0) ->  | P180: =IF(O180<>0,VLOOKUP(MID($A180,14,LEN($A180)-13)&"_"&$B180,finallookup!$AA$8:$AB$26,2,0),"") -> 
A181: 0 | B181: Coolkwh | C181: =VLOOKUP($A181,tbloutfnl,MATCH($B181,finallookup!$A$7:$G$7,0),0) ->  | D181: 13 | E181: 0 | F181: 0 | G181: =VLOOKUP(MID($A181,14,LEN($A181)-13)&"_"&$B181,finallookup!$AA$8:$AB$26,2,0) ->  | O181: 0 | P181: =IF(O181<>0,VLOOKUP(MID($A181,14,LEN($A181)-13)&"_"&$B181,finallookup!$AA$8:$AB$26,2,0),"") -> 
A182: 0 | B182: DHWkwh | C182: =VLOOKUP($A182,tbloutfnl,MATCH($B182,finallookup!$A$7:$G$7,0),0) ->  | D182: 13 | F182: 0 | G182: =VLOOKUP(MID($A182,14,LEN($A182)-13)&"_"&$B182,finallookup!$AA$8:$AB$26,2,0) ->  | O182: 0 | P182: =IF(O182<>0,VLOOKUP(MID($A182,14,LEN($A182)-13)&"_"&$B182,finallookup!$AA$8:$AB$26,2,0),"") -> 
A183: 0 | B183: Heatkwh | C183: =VLOOKUP($A183,tbloutfnl,MATCH($B183,finallookup!$A$7:$G$7,0),0) ->  | D183: 13 | E183: 0 | F183: 0 | G183: =VLOOKUP(MID($A183,14,LEN($A183)-13)&"_"&$B183,finallookup!$AA$8:$AB$26,2,0) ->  | P183: =IF(O183<>0,VLOOKUP(MID($A183,14,LEN($A183)-13)&"_"&$B183,finallookup!$AA$8:$AB$26,2,0),"") -> 
A184: 0 | B184: Coolkwh | C184: =VLOOKUP($A184,tbloutfnl,MATCH($B184,finallookup!$A$7:$G$7,0),0) ->  | D184: 13 | E184: 0 | F184: 0 | G184: =VLOOKUP(MID($A184,14,LEN($A184)-13)&"_"&$B184,finallookup!$AA$8:$AB$26,2,0) ->  | O184: 0 | P184: =IF(O184<>0,VLOOKUP(MID($A184,14,LEN($A184)-13)&"_"&$B184,finallookup!$AA$8:$AB$26,2,0),"") -> 
A185: 0 | B185: DHWkwh | C185: =VLOOKUP($A185,tbloutfnl,MATCH($B185,finallookup!$A$7:$G$7,0),0) ->  | D185: 13 | F185: 0 | G185: =VLOOKUP(MID($A185,14,LEN($A185)-13)&"_"&$B185,finallookup!$AA$8:$AB$26,2,0) ->  | O185: 0 | P185: =IF(O185<>0,VLOOKUP(MID($A185,14,LEN($A185)-13)&"_"&$B185,finallookup!$AA$8:$AB$26,2,0),"") -> 
A186: 0 | B186: Heatkwh | C186: =VLOOKUP($A186,tbloutfnl,MATCH($B186,finallookup!$A$7:$G$7,0),0) ->  | D186: 13 | E186: 0 | F186: 0 | G186: =VLOOKUP(MID($A186,14,LEN($A186)-13)&"_"&$B186,finallookup!$AA$8:$AB$26,2,0) ->  | P186: =IF(O186<>0,VLOOKUP(MID($A186,14,LEN($A186)-13)&"_"&$B186,finallookup!$AA$8:$AB$26,2,0),"") -> 
A187: 0 | B187: Coolkwh | C187: =VLOOKUP($A187,tbloutfnl,MATCH($B187,finallookup!$A$7:$G$7,0),0) ->  | D187: 13 | E187: 0 | F187: 0 | G187: =VLOOKUP(MID($A187,14,LEN($A187)-13)&"_"&$B187,finallookup!$AA$8:$AB$26,2,0) ->  | O187: 0 | P187: =IF(O187<>0,VLOOKUP(MID($A187,14,LEN($A187)-13)&"_"&$B187,finallookup!$AA$8:$AB$26,2,0),"") -> 
A188: 0 | B188: DHWkwh | C188: =VLOOKUP($A188,tbloutfnl,MATCH($B188,finallookup!$A$7:$G$7,0),0) ->  | D188: 13 | F188: 0 | G188: =VLOOKUP(MID($A188,14,LEN($A188)-13)&"_"&$B188,finallookup!$AA$8:$AB$26,2,0) ->  | O188: 0 | P188: =IF(O188<>0,VLOOKUP(MID($A188,14,LEN($A188)-13)&"_"&$B188,finallookup!$AA$8:$AB$26,2,0),"") -> 
A189: 0 | B189: Heatkwh | C189: =VLOOKUP($A189,tbloutfnl,MATCH($B189,finallookup!$A$7:$G$7,0),0) ->  | D189: 13 | E189: 0 | F189: 0 | G189: =VLOOKUP(MID($A189,14,LEN($A189)-13)&"_"&$B189,finallookup!$AA$8:$AB$26,2,0) ->  | P189: =IF(O189<>0,VLOOKUP(MID($A189,14,LEN($A189)-13)&"_"&$B189,finallookup!$AA$8:$AB$26,2,0),"") -> 
A190: 0 | B190: Coolkwh | C190: =VLOOKUP($A190,tbloutfnl,MATCH($B190,finallookup!$A$7:$G$7,0),0) ->  | D190: 13 | E190: 0 | F190: 0 | G190: =VLOOKUP(MID($A190,14,LEN($A190)-13)&"_"&$B190,finallookup!$AA$8:$AB$26,2,0) ->  | O190: 0 | P190: =IF(O190<>0,VLOOKUP(MID($A190,14,LEN($A190)-13)&"_"&$B190,finallookup!$AA$8:$AB$26,2,0),"") -> 
A191: 0 | B191: DHWkwh | C191: =VLOOKUP($A191,tbloutfnl,MATCH($B191,finallookup!$A$7:$G$7,0),0) ->  | D191: 13 | F191: 0 | G191: =VLOOKUP(MID($A191,14,LEN($A191)-13)&"_"&$B191,finallookup!$AA$8:$AB$26,2,0) ->  | O191: 0 | P191: =IF(O191<>0,VLOOKUP(MID($A191,14,LEN($A191)-13)&"_"&$B191,finallookup!$AA$8:$AB$26,2,0),"") -> 
A192: 0 | B192: Heatkwh | C192: =VLOOKUP($A192,tbloutfnl,MATCH($B192,finallookup!$A$7:$G$7,0),0) ->  | D192: 13 | E192: 0 | F192: 0 | G192: =VLOOKUP(MID($A192,14,LEN($A192)-13)&"_"&$B192,finallookup!$AA$8:$AB$26,2,0) ->  | P192: =IF(O192<>0,VLOOKUP(MID($A192,14,LEN($A192)-13)&"_"&$B192,finallookup!$AA$8:$AB$26,2,0),"") -> 
A193: 0 | B193: Coolkwh | C193: =VLOOKUP($A193,tbloutfnl,MATCH($B193,finallookup!$A$7:$G$7,0),0) ->  | D193: 13 | E193: 0 | F193: 0 | G193: =VLOOKUP(MID($A193,14,LEN($A193)-13)&"_"&$B193,finallookup!$AA$8:$AB$26,2,0) ->  | O193: 0 | P193: =IF(O193<>0,VLOOKUP(MID($A193,14,LEN($A193)-13)&"_"&$B193,finallookup!$AA$8:$AB$26,2,0),"") -> 
A194: 0 | B194: DHWkwh | C194: =VLOOKUP($A194,tbloutfnl,MATCH($B194,finallookup!$A$7:$G$7,0),0) ->  | D194: 13 | F194: 0 | G194: =VLOOKUP(MID($A194,14,LEN($A194)-13)&"_"&$B194,finallookup!$AA$8:$AB$26,2,0) ->  | O194: 0 | P194: =IF(O194<>0,VLOOKUP(MID($A194,14,LEN($A194)-13)&"_"&$B194,finallookup!$AA$8:$AB$26,2,0),"") -> 
A195: 0 | B195: Heatkwh | C195: =VLOOKUP($A195,tbloutfnl,MATCH($B195,finallookup!$A$7:$G$7,0),0) ->  | D195: 13 | E195: 0 | F195: 0 | G195: =VLOOKUP(MID($A195,14,LEN($A195)-13)&"_"&$B195,finallookup!$AA$8:$AB$26,2,0) ->  | P195: =IF(O195<>0,VLOOKUP(MID($A195,14,LEN($A195)-13)&"_"&$B195,finallookup!$AA$8:$AB$26,2,0),"") -> 
A196: 0 | B196: Coolkwh | C196: =VLOOKUP($A196,tbloutfnl,MATCH($B196,finallookup!$A$7:$G$7,0),0) ->  | D196: 13 | E196: 0 | F196: 0 | G196: =VLOOKUP(MID($A196,14,LEN($A196)-13)&"_"&$B196,finallookup!$AA$8:$AB$26,2,0) ->  | O196: 0 | P196: =IF(O196<>0,VLOOKUP(MID($A196,14,LEN($A196)-13)&"_"&$B196,finallookup!$AA$8:$AB$26,2,0),"") -> 
A197: 0 | B197: DHWkwh | C197: =VLOOKUP($A197,tbloutfnl,MATCH($B197,finallookup!$A$7:$G$7,0),0) ->  | D197: 13 | F197: 0 | G197: =VLOOKUP(MID($A197,14,LEN($A197)-13)&"_"&$B197,finallookup!$AA$8:$AB$26,2,0) ->  | O197: 0 | P197: =IF(O197<>0,VLOOKUP(MID($A197,14,LEN($A197)-13)&"_"&$B197,finallookup!$AA$8:$AB$26,2,0),"") -> 
A198: 0 | B198: Heatkwh | C198: =VLOOKUP($A198,tbloutfnl,MATCH($B198,finallookup!$A$7:$G$7,0),0) ->  | D198: 13 | E198: 0 | F198: 0 | G198: =VLOOKUP(MID($A198,14,LEN($A198)-13)&"_"&$B198,finallookup!$AA$8:$AB$26,2,0) ->  | P198: =IF(O198<>0,VLOOKUP(MID($A198,14,LEN($A198)-13)&"_"&$B198,finallookup!$AA$8:$AB$26,2,0),"") -> 
A199: 0 | B199: Coolkwh | C199: =VLOOKUP($A199,tbloutfnl,MATCH($B199,finallookup!$A$7:$G$7,0),0) ->  | D199: 13 | E199: 0 | F199: 0 | G199: =VLOOKUP(MID($A199,14,LEN($A199)-13)&"_"&$B199,finallookup!$AA$8:$AB$26,2,0) ->  | O199: 0 | P199: =IF(O199<>0,VLOOKUP(MID($A199,14,LEN($A199)-13)&"_"&$B199,finallookup!$AA$8:$AB$26,2,0),"") -> 
A200: =INDEX(tbloutfnl,CEILING((ROW(A200)-ROW($A$8)+1)/3,1),1) -> 0 | B200: DHWkwh | C200: =VLOOKUP($A200,tbloutfnl,MATCH($B200,finallookup!$A$7:$G$7,0),0) ->  | D200: 13 | E200: =IF(B200="DHWkwh",VLOOKUP($A200,tbloutfnl,7,0),0) ->  | F200: 0 | G200: =VLOOKUP(MID($A200,14,LEN($A200)-13)&"_"&$B200,finallookup!$AA$8:$AB$26,2,0) ->  | H200: =VLOOKUP($A200,tbloutfnl,8,0) ->  | O200: =IF(B200="Heatkwh",VLOOKUP($A200,tbloutfnl,4,0),0) -> 0 | P200: =IF(O200<>0,VLOOKUP(MID($A200,14,LEN($A200)-13)&"_"&$B200,finallookup!$AA$8:$AB$26,2,0),"") -> 
A201: 0 | B201: Heatkwh | C201: =VLOOKUP($A201,tbloutfnl,MATCH($B201,finallookup!$A$7:$G$7,0),0) ->  | D201: 13 | E201: 0 | F201: 0 | G201: =VLOOKUP(MID($A201,14,LEN($A201)-13)&"_"&$B201,finallookup!$AA$8:$AB$26,2,0) ->  | P201: =IF(O201<>0,VLOOKUP(MID($A201,14,LEN($A201)-13)&"_"&$B201,finallookup!$AA$8:$AB$26,2,0),"") -> 
... 1033 more rows

Sheet LookupTable (hidden)
A1: 1 | B1: 2 | C1: 3 | D1: 4 | E1: 5 | G1: 7 | H1: 8 | I1: 9 | K1: 11 | M1: 13 | O1: 15 | P1: 16 | R1: 18 | T1: 20 | U1: 21 | V1: 22 | W1: 23 | X1: 24 | Y1: 25
A2: Original Measure Name | B2: Sector | C2: Category | D2: Subcategory | E2: Technology, Measure or Practice | F2: Unit Type | G2: Building Type | H2: Vintage | I2: Other 1 | J2: Other 2 | K2: Delivery Mechanism or Program | L2: ID_Mechanism | M2: Application | N2: ID_Application | O2: Lost Opportunity? | P2: Location | Q2: ID_ClimateZone | R2: Basis of Savings | S2: ID_Basis | T2: End User Benefits | U2: Societal Benefits | V2: Related Programs/Activities | W2: Comments | X2: Credit/ Reimbursement | Y2: Reference No
A3: Tier1_garage_HZ1 | B3: Residential | C3: Water Heating | D3: Efficient Tanks | E3: Heat Pump Water Heater | G3: Single Family | H3: New and Existing Construction | I3: Complies with Tier1 of NEEA's Northern Climate HPWH Specification | K3: Manufacturer, Dealer or Consumer Rebate and Direct Installations. | M3: Unit installed in an unheated buffer location. | O3: Yes | P3: HZ1 | R3: UES | T3: Tier1_garage_HZ1ResidentialWater HeatingEfficient TanksHeat Pump Water HeaterSingle FamilyNew and Existing ConstructionComplies with Tier1 of NEEA's Northern Climate HPWH SpecificationManufacturer, Dealer or Consumer Rebate and Direct Installations. Unit installed in an unheated buffer location.YesHZ1UES
A4: Tier1_garage_HZ2 | B4: Residential | C4: Water Heating | D4: Efficient Tanks | E4: Heat Pump Water Heater | G4: Single Family | H4: New and Existing Construction | I4: Complies with Tier1 of NEEA's Northern Climate HPWH Specification | K4: Manufacturer, Dealer or Consumer Rebate and Direct Installations. | M4: Unit installed in an unheated buffer location. | O4: Yes | P4: HZ2 | R4: UES | T4: Tier1_garage_HZ2ResidentialWater HeatingEfficient TanksHeat Pump Water HeaterSingle FamilyNew and Existing ConstructionComplies with Tier1 of NEEA's Northern Climate HPWH SpecificationManufacturer, Dealer or Consumer Rebate and Direct Installations. Unit installed in an unheated buffer location.YesHZ2UES | U4: FALSE
A5: Tier1_garage_HZ3 | B5: Residential | C5: Water Heating | D5: Efficient Tanks | E5: Heat Pump Water Heater | G5: Single Family | H5: New and Existing Construction | I5: Complies with Tier1 of NEEA's Northern Climate HPWH Specification | K5: Manufacturer, Dealer or Consumer Rebate and Direct Installations. | M5: Unit installed in an unheated buffer location. | O5: Yes | P5: HZ3 | R5: UES | T5: Tier1_garage_HZ3ResidentialWater HeatingEfficient TanksHeat Pump Water HeaterSingle FamilyNew and Existing ConstructionComplies with Tier1 of NEEA's Northern Climate HPWH SpecificationManufacturer, Dealer or Consumer Rebate and Direct Installations. Unit installed in an unheated buffer location.YesHZ3UES | U5: FALSE
A6: Tier1_basmnt_HZ1 | B6: Residential | C6: Water Heating | D6: Efficient Tanks | E6: Heat Pump Water Heater | G6: Single Family | H6: New and Existing Construction | I6: Complies with Tier1 of NEEA's Northern Climate HPWH Specification | K6: Manufacturer, Dealer or Consumer Rebate and Direct Installations. | M6: Unit installed in an unheated buffer location. | O6: Yes | P6: HZ1 | R6: UES | T6: Tier1_basmnt_HZ1ResidentialWater HeatingEfficient TanksHeat Pump Water HeaterSingle FamilyNew and Existing ConstructionComplies with Tier1 of NEEA's Northern Climate HPWH SpecificationManufacturer, Dealer or Consumer Rebate and Direct Installations. Unit installed in an unheated buffer location.YesHZ1UES | U6: FALSE
A7: Tier1_basmnt_HZ2 | B7: Residential | C7: Water Heating | D7: Efficient Tanks | E7: Heat Pump Water Heater | G7: Single Family | H7: New and Existing Construction | I7: Complies with Tier1 of NEEA's Northern Climate HPWH Specification | K7: Manufacturer, Dealer or Consumer Rebate and Direct Installations. | M7: Unit installed in an unheated buffer location. | O7: Yes | P7: HZ2 | R7: UES | T7: Tier1_basmnt_HZ2ResidentialWater HeatingEfficient TanksHeat Pump Water HeaterSingle FamilyNew and Existing ConstructionComplies with Tier1 of NEEA's Northern Climate HPWH SpecificationManufacturer, Dealer or Consumer Rebate and Direct Installations. Unit installed in an unheated buffer location.YesHZ2UES | U7: FALSE
A8: Tier1_basmnt_HZ3 | B8: Residential | C8: Water Heating | D8: Efficient Tanks | E8: Heat Pump Water Heater | G8: Single Family | H8: New and Existing Construction | I8: Complies with Tier1 of NEEA's Northern Climate HPWH Specification | K8: Manufacturer, Dealer or Consumer Rebate and Direct Installations. | M8: Unit installed in an unheated buffer location. | O8: Yes | P8: HZ3 | R8: UES | T8: Tier1_basmnt_HZ3ResidentialWater HeatingEfficient TanksHeat Pump Water HeaterSingle FamilyNew and Existing ConstructionComplies with Tier1 of NEEA's Northern Climate HPWH SpecificationManufacturer, Dealer or Consumer Rebate and Direct Installations. Unit installed in an unheated buffer location.YesHZ3UES | U8: FALSE
A9: Tier1_indor2_HZ1_gfnc | B9: Residential | C9: Water Heating | D9: Efficient Tanks | E9: Heat Pump Water Heater | G9: Single Family | H9: New and Existing Construction | I9: Complies with Tier1 of NEEA's Northern Climate HPWH Specification | K9: Manufacturer, Dealer or Consumer Rebate and Direct Installations. | M9: Unit installed inside conditioned space. Primary house space heating system fueled by gas. | O9: Yes | P9: HZ1 | R9: UES | T9: Tier1_indor2_HZ1_gfncResidentialWater HeatingEfficient TanksHeat Pump Water HeaterSingle FamilyNew and Existing ConstructionComplies with Tier1 of NEEA's Northern Climate HPWH SpecificationManufacturer, Dealer or Consumer Rebate and Direct Installations. Unit installed inside conditioned space. Primary house space heating system fueled by gas.YesHZ1UES | U9: FALSE
A10: Tier1_indor2_HZ1_gfac | B10: Residential | C10: Water Heating | D10: Efficient Tanks | E10: Heat Pump Water Heater | G10: Single Family | H10: New and Existing Construction | I10: Complies with Tier1 of NEEA's Northern Climate HPWH Specification | K10: Manufacturer, Dealer or Consumer Rebate and Direct Installations. | M10: Unit installed inside conditioned space. Primary house space heating system fueled by gas. | O10: Yes | P10: HZ1 | R10: UES | T10: Tier1_indor2_HZ1_gfacResidentialWater HeatingEfficient TanksHeat Pump Water HeaterSingle FamilyNew and Existing ConstructionComplies with Tier1 of NEEA's Northern Climate HPWH SpecificationManufacturer, Dealer or Consumer Rebate and Direct Installations. Unit installed inside conditioned space. Primary house space heating system fueled by gas.YesHZ1UES | U10: FALSE
A11: Tier1_indor2_HZ1_efaf | B11: Residential | C11: Water Heating | D11: Efficient Tanks | E11: Heat Pump Water Heater | G11: Single Family | H11: New and Existing Construction | I11: Complies with Tier1 of NEEA's Northern Climate HPWH Specification | K11: Manufacturer, Dealer or Consumer Rebate and Direct Installations. | M11: Unit installed inside conditioned space. Electric FAF primary space heating system. | O11: Yes | P11: HZ1 | R11: UES | T11: Tier1_indor2_HZ1_efafResidentialWater HeatingEfficient TanksHeat Pump Water HeaterSingle FamilyNew and Existing ConstructionComplies with Tier1 of NEEA's Northern Climate HPWH SpecificationManufacturer, Dealer or Consumer Rebate and Direct Installations. Unit installed inside conditioned space. Electric FAF primary space heating system.YesHZ1UES | U11: FALSE
A12: Tier1_indor2_HZ1_hp85 | B12: Residential | C12: Water Heating | D12: Efficient Tanks | E12: Heat Pump Water Heater | G12: Single Family | H12: New and Existing Construction | I12: Complies with Tier1 of NEEA's Northern Climate HPWH Specification | K12: Manufacturer, Dealer or Consumer Rebate and Direct Installations. | M12: Unit installed inside conditioned space. Heat Pump or Ductless Heat Pump primary space heating system. | O12: Yes | P12: HZ1 | R12: UES | T12: Tier1_indor2_HZ1_hp85ResidentialWater HeatingEfficient TanksHeat Pump Water HeaterSingle FamilyNew and Existing ConstructionComplies with Tier1 of NEEA's Northern Climate HPWH SpecificationManufacturer, Dealer or Consumer Rebate and Direct Installations. Unit installed inside conditioned space. Heat Pump primary space heating system.YesHZ1UES | U12: FALSE
A13: Tier1_indor2_HZ1_zonl | B13: Residential | C13: Water Heating | D13: Efficient Tanks | E13: Heat Pump Water Heater | G13: Single Family | H13: New and Existing Construction | I13: Complies with Tier1 of NEEA's Northern Climate HPWH Specification | K13: Manufacturer, Dealer or Consumer Rebate and Direct Installations. | M13: Unit installed inside conditioned space. Zonal electric primary space heating system. | O13: Yes | P13: HZ1 | R13: UES | T13: Tier1_indor2_HZ1_zonlResidentialWater HeatingEfficient TanksHeat Pump Water HeaterSingle FamilyNew and Existing ConstructionComplies with Tier1 of NEEA's Northern Climate HPWH SpecificationManufacturer, Dealer or Consumer Rebate and Direct Installations. Unit installed inside conditioned space. Zonal electric primary space heating system.YesHZ1UES | U13: FALSE
A14: Tier1_indor2_HZ2_gfnc | B14: Residential | C14: Water Heating | D14: Efficient Tanks | E14: Heat Pump Water Heater | G14: Single Family | H14: New and Existing Construction | I14: Complies with Tier1 of NEEA's Northern Climate HPWH Specification | K14: Manufacturer, Dealer or Consumer Rebate and Direct Installations. | M14: Unit installed inside conditioned space. Primary house space heating system fueled by gas. | O14: Yes | P14: HZ2 | R14: UES | T14: Tier1_indor2_HZ2_gfncResidentialWater HeatingEfficient TanksHeat Pump Water HeaterSingle FamilyNew and Existing ConstructionComplies with Tier1 of NEEA's Northern Climate HPWH SpecificationManufacturer, Dealer or Consumer Rebate and Direct Installations. Unit installed inside conditioned space. Primary house space heating system fueled by gas.YesHZ2UES | U14: FALSE
A15: Tier1_indor2_HZ2_gfac | B15: Residential | C15: Water Heating | D15: Efficient Tanks | E15: Heat Pump Water Heater | G15: Single Family | H15: New and Existing Construction | I15: Complies with Tier1 of NEEA's Northern Climate HPWH Specification | K15: Manufacturer, Dealer or Consumer Rebate and Direct Installations. | M15: Unit installed inside conditioned space. Primary house space heating system fueled by gas. | O15: Yes | P15: HZ2 | R15: UES | T15: Tier1_indor2_HZ2_gfacResidentialWater HeatingEfficient TanksHeat Pump Water HeaterSingle FamilyNew and Existing ConstructionComplies with Tier1 of NEEA's Northern Climate HPWH SpecificationManufacturer, Dealer or Consumer Rebate and Direct Installations. Unit installed inside conditioned space. Primary house space heating system fueled by gas.YesHZ2UES | U15: FALSE
A16: Tier1_indor2_HZ2_efaf | B16: Residential | C16: Water Heating | D16: Efficient Tanks | E16: Heat Pump Water Heater | G16: Single Family | H16: New and Existing Construction | I16: Complies with Tier1 of NEEA's Northern Climate HPWH Specification | K16: Manufacturer, Dealer or Consumer Rebate and Direct Installations. | M16: Unit installed inside conditioned space. Electric FAF primary space heating system. | O16: Yes | P16: HZ2 | R16: UES | T16: Tier1_indor2_HZ2_efafResidentialWater HeatingEfficient TanksHeat Pump Water HeaterSingle FamilyNew and Existing ConstructionComplies with Tier1 of NEEA's Northern Climate HPWH SpecificationManufacturer, Dealer or Consumer Rebate and Direct Installations. Unit installed inside conditioned space. Electric FAF primary space heating system.YesHZ2UES | U16: FALSE
A17: Tier1_indor2_HZ2_hp85 | B17: Residential | C17: Water Heating | D17: Efficient Tanks | E17: Heat Pump Water Heater | G17: Single Family | H17: New and Existing Construction | I17: Complies with Tier1 of NEEA's Northern Climate HPWH Specification | K17: Manufacturer, Dealer or Consumer Rebate and Direct Installations. | M17: Unit installed inside conditioned space. Heat Pump or Ductless Heat Pump primary space heating system. | O17: Yes | P17: HZ2 | R17: UES | T17: Tier1_indor2_HZ2_hp85ResidentialWater HeatingEfficient TanksHeat Pump Water HeaterSingle FamilyNew and Existing ConstructionComplies with Tier1 of NEEA's Northern Climate HPWH SpecificationManufacturer, Dealer or Consumer Rebate and Direct Installations. Unit installed inside conditioned space. Heat Pump primary space heating system.YesHZ2UES | U17: FALSE
A18: Tier1_indor2_HZ2_zonl | B18: Residential | C18: Water Heating | D18: Efficient Tanks | E18: Heat Pump Water Heater | G18: Single Family | H18: New and Existing Construction | I18: Complies with Tier1 of NEEA's Northern Climate HPWH Specification | K18: Manufacturer, Dealer or Consumer Rebate and Direct Installations. | M18: Unit installed inside conditioned space. Zonal electric primary space heating system. | O18: Yes | P18: HZ2 | R18: UES | T18: Tier1_indor2_HZ2_zonlResidentialWater HeatingEfficient TanksHeat Pump Water HeaterSingle FamilyNew and Existing ConstructionComplies with Tier1 of NEEA's Northern Climate HPWH SpecificationManufacturer, Dealer or Consumer Rebate and Direct Installations. Unit installed inside conditioned space. Zonal electric primary space heating system.YesHZ2UES | U18: FALSE
A19: Tier1_indor2_HZ3_gfnc | B19: Residential | C19: Water Heating | D19: Efficient Tanks | E19: Heat Pump Water Heater | G19: Single Family | H19: New and Existing Construction | I19: Complies with Tier1 of NEEA's Northern Climate HPWH Specification | K19: Manufacturer, Dealer or Consumer Rebate and Direct Installations. | M19: Unit installed inside conditioned space. Primary house space heating system fueled by gas. | O19: Yes | P19: HZ3 | R19: UES | T19: Tier1_indor2_HZ3_gfncResidentialWater HeatingEfficient TanksHeat Pump Water HeaterSingle FamilyNew and Existing ConstructionComplies with Tier1 of NEEA's Northern Climate HPWH SpecificationManufacturer, Dealer or Consumer Rebate and Direct Installations. Unit installed inside conditioned space. Primary house space heating system fueled by gas.YesHZ3UES | U19: FALSE
A20: Tier1_indor2_HZ3_gfac | B20: Residential | C20: Water Heating | D20: Efficient Tanks | E20: Heat Pump Water Heater | G20: Single Family | H20: New and Existing Construction | I20: Complies with Tier1 of NEEA's Northern Climate HPWH Specification | K20: Manufacturer, Dealer or Consumer Rebate and Direct Installations. | M20: Unit installed inside conditioned space. Primary house space heating system fueled by gas. | O20: Yes | P20: HZ3 | R20: UES | T20: Tier1_indor2_HZ3_gfacResidentialWater HeatingEfficient TanksHeat Pump Water HeaterSingle FamilyNew and Existing ConstructionComplies with Tier1 of NEEA's Northern Climate HPWH SpecificationManufacturer, Dealer or Consumer Rebate and Direct Installations. Unit installed inside conditioned space. Primary house space heating system fueled by gas.YesHZ3UES | U20: FALSE
A21: Tier1_indor2_HZ3_efaf | B21: Residential | C21: Water Heating | D21: Efficient Tanks | E21: Heat Pump Water Heater | G21: Single Family | H21: New and Existing Construction | I21: Complies with Tier1 of NEEA's Northern Climate HPWH Specification | K21: Manufacturer, Dealer or Consumer Rebate and Direct Installations. | M21: Unit installed inside conditioned space. Electric FAF primary space heating system. | O21: Yes | P21: HZ3 | R21: UES | T21: Tier1_indor2_HZ3_efafResidentialWater HeatingEfficient TanksHeat Pump Water HeaterSingle FamilyNew and Existing ConstructionComplies with Tier1 of NEEA's Northern Climate HPWH SpecificationManufacturer, Dealer or Consumer Rebate and Direct Installations. Unit installed inside conditioned space. Electric FAF primary space heating system.YesHZ3UES | U21: FALSE
A22: Tier1_indor2_HZ3_hp85 | B22: Residential | C22: Water Heating | D22: Efficient Tanks | E22: Heat Pump Water Heater | G22: Single Family | H22: New and Existing Construction | I22: Complies with Tier1 of NEEA's Northern Climate HPWH Specification | K22: Manufacturer, Dealer or Consumer Rebate and Direct Installations. | M22: Unit installed inside conditioned space. Heat Pump or Ductless Heat Pump primary space heating system. | O22: Yes | P22: HZ3 | R22: UES | T22: Tier1_indor2_HZ3_hp85ResidentialWater HeatingEfficient TanksHeat Pump Water HeaterSingle FamilyNew and Existing ConstructionComplies with Tier1 of NEEA's Northern Climate HPWH SpecificationManufacturer, Dealer or Consumer Rebate and Direct Installations. Unit installed inside conditioned space. Heat Pump primary space heating system.YesHZ3UES | U22: FALSE
A23: Tier1_indor2_HZ3_zonl | B23: Residential | C23: Water Heating | D23: Efficient Tanks | E23: Heat Pump Water Heater | G23: Single Family | H23: New and Existing Construction | I23: Complies with Tier1 of NEEA's Northern Climate HPWH Specification | K23: Manufacturer, Dealer or Consumer Rebate and Direct Installations. | M23: Unit installed inside conditioned space. Zonal electric primary space heating system. | O23: Yes | P23: HZ3 | R23: UES | T23: Tier1_indor2_HZ3_zonlResidentialWater HeatingEfficient TanksHeat Pump Water HeaterSingle FamilyNew and Existing ConstructionComplies with Tier1 of NEEA's Northern Climate HPWH SpecificationManufacturer, Dealer or Consumer Rebate and Direct Installations. Unit installed inside conditioned space. Zonal electric primary space heating system.YesHZ3UES | U23: FALSE
A24: Tier2_garage_HZ1 | B24: Residential | C24: Water Heating | D24: Efficient Tanks | E24: Heat Pump Water Heater | G24: Single Family | H24: New and Existing Construction | I24: Complies with Tier2 of NEEA's Northern Climate HPWH Specification | K24: Manufacturer, Dealer or Consumer Rebate and Direct Installations. | M24: Unit installed in an unheated buffer location. | O24: Yes | P24: HZ1 | R24: UES | T24: Tier2_garage_HZ1ResidentialWater HeatingEfficient TanksHeat Pump Water HeaterSingle FamilyNew and Existing ConstructionComplies with Tier2 of NEEA's Northern Climate HPWH SpecificationManufacturer, Dealer or Consumer Rebate and Direct Installations. Unit installed in an unheated buffer location.YesHZ1UES | U24: FALSE
A25: Tier2_garage_HZ2 | B25: Residential | C25: Water Heating | D25: Efficient Tanks | E25: Heat Pump Water Heater | G25: Single Family | H25: New and Existing Construction | I25: Complies with Tier2 of NEEA's Northern Climate HPWH Specification | K25: Manufacturer, Dealer or Consumer Rebate and Direct Installations. | M25: Unit installed in an unheated buffer location. | O25: Yes | P25: HZ2 | R25: UES | T25: Tier2_garage_HZ2ResidentialWater HeatingEfficient TanksHeat Pump Water HeaterSingle FamilyNew and Existing ConstructionComplies with Tier2 of NEEA's Northern Climate HPWH SpecificationManufacturer, Dealer or Consumer Rebate and Direct Installations. Unit installed in an unheated buffer location.YesHZ2UES | U25: FALSE
A26: Tier2_garage_HZ3 | B26: Residential | C26: Water Heating | D26: Efficient Tanks | E26: Heat Pump Water Heater | G26: Single Family | H26: New and Existing Construction | I26: Complies with Tier2 of NEEA's Northern Climate HPWH Specification | K26: Manufacturer, Dealer or Consumer Rebate and Direct Installations. | M26: Unit installed in an unheated buffer location. | O26: Yes | P26: HZ3 | R26: UES | T26: Tier2_garage_HZ3ResidentialWater HeatingEfficient TanksHeat Pump Water HeaterSingle FamilyNew and Existing ConstructionComplies with Tier2 of NEEA's Northern Climate HPWH SpecificationManufacturer, Dealer or Consumer Rebate and Direct Installations. Unit installed in an unheated buffer location.YesHZ3UES | U26: FALSE
A27: Tier2_basmnt_HZ1 | B27: Residential | C27: Water Heating | D27: Efficient Tanks | E27: Heat Pump Water Heater | G27: Single Family | H27: New and Existing Construction | I27: Complies with Tier2 of NEEA's Northern Climate HPWH Specification | K27: Manufacturer, Dealer or Consumer Rebate and Direct Installations. | M27: Unit installed in an unheated buffer location. | O27: Yes | P27: HZ1 | R27: UES | T27: Tier2_basmnt_HZ1ResidentialWater HeatingEfficient TanksHeat Pump Water HeaterSingle FamilyNew and Existing ConstructionComplies with Tier2 of NEEA's Northern Climate HPWH SpecificationManufacturer, Dealer or Consumer Rebate and Direct Installations. Unit installed in an unheated buffer location.YesHZ1UES | U27: FALSE
A28: Tier2_basmnt_HZ2 | B28: Residential | C28: Water Heating | D28: Efficient Tanks | E28: Heat Pump Water Heater | G28: Single Family | H28: New and Existing Construction | I28: Complies with Tier2 of NEEA's Northern Climate HPWH Specification | K28: Manufacturer, Dealer or Consumer Rebate and Direct Installations. | M28: Unit installed in an unheated buffer location. | O28: Yes | P28: HZ2 | R28: UES | T28: Tier2_basmnt_HZ2ResidentialWater HeatingEfficient TanksHeat Pump Water HeaterSingle FamilyNew and Existing ConstructionComplies with Tier2 of NEEA's Northern Climate HPWH SpecificationManufacturer, Dealer or Consumer Rebate and Direct Installations. Unit installed in an unheated buffer location.YesHZ2UES | U28: FALSE
A29: Tier2_basmnt_HZ3 | B29: Residential | C29: Water Heating | D29: Efficient Tanks | E29: Heat Pump Water Heater | G29: Single Family | H29: New and Existing Construction | I29: Complies with Tier2 of NEEA's Northern Climate HPWH Specification | K29: Manufacturer, Dealer or Consumer Rebate and Direct Installations. | M29: Unit installed in an unheated buffer location. | O29: Yes | P29: HZ3 | R29: UES | T29: Tier2_basmnt_HZ3ResidentialWater HeatingEfficient TanksHeat Pump Water HeaterSingle FamilyNew and Existing ConstructionComplies with Tier2 of NEEA's Northern Climate HPWH SpecificationManufacturer, Dealer or Consumer Rebate and Direct Installations. Unit installed in an unheated buffer location.YesHZ3UES | U29: FALSE
A30: Tier2_indor2_HZ1_gfnc | B30: Residential | C30: Water Heating | D30: Efficient Tanks | E30: Heat Pump Water Heater | G30: Single Family | H30: New and Existing Construction | I30: Complies with Tier2 of NEEA's Northern Climate HPWH Specification | K30: Manufacturer, Dealer or Consumer Rebate and Direct Installations. | M30: Unit installed inside conditioned space. Primary house space heating system fueled by gas. | O30: Yes | P30: HZ1 | R30: UES | T30: Tier2_indor2_HZ1_gfncResidentialWater HeatingEfficient TanksHeat Pump Water HeaterSingle FamilyNew and Existing ConstructionComplies with Tier2 of NEEA's Northern Climate HPWH SpecificationManufacturer, Dealer or Consumer Rebate and Direct Installations. Unit installed inside conditioned space. Primary house space heating system fueled by gas.YesHZ1UES | U30: FALSE
A31: Tier2_indor2_HZ1_gfac | B31: Residential | C31: Water Heating | D31: Efficient Tanks | E31: Heat Pump Water Heater | G31: Single Family | H31: New and Existing Construction | I31: Complies with Tier2 of NEEA's Northern Climate HPWH Specification | K31: Manufacturer, Dealer or Consumer Rebate and Direct Installations. | M31: Unit installed inside conditioned space. Primary house space heating system fueled by gas. | O31: Yes | P31: HZ1 | R31: UES | T31: Tier2_indor2_HZ1_gfacResidentialWater HeatingEfficient TanksHeat Pump Water HeaterSingle FamilyNew and Existing ConstructionComplies with Tier2 of NEEA's Northern Climate HPWH SpecificationManufacturer, Dealer or Consumer Rebate and Direct Installations. Unit installed inside conditioned space. Primary house space heating system fueled by gas.YesHZ1UES | U31: FALSE
A32: Tier2_indor2_HZ1_efaf | B32: Residential | C32: Water Heating | D32: Efficient Tanks | E32: Heat Pump Water Heater | G32: Single Family | H32: New and Existing Construction | I32: Complies with Tier2 of NEEA's Northern Climate HPWH Specification | K32: Manufacturer, Dealer or Consumer Rebate and Direct Installations. | M32: Unit installed inside conditioned space. Electric FAF primary space heating system. | O32: Yes | P32: HZ1 | R32: UES | T32: Tier2_indor2_HZ1_efafResidentialWater HeatingEfficient TanksHeat Pump Water HeaterSingle FamilyNew and Existing ConstructionComplies with Tier2 of NEEA's Northern Climate HPWH SpecificationManufacturer, Dealer or Consumer Rebate and Direct Installations. Unit installed inside conditioned space. Electric FAF primary space heating system.YesHZ1UES | U32: FALSE
A33: Tier2_indor2_HZ1_hp85 | B33: Residential | C33: Water Heating | D33: Efficient Tanks | E33: Heat Pump Water Heater | G33: Single Family | H33: New and Existing Construction | I33: Complies with Tier2 of NEEA's Northern Climate HPWH Specification | K33: Manufacturer, Dealer or Consumer Rebate and Direct Installations. | M33: Unit installed inside conditioned space. Heat Pump or Ductless Heat Pump primary space heating system. | O33: Yes | P33: HZ1 | R33: UES | T33: Tier2_indor2_HZ1_hp85ResidentialWater HeatingEfficient TanksHeat Pump Water HeaterSingle FamilyNew and Existing ConstructionComplies with Tier2 of NEEA's Northern Climate HPWH SpecificationManufacturer, Dealer or Consumer Rebate and Direct Installations. Unit installed inside conditioned space. Heat Pump primary space heating system.YesHZ1UES | U33: FALSE
A34: Tier2_indor2_HZ1_zonl | B34: Residential | C34: Water Heating | D34: Efficient Tanks | E34: Heat Pump Water Heater | G34: Single Family | H34: New and Existing Construction | I34: Complies with Tier2 of NEEA's Northern Climate HPWH Specification | K34: Manufacturer, Dealer or Consumer Rebate and Direct Installations. | M34: Unit installed inside conditioned space. Zonal electric primary space heating system. | O34: Yes | P34: HZ1 | R34: UES | T34: Tier2_indor2_HZ1_zonlResidentialWater HeatingEfficient TanksHeat Pump Water HeaterSingle FamilyNew and Existing ConstructionComplies with Tier2 of NEEA's Northern Climate HPWH SpecificationManufacturer, Dealer or Consumer Rebate and Direct Installations. Unit installed inside conditioned space. Zonal electric primary space heating system.YesHZ1UES | U34: FALSE
A35: Tier2_indor2_HZ2_gfnc | B35: Residential | C35: Water Heating | D35: Efficient Tanks | E35: Heat Pump Water Heater | G35: Single Family | H35: New and Existing Construction | I35: Complies with Tier2 of NEEA's Northern Climate HPWH Specification | K35: Manufacturer, Dealer or Consumer Rebate and Direct Installations. | M35: Unit installed inside conditioned space. Primary house space heating system fueled by gas. | O35: Yes | P35: HZ2 | R35: UES | T35: Tier2_indor2_HZ2_gfncResidentialWater HeatingEfficient TanksHeat Pump Water HeaterSingle FamilyNew and Existing ConstructionComplies with Tier2 of NEEA's Northern Climate HPWH SpecificationManufacturer, Dealer or Consumer Rebate and Direct Installations. Unit installed inside conditioned space. Primary house space heating system fueled by gas.YesHZ2UES | U35: FALSE
A36: Tier2_indor2_HZ2_gfac | B36: Residential | C36: Water Heating | D36: Efficient Tanks | E36: Heat Pump Water Heater | G36: Single Family | H36: New and Existing Construction | I36: Complies with Tier2 of NEEA's Northern Climate HPWH Specification | K36: Manufacturer, Dealer or Consumer Rebate and Direct Installations. | M36: Unit installed inside conditioned space. Primary house space heating system fueled by gas. | O36: Yes | P36: HZ2 | R36: UES | T36: Tier2_indor2_HZ2_gfacResidentialWater HeatingEfficient TanksHeat Pump Water HeaterSingle FamilyNew and Existing ConstructionComplies with Tier2 of NEEA's Northern Climate HPWH SpecificationManufacturer, Dealer or Consumer Rebate and Direct Installations. Unit installed inside conditioned space. Primary house space heating system fueled by gas.YesHZ2UES | U36: FALSE
A37: Tier2_indor2_HZ2_efaf | B37: Residential | C37: Water Heating | D37: Efficient Tanks | E37: Heat Pump Water Heater | G37: Single Family | H37: New and Existing Construction | I37: Complies with Tier2 of NEEA's Northern Climate HPWH Specification | K37: Manufacturer, Dealer or Consumer Rebate and Direct Installations. | M37: Unit installed inside conditioned space. Electric FAF primary space heating system. | O37: Yes | P37: HZ2 | R37: UES | T37: Tier2_indor2_HZ2_efafResidentialWater HeatingEfficient TanksHeat Pump Water HeaterSingle FamilyNew and Existing ConstructionComplies with Tier2 of NEEA's Northern Climate HPWH SpecificationManufacturer, Dealer or Consumer Rebate and Direct Installations. Unit installed inside conditioned space. Electric FAF primary space heating system.YesHZ2UES | U37: FALSE
A38: Tier2_indor2_HZ2_hp85 | B38: Residential | C38: Water Heating | D38: Efficient Tanks | E38: Heat Pump Water Heater | G38: Single Family | H38: New and Existing Construction | I38: Complies with Tier2 of NEEA's Northern Climate HPWH Specification | K38: Manufacturer, Dealer or Consumer Rebate and Direct Installations. | M38: Unit installed inside conditioned space. Heat Pump or Ductless Heat Pump primary space heating system. | O38: Yes | P38: HZ2 | R38: UES | T38: Tier2_indor2_HZ2_hp85ResidentialWater HeatingEfficient TanksHeat Pump Water HeaterSingle FamilyNew and Existing ConstructionComplies with Tier2 of NEEA's Northern Climate HPWH SpecificationManufacturer, Dealer or Consumer Rebate and Direct Installations. Unit installed inside conditioned space. Heat Pump primary space heating system.YesHZ2UES | U38: FALSE
A39: Tier2_indor2_HZ2_zonl | B39: Residential | C39: Water Heating | D39: Efficient Tanks | E39: Heat Pump Water Heater | G39: Single Family | H39: New and Existing Construction | I39: Complies with Tier2 of NEEA's Northern Climate HPWH Specification | K39: Manufacturer, Dealer or Consumer Rebate and Direct Installations. | M39: Unit installed inside conditioned space. Zonal electric primary space heating system. | O39: Yes | P39: HZ2 | R39: UES | T39: Tier2_indor2_HZ2_zonlResidentialWater HeatingEfficient TanksHeat Pump Water HeaterSingle FamilyNew and Existing ConstructionComplies with Tier2 of NEEA's Northern Climate HPWH SpecificationManufacturer, Dealer or Consumer Rebate and Direct Installations. Unit installed inside conditioned space. Zonal electric primary space heating system.YesHZ2UES | U39: FALSE
A40: Tier2_indor2_HZ3_gfnc | B40: Residential | C40: Water Heating | D40: Efficient Tanks | E40: Heat Pump Water Heater | G40: Single Family | H40: New and Existing Construction | I40: Complies with Tier2 of NEEA's Northern Climate HPWH Specification | K40: Manufacturer, Dealer or Consumer Rebate and Direct Installations. | M40: Unit installed inside conditioned space. Primary house space heating system fueled by gas. | O40: Yes | P40: HZ3 | R40: UES | T40: Tier2_indor2_HZ3_gfncResidentialWater HeatingEfficient TanksHeat Pump Water HeaterSingle FamilyNew and Existing ConstructionComplies with Tier2 of NEEA's Northern Climate HPWH SpecificationManufacturer, Dealer or Consumer Rebate and Direct Installations. Unit installed inside conditioned space. Primary house space heating system fueled by gas.YesHZ3UES | U40: FALSE
A41: Tier2_indor2_HZ3_gfac | B41: Residential | C41: Water Heating | D41: Efficient Tanks | E41: Heat Pump Water Heater | G41: Single Family | H41: New and Existing Construction | I41: Complies with Tier2 of NEEA's Northern Climate HPWH Specification | K41: Manufacturer, Dealer or Consumer Rebate and Direct Installations. | M41: Unit installed inside conditioned space. Primary house space heating system fueled by gas. | O41: Yes | P41: HZ3 | R41: UES | T41: Tier2_indor2_HZ3_gfacResidentialWater HeatingEfficient TanksHeat Pump Water HeaterSingle FamilyNew and Existing ConstructionComplies with Tier2 of NEEA's Northern Climate HPWH SpecificationManufacturer, Dealer or Consumer Rebate and Direct Installations. Unit installed inside conditioned space. Primary house space heating system fueled by gas.YesHZ3UES | U41: FALSE
A42: Tier2_indor2_HZ3_efaf | B42: Residential | C42: Water Heating | D42: Efficient Tanks | E42: Heat Pump Water Heater | G42: Single Family | H42: New and Existing Construction | I42: Complies with Tier2 of NEEA's Northern Climate HPWH Specification | K42: Manufacturer, Dealer or Consumer Rebate and Direct Installations. | M42: Unit installed inside conditioned space. Electric FAF primary space heating system. | O42: Yes | P42: HZ3 | R42: UES | T42: Tier2_indor2_HZ3_efafResidentialWater HeatingEfficient TanksHeat Pump Water HeaterSingle FamilyNew and Existing ConstructionComplies with Tier2 of NEEA's Northern Climate HPWH SpecificationManufacturer, Dealer or Consumer Rebate and Direct Installations. Unit installed inside conditioned space. Electric FAF primary space heating system.YesHZ3UES | U42: FALSE
A43: Tier2_indor2_HZ3_hp85 | B43: Residential | C43: Water Heating | D43: Efficient Tanks | E43: Heat Pump Water Heater | G43: Single Family | H43: New and Existing Construction | I43: Complies with Tier2 of NEEA's Northern Climate HPWH Specification | K43: Manufacturer, Dealer or Consumer Rebate and Direct Installations. | M43: Unit installed inside conditioned space. Heat Pump or Ductless Heat Pump primary space heating system. | O43: Yes | P43: HZ3 | R43: UES | T43: Tier2_indor2_HZ3_hp85ResidentialWater HeatingEfficient TanksHeat Pump Water HeaterSingle FamilyNew and Existing ConstructionComplies with Tier2 of NEEA's Northern Climate HPWH SpecificationManufacturer, Dealer or Consumer Rebate and Direct Installations. Unit installed inside conditioned space. Heat Pump primary space heating system.YesHZ3UES | U43: FALSE
A44: Tier2_indor2_HZ3_zonl | B44: Residential | C44: Water Heating | D44: Efficient Tanks | E44: Heat Pump Water Heater | G44: Single Family | H44: New and Existing Construction | I44: Complies with Tier2 of NEEA's Northern Climate HPWH Specification | K44: Manufacturer, Dealer or Consumer Rebate and Direct Installations. | M44: Unit installed inside conditioned space. Zonal electric primary space heating system. | O44: Yes | P44: HZ3 | R44: UES | T44: Tier2_indor2_HZ3_zonlResidentialWater HeatingEfficient TanksHeat Pump Water HeaterSingle FamilyNew and Existing ConstructionComplies with Tier2 of NEEA's Northern Climate HPWH SpecificationManufacturer, Dealer or Consumer Rebate and Direct Installations. Unit installed inside conditioned space. Zonal electric primary space heating system.YesHZ3UES | U44: FALSE
A45: Tier2_ducted_HZ1_gfnc | B45: Residential | C45: Water Heating | D45: Efficient Tanks | E45: Heat Pump Water Heater | G45: Single Family | H45: New and Existing Construction | I45: Complies with Tier2 of NEEA's Northern Climate HPWH Specification | K45: Manufacturer, Dealer or Consumer Rebate and Direct Installations. | M45: Unit installed inside conditioned space with HPWH exhaust ducted outside. Primary house space heating system fueled by gas. | O45: Yes | P45: HZ1 | R45: UES | T45: Tier2_ducted_HZ1_gfncResidentialWater HeatingEfficient TanksHeat Pump Water HeaterSingle FamilyNew and Existing ConstructionComplies with Tier2 of NEEA's Northern Climate HPWH SpecificationManufacturer, Dealer or Consumer Rebate and Direct Installations. Unit installed inside conditioned space with HPWH exhaust ducted outside. Primary house space heating system fueled by gas.YesHZ1UES | U45: FALSE
A46: Tier2_ducted_HZ1_gfac | B46: Residential | C46: Water Heating | D46: Efficient Tanks | E46: Heat Pump Water Heater | G46: Single Family | H46: New and Existing Construction | I46: Complies with Tier2 of NEEA's Northern Climate HPWH Specification | K46: Manufacturer, Dealer or Consumer Rebate and Direct Installations. | M46: Unit installed inside conditioned space with HPWH exhaust ducted outside. Primary house space heating system fueled by gas. | O46: Yes | P46: HZ1 | R46: UES | T46: Tier2_ducted_HZ1_gfacResidentialWater HeatingEfficient TanksHeat Pump Water HeaterSingle FamilyNew and Existing ConstructionComplies with Tier2 of NEEA's Northern Climate HPWH SpecificationManufacturer, Dealer or Consumer Rebate and Direct Installations. Unit installed inside conditioned space with HPWH exhaust ducted outside. Primary house space heating system fueled by gas.YesHZ1UES | U46: FALSE
A47: Tier2_ducted_HZ1_efaf | B47: Residential | C47: Water Heating | D47: Efficient Tanks | E47: Heat Pump Water Heater | G47: Single Family | H47: New and Existing Construction | I47: Complies with Tier2 of NEEA's Northern Climate HPWH Specification | K47: Manufacturer, Dealer or Consumer Rebate and Direct Installations. | M47: Unit installed inside conditioned space with HPWH exhaust ducted outside. Electric FAF primary space heating system. | O47: Yes | P47: HZ1 | R47: UES | T47: Tier2_ducted_HZ1_efafResidentialWater HeatingEfficient TanksHeat Pump Water HeaterSingle FamilyNew and Existing ConstructionComplies with Tier2 of NEEA's Northern Climate HPWH SpecificationManufacturer, Dealer or Consumer Rebate and Direct Installations. Unit installed inside conditioned space with HPWH exhaust ducted outside. Electric FAF primary space heating system.YesHZ1UES | U47: FALSE
A48: Tier2_ducted_HZ1_hp85 | B48: Residential | C48: Water Heating | D48: Efficient Tanks | E48: Heat Pump Water Heater | G48: Single Family | H48: New and Existing Construction | I48: Complies with Tier2 of NEEA's Northern Climate HPWH Specification | K48: Manufacturer, Dealer or Consumer Rebate and Direct Installations. | M48: Unit installed inside conditioned space with HPWH exhaust ducted outside. Heat Pump or Ductless Heat Pump primary space heating system. | O48: Yes | P48: HZ1 | R48: UES | T48: Tier2_ducted_HZ1_hp85ResidentialWater HeatingEfficient TanksHeat Pump Water HeaterSingle FamilyNew and Existing ConstructionComplies with Tier2 of NEEA's Northern Climate HPWH SpecificationManufacturer, Dealer or Consumer Rebate and Direct Installations. Unit installed inside conditioned space with HPWH exhaust ducted outside. Heat Pump primary space heating system.YesHZ1UES | U48: FALSE
A49: Tier2_ducted_HZ1_zonl | B49: Residential | C49: Water Heating | D49: Efficient Tanks | E49: Heat Pump Water Heater | G49: Single Family | H49: New and Existing Construction | I49: Complies with Tier2 of NEEA's Northern Climate HPWH Specification | K49: Manufacturer, Dealer or Consumer Rebate and Direct Installations. | M49: Unit installed inside conditioned space with HPWH exhaust ducted outside. Zonal electric primary space heating system. | O49: Yes | P49: HZ1 | R49: UES | T49: Tier2_ducted_HZ1_zonlResidentialWater HeatingEfficient TanksHeat Pump Water HeaterSingle FamilyNew and Existing ConstructionComplies with Tier2 of NEEA's Northern Climate HPWH SpecificationManufacturer, Dealer or Consumer Rebate and Direct Installations. Unit installed inside conditioned space with HPWH exhaust ducted outside. Zonal electric primary space heating system.YesHZ1UES | U49: FALSE
A50: Tier2_ducted_HZ2_gfnc | B50: Residential | C50: Water Heating | D50: Efficient Tanks | E50: Heat Pump Water Heater | G50: Single Family | H50: New and Existing Construction | I50: Complies with Tier2 of NEEA's Northern Climate HPWH Specification | K50: Manufacturer, Dealer or Consumer Rebate and Direct Installations. | M50: Unit installed inside conditioned space with HPWH exhaust ducted outside. Primary house space heating system fueled by gas. | O50: Yes | P50: HZ2 | R50: UES | T50: Tier2_ducted_HZ2_gfncResidentialWater HeatingEfficient TanksHeat Pump Water HeaterSingle FamilyNew and Existing ConstructionComplies with Tier2 of NEEA's Northern Climate HPWH SpecificationManufacturer, Dealer or Consumer Rebate and Direct Installations. Unit installed inside conditioned space with HPWH exhaust ducted outside. Primary house space heating system fueled by gas.YesHZ2UES | U50: FALSE
A51: Tier2_ducted_HZ2_gfac | B51: Residential | C51: Water Heating | D51: Efficient Tanks | E51: Heat Pump Water Heater | G51: Single Family | H51: New and Existing Construction | I51: Complies with Tier2 of NEEA's Northern Climate HPWH Specification | K51: Manufacturer, Dealer or Consumer Rebate and Direct Installations. | M51: Unit installed inside conditioned space with HPWH exhaust ducted outside. Primary house space heating system fueled by gas. | O51: Yes | P51: HZ2 | R51: UES | T51: Tier2_ducted_HZ2_gfacResidentialWater HeatingEfficient TanksHeat Pump Water HeaterSingle FamilyNew and Existing ConstructionComplies with Tier2 of NEEA's Northern Climate HPWH SpecificationManufacturer, Dealer or Consumer Rebate and Direct Installations. Unit installed inside conditioned space with HPWH exhaust ducted outside. Primary house space heating system fueled by gas.YesHZ2UES | U51: FALSE
A52: Tier2_ducted_HZ2_efaf | B52: Residential | C52: Water Heating | D52: Efficient Tanks | E52: Heat Pump Water Heater | G52: Single Family | H52: New and Existing Construction | I52: Complies with Tier2 of NEEA's Northern Climate HPWH Specification | K52: Manufacturer, Dealer or Consumer Rebate and Direct Installations. | M52: Unit installed inside conditioned space with HPWH exhaust ducted outside. Electric FAF primary space heating system. | O52: Yes | P52: HZ2 | R52: UES | T52: Tier2_ducted_HZ2_efafResidentialWater HeatingEfficient TanksHeat Pump Water HeaterSingle FamilyNew and Existing ConstructionComplies with Tier2 of NEEA's Northern Climate HPWH SpecificationManufacturer, Dealer or Consumer Rebate and Direct Installations. Unit installed inside conditioned space with HPWH exhaust ducted outside. Electric FAF primary space heating system.YesHZ2UES | U52: FALSE
A53: Tier2_ducted_HZ2_hp85 | B53: Residential | C53: Water Heating | D53: Efficient Tanks | E53: Heat Pump Water Heater | G53: Single Family | H53: New and Existing Construction | I53: Complies with Tier2 of NEEA's Northern Climate HPWH Specification | K53: Manufacturer, Dealer or Consumer Rebate and Direct Installations. | M53: Unit installed inside conditioned space with HPWH exhaust ducted outside. Heat Pump or Ductless Heat Pump primary space heating system. | O53: Yes | P53: HZ2 | R53: UES | T53: Tier2_ducted_HZ2_hp85ResidentialWater HeatingEfficient TanksHeat Pump Water HeaterSingle FamilyNew and Existing ConstructionComplies with Tier2 of NEEA's Northern Climate HPWH SpecificationManufacturer, Dealer or Consumer Rebate and Direct Installations. Unit installed inside conditioned space with HPWH exhaust ducted outside. Heat Pump primary space heating system.YesHZ2UES | U53: FALSE
A54: Tier2_ducted_HZ2_zonl | B54: Residential | C54: Water Heating | D54: Efficient Tanks | E54: Heat Pump Water Heater | G54: Single Family | H54: New and Existing Construction | I54: Complies with Tier2 of NEEA's Northern Climate HPWH Specification | K54: Manufacturer, Dealer or Consumer Rebate and Direct Installations. | M54: Unit installed inside conditioned space with HPWH exhaust ducted outside. Zonal electric primary space heating system. | O54: Yes | P54: HZ2 | R54: UES | T54: Tier2_ducted_HZ2_zonlResidentialWater HeatingEfficient TanksHeat Pump Water HeaterSingle FamilyNew and Existing ConstructionComplies with Tier2 of NEEA's Northern Climate HPWH SpecificationManufacturer, Dealer or Consumer Rebate and Direct Installations. Unit installed inside conditioned space with HPWH exhaust ducted outside. Zonal electric primary space heating system.YesHZ2UES | U54: FALSE
A55: Tier2_ducted_HZ3_gfnc | B55: Residential | C55: Water Heating | D55: Efficient Tanks | E55: Heat Pump Water Heater | G55: Single Family | H55: New and Existing Construction | I55: Complies with Tier2 of NEEA's Northern Climate HPWH Specification | K55: Manufacturer, Dealer or Consumer Rebate and Direct Installations. | M55: Unit installed inside conditioned space with HPWH exhaust ducted outside. Primary house space heating system fueled by gas. | O55: Yes | P55: HZ3 | R55: UES | T55: Tier2_ducted_HZ3_gfncResidentialWater HeatingEfficient TanksHeat Pump Water HeaterSingle FamilyNew and Existing ConstructionComplies with Tier2 of NEEA's Northern Climate HPWH SpecificationManufacturer, Dealer or Consumer Rebate and Direct Installations. Unit installed inside conditioned space with HPWH exhaust ducted outside. Primary house space heating system fueled by gas.YesHZ3UES | U55: FALSE
A56: Tier2_ducted_HZ3_gfac | B56: Residential | C56: Water Heating | D56: Efficient Tanks | E56: Heat Pump Water Heater | G56: Single Family | H56: New and Existing Construction | I56: Complies with Tier2 of NEEA's Northern Climate HPWH Specification | K56: Manufacturer, Dealer or Consumer Rebate and Direct Installations. | M56: Unit installed inside conditioned space with HPWH exhaust ducted outside. Primary house space heating system fueled by gas. | O56: Yes | P56: HZ3 | R56: UES | T56: Tier2_ducted_HZ3_gfacResidentialWater HeatingEfficient TanksHeat Pump Water HeaterSingle FamilyNew and Existing ConstructionComplies with Tier2 of NEEA's Northern Climate HPWH SpecificationManufacturer, Dealer or Consumer Rebate and Direct Installations. Unit installed inside conditioned space with HPWH exhaust ducted outside. Primary house space heating system fueled by gas.YesHZ3UES | U56: FALSE
A57: Tier2_ducted_HZ3_efaf | B57: Residential | C57: Water Heating | D57: Efficient Tanks | E57: Heat Pump Water Heater | G57: Single Family | H57: New and Existing Construction | I57: Complies with Tier2 of NEEA's Northern Climate HPWH Specification | K57: Manufacturer, Dealer or Consumer Rebate and Direct Installations. | M57: Unit installed inside conditioned space with HPWH exhaust ducted outside. Electric FAF primary space heating system. | O57: Yes | P57: HZ3 | R57: UES | T57: Tier2_ducted_HZ3_efafResidentialWater HeatingEfficient TanksHeat Pump Water HeaterSingle FamilyNew and Existing ConstructionComplies with Tier2 of NEEA's Northern Climate HPWH SpecificationManufacturer, Dealer or Consumer Rebate and Direct Installations. Unit installed inside conditioned space with HPWH exhaust ducted outside. Electric FAF primary space heating system.YesHZ3UES | U57: FALSE
A58: Tier2_ducted_HZ3_hp85 | B58: Residential | C58: Water Heating | D58: Efficient Tanks | E58: Heat Pump Water Heater | G58: Single Family | H58: New and Existing Construction | I58: Complies with Tier2 of NEEA's Northern Climate HPWH Specification | K58: Manufacturer, Dealer or Consumer Rebate and Direct Installations. | M58: Unit installed inside conditioned space with HPWH exhaust ducted outside. Heat Pump or Ductless Heat Pump primary space heating system. | O58: Yes | P58: HZ3 | R58: UES | T58: Tier2_ducted_HZ3_hp85ResidentialWater HeatingEfficient TanksHeat Pump Water HeaterSingle FamilyNew and Existing ConstructionComplies with Tier2 of NEEA's Northern Climate HPWH SpecificationManufacturer, Dealer or Consumer Rebate and Direct Installations. Unit installed inside conditioned space with HPWH exhaust ducted outside. Heat Pump primary space heating system.YesHZ3UES | U58: FALSE
A59: Tier2_ducted_HZ3_zonl | B59: Residential | C59: Water Heating | D59: Efficient Tanks | E59: Heat Pump Water Heater | G59: Single Family | H59: New and Existing Construction | I59: Complies with Tier2 of NEEA's Northern Climate HPWH Specification | K59: Manufacturer, Dealer or Consumer Rebate and Direct Installations. | M59: Unit installed inside conditioned space with HPWH exhaust ducted outside. Zonal electric primary space heating system. | O59: Yes | P59: HZ3 | R59: UES | T59: Tier2_ducted_HZ3_zonlResidentialWater HeatingEfficient TanksHeat Pump Water HeaterSingle FamilyNew and Existing ConstructionComplies with Tier2 of NEEA's Northern Climate HPWH SpecificationManufacturer, Dealer or Consumer Rebate and Direct Installations. Unit installed inside conditioned space with HPWH exhaust ducted outside. Zonal electric primary space heating system.YesHZ3UES | U59: FALSE

Sheet ValidationLists (hidden)
A1: CostDataSourceTypes | B1: Guideline | C1: Method | D1: Category | E1: Procedure | F1: Response | G1: Baseline
A2: Program Tracking Data | B2: Savings | C2: Unit Energy Savings | D2: Proven | E2: Statistical | F2: Yes | G2: Pre-Conditions
A3: In-Store Retail | B3: Cost | C3: Standard Protocol | D3: Provisional | E3: Meta-Statistical | F3: No | G3: Current Practice
A4: Contractor and Project Invoices | B4: Lifetime | C4: Custom | D4: Small Saver | E4: Calibrated Engineering | F4: NA | G4: Pre-Conditions and Current Practice
A5: Contractor Price Sheets | B5: Small and Rural | C5: Program Impact Evaluation | D5: Planning | E5: All
A6: Online Retail | B6: ProCost | C6: All | D6: All
A7: DOE / Other Standard Setting Process | B7: Roadmap
A8: Contractor Interview | B8: All
A9: Distributor Interview
A10: Market Actor Interviews
A11: Maintenance Staff Interviews
A12: Professional Judgment

Sheet Supporting Documentation (hidden)
A8: Water Heater Setpoint
A39: Inlet Water Temperature
A83: Hot Water Consumption
G96: Occ | H96: Flow (gal) | I96: n
G97: 1 | H97: 22 | I97: 12
G98: 2 | H98: 34 | I98: 43
G99: 3 | H99: 48 | I99: 19
G100: 4 | H100: 48 | I100: 14
G101: 5 | H101: 85 | I101: 8
G102: 6 | H102: 64 | I102: 2
G103: 7 | H103: 66 | I103: 1
G105: Field Study Avg. | H105: =SUMPRODUCT(H97:H103,I97:I103)/SUM(I97:I103) -> 42.26262626 | I105: gal/day
G107: RBSA Avg. | H107: =23+11*(2.56-1) -> 40.16 | I107: gal/day
A120: Hot Water Draw Profiles
S139: Figure 35 | AA139: Figure 36
A159: Weekly draw profiles used within the simulation model:
A225: Ambient Space Temperature Profiles
A246: Supporting data for Garage and Unheated Basement space temperature profiles:
A279: Supporting data for Interior space temperature profiles:
A306: Field-Observed Annualized Coefficients of Performance (COPs)
A320: Heat Pump Water Heater:
A343: Electric Resistance Tank:
A366: HPWH Simulation
A368: Tank Volumes (gallons)
B369: GE | C369: Voltex 60 | D369: Voltex 80 | E369: ATI 66
A370: Nominal Volume | B370: 50 | C370: 60 | D370: 80 | E370: 66
A371: Actual Volume | B371: 45 | C371: 57 | D371: 75 | E371: 64
A374: Parameters Used in Water Heater Simulation | AD374: Example: Voltex Tank Performance
A375: WH_Performance (SEEM Input) | B375: Units | C375: 1.1 | D375: 1.2 | E375: 2.1 | F375: 4 | AD375: Tank Bottom 1/3 Temperature | AE375: COP | AH375: Input Power (kW)
A376: make | B376: - | C376: GE | D376: Voltex | E376: ATI | F376: Resistance | AE376: Ambient Air Temperature (F) | AH376: Ambient Air Temperature (F)
A377: p | B377: - | C377: 1 | D377: 1 | E377: 1.4 | F377: 1 | AE377: 47 | AF377: 60 | AG377: 67 | AH377: 47 | AI377: 60 | AJ377: 67
A378: shrinkage | B378: - | C378: 1 | D378: 3.7 | E378: 0.4 | F378: 1 | AD378: 40 | AE378: =$AD378*$AD378*$D$389+$AD378*$D$390+$D$391 -> 3.956 | AF378: =AE378+($AF$377-$AE$377)*((AG378-AE378)/($AG$377-$AE$377)) -> 4.684728 | AG378: =$AD378*$AD378*$D$392+$AD378*$D$393+$D$394 -> 5.07712 | AH378: =$AD378*$AD378*$D$395+$AD378*$D$396+$D$397 -> 0.59092 | AI378: =AH378+($AI$377-$AH$377)*((AJ378-AH378)/($AJ$377-$AH$377)) -> 0.614996 | AJ378: =$AD378*$AD378*$D$398+$AD378*$D$399+$D$400 -> 0.62796
A379: UA | B379: Btu/hrF | C379: 3.6 | D379: 4.2 | E379: 3.3 | F379: 3 | AD379: =AD378+5 -> 45 | AE379: =$AD379*$AD379*$D$389+$AD379*$D$390+$D$391 -> 3.84075 | AF379: =AE379+($AF$377-$AE$377)*((AG379-AE379)/($AG$377-$AE$377)) -> 4.528233875 | AG379: =$AD379*$AD379*$D$392+$AD379*$D$393+$D$394 -> 4.8984175 | AH379: =$AD379*$AD379*$D$395+$AD379*$D$396+$D$397 -> 0.60803 | AI379: =AH379+($AI$377-$AH$377)*((AJ379-AH379)/($AJ$377-$AH$377)) -> 0.630624 | AJ379: =$AD379*$AD379*$D$398+$AD379*$D$399+$D$400 -> 0.64279
A380: Element_Upper | B380: W | C380: 4500 | D380: 4500 | E380: 4000 | F380: 4500 | AD380: =AD379+5 -> 50 | AE380: 3.725 | AF380: 4.3728875 | AG380: 4.72175 | AH380: 0.6255 | AI380: 0.64695 | AJ380: 0.6585
A381: Element_Lower | B381: W | C381: 4500 | D381: 2000 | E381: 0 | F381: 4500 | AD381: 55 | AE381: 3.60875 | AF381: 4.218688875 | AG381: 4.5471175 | AH381: 0.64333 | AI381: 0.663974 | AJ381: 0.67509
A382: comp_start | B382: F | C382: 24.4 | D382: 43.6 | E382: 45.9 | F382: 45 | AD382: 60 | AE382: 3.492 | AF382: 4.065638 | AG382: 4.37452 | AH382: 0.66152 | AI382: 0.681696 | AJ382: 0.69256
A383: res_start | B383: F | C383: 10 | D383: 36 | E383: 24.7 | F383: 35 | AD383: 65 | AE383: 3.37475 | AF383: 3.913734875 | AG383: 4.2039575 | AH383: 0.68007 | AI383: 0.700116 | AJ383: 0.71091
A384: standby_thres | B384: F | C384: 29.1 | D384: 23.8 | E384: 10 | F384: 10 | AD384: 70 | AE384: 3.257 | AF384: 3.7629795 | AG384: 4.03543 | AH384: 0.69898 | AI384: 0.719234 | AJ384: 0.73014
A385: cutoffTempHysteresis | B385: F | C385: 4 | D385: 4 | E385: 4 | F385: - | AD385: 75 | AE385: 3.13875 | AF385: 3.613371875 | AG385: 3.8689375 | AH385: 0.71825 | AI385: 0.73905 | AJ385: 0.75025
A386: lowTempCutoff | B386: F | C386: 47 | D386: 40 | E386: 32 | F386: - | AD386: 80 | AE386: 3.02 | AF386: 3.464912 | AG386: 3.70448 | AH386: 0.73788 | AI386: 0.759564 | AJ386: 0.77124
A387: T1 | B387: F | C387: 47 | D387: 47 | E387: 50 | F387: - | AD387: 85 | AE387: 2.90075 | AF387: 3.317599875 | AG387: 3.5420575 | AH387: 0.75787 | AI387: 0.780776 | AJ387: 0.79311
A388: T2 | B388: F | C388: 67 | D388: 67 | E388: 67 | F388: - | AD388: 90 | AE388: 2.781 | AF388: 3.1714355 | AG388: 3.38167 | AH388: 0.77822 | AI388: 0.802686 | AJ388: 0.81586
A389: ca1 | B389: - | C389: 0 | D389: -1e-05 | E389: 0.000242 | F389: - | AD389: 95 | AE389: 2.66075 | AF389: 3.026418875 | AG389: 3.2233175 | AH389: 0.79893 | AI389: 0.825294 | AJ389: 0.83949
A390: cb1 | B390: - | C390: -0.021 | D390: -0.0222 | E390: -0.0861 | F390: - | AD390: 100 | AE390: 2.54 | AF390: 2.88255 | AG390: 3.067 | AH390: 0.82 | AI390: 0.8486 | AJ390: 0.864
A391: cc1 | B391: - | C391: 4.92 | D391: 4.86 | E391: 8.326 | F391: - | AD391: 105 | AE391: 2.41875 | AF391: 2.739828875 | AG391: 2.9127175 | AH391: 0.84143 | AI391: 0.872604 | AJ391: 0.88939
A392: ca2 | B392: - | C392: 0 | D392: 4.07e-05 | E392: 0.000343 | F392: - | AD392: 110 | AE392: 2.297 | AF392: 2.5982555 | AG392: 2.76047 | AH392: 0.86322 | AI392: 0.897306 | AJ392: 0.91566
A393: cb2 | B393: - | C393: -0.0167 | D393: -0.0392 | E393: -0.115 | F393: - | AD393: 115 | AE393: 2.17475 | AF393: 2.457829875 | AG393: 2.6102575 | AH393: 0.88537 | AI393: 0.922706 | AJ393: 0.94281
A394: cc2 | B394: - | C394: 5.03 | D394: 6.58 | E394: 10.565 | F394: - | AD394: 120 | AE394: 2.052 | AF394: 2.318552 | AG394: 2.46208 | AH394: 0.90788 | AI394: 0.948804 | AJ394: 0.97084
A395: ia1 | B395: - | C395: 1.07e-06 | D395: 7.2e-06 | E395: 3.2e-05 | F395: - | AD395: =AD394+5 -> 125 | AE395: 1.92875 | AF395: 2.180421875 | AG395: 2.3159375 | AH395: 0.93075 | AI395: 0.9756 | AJ395: 0.99975
A396: ib1 | B396: - | C396: 0.00159 | D396: 0.00281 | E396: -0.000336 | F396: - | AD396: 130 | AE396: 1.805 | AF396: 2.0434395 | AG396: 2.17183 | AH396: 0.95398 | AI396: 1.003094 | AJ396: 1.02954
A397: ic1 | B397: - | C397: 0.247 | D397: 0.467 | E397: 0.422 | F397: - | AD397: 135 | AE397: 1.68075 | AF397: 1.907604875 | AG397: 2.0297575 | AH397: 0.97757 | AI397: 1.031286 | AJ397: 1.06021
A398: ia2 | B398: - | C398: 2.16e-06 | D398: 1.76e-05 | E398: 2.75e-05 | F398: - | AD398: =AD397+5 -> 140 | AE398: 1.556 | AF398: 1.772918 | AG398: 1.88972 | AH398: 1.00152 | AI398: 1.060176 | AJ398: 1.09176
A399: ib2 | B399: - | C399: 0.00121 | D399: 0.00147 | E399: 0.00108 | F399: -
A400: ic2 | B400: - | C400: 0.328 | D400: 0.541 | E400: 0.363 | F400: -
B424: Input Parameters to Simulation Optimization
C425: GE | D425: Voltex | E425: ATI
B426: ca1 | C426: -1.33e-05 | D426: -1e-05 | E426: 0.0002419
B427: cb1 | C427: -0.0186869 | D427: -0.0222135 | E427: -0.0860998
B428: cc1 | C428: 4.488 | D428: 4.678714 | E428: 8.557507
B429: ca2 | C429: -2.54e-05 | D429: 4.07e-05 | E429: 0.0003429
B430: cb2 | C430: -0.0252309 | D430: -0.0392462 | E430: -0.1149092
B431: cc2 | C431: 5.595527 | D431: 6.424461 | E431: 11.02701
A435: Calibrated COP Curves

Sheet Presentation (hidden)
B2: Savings
B4: DHW Savings Only
B5: kWh/yr | D5: Climate Zone
D6: HZ1 | E6: HZ2 | F6: HZ3 | J6: HZ1 | K6: HZ2 | L6: HZ3
B7: Garage | C7: Tier 1 | D7: =finallookup!M8 -> 243.648385 | E7: =finallookup!M9 -> 262.4806825 | F7: =finallookup!M10 -> 275.5369721
C8: Tier 2 | D8: =finallookup!#REF! ->  | E8: =finallookup!#REF! ->  | F8: =finallookup!#REF! -> 
B9: Basement | C9: Tier 1 | D9: =finallookup!M11 -> 238.5984648 | E9: =finallookup!M12 -> 245.0955849 | F9: =finallookup!M13 -> 249.2300485
C10: Tier 2 | D10: =finallookup!#REF! ->  | E10: =finallookup!#REF! ->  | F10: =finallookup!#REF! -> 
B11: Interior | C11: Tier 1 | D11: =finallookup!M14 -> 229.7649986 | E11: =finallookup!M19 -> 224.7360158 | F11: =finallookup!M24 -> 247.0115463
C12: Tier 2 | D12: =finallookup!#REF! ->  | E12: =finallookup!#REF! ->  | F12: =finallookup!#REF! ->  | BS12: Heating Zone 1
B13: Ducted | C13: Tier 2 | D13: =finallookup!#REF! ->  | E13: =finallookup!#REF! ->  | F13: =finallookup!#REF! -> 
B15: DHW + Heating/Cooling Savings
B16: kWh/yr | D16: Climate Zone | J16: Climate Zone | AX16: Location | AY16: HVAC Type | AZ16: Efficiency | BA16: Exhaust Ducting? | BB16: Climate Zone
D17: HZ1 | E17: HZ2 | F17: HZ3 | J17: HZ1 | K17: HZ2 | L17: HZ3 | BB17: HZ1 | BC17: HZ2 | BD17: HZ3 | BG17: HZ1 | BL17: Annual Energy Saving (kWh/yr) | BN17: Tier 1
B18: Garage | C18: Tier 1 | D18: =D7 -> 243.648385 | E18: =E7 -> 262.4806825 | F18: 275.5369721 | G18: Zonal Electric Resistance | H18: zonl | I18: Tier1 | J18: =VLOOKUP(CONCATENATE($I18,"_indor2_",J$17,"_",$H18),tbl_TotalSavingsLookup,4,FALSE) -> 930.0863037 | K18: 1018.357788 | L18: 1073.756714 | AX18: Garage | AY18: any | AZ18: Tier 1 | BA18: No | BB18: =D18 -> 243.648385 | BC18: =E18 -> 262.4806825 | BD18: 275.5369721 | BG18: Location / HVAC Type | BH18: Tier 1 | BI18: Tier 2 | BJ18: Tier 2 Ducted | BM18: HPWH Location | BN18: Space Heat Type | BO18: Existing, Small Tank | BP18: Existing, Large Tank | BQ18: Proposed, Any Size Tank
C19: Tier 2 | D19: =D8 ->  | G19: Zonal Electric Resistance | H19: zonl | I19: Tier2 | J19: 955.9625854 | K19: 1048.706665 | L19: 1136.007568 | AZ19: Tier 2 | BA19: No | BB19: =D19 ->  | BG19: Interior Gas | BH19: =BB34 -> 1230.790405 | BI19: =BB35 -> 1308.721191 | BJ19: =BB36 -> 1218.293701 | BK19: HZ1 | BL19: Tier 1 | BM19: Interior | BN19: Gas | BO19: 1547 | BP19: 2169 | BQ19: =BH19 -> 1230.790405
B20: Basement | C20: Tier 1 | D20: =D9 -> 238.5984648 | E20: 245.0955849 | F20: 249.2300485 | G20: Zonal Electric Resistance | H20: zonl | I20: Tier 2 Ducted | J20: =VLOOKUP(CONCATENATE("Tier2","_ducted_",J$17,"_",$H20),tbl_TotalSavingsLookup,4,FALSE) -> 786.2606812 | K20: =VLOOKUP(CONCATENATE("Tier2","_ducted_",K$17,"_",$H20),tbl_TotalSavingsLookup,4,FALSE) -> 806.2539673 | L20: =VLOOKUP(CONCATENATE("Tier2","_ducted_",L$17,"_",$H20),tbl_TotalSavingsLookup,4,FALSE) -> 848.8685303 | AX20: Basement | AZ20: Tier 1 | BA20: No | BB20: 238.5984648 | BC20: 245.0955849 | BD20: 249.2300485 | BG20: Interior EFAF | BH20: =BB25 -> 892.3511353 | BI20: =BB26 -> 911.4523926 | BJ20: =BB27 -> 798.2393188 | BN20: EFAF | BO20: 556 | BP20: 833 | BQ20: =BH20 -> 892.3511353
C21: Tier 2 | D21: =D10 ->  | G21: Electric Furnace | H21: efaf | I21: Tier1 | J21: =VLOOKUP(CONCATENATE($I21,"_indor2_",J$17,"_",$H21),tbl_TotalSavingsLookup,4,FALSE) -> 892.3511353 | K21: 982.1468506 | L21: 1039.624512 | AZ21: Tier 2 | BA21: No | BG21: Interior HP | BH21: =BB28 -> 1088.645386 | BI21: =BB29 -> 1133.930298 | BJ21: =BB30 -> 1046.634277 | BN21: HP | BO21: 1189 | BP21: 1686 | BQ21: 1088.645386
G22: Electric Furnace | H22: efaf | I22: Tier2 | J22: 911.4523926 | K22: 1005.807678 | L22: 1095.505371 | AX22: Interior | AY22: zonl | AZ22: Tier 1 | BA22: No | BB22: =J18 -> 930.0863037 | BC22: =K18 -> 1018.357788 | BD22: 1073.756714 | BG22: Interior Zonal | BH22: =BB22 -> 930.0863037 | BI22: =BB23 -> 955.9625854 | BJ22: =BB24 -> 786.2606812 | BN22: Zonal | BO22: 648 | BP22: 957 | BQ22: 930.0863037
G23: Electric Furnace | H23: efaf | I23: Tier 2 Ducted | J23: =VLOOKUP(CONCATENATE("Tier2","_ducted_",J$17,"_",$H23),tbl_TotalSavingsLookup,4,FALSE) -> 798.2393188 | K23: =VLOOKUP(CONCATENATE("Tier2","_ducted_",K$17,"_",$H23),tbl_TotalSavingsLookup,4,FALSE) -> 842.0657959 | L23: =VLOOKUP(CONCATENATE("Tier2","_ducted_",L$17,"_",$H23),tbl_TotalSavingsLookup,4,FALSE) -> 900.4080811 | AY23: zonl | AZ23: Tier 2 | BA23: No | BB23: =J19 -> 955.9625854 | BC23: =K19 -> 1048.706665 | BD23: =L19 -> 1136.007568 | BG23: Garage | BH23: =BB18 -> 243.648385 | BI23: =BB19 ->  | BM23: Gar. | BN23: Any | BO23: 887 | BP23: 1817 | BQ23: 243.648385
G24: Heat Pump | H24: hp85 | I24: Tier1 | J24: =VLOOKUP(CONCATENATE($I24,"_indor2_",J$17,"_",$H24),tbl_TotalSavingsLookup,4,FALSE) -> 1088.645386 | K24: 1113.516357 | L24: 1143.300171 | AY24: zonl | AZ24: Tier 2 | BA24: Yes | BB24: 786.2606812 | BC24: 806.2539673 | BD24: 848.8685303 | BG24: Basement | BH24: =BB20 -> 238.5984648 | BI24: =BB21 ->  | BM24: Base. | BN24: Any | BO24: 887 | BP24: 1817 | BQ24: 238.5984648
G25: Heat Pump | H25: hp85 | I25: Tier2 | J25: 1133.930298 | K25: 1156.269653 | L25: 1208.321655 | AY25: efaf | AZ25: Tier 1 | BA25: No | BB25: 892.3511353 | BC25: 982.1468506 | BD25: 1039.624512 | BL25: Tier 2 w/ Exhaust Ducting | BM25: Interior | BN25: Gas | BO25: 1724 | BP25: 1724 | BQ25: =BJ19 -> 1218.293701
G26: Heat Pump | H26: hp85 | I26: Tier 2 Ducted | J26: =VLOOKUP(CONCATENATE("Tier2","_ducted_",J$17,"_",$H26),tbl_TotalSavingsLookup,4,FALSE) -> 1046.634277 | K26: =VLOOKUP(CONCATENATE("Tier2","_ducted_",K$17,"_",$H26),tbl_TotalSavingsLookup,4,FALSE) -> 1044.715454 | L26: =VLOOKUP(CONCATENATE("Tier2","_ducted_",L$17,"_",$H26),tbl_TotalSavingsLookup,4,FALSE) -> 1058.693604 | AY26: efaf | AZ26: Tier 2 | BA26: No | BB26: 911.4523926 | BC26: 1005.807678 | BD26: 1095.505371 | BG26: HZ2 | BN26: EFAF | BO26: 837 | BP26: 837 | BQ26: =BJ20 -> 798.2393188
G27: Gas Furnace w/ AC | H27: gfac | I27: Tier1 | J27: =VLOOKUP(CONCATENATE($I27,"_indor2_",J$17,"_",$H27),tbl_TotalSavingsLookup,4,FALSE) -> 1246.23645 | K27: 1310.270264 | L27: 1349.417725 | AY27: efaf | AZ27: Tier 2 | BA27: Yes | BB27: 798.2393188 | BC27: 842.0657959 | BD27: 900.4080811 | BG27: Location / HVAC Type | BH27: Tier 1 | BI27: Tier 2 | BJ27: Tier 2 Ducted | BN27: HP | BO27: 1243 | BP27: 1243 | BQ27: 1046.634277
G28: Gas Furnace w/ AC | H28: gfac | I28: Tier2 | J28: 1323.249634 | K28: 1393.024536 | L28: 1459.791504 | AY28: hp85 | AZ28: Tier 1 | BA28: No | BB28: 1088.645386 | BC28: 1113.516357 | BD28: 1143.300171 | BG28: Interior Gas | BH28: =BC34 -> 1297.408447 | BI28: =BC35 -> 1375.971069 | BJ28: =BC36 -> 1281.033569 | BN28: Zonal | BO28: 952 | BP28: 952 | BQ28: 786.2606812
G29: Gas Furnace w/ AC | H29: gfac | I29: Tier 2 Ducted | J29: =VLOOKUP(CONCATENATE("Tier2","_ducted_",J$17,"_",$H29),tbl_TotalSavingsLookup,4,FALSE) -> 1208.545532 | K29: =VLOOKUP(CONCATENATE("Tier2","_ducted_",K$17,"_",$H29),tbl_TotalSavingsLookup,4,FALSE) -> 1269.238525 | L29: =VLOOKUP(CONCATENATE("Tier2","_ducted_",L$17,"_",$H29),tbl_TotalSavingsLookup,4,FALSE) -> 1328.519043 | AY29: hp85 | AZ29: Tier 2 | BA29: No | BB29: 1133.930298 | BC29: 1156.269653 | BD29: 1208.321655 | BG29: Interior EFAF | BH29: =BC25 -> 982.1468506 | BI29: =BC26 -> 1005.807678 | BJ29: =BC27 -> 842.0657959 | BM29: Gar. | BN29: Any | BO29: 1794 | BP29: 1794 | BQ29: 0
G30: Gas Furnace w/o AC | H30: gfnc | I30: Tier1 | J30: =VLOOKUP(CONCATENATE($I30,"_indor2_",J$17,"_",$H30),tbl_TotalSavingsLookup,4,FALSE) -> 1230.790405 | K30: 1297.408447 | L30: 1328.477783 | AY30: hp85 | AZ30: Tier 2 | BA30: Yes | BB30: 1046.634277 | BC30: 1044.715454 | BD30: 1058.693604 | BG30: Interior HP | BH30: =BC28 -> 1113.516357 | BI30: =BC29 -> 1156.269653 | BJ30: =BC30 -> 1044.715454 | BM30: Base. | BN30: Any | BO30: 1794 | BP30: 1794 | BQ30: 0
G31: Gas Furnace w/o AC | H31: gfnc | I31: Tier2 | J31: 1308.721191 | K31: 1375.971069 | L31: 1435.919922 | AY31: gfac | AZ31: Tier 1 | BA31: No | BB31: 1246.23645 | BC31: 1310.270264 | BD31: 1349.417725 | BG31: Interior Zonal | BH31: =BC22 -> 1018.357788 | BI31: =BC23 -> 1048.706665 | BJ31: =BC24 -> 806.2539673 | BL31: Tier 2 NO Ducting | BM31: Interior | BN31: Gas | BQ31: =BI19 -> 1308.721191
G32: Gas Furnace w/o AC | H32: gfnc | I32: Tier 2 Ducted | J32: =VLOOKUP(CONCATENATE("Tier2","_ducted_",J$17,"_",$H32),tbl_TotalSavingsLookup,4,FALSE) -> 1218.293701 | K32: =VLOOKUP(CONCATENATE("Tier2","_ducted_",K$17,"_",$H32),tbl_TotalSavingsLookup,4,FALSE) -> 1281.033569 | L32: =VLOOKUP(CONCATENATE("Tier2","_ducted_",L$17,"_",$H32),tbl_TotalSavingsLookup,4,FALSE) -> 1337.276489 | AY32: gfac | AZ32: Tier 2 | BA32: No | BB32: 1323.249634 | BC32: 1393.024536 | BD32: 1459.791504 | BG32: Garage | BH32: =BC18 -> 262.4806825 | BI32: =BC19 ->  | BN32: EFAF | BQ32: =BI20 -> 911.4523926
AY33: gfac | AZ33: Tier 2 | BA33: Yes | BB33: 1208.545532 | BC33: 1269.238525 | BD33: 1328.519043 | BG33: Basement | BH33: =BC20 -> 245.0955849 | BI33: =BC21 ->  | BN33: HP | BQ33: 1133.930298
B34: Heating Interactions | AY34: gfnc | AZ34: Tier 1 | BA34: No | BB34: 1230.790405 | BC34: 1297.408447 | BD34: 1328.477783 | BN34: Zonal | BQ34: 955.9625854
AY35: gfnc | AZ35: Tier 2 | BA35: No | BB35: 1308.721191 | BC35: 1375.971069 | BD35: 1435.919922 | BG35: HZ3 | BM35: Gar. | BN35: Any
B36: kWh/yr | C36: ='SavingsData&Analysis'!G148 -> Zonal Electric Resistance Heating Interaction | H36: ='SavingsData&Analysis'!L148 -> Electric Furnace Heating Interaction | L36: ='SavingsData&Analysis'!P148 -> Heat Pump Heating Interaction | AY36: gfnc | AZ36: Tier 2 | BA36: Yes | BB36: 1218.293701 | BC36: 1281.033569 | BD36: 1337.276489 | BG36: Location / HVAC Type | BH36: Tier 1 | BI36: Tier 2 | BJ36: Tier 2 Ducted | BM36: Base. | BN36: Any
B37: Interaction Amount | D37: ='SavingsData&Analysis'!H149 -> Climate Zone | BG37: Interior Gas | BH37: =BD34 -> 1328.477783 | BI37: =BD35 -> 1435.919922 | BJ37: =BD36 -> 1337.276489 | BK37: HZ2 | BL37: Tier 1 | BM37: Interior | BN37: Gas | BO37: 1547 | BP37: 2169 | BQ37: =BH28 -> 1297.408447 | BS37: Heating Zone 2
D38: ='SavingsData&Analysis'!H150 -> HZ1 | E38: ='SavingsData&Analysis'!I150 -> HZ2 | F38: ='SavingsData&Analysis'!J150 -> HZ3 | H38: ='SavingsData&Analysis'!L150 -> HZ1 | I38: ='SavingsData&Analysis'!M150 -> HZ2 | J38: ='SavingsData&Analysis'!N150 -> HZ3 | L38: ='SavingsData&Analysis'!P150 -> HZ1 | M38: ='SavingsData&Analysis'!Q150 -> HZ2 | N38: ='SavingsData&Analysis'!R150 -> HZ3 | BG38: Interior EFAF | BH38: =BD25 -> 1039.624512 | BI38: =BD26 -> 1095.505371 | BJ38: =BD27 -> 900.4080811 | BN38: EFAF | BO38: 556 | BP38: 833 | BQ38: =BH29 -> 982.1468506
B39: ='SavingsData&Analysis'!F157 -> HCf=0.25 | C39: ='SavingsData&Analysis'!G157 -> Tier 1 | D39: ='SavingsData&Analysis'!H157 ->  | E39: ='SavingsData&Analysis'!I157 ->  | F39: ='SavingsData&Analysis'!J157 ->  | H39: ='SavingsData&Analysis'!L157 ->  | I39: ='SavingsData&Analysis'!M157 ->  | J39: ='SavingsData&Analysis'!N157 ->  | L39: ='SavingsData&Analysis'!P157 ->  | M39: ='SavingsData&Analysis'!Q157 ->  | N39: ='SavingsData&Analysis'!R157 ->  | BG39: Interior HP | BH39: =BD28 -> 1143.300171 | BI39: =BD29 -> 1208.321655 | BJ39: =BD30 -> 1058.693604 | BN39: HP | BO39: 1189 | BP39: 1686 | BQ39: 1113.516357
B40: ='SavingsData&Analysis'!F158 -> HCf=0.65 | C40: ='SavingsData&Analysis'!G158 -> Tier 1 | D40: ='SavingsData&Analysis'!H158 -> 4.941215696 | E40: ='SavingsData&Analysis'!I158 -> 5.405224768 | F40: ='SavingsData&Analysis'!J158 -> 0.4008519134 | H40: ='SavingsData&Analysis'!L158 -> 5.457293417 | I40: ='SavingsData&Analysis'!M158 -> 6.147419411 | J40: ='SavingsData&Analysis'!N158 -> 0.507056889 | L40: ='SavingsData&Analysis'!P158 -> 0.4830619116 | M40: ='SavingsData&Analysis'!Q158 -> 3.96691595 | N40: ='SavingsData&Analysis'!R158 -> -0.8567253833 | BG40: Interior Zonal | BH40: =BD22 -> 1073.756714 | BI40: =BD23 -> 1136.007568 | BJ40: =BD24 -> 848.8685303 | BN40: Zonal | BO40: 648 | BP40: 957 | BQ40: 1018.357788
B41: ='SavingsData&Analysis'!F159 -> HCf=0.75 | C41: ='SavingsData&Analysis'!G159 -> Tier 1 | D41: ='SavingsData&Analysis'!H159 ->  | E41: ='SavingsData&Analysis'!I159 ->  | F41: ='SavingsData&Analysis'!J159 ->  | H41: ='SavingsData&Analysis'!L159 ->  | I41: ='SavingsData&Analysis'!M159 ->  | J41: ='SavingsData&Analysis'!N159 ->  | L41: ='SavingsData&Analysis'!P159 ->  | M41: ='SavingsData&Analysis'!Q159 ->  | N41: ='SavingsData&Analysis'!R159 ->  | BG41: Garage | BH41: =BD18 -> 275.5369721 | BI41: =BD19 ->  | BM41: Gar. | BN41: Any | BO41: 887 | BP41: 1817 | BQ41: 262.4806825
B42: ='SavingsData&Analysis'!F160 -> HCf=1 | C42: ='SavingsData&Analysis'!G160 -> Tier 1 | D42: ='SavingsData&Analysis'!H160 ->  | E42: ='SavingsData&Analysis'!I160 ->  | F42: ='SavingsData&Analysis'!J160 ->  | H42: ='SavingsData&Analysis'!L160 ->  | I42: ='SavingsData&Analysis'!M160 ->  | J42: ='SavingsData&Analysis'!N160 ->  | L42: ='SavingsData&Analysis'!P160 ->  | M42: ='SavingsData&Analysis'!Q160 ->  | N42: ='SavingsData&Analysis'!R160 ->  | BG42: Basement | BH42: =BD20 -> 249.2300485 | BI42: =BD21 ->  | BM42: Base. | BN42: Any | BO42: 887 | BP42: 1817 | BQ42: 245.0955849
B43: Ducted at 0.65 | C43: ='SavingsData&Analysis'!G161 -> Tier 2 | D43: ='SavingsData&Analysis'!H161/2 ->  | E43: ='SavingsData&Analysis'!I161/2 ->  | F43: ='SavingsData&Analysis'!J161/2 ->  | H43: ='SavingsData&Analysis'!L161/2 ->  | I43: ='SavingsData&Analysis'!M161/2 ->  | J43: ='SavingsData&Analysis'!N161/2 ->  | L43: ='SavingsData&Analysis'!P161/2 ->  | M43: ='SavingsData&Analysis'!Q161/2 ->  | N43: ='SavingsData&Analysis'!R161/2 ->  | BL43: Tier 2 w/ Exhaust Ducting | BM43: Interior | BN43: Gas | BO43: 1724 | BP43: 1724 | BQ43: =BJ28 -> 1281.033569
BN44: EFAF | BO44: 837 | BP44: 837 | BQ44: =BJ29 -> 842.0657959
BN45: HP | BO45: 1243 | BP45: 1243 | BQ45: 1044.715454
BN46: Zonal | BO46: 952 | BP46: 952 | BQ46: 806.2539673
BM47: Gar. | BN47: Any | BO47: 1794 | BP47: 1794 | BQ47: 0
BM48: Base. | BN48: Any | BO48: 1794 | BP48: 1794 | BQ48: 0
BL49: Tier 2 NO Ducting | BM49: Interior | BN49: Gas | BQ49: =BI28 -> 1375.971069
BN50: EFAF | BQ50: =BI29 -> 1005.807678
BN51: HP | BQ51: 1156.269653
BN52: Zonal | BQ52: 1048.706665
BM53: Gar. | BN53: Any
BM54: Base. | BN54: Any
BK55: HZ3 | BL55: Tier 1 | BM55: Interior | BN55: Gas | BO55: 1547 | BP55: 2169 | BQ55: =BH37 -> 1328.477783
BN56: EFAF | BO56: 556 | BP56: 833 | BQ56: =BH38 -> 1039.624512
BN57: HP | BO57: 1189 | BP57: 1686 | BQ57: 1143.300171
BN58: Zonal | BO58: 648 | BP58: 957 | BQ58: 1073.756714
BM59: Gar. | BN59: Any | BO59: 887 | BP59: 1817 | BQ59: 275.5369721
BM60: Base. | BN60: Any | BO60: 887 | BP60: 1817 | BQ60: 249.2300485
BL61: Tier 2 w/ Exhaust Ducting | BM61: Interior | BN61: Gas | BO61: 1724 | BP61: 1724 | BQ61: =BJ37 -> 1337.276489
BN62: EFAF | BO62: 837 | BP62: 837 | BQ62: =BJ38 -> 900.4080811
BN63: HP | BO63: 1243 | BP63: 1243 | BQ63: 1058.693604
BN64: Zonal | BO64: 952 | BP64: 952 | BQ64: 848.8685303 | BS64: Heating Zone 3
BM65: Gar. | BN65: Any | BO65: 1794 | BP65: 1794 | BQ65: 0
BM66: Base. | BN66: Any | BO66: 1794 | BP66: 1794 | BQ66: 0
B67: Cost / Benefit Ratios | BL67: Tier 2 NO Ducting | BM67: Interior | BN67: Gas | BQ67: =BI37 -> 1435.919922
BN68: EFAF | BQ68: =BI38 -> 1095.505371
BN69: HP | BQ69: 1208.321655
B70: Heating System | C70: Location | D70: Tier | E70: Climate Zone | BN70: Zonal | BQ70: 1136.007568
E71: HZ1 | F71: HZ2 | G71: HZ3 | BM71: Gar. | BN71: Any
A72: _garage_ | B72: Any | C72: Garage | D72: Tier1 | E72: =VLOOKUP($D72&$A72&E$71,tbloutfnl,9,0) -> 0 | F72: 0 | G72: 0 | BM72: Base. | BN72: Any
A73: _garage_ | D73: Tier2
A74: _basmnt_ | C74: Basement | D74: Tier1 | E74: 0 | F74: 0 | G74: 0
A75: _basmnt_ | D75: Tier2
A76: _indor2_ | B76: Zonal Electric Resistance | C76: Interior | D76: Tier1 | E76: =VLOOKUP($D76&$A76&E$71&"_zonl",tbloutfnl,9,0) -> 0 | F76: 0 | G76: 0
A77: =A76 -> _indor2_ | D77: Tier2
A78: _ducted_ | C78: Ducted | D78: Tier2
A79: =A76 -> _indor2_ | B79: Electric Furnace | C79: Interior | D79: Tier1 | E79: =VLOOKUP($D79&$A79&E$71&"_efaf",tbloutfnl,9,0) -> 0 | F79: 0 | G79: 0
A80: _indor2_ | D80: Tier2
A81: _ducted_ | C81: Ducted | D81: Tier2
A82: _indor2_ | B82: Heat Pump | C82: Interior | D82: Tier1 | E82: =VLOOKUP($D82&$A82&E$71&"_hp85",tbloutfnl,9,0) -> 0 | F82: 0 | G82: 0
A83: _indor2_ | D83: Tier2
A84: _ducted_ | C84: Ducted | D84: Tier2
A85: _indor2_ | B85: Gas Furnace | C85: Interior | D85: Tier1 | E85: =VLOOKUP($D85&$A85&E$71&"_gfnc",tbloutfnl,9,0) -> 0 | F85: 0 | G85: 0
A86: =A83 -> _indor2_ | D86: Tier2
A87: _ducted_ | C87: Ducted | D87: Tier2
B94: Costs
B96: Equipment Costs
B97: Item | C97: 2014$s | D97: Source | E97: Notes
B98: Electric Resistance 50 gal | C98: =costs!B38 -> 400 | D98: Price survey | E98: EF 0.95 - baseline
B99: GE GeoSpring (50 gal) | C99: =costs!B39 -> 1109.330258 | D99: NEEA & BPA dataset
B100: AO Smith Voltex (60 & 80 gal) | C100: =costs!B40 -> 1494.640864 | D100: NEEA & BPA dataset
B101: AirGenerate ATI | C101: =costs!B41 -> 2267.549846 | D101: NEEA & BPA dataset
B103: Final Costs
B104: Baseline | C104: Measure | D104: Incremental Costs (2014$s)
D105: Equipment Cost | E105: Contractor Install | F105: Self Install | G105: Final Contractor | H105: Final Self | I105: Final Overall
B106: Tank Size <= 55 gallons, EF=0.95 | C106: =B99 -> GE GeoSpring (50 gal) | D106: =costs!C46 -> 709.3302581 | E106: =costs!D46 -> 108.07329 | F106: =costs!E46 -> 41.69697 | G106: =costs!F46 -> 817.4035481 | H106: =costs!G46 -> 751.0272281 | I106: =costs!H46 -> 763.7233698
C107: =B100 -> AO Smith Voltex (60 & 80 gal) | D107: =costs!C47 -> 1094.640864 | E107: =costs!D47 -> 174.44961 | F107: =costs!E47 -> 41.69697 | G107: =costs!F47 -> 1269.090474 | H107: =costs!G47 -> 1136.337834 | I107: =costs!H47 -> 1161.730117
C108: =B101 -> AirGenerate ATI | D108: =costs!C48 -> 1867.549846 | E108: =costs!D48 -> 373.7262004 | F108: =costs!E48 -> 227.1178791 | G108: =costs!F48 -> 2241.276046 | H108: =costs!G48 -> 2094.667725 | I108: =costs!H48 -> 2229.553985 | M108: Existing, Small Tank | N108: Existing, Large Tank | O108: Proposed, Any Size Tank
C109: Tier 1 | D109: =costs!C49 -> 759.7568138 | E109: =costs!D49 -> 116.7601238 | F109: =costs!E49 -> 41.69697 | G109: =costs!F49 -> 876.5169377 | H109: =costs!G49 -> 801.4537838 | I109: =costs!H49 -> 815.8115012 | L109: Tier 1 | M109: 945.44 | N109: 1480.33 | O109: =finallookup!R8 -> 0
C110: Tier 2 | D110: =costs!C50 -> 1867.549846 | E110: =costs!D50 -> 174.44961 | F110: =costs!E50 -> 41.69697 | G110: =costs!F50 -> 2041.999456 | H110: =costs!G50 -> 1909.246816 | I110: =costs!H50 -> 2031.385225 | L110: Tier 2 w/ Exhaust Ducting | M110: 1615.18 | N110: 1615.18 | O110: =finallookup!#REF! -> 
C111: Tier 2 Ducted | D111: =costs!C51 -> 1867.549846 | E111: =costs!D51 -> 373.7262004 | F111: =costs!E51 -> 227.1178791 | G111: =costs!F51 -> 2241.276046 | H111: =costs!G51 -> 2094.667725 | I111: =costs!H51 -> 2229.553985 | L111: Tier 2 NO Ducting | O111: =finallookup!#REF! -> 
B112: Tank Size > 55 gallons, EF>2.0, assumed to be Tier 1 | C112: Tier 2 | D112: =costs!C52 -> 772.9089822 | E112: =costs!D52 -> 0 | F112: =costs!E52 -> 0 | G112: =costs!F52 -> 772.9089822 | H112: =costs!G52 -> 772.9089822 | I112: =costs!H52 -> 772.9089822
C113: Tier 2 Ducted | D113: =costs!C53 -> 772.9089822 | E113: =costs!D53 -> 199.2765904 | F113: =costs!E53 -> 185.4209091 | G113: =costs!F53 -> 972.1855726 | H113: =costs!G53 -> 958.3298913 | I113: =costs!H53 -> 971.0777422

Sheet costs (hidden)
A1: Costs
A2: Dollar Deflators (source RTF SIW)
A3: http://rtf.nwcouncil.org/measures/support/files/RTFStandardInformationWorkbook_v2_0.xlsx
A4: 2011$:2006$ | B4: 1.120869493
A5: 2008$:2006$ | B5: 1.046699507
A6: 20011$:2009$ | B6: 1.046699507
A7: 2014$:2008$ | B7: 1.086
A8: 2014$:2006$ | B8: 1.137
A36: Equipment Costs
A37: Item | B37: 2014$s | C37: Source | D37: Notes
A38: Electric Resistance 50 gal | B38: =B199 -> 400 | C38: Price survey | D38: EF 0.95 - baseline
A39: GE GeoSpring (50 gal) | B39: =B137 -> 1109.330258 | C39: NEEA & BPA dataset
A40: AO Smith Voltex (60 & 80 gal) | B40: =B138 -> 1494.640864 | C40: NEEA & BPA dataset
A41: AirGenerate ATI | B41: =B139 -> 2267.549846 | C41: NEEA & BPA dataset
A43: Final Costs
A44: Baseline | B44: Measure | C44: Incremental Costs (2014$s)
C45: Equipment Cost | D45: Contractor Install | E45: Self Install | F45: Final Contractor | G45: Final Self | H45: Final Overall
A46: Tank Size <= 55 gallons, EF=0.95 | B46: =A39 -> GE GeoSpring (50 gal) | C46: =B39-$B$199 -> 709.3302581 | D46: =D173 -> 108.07329 | E46: =G173 -> 41.69697 | F46: =SUM(C46:D46) -> 817.4035481 | G46: =SUM(C46,E46) -> 751.0272281 | H46: =SUMPRODUCT(F46:G46,'SavingsData&Analysis'!$H$70:$I$70) -> 763.7233698
B47: =A40 -> AO Smith Voltex (60 & 80 gal) | C47: =B40-$B$199 -> 1094.640864 | D47: =D174 -> 174.44961 | E47: =G174 -> 41.69697 | F47: =SUM(C47:D47) -> 1269.090474 | G47: =SUM(C47,E47) -> 1136.337834 | H47: =SUMPRODUCT(F47:G47,'SavingsData&Analysis'!$H$70:$I$70) -> 1161.730117
B48: =A41 -> AirGenerate ATI | C48: 1867.549846 | D48: =D175 -> 373.7262004 | E48: =G175 -> 227.1178791 | F48: 2241.276046 | G48: 2094.667725 | H48: =SUMPRODUCT(F48:G48,'SavingsData&Analysis'!$H$71:$I$71) -> 2229.553985 | M48: Cost Lookup Table | N48: 2006$s
B49: Tier 1 | C49: =SUMPRODUCT(C46:C47,'SavingsData&Analysis'!$G$60:$G$61) -> 759.7568138 | D49: =SUMPRODUCT(D46:D47,'SavingsData&Analysis'!$G$60:$G$61) -> 116.7601238 | E49: =SUMPRODUCT(E46:E47,'SavingsData&Analysis'!G60:G61) -> 41.69697 | F49: 876.5169377 | G49: 801.4537838 | H49: =SUMPRODUCT(F49:G49,'SavingsData&Analysis'!$H$70:$I$70) -> 815.8115012 | M49: Tier1 | N49: =H49/$B$8 -> 717.5123142
B50: Tier 2 | C50: =C48 -> 1867.549846 | D50: =D47 -> 174.44961 | E50: =E47 -> 41.69697 | F50: 2041.999456 | G50: 1909.246816 | H50: =SUMPRODUCT(F50:G50,'SavingsData&Analysis'!$H$71:$I$71) -> 2031.385225 | M50: Tier2 | N50: =H50/$B$8 -> 1786.618491
B51: Tier 2 Ducted | C51: =C48 -> 1867.549846 | D51: =D48 -> 373.7262004 | E51: =E48 -> 227.1178791 | F51: 2241.276046 | G51: 2094.667725 | H51: =SUMPRODUCT(F51:G51,'SavingsData&Analysis'!$H$71:$I$71) -> 2229.553985 | M51: Tier2_ducted | N51: 1960.909397
A52: Tank Size > 55 gallons, EF>2.0, assumed to be Tier 1 | B52: Tier 2 | C52: =C50-C47 -> 772.9089822 | D52: =D50-D47 -> 0 | E52: =E50-E47 -> 0 | F52: =F50-F47 -> 772.9089822 | G52: =G50-G47 -> 772.9089822 | H52: =SUMPRODUCT(F52:G52,'SavingsData&Analysis'!$H$71:$I$71) -> 772.9089822
B53: Tier 2 Ducted | C53: =C51-C47 -> 772.9089822 | D53: =D51-D47 -> 199.2765904 | E53: =E51-E47 -> 185.4209091 | F53: =F51-F47 -> 972.1855726 | G53: =G51-G47 -> 958.3298913 | H53: =SUMPRODUCT(F53:G53,'SavingsData&Analysis'!$H$71:$I$71) -> 971.0777422
A57: Department of Energy (DOE) Technical Support Document (TSD) for Water Heater Standards
A58: Date: November 23, 2009
A59: http://www.regulations.gov/#!documentDetail;D=EERE-2006-STD-0129-0170
A62: Table 8-A.3.2 Basic Installation Costs for Electric Storage Water Heater: Replacement
A63: Description | B63: Crew | C63: Labor Hours | D63: Unit | E63: Bare Costs (2008$) | I63: Total incl. O&P
E64: Mat. | F64: Labor | G64: Other | H64: Total
A65: Trip Charge | B65: 2 PLUM* | C65: 1 | D65: Ea. | E65: 0 | F65: 40.64 | G65: 0 | H65: =SUM(E65:G65) -> 40.64 | I65: 61.12
A66: Remove Old Heater | B66: 2 PLUM* | C66: 0.75 | D66: Ea. | E66: 0 | F66: 30.48 | G66: 0 | H66: =SUM(E66:G66) -> 30.48 | I66: 45.84
A67: Installation | B67: 2 PLUM* | C67: 1.5 | D67: Ea. | E67: 25 | F67: 75.32 | G67: 0 | H67: =SUM(E67:G67) -> 100.32 | I67: =F67*I65/H65+E67 -> 138.2765354
A68: Removal/disposal and permit fees | B68: - | C68: - | D68: Ea. | E68: 0 | F68: 0 | G68: 70 | H68: =SUM(E68:G68) -> 70 | I68: 70
A69: Total | C69: =SUM(C65:C68) -> 3.25 | D69: =SUM(D65:D68) -> 0 | E69: 25 | F69: 146.44 | G69: 70 | H69: 241.44 | I69: =SUM(I65:I68) -> 315.2365354
A71: Table 8-A.3.3 Installation Adder (66, 75, and 119-gallon) or Attic Installation
A72: Description | B72: Crew | C72: Labor Hours | D72: Unit | E72: Bare Costs (2008$) | I72: Total incl. O&P
E73: Mat. | F73: Labor | G73: Other | H73: Total
A74: Installation Adder | B74: 2 PLUM* | C74: 1 | D74: Ea. | E74: 0 | F74: 40.64 | G74: 0 | H74: =SUM(E74:G74) -> 40.64 | I74: 61.12
A76: Table 8-A.3.10 Installation Adder for Heat Pump Water Heaters
A77: Description | B77: Crew | C77: Labor Hours | D77: Unit | E77: Bare Costs (2008$) | I77: Total incl. O&P
E78: Mat. | F78: Labor | G78: Other | H78: Total
A79: Installation Adder | B79: 2 PLUM* | C79: 1 | D79: Ea. | E79: 0 | F79: 40.64 | G79: 0 | H79: =SUM(E79:G79) -> 40.64 | I79: 61.12
A80: * 2 PLUM = 2 plumbers
A82: 8-A.3.3.2 Condensate Pump Cost
B83: Cost Range Estimate $84.53 to $222.63
B84: Applicability | C84: 0.25
B85: Cost | C85: =AVERAGE(84.53,222.63)*C84 -> 38.395 | D85: (2008$)
A112: NEEA and BPA Dataset of HPWH Installation Costs
A114: HPWH Labor for Contractor Installation
B115: Hours | C115: 2014$s | D115: n
A116: GE GeoSpring (50 gallon) | B116: ? | C116: =(SUMIFS(costdataset!I:I,costdataset!C:C,"GE",costdataset!D:D,50,costdataset!E:E,"0")/D116) -> 326.2169772 | D116: =COUNTIFS(costdataset!C:C,"GE",costdataset!D:D,50,costdataset!E:E,"0") -> 43
A117: Voltex Tanks (60 & 80 gallon) | B117: ? | C117: =(SUMIFS(costdataset!I:I,costdataset!C:C,"A.O. Smith",costdataset!E:E,"0"))/D117 -> 348.8435729 | D117: =COUNTIFS(costdataset!C:C,"A.O. Smith",costdataset!E:E,"0") -> 14
A118: AirGenerate ATI 66 No Duct | B118: =AVERAGE(SUMIFS(costdataset!L:L,costdataset!E:E,0,costdataset!C:C,"AirGenerate",costdataset!F:F,"No"))/COUNTIFS(costdataset!E:E,0,costdataset!C:C,"AirGenerate",costdataset!F:F,"No",costdataset!L:L,"<>"&"") -> 4.968813953 | C118: =(SUMIFS(costdataset!I:I,costdataset!C:C,"AirGenerate",costdataset!E:E,"0",costdataset!F:F,"No"))/D118 -> 471.5253378 | D118: =COUNTIFS(costdataset!C:C,"AirGenerate",costdataset!E:E,"0",costdataset!F:F,"No",costdataset!I:I,"<>"&"") -> 444
A119: AirGenerate ATI 66 Ducted | B119: =AVERAGE(SUMIFS(costdataset!L:L,costdataset!E:E,0,costdataset!C:C,"AirGenerate",costdataset!F:F,"Yes"))/COUNTIFS(costdataset!E:E,0,costdataset!C:C,"AirGenerate",costdataset!F:F,"Yes",costdataset!L:L,"<>"&"") -> 6.813779762 | C119: =(SUMIFS(costdataset!I:I,costdataset!C:C,"AirGenerate",costdataset!E:E,"0",costdataset!F:F,"Yes"))/D119 -> 616.7566568 | D119: =COUNTIFS(costdataset!C:C,"AirGenerate",costdataset!E:E,"0",costdataset!F:F,"Yes",costdataset!I:I,"<>"&"") -> 350
A120: ATI Overall | B120: =((B118*COUNTIFS(costdataset!E:E,0,costdataset!C:C,"AirGenerate",costdataset!F:F,"No",costdataset!L:L,"<>"&""))+(B119*COUNTIFS(costdataset!E:E,0,costdataset!C:C,"AirGenerate",costdataset!F:F,"Yes",costdataset!L:L,"<>"&"")))/(COUNTIFS(costdataset!E:E,0,costdataset!C:C,"AirGenerate",costdataset!F:F,"No",costdataset!L:L,"<>"&"") + COUNTIFS(costdataset!E:E,0,costdataset!C:C,"AirGenerate",costdataset!F:F,"Yes",costdataset!L:L,"<>"&"")) -> 5.778093995 | C120: =((C118*D118) +(C119*D119))/D120 -> 535.5441812 | D120: =SUM(D118:D119) -> 794
A122: Incremental Duct Install Labor | B122: =B119-B118 -> 1.844965808 | C122: =C119-C118 -> 145.231319
A125: Fraction of Contractor vs Self Installations
B126: Contractor | C126: Self | D126: n
A127: =A116 -> GE GeoSpring (50 gallon) | B127: =COUNTIFS(costdataset!C:C,"GE",costdataset!E:E,"0")/D127 -> 0.166023166 | C127: =1-B127 -> 0.833976834 | D127: =COUNTIFS(costdataset!C:C,"GE",costdataset!D:D,50) -> 259
A128: =A117 -> Voltex Tanks (60 & 80 gallon) | B128: =COUNTIFS(costdataset!C:C,"A.O. Smith",costdataset!E:E,"0")/D128 -> 0.358974359 | C128: =1-B128 -> 0.641025641 | D128: =COUNTIFS(costdataset!C:C,"A.O. Smith") -> 39
A129: =A118 -> AirGenerate ATI 66 No Duct | B129: =COUNTIFS(costdataset!C:C,"AirGenerate",costdataset!E:E,"0",costdataset!F:F,"No")/D129 -> 0.9678111588 | C129: 0.0321888412 | D129: =COUNTIFS(costdataset!C:C,"AirGenerate",costdataset!F:F,"No") -> 466
A130: AirGenerate ATI 66 Ducted | B130: =COUNTIFS(costdataset!C:C,"AirGenerate",costdataset!E:E,"0",costdataset!F:F,"Yes")/D130 -> 0.8962962963 | C130: 0.1037037037 | D130: =COUNTIFS(costdataset!C:C,"AirGenerate",costdataset!F:F,"Yes") -> 405
A131: =A120 -> ATI Overall | B131: =(COUNTIFS(costdataset!C:C,"AirGenerate",costdataset!E:E,"0",costdataset!F:F,"No")+COUNTIFS(costdataset!C:C,"AirGenerate",costdataset!E:E,"0",costdataset!F:F,"Yes"))/D131 -> 0.9166666667 | C131: =1-B131 -> 0.08333333333 | D131: =COUNTIFS(costdataset!C:C,"AirGenerate") -> 888
A133: HPWH Equipment Cost
A134: note: when equipment cost known separately from total cost
A135: note: Equipment Cost is only the cost of the HPWH (excludes other parts)
B136: 2014$s | C136: n
A137: =A127 -> GE GeoSpring (50 gallon) | B137: =(SUMIFS(costdataset!H:H,costdataset!C:C,"GE",costdataset!D:D,50)/C137) -> 1109.330258 | C137: =COUNTIFS(costdataset!C:C,"GE",costdataset!H:H,"<>"&"") -> 77
A138: =A128 -> Voltex Tanks (60 & 80 gallon) | B138: =(SUMIFS(costdataset!H:H,costdataset!C:C,"A.O. Smith")/C138) -> 1494.640864 | C138: =COUNTIFS(costdataset!C:C,"A.O. Smith",costdataset!H:H,"<>"&"") -> 23
A139: =A131 -> ATI Overall | B139: =(SUMIFS(costdataset!H:H,costdataset!C:C,"AirGenerate")/C139) -> 2267.549846 | C139: =COUNTIFS(costdataset!C:C,"AirGenerate",costdataset!H:H,"<>"&"") -> 844
A140: observations: GeoSpring & Voltex are frequently purchased at retail stores
A141: ATI is purchased through a contractor
A142: - contractor purchase likely results in mark-up (MSRP is ~$2000)
A144: HPWH Total Install Cost
B145: 2014$s
B146: Contractor | C146: Self | D146: Overall | E146: n
A147: =A116 -> GE GeoSpring (50 gallon) | B147: =(SUMIFS(costdataset!K:K,costdataset!C:C,"GE",costdataset!D:D,50,costdataset!E:E,0)/COUNTIFS(costdataset!C:C,"GE",costdataset!D:D,50,costdataset!E:E,0,costdataset!K:K,"<>" & "")) -> 1490.064737 | C147: =(SUMIFS(costdataset!K:K,costdataset!C:C,"GE",costdataset!D:D,50,costdataset!E:E,1)/COUNTIFS(costdataset!C:C,"GE",costdataset!D:D,50,costdataset!E:E,1,costdataset!K:K,"<>" & "")) -> 1172.884737 | D147: =(SUMIFS(costdataset!K:K,costdataset!C:C,"GE",costdataset!D:D,50)/E147) -> 1278.611404 | E147: =COUNTIFS(costdataset!C:C,"GE",costdataset!D:D,50,costdataset!K:K,"<>" & "") -> 57
A148: =A117 -> Voltex Tanks (60 & 80 gallon) | B148: =(SUMIFS(costdataset!K:K,costdataset!C:C,"A.O. Smith",costdataset!E:E,0)/COUNTIFS(costdataset!C:C,"A.O. Smith",costdataset!E:E,0,costdataset!K:K,"<>" & "")) -> 1929.478889 | C148: =(SUMIFS(costdataset!K:K,costdataset!C:C,"A.O. Smith",costdataset!E:E,1)/COUNTIFS(costdataset!C:C,"A.O. Smith",costdataset!E:E,1,costdataset!K:K,"<>" & "")) -> 1607.650909 | D148: =(SUMIFS(costdataset!K:K,costdataset!C:C,"A.O. Smith")/E148) -> 1752.4735 | E148: =COUNTIFS(costdataset!C:C,"A.O. Smith",costdataset!K:K,"<>" & "") -> 20
A149: =A118 -> AirGenerate ATI 66 No Duct | B149: =(SUMIFS(costdataset!K:K,costdataset!C:C,"AirGenerate",costdataset!E:E,0,costdataset!F:F,"No")/COUNTIFS(costdataset!C:C,"AirGenerate",costdataset!E:E,0,costdataset!F:F,"No",costdataset!K:K,"<>" & "")) -> 2872.204045 | C149: =(SUMIFS(costdataset!K:K,costdataset!C:C,"AirGenerate",costdataset!E:E,1,costdataset!F:F,"No")/COUNTIFS(costdataset!C:C,"AirGenerate",costdataset!E:E,1,costdataset!F:F,"No",costdataset!K:K,"<>" & "")) -> 2050.63 | D149: =(SUMIFS(costdataset!K:K,costdataset!C:C,"AirGenerate",costdataset!F:F,"No")/E149) -> 2862.972876 | E149: =COUNTIFS(costdataset!C:C,"AirGenerate",costdataset!F:F,"No",costdataset!K:K,"<>" & "") -> 445
A150: =A119 -> AirGenerate ATI 66 Ducted | B150: =(SUMIFS(costdataset!K:K,costdataset!C:C,"AirGenerate",costdataset!E:E,0,costdataset!F:F,"Yes")/COUNTIFS(costdataset!C:C,"AirGenerate",costdataset!E:E,0,costdataset!F:F,"Yes",costdataset!K:K,"<>" & "")) -> 3071.480636 | C150: =(SUMIFS(costdataset!K:K,costdataset!C:C,"AirGenerate",costdataset!E:E,1,costdataset!F:F,"Yes")/COUNTIFS(costdataset!C:C,"AirGenerate",costdataset!E:E,1,costdataset!F:F,"Yes",costdataset!K:K,"<>" & "")) -> 2236.050909 | D150: =(SUMIFS(costdataset!K:K,costdataset!C:C,"AirGenerate",costdataset!F:F,"Yes")/E150) -> 3045.739104 | E150: =COUNTIFS(costdataset!C:C,"AirGenerate",costdataset!F:F,"Yes",costdataset!K:K,"<>" & "") -> 357
A151: =A120 -> ATI Overall | B151: =(SUMIFS(costdataset!K:K,costdataset!C:C,"AirGenerate",costdataset!E:E,0)/COUNTIFS(costdataset!C:C,"AirGenerate",costdataset!E:E,0,costdataset!K:K,"<>" & "")) -> 2960.751686 | C151: =(SUMIFS(costdataset!K:K,costdataset!C:C,"AirGenerate",costdataset!E:E,1)/COUNTIFS(costdataset!C:C,"AirGenerate",costdataset!E:E,1,costdataset!K:K,"<>" & "")) -> 2178.106875 | D151: =(SUMIFS(costdataset!K:K,costdataset!C:C,"AirGenerate")/E151) -> 2945.196012 | E151: =COUNTIFS(costdataset!C:C,"AirGenerate",costdataset!K:K,"<>" & "") -> 805
A154: Compare the Labor and Parts Costs for HPWH Installation
A155: These are not incremental costs from the electric resistance water heater
B156: 2006$s | C156: 2008$s | D156: 2014$s
A157: DOE TSD Small HPWH Total Cost (excludes equipment) | B157: =C157/$B$5 -> 396.2469961 | C157: =SUM(I69,I79,C85) -> 414.7515354 | D157: =C157*$B$7 -> 450.4201675
A158: DOE TSD Large HPWH Total Cost (excludes equipment) | B158: =C158/$B$5 -> 454.6400684 | C158: =SUM(I69,I79,C85,I74) -> 475.8715354 | D158: =C158*$B$7 -> 516.7964875
A160: Observed Incremental Costs (labor and parts) from NEEA & BPA dataset
A161: For contractor installs only
A162: =A137 -> GE GeoSpring (50 gallon) | B162: =D162/$B$8 -> 334.8588204 | C162: =D162/$B$7 -> 350.5842346 | D162: =B147-B137 -> 380.7344788
A163: =A138 -> Voltex Tanks (60 & 80 gallon) | B163: =D163/$B$8 -> 382.4432938 | C163: =D163/$B$7 -> 400.403338 | D163: =B148-B138 -> 434.8380251
A165: The above two tables comparing DOE TSD estimates of installation costs to observed costs
A166: show reasonable agreement. If anything, the DOE costs are too high.
A167: Because they reasonable agree, however, we can use the incremental installation cost estimates
A168: from Tables 8-A.3.3 and 8-A.3.10 for HPWHs.
A170: HPWH Incremental Install Costs (includes parts and labor)
C171: Contractor Installs | F171: Self Installs
B172: 2006$s | C172: 2008$s | D172: 2014$s | E172: 2006$s | F172: 2008$s | G172: 2014$s
A173: Small Tank | B173: =C173/$B$5 -> 95.0750424 | C173: =I79+C85 -> 99.515 | D173: =C173*$B$7 -> 108.07329 | E173: =F173/$B$5 -> 36.68197008 | F173: =C85 -> 38.395 | G173: =F173*$B$7 -> 41.69697
A174: Large Tank | B174: =C174/$B$5 -> 153.4681147 | C174: =C173+I74 -> 160.635 | D174: =C174*$B$7 -> 174.44961 | E174: =F174/$B$5 -> 36.68197008 | F174: =F173 -> 38.395 | G174: =F174*$B$7 -> 41.69697
A175: Ducted Large Tank | B175: =D175/$B$8 -> 328.6949871 | C175: =D175/$B$7 -> 344.1309396 | D175: =(B150-B149)+D174 -> 373.7262004 | E175: =G175/$B$8 -> 199.7518726 | F175: =G175/$B$7 -> 209.1324854 | G175: =C150-C149+G174 -> 227.1178791
A185: Electric Resistance Water Heater Equipment Costs
A195: Item | B195: Cost 2014$s | C195: EF | D195: Model# | E195: Notes | F195: Source
A196: Whirpool 40 gallon ER Tank | B196: 448 | C196: 0.95 | D196: Whirlpool ES40R123-45D | F196: lowes.com
A197: Whirpool 50 gallon ER Tank | B197: 488 | C197: 0.93 | D197: Whirlpool ES50R123-45D | F197: lowes.com
A198: Rheem 50 gallon ER Tank | B198: 398 | C198: 0.95 | D198: Rheem XE50T12EC55U0 | F198: homedepot.com
A199: Generic 50 gallon Tank | B199: 400 | C199: 0.95 | D199: na | E199: Assigned based on above 3 cases
A205: Supplemental Fuel Avoided Costs
A206: Set equal to the regional average retail residential electric rate
A207: Source: EIA 2011
B208: Total Electric Sales (MWh) | C208: Weight | D208: Residential Retail Rate (cents/kWh) | E208: 2011 $/kWh | F208: 2006 $/kWh
A209: ID | B209: 8389866 | C209: =B209/$B$213 -> 0.1252430934 | D209: 7.87 | E209: =D209/100 -> 0.0787 | F209: =E209/$B$4 -> 0.07021334821
A210: MT | B210: 2793468 | C210: =B210/$B$213 -> 0.0417006152 | D210: 9.75 | E210: =D210/100 -> 0.0975 | F210: =E210/$B$4 -> 0.0869860413
A211: OR | B211: 19429175 | C211: 0.290036811 | D211: 8.28 | E211: 0.0828 | F211: 0.07387122277
A212: WA | B212: 36376143 | C212: 0.5430194804 | D212: 9.54 | E212: 0.0954 | F212: 0.08511249579
A213: Overall | B213: 66988652 | C213: 1 | D213: 8.974154781 | E213: 0.08974154781 | F213: 0.08006422548
A222: Water Heater Lifetime
A223: Source: DOE TSD as above
A224: Appendix 8-C Lifetime Distributions
A225: Table 8-C.3.1 Water Heaters
A226: Product Class | B226: Expert Opinion Values (years)
B227: Minimum | C227: Average | D227: Maximum
A228: Gas-Fired Storage | B228: 6 | C228: 13 | D228: 20
A229: Electric Storage | B229: 6 | C229: 13 | D229: 20
A230: Oil-Fired Storage | B230: 6 | C230: 13 | D230: 20
A231: Gas-Fired Instantaneous | B231: 8 | C231: 20 | D231: 30

Sheet costdataset (hidden)
A1: siteid | B1: Tier | C1: Brand | D1: NewUnitSizeGal | E1: selfinstall | F1: InstalledDucting | G1: Equipratio_flag | H1: REquipmentCost | I1: RLaborCost | J1: RDuctingCost | K1: RTotCost | L1: TotalHourstoInstall | Q1: Cost Data from NEEA, BPA, and SCL HPWH programs
A2: 1 | B2: 1 | C2: GE | D2: 50 | E2: 1 | F2: No | G2: ge50 | H2: 1099 | I2: 0 | J2: 0 | K2: 1499 | Q2: Date range ~2013 to mid 2014
A3: 2 | B3: 1 | C3: GE | D3: 50 | E3: 1 | F3: No | G3: ge50 | I3: 0 | J3: 0
A4: 3 | B4: 2 | C4: AirGenerate | D4: 66 | E4: 0 | F4: No | G4: ag66n | H4: 2125 | I4: 475 | J4: 0 | K4: 2600
A5: 4 | B5: 1 | C5: GE | D5: 50 | E5: 0 | F5: No | G5: ge50 | H5: 999.9899902 | I5: 150 | J5: 0 | K5: 1199.99
A6: 5 | B6: 1 | C6: GE | D6: 50 | E6: 0 | F6: No | G6: ge50 | I6: 219.99001 | J6: 0
A7: 6 | B7: 1 | C7: GE | D7: 50 | E7: 0 | F7: No | G7: ge50 | H7: 1250 | I7: 422 | J7: 0 | K7: 1672
A8: 7 | B8: 1 | C8: GE | D8: 50 | E8: 1 | F8: No | G8: ge50 | H8: 1199 | I8: 0 | J8: 0 | K8: 1224
A9: 8 | B9: 1 | C9: GE | D9: 50 | E9: 0 | F9: No | G9: ge50 | I9: 219.99001 | J9: 0
A10: 9 | B10: 1 | C10: GE | D10: 50 | E10: 1 | F10: No | G10: ge50 | I10: 0 | J10: 0
A11: 10 | C11: GE | D11: 50 | E11: 0 | F11: No | G11: ge50 | I11: 120 | J11: 0
A12: 11 | C12: GE | D12: 50 | E12: 0 | F12: No | G12: ge50 | H12: 1050 | I12: 220 | J12: 0 | K12: 1300
A13: 12 | C13: GE | D13: 50 | E13: 1 | F13: No | G13: ge50 | H13: 999.9899902 | I13: 0 | J13: 0 | K13: 1099.99
A14: 13 | C14: GE | D14: 50 | E14: 1 | F14: No | G14: ge50 | H14: 999.9899902 | I14: 0 | J14: 0 | K14: 1024.99
A15: 14 | B15: 1 | C15: GE | D15: 50 | E15: 1 | F15: No | G15: ge50 | H15: 1199 | I15: 0 | J15: 0 | K15: 1199
A16: 15 | B16: 1 | C16: GE | D16: 50 | E16: 1 | F16: No | G16: ge50 | I16: 0 | J16: 0
A17: 16 | C17: GE | D17: 50 | E17: 0 | F17: No | G17: ge50 | H17: 1138.709961 | I17: 314.98999 | J17: 0 | K17: 1673.69
A18: 17 | C18: GE | D18: 50 | E18: 1 | F18: No | G18: ge50 | I18: 0 | J18: 0
A19: 18 | C19: GE | D19: 50 | E19: 1 | F19: No | G19: ge50 | I19: 0 | J19: 0
A20: 19 | C20: GE | D20: 50 | E20: 1 | F20: No | G20: ge50 | I20: 0 | J20: 0
A21: 20 | C21: GE | D21: 50 | E21: 1 | F21: No | G21: ge50 | I21: 0 | J21: 0
A22: 21 | C22: GE | D22: 50 | E22: 1 | F22: No | G22: ge50 | H22: 1049.790039 | I22: 0 | J22: 0 | K22: 1399.79
A23: 22 | C23: GE | D23: 50 | E23: 1 | F23: No | G23: ge50 | I23: 0 | J23: 0
A24: 23 | C24: GE | D24: 50 | E24: 1 | F24: No | G24: ge50 | H24: 1112.780029 | I24: 0 | J24: 0 | K24: 1112.78
A25: 24 | B25: 1 | C25: GE | D25: 50 | E25: 1 | F25: No | G25: ge50 | I25: 0 | J25: 0
A26: 25 | C26: GE | D26: 50 | E26: 1 | F26: No | G26: ge50 | H26: 1122.219971 | I26: 0 | J26: 0
A27: 26 | C27: GE | D27: 50 | E27: 1 | F27: No | G27: ge50 | I27: 0 | J27: 0
A28: 27 | B28: 1 | C28: GE | D28: 50 | E28: 0 | F28: No | G28: ge50 | I28: 200 | J28: 0
A29: 28 | C29: GE | D29: 50 | E29: 1 | F29: No | G29: ge50 | H29: 1199 | I29: 0 | J29: 0 | K29: 1288
A30: 29 | C30: GE | D30: 50 | E30: 1 | F30: No | G30: ge50 | H30: 1199 | I30: 0 | J30: 0 | K30: 1229
A31: 30 | C31: A.O. Smith | D31: 80 | E31: 1 | F31: No | G31: ao80 | H31: 1094.98999 | I31: 0 | J31: 0 | K31: 1290.99
A32: 31 | C32: GE | D32: 50 | E32: 1 | F32: No | G32: ge50 | H32: 999.9899902 | I32: 0 | J32: 0 | K32: 1205.76
A33: 32 | C33: GE | D33: 50 | E33: 1 | F33: No | G33: ge50 | H33: 1199 | I33: 0 | J33: 0 | K33: 1240
A34: 33 | C34: GE | D34: 50 | E34: 0 | F34: No | G34: ge50 | H34: 1199.98999 | I34: 413.94 | J34: 0 | K34: 1673.92
A35: 34 | C35: GE | D35: 50 | E35: 0 | F35: No | G35: ge50 | H35: 999.9899902 | I35: 101 | J35: 0 | K35: 1225.99
A36: 35 | C36: GE | D36: 50 | E36: 1 | F36: No | G36: ge50 | H36: 1200 | I36: 70 | J36: 0 | K36: 1270
A37: 36 | C37: A.O. Smith | D37: 60 | E37: 1 | F37: No | G37: ao60 | H37: 1407.890015 | I37: 0 | J37: 0
A38: 37 | C38: GE | D38: 50 | E38: 1 | F38: No | G38: ge50 | I38: 0 | J38: 0
A39: 38 | C39: A.O. Smith | D39: 80 | E39: 0 | F39: No | G39: ao80 | H39: 1039.97998 | I39: 239.99001 | J39: 0 | K39: 1279.97
A40: 39 | C40: GE | D40: 50 | E40: 1 | F40: No | G40: ge50 | H40: 1199 | I40: 0 | J40: 0 | K40: 1379.7
A41: 40 | C41: GE | D41: 50 | E41: 1 | F41: No | G41: ge50 | I41: 0 | J41: 0
A42: 41 | C42: A.O. Smith | D42: 80 | E42: 1 | F42: No | G42: ao80 | H42: 1082.98999 | I42: 0 | J42: 0 | K42: 1182.99
A43: 42 | B43: 2 | C43: AirGenerate | D43: 66 | E43: 0 | F43: Yes | G43: ag66d | H43: 2500 | I43: 800 | K43: 3300
A44: 43 | C44: GE | D44: 50 | E44: 1 | F44: No | G44: ge50 | I44: 0 | J44: 0
A45: 44 | C45: A.O. Smith | D45: 80 | E45: 1 | F45: No | G45: ao80 | H45: 1999 | I45: 1 | J45: 0 | K45: 2200
A46: 45 | C46: GE | D46: 50 | E46: 1 | F46: No | G46: ge50 | H46: 1000 | I46: 0 | J46: 0
A47: 46 | C47: A.O. Smith | D47: 60 | E47: 1 | F47: No | G47: ao60 | I47: 0 | J47: 0
A48: 47 | C48: GE | D48: 50 | E48: 1 | F48: Yes | G48: ge50 | H48: 1199 | I48: 0
A49: 48 | C49: GE | D49: 50 | E49: 0 | F49: No | G49: ge50 | H49: 1082.98999 | I49: 292.38 | J49: 0 | K49: 1375.37
A50: 49 | C50: AirGenerate | D50: 66 | E50: 0 | F50: Yes | G50: ag66d | H50: 2000 | I50: 380 | K50: 2690
A51: 50 | C51: GE | D51: 50 | E51: 1 | F51: No | G51: ge50 | H51: 1232 | I51: 0 | J51: 0 | K51: 1232
A52: 51 | C52: AirGenerate | D52: 66 | E52: 1 | F52: Yes | G52: ag66d | I52: 0
A53: 52 | C53: GE | D53: 50 | E53: 1 | F53: No | G53: ge50 | H53: 999 | I53: 0 | J53: 0 | K53: 1099
A54: 53 | C54: GE | D54: 50 | E54: 1 | F54: No | G54: ge50 | H54: 1078.920044 | I54: 0 | J54: 0 | K54: 1125.59
A55: 54 | C55: GE | D55: 50 | E55: 1 | F55: No | G55: ge50 | I55: 0 | J55: 0
A56: 55 | C56: GE | D56: 50 | E56: 1 | F56: No | G56: ge50 | I56: 0 | J56: 0
A57: 56 | C57: GE | D57: 50 | E57: 1 | F57: No | G57: ge50 | H57: 1299.589966 | I57: 0 | J57: 0
A58: 57 | C58: GE | D58: 50 | E58: 1 | F58: No | G58: ge50 | H58: 999.9899902 | I58: 0 | J58: 0
A59: 58 | C59: GE | D59: 50 | E59: 1 | F59: No | G59: ge50 | I59: 0 | J59: 0
A60: 59 | C60: GE | D60: 50 | E60: 1 | F60: No | G60: ge50 | I60: 0 | J60: 0
A61: 60 | D61: 50 | E61: 1 | F61: No | H61: 1358 | I61: 0 | J61: 0 | K61: 1408
A62: 61 | C62: GE | D62: 50 | E62: 1 | F62: No | G62: ge50 | I62: 0 | J62: 0
A63: 62 | C63: GE | D63: 50 | E63: 1 | F63: No | G63: ge50 | H63: 999 | I63: 0 | J63: 0 | K63: 1385
A64: 63 | C64: GE | D64: 50 | E64: 0 | F64: No | G64: ge50 | I64: 219.99001 | J64: 0
A65: 64 | C65: A.O. Smith | D65: 80 | E65: 1 | F65: No | G65: ao80 | H65: 1999 | I65: 0 | J65: 0 | K65: 2017.06
A66: 65 | C66: GE | D66: 50 | E66: 1 | F66: No | G66: ge50 | I66: 0 | J66: 0
A67: 66 | C67: AirGenerate | D67: 66 | E67: 0 | H67: 2599 | I67: 400 | J67: 0 | K67: 3117
A68: 67 | C68: AirGenerate | D68: 66 | E68: 0 | F68: Yes | G68: ag66d | H68: 2540.5 | I68: 827 | K68: 3367.5
A69: 68 | C69: AirGenerate | D69: 66 | E69: 0 | H69: 2400 | I69: 400 | J69: 0 | K69: 2980
A70: 69 | C70: A.O. Smith | D70: 60 | E70: 0 | F70: Yes | G70: ao60 | H70: 1800 | I70: 411.54001
A71: 70 | C71: A.O. Smith | D71: 80 | E71: 0 | G71: ao80 | I71: 180 | J71: 0
A72: 71 | C72: GE | D72: 50 | E72: 0 | F72: No | G72: ge50 | I72: 200 | J72: 0
A73: 72 | C73: A.O. Smith | D73: 60 | E73: 0 | G73: ao60 | H73: 1500 | I73: 200 | J73: 0 | K73: 1800
A74: 73 | C74: A.O. Smith | D74: 80 | E74: 0 | F74: No | G74: ao80 | H74: 1499.98999 | I74: 259.98999 | J74: 0 | K74: 1759.98
A75: 74 | C75: GE | D75: 50 | E75: 1 | F75: No | G75: ge50 | H75: 1199 | I75: 0 | J75: 0 | K75: 1200.29
A76: 75 | C76: GE | D76: 50 | E76: 1 | F76: No | G76: ge50 | I76: 0 | J76: 0
A77: 76 | C77: GE | D77: 50 | E77: 1 | F77: No | G77: ge50 | I77: 0 | J77: 0
A78: 77 | C78: AirGenerate | D78: 66 | E78: 0 | F78: Yes | G78: ag66d | H78: 1750 | I78: 120 | K78: 1940
A79: 78 | C79: GE | D79: 50 | E79: 1 | F79: No | G79: ge50 | I79: 0 | J79: 0
A80: 79 | C80: GE | D80: 50 | E80: 1 | F80: No | G80: ge50 | I80: 0 | J80: 0
A81: 80 | D81: 50 | E81: 1 | F81: No | I81: 0 | J81: 0
A82: 81 | C82: AirGenerate | D82: 66 | E82: 0 | F82: Yes | G82: ag66d | H82: 2195.209961 | I82: 987.5 | K82: 3182.71
A83: 82 | C83: GE | D83: 50 | E83: 1 | F83: No | G83: ge50 | I83: 0 | J83: 0
A84: 83 | C84: GE | D84: 50 | E84: 1 | F84: No | G84: ge50 | H84: 1366.380005 | I84: 0 | J84: 0 | K84: 1541.38
A85: 84 | C85: AirGenerate | D85: 66 | E85: 0 | F85: Yes | G85: ag66d | H85: 2400 | I85: 1000 | K85: 3550
A86: 85 | C86: AirGenerate | D86: 66 | E86: 0 | F86: Yes | G86: ag66d | H86: 2545 | I86: 700 | K86: 3245
A87: 86 | C87: A.O. Smith | D87: 80 | E87: 1 | F87: No | G87: ao80 | I87: 0 | J87: 0
A88: 87 | C88: GE | D88: 50 | E88: 1 | F88: No | G88: ge50 | I88: 0 | J88: 0
A89: 88 | C89: AirGenerate | D89: 66 | E89: 0 | F89: Yes | G89: ag66d | H89: 2600 | I89: 1000 | K89: 3600
A90: 89 | C90: GE | D90: 50 | E90: 1 | F90: No | G90: ge50 | H90: 1060 | I90: 0 | J90: 0 | K90: 1100
A91: 90 | C91: GE | D91: 50 | E91: 1 | F91: No | G91: ge50 | H91: 1099 | I91: 0 | J91: 0
A92: 91 | C92: GE | D92: 50 | E92: 1 | F92: No | G92: ge50 | I92: 0 | J92: 0
A93: 92 | C93: GE | D93: 50 | E93: 1 | F93: No | G93: ge50 | I93: 0 | J93: 0
A94: 93 | C94: A.O. Smith | D94: 80 | E94: 0 | F94: No | G94: ao80 | H94: 1078.98999 | I94: 227.5 | J94: 0 | K94: 1488.84
A95: 94 | C95: A.O. Smith | D95: 80 | E95: 1 | F95: No | G95: ao80 | H95: 1000 | I95: 0 | J95: 0 | K95: 1050
A96: 95 | C96: GE | D96: 50 | E96: 1 | F96: No | G96: ge50 | I96: 0 | J96: 0
A97: 96 | C97: GE | D97: 50 | E97: 1 | F97: No | G97: ge50 | I97: 0 | J97: 0
A98: 97 | C98: GE | D98: 50 | E98: 0 | F98: No | G98: ge50 | H98: 1200 | I98: 300 | J98: 0 | K98: 1700
A99: 98 | C99: GE | D99: 50 | E99: 1 | F99: No | G99: ge50 | I99: 0 | J99: 0
A100: 99 | C100: GE | D100: 50 | E100: 1 | F100: No | G100: ge50 | I100: 0 | J100: 0
A101: 100 | C101: GE | D101: 50 | E101: 1 | F101: No | G101: ge50 | I101: 0 | J101: 0
A102: 101 | C102: GE | D102: 50 | E102: 1 | F102: No | G102: ge50 | H102: 999.9899902 | I102: 0 | J102: 0 | K102: 1029.99
A103: 102 | C103: GE | D103: 50 | E103: 1 | F103: No | G103: ge50 | I103: 0 | J103: 0
A104: 103 | C104: GE | D104: 50 | E104: 1 | F104: No | G104: ge50 | I104: 0 | J104: 0
A105: 104 | C105: A.O. Smith | D105: 60 | E105: 1 | F105: No | G105: ao60 | I105: 0 | J105: 0
A106: 105 | C106: GE | D106: 50 | E106: 1 | F106: No | G106: ge50 | I106: 0 | J106: 0
A107: 106 | C107: GE | D107: 50 | E107: 1 | F107: No | G107: ge50 | H107: 999 | I107: 0 | J107: 0
A108: 107 | C108: GE | D108: 50 | E108: 1 | F108: No | G108: ge50 | I108: 0 | J108: 0
A109: 108 | C109: GE | D109: 50 | E109: 1 | F109: No | G109: ge50 | I109: 0 | J109: 0
A110: 109 | C110: GE | D110: 50 | E110: 1 | F110: No | G110: ge50 | H110: 999 | I110: 0 | J110: 0 | K110: 1074
A111: 110 | C111: A.O. Smith | D111: 80 | E111: 1 | F111: No | G111: ao80 | H111: 1187.98999 | I111: 0 | J111: 0 | K111: 1234.99
A112: 111 | C112: GE | D112: 50 | E112: 1 | F112: No | G112: ge50 | I112: 0 | J112: 0
A113: 112 | C113: GE | D113: 50 | E113: 1 | F113: No | G113: ge50 | I113: 0 | J113: 0
A114: 113 | C114: GE | D114: 50 | E114: 1 | F114: No | G114: ge50 | I114: 0 | J114: 0
A115: 114 | C115: GE | D115: 50 | E115: 1 | F115: No | G115: ge50 | I115: 0 | J115: 0
A116: 115 | C116: GE | D116: 50 | E116: 0 | F116: No | G116: ge50 | I116: 296.45001 | J116: 0
A117: 116 | C117: A.O. Smith | D117: 80 | E117: 0 | F117: No | G117: ao80 | H117: 2080 | I117: 300 | J117: 0 | K117: 2380
A118: 117 | C118: GE | D118: 50 | E118: 1 | F118: No | G118: ge50 | I118: 0 | J118: 0
A119: 118 | C119: GE | D119: 50 | E119: 1 | F119: No | G119: ge50 | I119: 0 | J119: 0
A120: 119 | C120: GE | D120: 50 | E120: 1 | F120: No | G120: ge50 | I120: 0 | J120: 0
A121: 120 | C121: GE | D121: 50 | E121: 1 | F121: No | G121: ge50 | H121: 1077 | I121: 0 | J121: 0
A122: 121 | C122: GE | D122: 50 | E122: 1 | F122: No | G122: ge50 | H122: 1052 | I122: 0 | J122: 0 | K122: 1104
A123: 122 | C123: GE | D123: 50 | E123: 0 | F123: No | G123: ge50 | I123: 250 | J123: 0
A124: 123 | C124: GE | D124: 50 | E124: 1 | F124: No | G124: ge50 | I124: 0 | J124: 0
A125: 124 | C125: A.O. Smith | D125: 60 | E125: 0 | G125: ao60 | H125: 1599.98999 | I125: 640 | J125: 0 | K125: 2239.99
A126: 125 | C126: GE | D126: 50 | E126: 1 | F126: No | G126: ge50 | I126: 0 | J126: 0
A127: 126 | C127: GE | D127: 50 | E127: 1 | F127: No | G127: ge50 | I127: 0 | J127: 0
A128: 127 | C128: GE | D128: 50 | E128: 1 | F128: No | G128: ge50 | H128: 999.9899902 | I128: 0 | J128: 0 | K128: 1034.99
A129: 128 | C129: GE | D129: 50 | E129: 1 | F129: No | G129: ge50 | I129: 35 | J129: 0
A130: 129 | C130: GE | D130: 50 | E130: 0 | F130: No | G130: ge50 | I130: 250 | J130: 0
A131: 130 | C131: GE | D131: 50 | E131: 1 | F131: No | G131: ge50 | H131: 1085.910034 | I131: 0 | J131: 0
A132: 131 | C132: GE | D132: 50 | E132: 0 | F132: No | G132: ge50 | I132: 250 | J132: 0
A133: 132 | C133: GE | D133: 50 | E133: 1 | F133: No | G133: ge50 | I133: 0 | J133: 0
A134: 133 | C134: GE | D134: 50 | E134: 1 | F134: No | G134: ge50 | I134: 0 | J134: 0
A135: 134 | C135: GE | D135: 50 | E135: 1 | F135: No | G135: ge50 | I135: 0 | J135: 0
A136: 135 | C136: GE | D136: 50 | E136: 1 | F136: No | G136: ge50 | I136: 0 | J136: 0
A137: 136 | C137: GE | D137: 50 | E137: 1 | F137: No | G137: ge50 | H137: 1082.98999 | I137: 0 | J137: 0
A138: 137 | C138: GE | D138: 50 | E138: 1 | F138: No | G138: ge50 | I138: 0 | J138: 0
A139: 138 | C139: AirGenerate | D139: 66 | E139: 0 | H139: 2569 | I139: 755 | J139: 0 | K139: 3434
A140: 139 | C140: GE | D140: 50 | E140: 0 | F140: No | G140: ge50 | H140: 1010.210022 | I140: 271 | J140: 0 | K140: 1281.21
A141: 140 | D141: 50 | E141: 0 | F141: No | H141: 1459 | I141: 1459 | J141: 0 | K141: 3167
A142: 141 | C142: GE | D142: 50 | E142: 1 | F142: No | G142: ge50 | I142: 0 | J142: 0
A143: 142 | C143: A.O. Smith | D143: 80 | E143: 1 | G143: ao80 | I143: 0 | J143: 0
A144: 143 | C144: GE | D144: 50 | E144: 0 | F144: No | G144: ge50 | I144: 283 | J144: 0
A145: 144 | C145: GE | D145: 50 | E145: 0 | F145: No | G145: ge50 | H145: 999 | I145: 200 | J145: 0 | K145: 1313
A146: 145 | C146: A.O. Smith | D146: 60 | E146: 0 | G146: ao60 | I146: 384 | J146: 0
A147: 146 | C147: GE | D147: 50 | E147: 1 | F147: No | G147: ge50 | H147: 1081 | I147: 0 | J147: 0 | K147: 1101
A148: 147 | C148: GE | D148: 50 | E148: 1 | F148: No | G148: ge50 | H148: 999 | I148: 0 | J148: 0 | K148: 1134
A149: 148 | C149: GE | D149: 50 | E149: 1 | F149: No | G149: ge50 | I149: 0 | J149: 0
A150: 149 | C150: GE | D150: 50 | E150: 1 | F150: No | G150: ge50 | I150: 0 | J150: 0
A151: 150 | C151: GE | D151: 50 | E151: 1 | F151: No | G151: ge50 | H151: 1150 | I151: 0 | J151: 0
A152: 151 | C152: GE | D152: 50 | E152: 1 | F152: No | G152: ge50 | H152: 999 | I152: 0 | J152: 0 | K152: 999
A153: 152 | C153: GE | D153: 50 | E153: 1 | F153: No | G153: ge50 | H153: 999 | I153: 0 | J153: 0 | K153: 999
A154: 153 | C154: AirGenerate | D154: 66 | E154: 0 | F154: Yes | G154: ag66d | H154: 2200 | I154: 745 | K154: 2945
A155: 154 | C155: AirGenerate | D155: 66 | E155: 0 | F155: No | G155: ag66n | H155: 2190 | I155: 225 | J155: 0 | K155: 2540
A156: 155 | C156: GE | D156: 50 | E156: 1 | F156: No | G156: ge50 | I156: 0 | J156: 0
A157: 156 | C157: GE | D157: 50 | E157: 1 | F157: No | G157: ge50 | H157: 1199 | I157: 0 | J157: 0 | K157: 1254.2
A158: 157 | C158: GE | D158: 50 | E158: 1 | F158: No | G158: ge50 | I158: 0 | J158: 0
A159: 158 | C159: GE | D159: 50 | E159: 1 | F159: No | G159: ge50 | H159: 1039 | I159: 0 | J159: 0 | K159: 1108.9
A160: 159 | C160: GE | D160: 50 | E160: 1 | F160: No | G160: ge50 | I160: 0 | J160: 0
A161: 160 | C161: GE | D161: 50 | E161: 1 | F161: No | G161: ge50 | H161: 999.9899902 | I161: 0 | J161: 0 | K161: 1044.28
A162: 161 | C162: GE | D162: 50 | E162: 1 | F162: No | G162: ge50 | I162: 0 | J162: 0
A163: 162 | C163: AirGenerate | D163: 66 | E163: 0 | F163: Yes | G163: ag66d | H163: 2364.300049 | I163: 425 | K163: 3164.3
A164: 163 | C164: AirGenerate | D164: 66 | E164: 0 | F164: Yes | G164: ag66d | H164: 2000 | I164: 200 | K164: 2350
A165: 164 | C165: AirGenerate | D165: 80 | E165: 0 | F165: Yes | G165: ag66d | H165: 2100 | I165: 800 | K165: 3000
A166: 165 | C166: AirGenerate | D166: 66 | E166: 0 | F166: Yes | G166: ag66d | H166: 2400 | I166: 400 | K166: 3000
A167: 166 | C167: A.O. Smith | D167: 80 | E167: 0 | F167: No | G167: ao80 | H167: 1800 | I167: 800 | J167: 0 | K167: 2600
A168: 167 | D168: 50 | E168: 1 | F168: No | I168: 0 | J168: 0
A169: 168 | C169: AirGenerate | D169: 80 | E169: 0 | F169: No | G169: ag66n | H169: 2000 | I169: 300 | J169: 0 | K169: 2650
A170: 169 | D170: 50 | E170: 0 | F170: No | I170: 320.79001 | J170: 0
A171: 170 | D171: 50 | E171: 1 | F171: No | I171: 0 | J171: 0
A172: 171 | C172: AirGenerate | D172: 66 | E172: 0 | F172: No | G172: ag66n | H172: 2699 | I172: 400 | J172: 0 | K172: 3686
A173: 172 | C173: GE | D173: 50 | E173: 1 | F173: No | G173: ge50 | I173: 0 | J173: 0
A174: 173 | C174: AirGenerate | D174: 66 | E174: 0 | F174: Yes | G174: ag66d | H174: 2472.080078 | I174: 689 | K174: 3161.08
A175: 174 | C175: GE | D175: 50 | E175: 0 | F175: No | G175: ge50 | H175: 999 | I175: 140 | J175: 0 | K175: 1227
A176: 175 | C176: GE | D176: 50 | E176: 1 | F176: No | G176: ge50 | I176: 0 | J176: 0
A177: 176 | C177: GE | D177: 50 | E177: 0 | F177: No | G177: ge50 | I177: 712 | J177: 0
A178: 177 | C178: AirGenerate | D178: 66 | E178: 0 | F178: Yes | G178: ag66d | H178: 2520.590088 | I178: 700.88 | K178: 3221.47
A179: 178 | C179: AirGenerate | D179: 66 | E179: 0 | F179: No | G179: ag66n | H179: 2765 | I179: 360 | J179: 0 | K179: 3275
A180: 179 | C180: A.O. Smith | D180: 80 | E180: 1 | F180: No | G180: ao80 | H180: 999.9899902 | I180: 0 | J180: 0
A181: 180 | C181: GE | D181: 50 | E181: 1 | F181: No | G181: ge50 | I181: 0 | J181: 0
A182: 181 | C182: GE | D182: 50 | E182: 1 | F182: No | G182: ge50 | I182: 0 | J182: 0
A183: 182 | C183: GE | D183: 50 | E183: 1 | F183: No | G183: ge50 | I183: 0 | J183: 0
A184: 183 | C184: GE | D184: 50 | E184: 0 | F184: No | G184: ge50 | I184: 807.5 | J184: 0
A185: 184 | C185: AirGenerate | D185: 66 | E185: 0 | F185: No | G185: ag66n | H185: 1750 | I185: 625 | J185: 0 | K185: 2375
A186: 185 | C186: GE | D186: 50 | E186: 0 | F186: No | G186: ge50 | H186: 999 | I186: 220 | J186: 0 | K186: 1569
A187: 186 | C187: AirGenerate | D187: 66 | E187: 0 | F187: Yes | G187: ag66d | H187: 2273.699951 | I187: 825 | K187: 3591.1
A188: 187 | C188: GE | D188: 50 | E188: 0 | F188: No | G188: ge50 | I188: 385 | J188: 0
A189: 188 | E189: 1 | H189: 1356.689941 | I189: 0 | J189: 0
A190: 189 | C190: AirGenerate | D190: 66 | E190: 1 | F190: Yes | G190: ag66d | H190: 2500 | I190: 0 | K190: 2500
A191: 190 | C191: GE | D191: 50 | E191: 0 | F191: No | G191: ge50 | I191: 400 | J191: 0
A192: 191 | C192: AirGenerate | D192: 66 | E192: 0 | F192: No | G192: ag66n | H192: 1903.939941 | I192: 255 | J192: 0 | K192: 2158.94
A193: 192 | C193: AirGenerate | D193: 66 | E193: 1 | F193: Yes | G193: ag66d | H193: 2299 | I193: 0 | K193: 2352.28
A194: 193 | C194: GE | D194: 50 | E194: 0 | F194: No | G194: ge50 | I194: 650 | J194: 0
A195: 194 | C195: GE | D195: 50 | E195: 0 | F195: No | G195: ge50 | I195: 650 | J195: 0
A196: 195 | C196: GE | D196: 50 | E196: 1 | F196: No | G196: ge50 | I196: 0 | J196: 0
A197: 196 | C197: GE | D197: 50 | E197: 1 | F197: No | G197: ge50 | H197: 1100 | I197: 0 | J197: 0 | K197: 1160
A198: 197 | C198: AirGenerate | D198: 66 | E198: 0 | F198: Yes | G198: ag66d | H198: 2000 | I198: 350 | K198: 2350
A199: 198 | C199: GE | D199: 50 | E199: 0 | F199: No | G199: ge50 | I199: 210 | J199: 0
A200: 199 | C200: AirGenerate | D200: 66 | E200: 0 | F200: Yes | G200: ag66d | H200: 2000 | I200: 722.5 | K200: 2948.7
... 1021 more rows

Sheet finallookup
L2: Make Adjustments for Current Practice Market Baseline
C3: These columns contain the formula for ducted system
C4: heating interaction adjustments | G4: 2006$s | H4: 2006$s
A6: 1 | B6: 2 | C6: 3 | D6: 4 | E6: 5 | F6: 6 | G6: 7 | H6: 8 | I6: 9 | J6: 10 | L6: =A6 -> 1 | M6: =B6 -> 2 | N6: =C6 -> 3 | O6: 4 | P6: 5 | Q6: 6 | R6: 7 | S6: 8 | T6: 9 | U6: 10
B7: =outputprocessing!P6 -> DHWkwh | C7: =outputprocessing!Q6 -> Heatkwh | D7: =outputprocessing!R6 -> Heattherm | E7: =outputprocessing!S6 -> Heatwoodkwh | F7: =outputprocessing!O6 -> Coolkwh | G7: Cost | H7: NEBs | J7: Elec Total | M7: =B7 -> DHWkwh | N7: Heatkwh | O7: Heattherm | P7: Heatwoodkwh | Q7: Coolkwh | R7: Cost | S7: NEBs | T7: B/C | U7: Elec Total
A8: Tier1_garage_HZ1 | B8: =meldtiers($A8,B$7) -> 267.0851028 | C8: =IF(LEFT($A8,7)="Tier2_d",meldtiers($A8,C$7)*HCf,meldtiers($A8,C$7)) -> 0 | D8: 0 | E8: 0 | F8: 0 | J8: =SUM(B8,C8,F8) -> 267.0851028 | L8: =A8 -> Tier1_garage_HZ1 | M8: =IF(LEFT($L8,7)="Tier2_d",B8*fracSmallTank+(B8-VLOOKUP("Tier1_indor2"&MID($L8,13,99),$A$8:$H$28,M$6,0))*fracLargeTank,IF(LEFT($L8,5)="Tier1",B8*fracSmallTank,B8*fracSmallTank+(B8-VLOOKUP("Tier1"&MID($L8,6,99),$A$8:$H$28,M$6,0))*fracLargeTank)) -> 243.648385 | N8: =IF(LEFT($L8,7)="Tier2_d",C8*fracSmallTank+(C8-VLOOKUP("Tier1_indor2"&MID($L8,13,99),$A$8:$H$28,N$6,0))*fracLargeTank,IF(LEFT($L8,5)="Tier1",C8*fracSmallTank,C8*fracSmallTank+(C8-VLOOKUP("Tier1"&MID($L8,6,99),$A$8:$H$28,N$6,0))*fracLargeTank)) -> 0 | O8: =IF(LEFT($L8,7)="Tier2_d",D8*fracSmallTank+(D8-VLOOKUP("Tier1_indor2"&MID($L8,13,99),$A$8:$H$28,O$6,0))*fracLargeTank,IF(LEFT($L8,5)="Tier1",D8*fracSmallTank,D8*fracSmallTank+(D8-VLOOKUP("Tier1"&MID($L8,6,99),$A$8:$H$28,O$6,0))*fracLargeTank)) -> 0 | P8: =IF(LEFT($L8,7)="Tier2_d",E8*fracSmallTank+(E8-VLOOKUP("Tier1_indor2"&MID($L8,13,99),$A$8:$H$28,P$6,0))*fracLargeTank,IF(LEFT($L8,5)="Tier1",E8*fracSmallTank,E8*fracSmallTank+(E8-VLOOKUP("Tier1"&MID($L8,6,99),$A$8:$H$28,P$6,0))*fracLargeTank)) -> 0 | Q8: =IF(LEFT($L8,7)="Tier2_d",F8*fracSmallTank+(F8-VLOOKUP("Tier1_indor2"&MID($L8,13,99),$A$8:$H$28,Q$6,0))*fracLargeTank,IF(LEFT($L8,5)="Tier1",F8*fracSmallTank,F8*fracSmallTank+(F8-VLOOKUP("Tier1"&MID($L8,6,99),$A$8:$H$28,Q$6,0))*fracLargeTank)) -> 0 | U8: =SUM(M8,N8,Q8) -> 243.648385
A9: Tier1_garage_HZ2 | B9: =meldtiers($A9,B$7) -> 287.7288929 | C9: 0 | D9: 0 | E9: 0 | F9: 0 | J9: =SUM(B9,C9,F9) -> 287.7288929 | L9: =A9 -> Tier1_garage_HZ2 | M9: 262.4806825 | N9: 0 | O9: 0 | P9: 0 | Q9: 0 | U9: =SUM(M9,N9,Q9) -> 262.4806825
A10: Tier1_garage_HZ3 | B10: 302.0410766 | C10: 0 | D10: 0 | E10: 0 | F10: 0 | J10: 302.0410766 | L10: Tier1_garage_HZ3 | M10: 275.5369721 | N10: 0 | O10: 0 | P10: 0 | Q10: 0 | U10: 275.5369721
A11: Tier1_basmnt_HZ1 | B11: 261.5494271 | C11: 0 | D11: 0 | E11: 0 | F11: 0 | J11: 261.5494271 | L11: Tier1_basmnt_HZ1 | M11: 238.5984648 | N11: 0 | O11: 0 | P11: 0 | Q11: 0 | U11: 238.5984648
A12: Tier1_basmnt_HZ2 | B12: 268.6715099 | C12: 0 | D12: 0 | E12: 0 | F12: 0 | J12: 268.6715099 | L12: Tier1_basmnt_HZ2 | M12: 245.0955849 | N12: 0 | O12: 0 | P12: 0 | Q12: 0 | U12: 245.0955849
A13: Tier1_basmnt_HZ3 | B13: 273.2036706 | C13: 0 | D13: 0 | E13: 0 | F13: 0 | J13: 273.2036706 | L13: Tier1_basmnt_HZ3 | M13: 249.2300485 | N13: 0 | O13: 0 | P13: 0 | Q13: 0 | U13: 249.2300485
A14: Tier1_indor2_HZ1_gfnc | B14: 251.8662632 | C14: 0.1626485271 | D14: 0.253790865 | E14: 0.8130875868 | F14: 0 | J14: 252.0289117 | L14: Tier1_indor2_HZ1_gfnc | M14: 229.7649986 | N14: 0.1483761188 | O14: 0.2315207166 | P14: 0.7417391511 | Q14: 0 | U14: 229.9133747
A15: Tier1_indor2_HZ1_gfac | B15: 257.2227637 | C15: 0.1720519982 | D15: 0.2345443292 | E15: 0.7540209009 | F15: -1.465760464 | J15: 255.9290553 | L15: Tier1_indor2_HZ1_gfac | M15: 234.6514662 | N15: 0.1569544354 | O15: 0.2139630643 | P15: 0.6878555668 | Q15: -1.337139983 | U15: 233.4712807
A16: Tier1_indor2_HZ1_efaf | B16: 251.8662632 | C16: 4.51863895 | D16: 0.01075838697 | E16: 0.5730158088 | F16: 0 | J16: 256.3849022 | L16: Tier1_indor2_HZ1_efaf | M16: 229.7649986 | N16: 4.122128382 | O16: 0.009814338513 | P16: 0.5227336716 | Q16: 0 | U16: 233.887127
A17: Tier1_indor2_HZ1_hp85 | B17: 257.2242576 | C17: 0.3999752628 | D17: 0.0009522975178 | E17: 0.05072150072 | F17: -1.473359872 | J17: 256.150873 | L17: Tier1_indor2_HZ1_hp85 | M17: 234.652829 | N17: 0.3648774335 | O17: 0.0008687334106 | P17: 0.04627068903 | Q17: -1.344072543 | U17: 233.6736339
A18: Tier1_indor2_HZ1_zonl | B18: 251.8635247 | C18: 4.091326596 | D18: 0.009741002818 | E18: 0.5188276481 | F18: 0 | J18: 255.9548513 | L18: Tier1_indor2_HZ1_zonl | M18: 229.7625004 | N18: 3.732312687 | O18: 0.008886229821 | P18: 0.4733005219 | Q18: 0 | U18: 233.4948131
A19: Tier1_indor2_HZ2_gfnc | B19: 246.3535388 | C19: =IF(LEFT($A19,7)="Tier2_d",meldtiers($A19,C$7)*HCf,meldtiers($A19,C$7)) -> 0.2086800628 | D19: 0.2841788663 | E19: 0.9320478649 | F19: 0 | J19: 246.5622189 | L19: Tier1_indor2_HZ2_gfnc | M19: 224.7360158 | N19: 0.1903683873 | O19: 0.2592421708 | P19: 0.8502606647 | Q19: 0 | U19: 224.9263842
A20: Tier1_indor2_HZ2_gfac | B20: 256.3301504 | C20: 0.2072775901 | D20: 0.2693105403 | E20: 0.88444537 | F20: -0.8355366802 | J20: 255.7018913 | L20: Tier1_indor2_HZ2_gfac | M20: 233.8371797 | N20: 0.1890889816 | O20: 0.2456785404 | P20: 0.8068352888 | Q20: -0.7622183365 | U20: 233.2640504
A21: Tier1_indor2_HZ2_efaf | B21: 246.3535388 | C21: 5.280633274 | D21: 0.003961943506 | E21: 0.657773877 | F21: 0 | J21: 251.6341721 | L21: Tier1_indor2_HZ2_efaf | M21: 224.7360158 | N21: 4.817257704 | O21: 0.003614282963 | P21: 0.6000542193 | Q21: 0 | U21: 229.5532735
A22: Tier1_indor2_HZ2_hp85 | B22: 256.3288378 | C22: 3.407580801 | D22: 0.002556633253 | E22: 0.4244600067 | F22: -0.8403191229 | J22: 258.8960995 | L22: Tier1_indor2_HZ2_hp85 | M22: 233.8359823 | N22: 3.108565586 | O22: 0.002332288685 | P22: 0.3872136411 | Q22: -0.7665811199 | U22: 236.1779668
A23: Tier1_indor2_HZ2_zonl | B23: 246.6195696 | C23: 4.643088076 | D23: 0.003483607305 | E23: 0.5783590502 | F23: 0 | J23: 251.2626577 | L23: Tier1_indor2_HZ2_zonl | M23: 224.9787024 | N23: 4.235657097 | O23: 0.003177920764 | P23: 0.5276080435 | Q23: 0 | U23: 229.2143595
A24: Tier1_indor2_HZ3_gfnc | B24: 270.771769 | C24: =IF(LEFT($A24,7)="Tier2_d",meldtiers($A24,C$7)*HCf,meldtiers($A24,C$7)) -> 0.0191636517 | D24: 0.02340185916 | E24: 0.07699503473 | F24: 0 | J24: 270.7909327 | L24: Tier1_indor2_HZ3_gfnc | M24: 247.0115463 | N24: 0.01748204126 | O24: 0.02134834602 | P24: 0.07023872043 | Q24: 0 | U24: 247.0290283
A25: Tier1_indor2_HZ3_gfac | B25: 277.4089351 | C25: -0.04207783693 | D25: -0.05769000236 | E25: -0.1891763931 | F25: -0.7767488969 | J25: 276.5901084 | L25: Tier1_indor2_HZ3_gfac | M25: 253.0663011 | N25: -0.03838550674 | O25: -0.05262770466 | P25: -0.1725761646 | Q25: -0.7085891812 | U25: 252.3193264
A26: Tier1_indor2_HZ3_efaf | B26: 270.771769 | C26: 0.4355618677 | D26: 0.000326792531 | E26: 0.05425508713 | F26: 0 | J26: 271.2073309 | L26: Tier1_indor2_HZ3_efaf | M26: 247.0115463 | N26: 0.3973413138 | O26: 0.0002981164864 | P26: 0.04949420323 | Q26: 0 | U26: 247.4088876
A27: Tier1_indor2_HZ3_hp85 | B27: 277.3349354 | C27: -0.7359271042 | D27: -0.0005521499904 | E27: -0.09166961601 | F27: -0.7799471375 | J27: 275.8190611 | L27: Tier1_indor2_HZ3_hp85 | M27: 252.9987948 | N27: -0.6713495008 | O27: -0.0005036988287 | P27: -0.08362560721 | Q27: -0.7115067762 | U27: 251.6159385
A28: Tier1_indor2_HZ3_zonl | B28: 270.822208 | C28: 0.3443317936 | D28: 0.0002583446043 | E28: 0.04289115473 | F28: 0 | J28: 271.1665398 | L28: Tier1_indor2_HZ3_zonl | M28: 247.0575593 | N28: 0.3141166787 | O28: 0.0002356748653 | P28: 0.03912745591 | Q28: 0 | U28: 247.371676
T29: Min | U29: =MIN($U$8:$U$28) -> 224.9263842
